Workbook

Sheet Data (hidden)
A1: MEDUPI POWER STATION
B3: Contract | C3: : | D3: The Supply and Delivery of Various Assets Purchaces 2024-2025 for ERA at Medupi Power Station
B4: Contract /Tender Number | C4: : | D4: LPMED00034GX
B5: Contract Location | C5: : | D5: Medupi Power Station - Lephalale, Limpopo Province
B7: Document: | C7: : | D7: Negotiationed Tender Evaluation:
B8: Revision: | C8: : | D8: 0
B9: Date | C9: : | D9: 25/10/2025
B11: Requested by | C11: : | D11: Mzi Dyariwe
D12: Officer Procurement
B14: Prepared by: | C14: : | D14: Joey Delport
C15: : | D15: PrQS
B17: Checked by | C17: : | D17: Sindiswa Mjuleni
B18: Agreed by: | D18: Justice Mphahlele - Manager Project Support
B20: Anticipated Contract Appointment | C20: : | D20: TBC
B21: Anticipated Site Commencement | C21: : | D21: TBC
B22: Anticipated Site Completion | C22: : | D22: TBC
B24: Contingency | C24: : | D24: 10%
B26: Value Added Tax | C26: : | D26: 15%

Sheet Cover (hidden)
AB16: =Q16*S16 -> 0
B23: MEDUPI POWER STATION
A32: =Data!D3 -> The Supply and Delivery of Various Assets Purchaces 2024-2025 for ERA at Medupi Power Station
A39: CONFIDENTIAL
F42: =Data!D7 -> Negotiationed Tender Evaluation:
F43: =Data!B8&" "&Data!D8 -> Revision: 0
F44: =Data!B14 -> Prepared by:
F45: =Data!D14 -> Joey Delport
F46: =Data!D15 -> PrQS
F47: =Data!$D$9 -> 25/10/2025

Sheet Index (hidden)
A1: MEDUPI POWER STATION
A3: Contract | C3: : | D3: =Data!D3 -> The Supply and Delivery of Various Assets Purchaces 2024-2025 for ERA at Medupi Power Station
A4: Contract Number | C4: : | D4: =Data!D4 -> LPMED00034GX
A5: Contract Location | C5: : | D5: =Data!D5 -> Medupi Power Station - Lephalale, Limpopo Province
A7: Document | C7: : | D7: =Data!D7 -> Negotiationed Tender Evaluation:
A8: Revision | C8: : | D8: =Data!D8 -> 0
A9: Date | C9: : | D9: =Data!D9 -> 25/10/2025
A11: Requested by | C11: : | D11: =Data!D11 -> Mzi Dyariwe
D12: =Data!D12 -> Officer Procurement
A14: Prepared by | C14: : | D14: =Data!D14 -> Joey Delport
C15: : | D15: =Data!D15 -> PrQS
AB16: =Q16*S16 -> 0
B18: INDEX | G18: PAGE
B21: Cover | G21: 1
B23: Final Report | G23: 3-4
B25: 1. Purpose of Report | G25: 3
B26: 2.Tender / Financial | G26: 3
B27: 3. Tender Analysis / Comments | G27: 4
B28: 4. Aspiration | G28: 6
B29: 4. Recommendation | G29: 4
B30: 5. Annexures | G30: 4
B31: 6. Evaluation Report Signed Off | G31: 4
B33: Annexure A: | C33: =PROPER('Annexure A'!B32) -> Tender Analysis | G33: 5-6
B35: Annexure A1: Tender Analysis | G35: 6
B37: Annexure B: | C37: =PROPER('Annexure B'!B32) -> Submissions And Comparisons | G37: 7-10
B39: Annexure B1: | D39: Summary - Submissions | G39: 8
B40: Annexure B2: | D40: Summary - Bills Of Quantities (Including Corrections) | G40: 9
B41: Annexure B3: | D41: Detailed Bills Of Quantities (Including Corrections) | G41: 10
B42: ='Final Report '!B33 -> Langutani Procurement Services | G42: 10
B44: Annexure C: | C44: Tenderers Price List | G44: 11-12
B46: Annexure C1: | D46: Tenderers Price List | G46: 12

Sheet Final Report (hidden)
A1: MEDUPI POWER STATION
A3: Contract | C3: : | D3: =Data!D3 -> The Supply and Delivery of Various Assets Purchaces 2024-2025 for ERA at Medupi Power Station
A4: Contract Number | C4: : | D4: =Data!D4 -> LPMED00034GX
A5: Contract Location | C5: : | D5: =Data!D5 -> Medupi Power Station - Lephalale, Limpopo Province
A6: Document | C6: : | D6: =Data!D7 -> Negotiationed Tender Evaluation:
A7: Revision | C7: : | D7: =Data!$D$8 -> 0
A8: Date | C8: : | D8: =Data!D9 -> 25/10/2025
A9: Requested by | C9: : | D9: =Data!D11 -> Mzi Dyariwe
D10: =Data!D12 -> Officer Procurement
A11: Prepared by | C11: : | D11: =Data!D14 -> Joey Delport
C12: : | D12: =Data!D15 -> PrQS
AB13: =Q13*S13 -> 0
A15: 1 | B15: PURPOSE OF REPORT
B17: This is a tender evaluation report for The Supply and Delivery of Various Assets Purchases 2024-2025 for ERA at Medupi Power Station.
B18: as per the tender documents issued.
A20: =A15+1 -> 2 | B20: TENDER / FINANCIAL
B22: The figures below exclude Escalation, Contingencies and Taxation.
B24: 2.1 Tender Submissions | S24: =Q24+Q23 -> 0
B26: A total of Six (6) tenderers are being considered for this contract, based on passing the qualification criteria.
B28: Tender Closure Date: 13 March 2025
B30: The submissions were as follows (as per tender document excluding any corrections):
B32: Tenderer | G32: Totals
B33: ='A1-Tender Analysis'!K15 -> Langutani Procurement Services | G33: ='A1-Tender Analysis'!N15 -> R25,572,758.42
B34: ='A1-Tender Analysis'!K16 -> Maison Investments 120 (Pty) Ltd | G34: ='A1-Tender Analysis'!N16 -> R25,683,815.83
B35: ='A1-Tender Analysis'!K17 -> KGAUGELO KAE-KAE | G35: ='A1-Tender Analysis'!N17 -> R27,110,994.00
B36: ='A1-Tender Analysis'!K18 -> Citechnologies (Pty) Ltd t/a CiTek (Pty) Ltd | G36: ='A1-Tender Analysis'!N18 -> R114,059,901.00
B37: ='A1-Tender Analysis'!K19 -> Bopelo M Projects | G37: ='A1-Tender Analysis'!N19 -> R22,895,363.00
B38: ='A1-Tender Analysis'!K20 -> MANZO Engineering Services | G38: ='A1-Tender Analysis'!N20 -> R24,524,341.03
B40: Sergio (Pty) Ltd: The Price List submitted by the tenderer includes VAT in the rate for the priced spares. In order to have a common base for a sound comparison, the QS subtracted the VAT from the rates submitted. It is recommended that the tenderer be advised of this and agree to the revised calculations, even though the rates ultimately do not change the tenderer's bottom line price.
B41: The figures below include the correction of arithmetical errors and additions/omissions as agreed to by the tendered
B43: Tenderer | G43: Totals
B44: =B33 -> Langutani Procurement Services | G44: ='A1-Tender Analysis'!$R15 -> R25,572,758.41
B45: Maison Investments 120 (Pty) Ltd | G45: ='A1-Tender Analysis'!$R16 -> R25,556,254.52
B46: KGAUGELO KAE-KAE | G46: ='A1-Tender Analysis'!$R17 -> R23,610,994.00
B47: Citechnologies (Pty) Ltd t/a CiTek (Pty) Ltd | G47: ='A1-Tender Analysis'!$R18 -> R114,290,993.00
B48: Bopelo M Projects | G48: ='A1-Tender Analysis'!$R19 -> R23,358,984.00
B49: MANZO Engineering Services | G49: ='A1-Tender Analysis'!$R20 -> R24,524,341.27
B51: 2.2 Project Budget
B53: As approved on 20 November 2024
B55: Estimate
B56: ='A1-Tender Analysis'!B15 -> Estimate - Revision 0 | G56: ='A1-Tender Analysis'!F15 -> R33,181,367.03
B57: Amendments for common base | G57: =SUM('A1-Tender Analysis'!G15:H15) -> 0
B58: Total After Corrections | G58: =SUM(G56:G57) -> R33,181,367.03
B59: Contingency | G59: =G58*F59 -> 0.00
B60: Total After Contingency | G60: =SUM(G58:G59) -> R33,181,367.03
B62: 2.3 Comparison with Project Budget
B64: The figures below include the correction of amendments for common base :
B66: Comparison with Project Estimate
B68: Tenderer | E68: Tender Price (Corrected) | F68: Eskom Estimate (Corrected) | G68: Above/Below QS Estimate
B69: =B33 -> Langutani Procurement Services | E69: ='A1-Tender Analysis'!R15 -> R25,572,758.41 | F69: =$G$58 -> R33,181,367.03 | G69: =(E69-F69)/F69 -> -22.93%
B70: Maison Investments 120 (Pty) Ltd | E70: ='A1-Tender Analysis'!R16 -> R25,556,254.52 | F70: R33,181,367.03 | G70: -22.98%
B71: KGAUGELO KAE-KAE | E71: ='A1-Tender Analysis'!R17 -> R23,610,994.00 | F71: R33,181,367.03 | G71: -28.84%
B72: Citechnologies (Pty) Ltd t/a CiTek (Pty) Ltd | E72: ='A1-Tender Analysis'!R18 -> R114,290,993.00 | F72: R33,181,367.03 | G72: 244.44%
B73: Bopelo M Projects | E73: ='A1-Tender Analysis'!R19 -> R23,358,984.00 | F73: R33,181,367.03 | G73: -29.60%
B74: MANZO Engineering Services | E74: ='A1-Tender Analysis'!R20 -> R24,524,341.27 | F74: R33,181,367.03 | G74: -26.09%
A77: =A20+1 -> 3 | B77: TENDERER ANALYSIS / COMMENTS
B79: Refer Annexure A - Tender Analysis Summary for comprehensive comparison of tender values with estimate values,
B80: corrections and allowances.
B82: 3.1 Analysis
B84: Refer Annexure B3 - Bills of Quantities Corrected for comprehensive comparison of tender values with estimate values,
B85: including corrections and allowances.
B87: ="3.2.1 "&B69 -> 3.2.1 Langutani Procurement Services
B89: The tender total of | D89: =E69 -> R25,572,758.41 | E89: is less than the estimate value by | G89: =E69-F69 -> R(7,608,608.62)
B91: With a favourable budget Saving of | G91: =G69 -> -22.93%
B93: ="3.2.2 "&B70 -> 3.2.2 Maison Investments 120 (Pty) Ltd
B95: The tender total of | D95: =E70 -> R25,556,254.52 | E95: is less than the estimate value by | G95: =E70-F70 -> R(7,625,112.51)
B97: With a favourable budget Saving of | G97: =G70 -> -22.98%
B99: ="3.2.3 "&B71 -> 3.2.3 KGAUGELO KAE-KAE
B101: The tender total of | D101: =E71 -> R23,610,994.00 | E101: is less than the estimate value by | G101: =E71-F71 -> R(9,570,373.03)
B103: With a favourable budget Saving of | G103: =G71 -> -28.84%
B105: ="3.2.4 "&B72 -> 3.2.4 Citechnologies (Pty) Ltd t/a CiTek (Pty) Ltd
B107: The tender total of | D107: =E72 -> R114,290,993.00 | E107: is higher than the estimate value by | G107: =E72-F72 -> R81,109,625.97
B109: With a favourable budget Extra of | G109: =G72 -> 244.44%
B111: ="3.2.5 "&B73 -> 3.2.5 Bopelo M Projects
B113: The tender total of | D113: =E73 -> R23,358,984.00 | E113: is higher than the estimate value by | G113: =E73-F73 -> R(9,822,383.03)
B115: With a favourable budget Extra of | G115: =G73 -> -29.60%
B117: ="3.2.6 "&B74 -> 3.2.6 MANZO Engineering Services
B119: The tender total of | D119: =E74 -> R24,524,341.27 | E119: is less than the estimate value by | G119: =E74-F74 -> R(8,657,025.76)
B121: With a favourable budget Saving of | G121: =G74 -> -26.09%
A123: =A77+1 -> 4 | B123: FINDINGS/RECOMMENDATION
B125: This is a Financial Evaluation only and no other criteria have been taken into consideration.
B127: After a thorough evaluation of the six (6) tenderers, there are five (5) tenders below the QS Estimate prices and one (1) tenders are above the QS Estimate.
B129: One (1) of the six (6) tenderers (Langutani Procurement Services) had an "Excel" rounding off error ONLY and NO calculation errors.
B131: Five (5) of the six (6) tenderers had Calculation Errors, Total Cost Adding Errors and needs to be Clarified and Confirmed:
B133: • Maison Investments 120 (Pty) Ltd: Had Calculation Errors & Total Cost Adding Error and needs to be Clarified and Confirmed.
B134: • KGAUGELO KAE-KAE: Had Total Cost Adding Error ONLY and needs to be Clarified and Confirmed.
B135: • Citechnologies (Pty) Ltd t/a CiTek (Pty) Ltd: Had Calculation Errors, Total Cost Adding Error, Changed 1 x Item Quantity and NOT Pricing 1 x Item (This Item has a Zero Quantity and will not make a change in pricing total) and needs to be Clarified and Confirmed.
B136: • Bopelo M Projects: Had Calculation Errors, Total Cost Adding Error and NOT Pricing 3 x Item (This 3 x Items has a Zero Quantity and will not make a change in pricing total) and needs to be Clarified and Confirmed.
B137: • MANZO Engineering Services: Had Total Cost Adding Error and NOT Pricing 4 x Item (This 4 x Items has a Zero Quantity and will not make a change in pricing total) and needs to be Clarified and Confirmed.
B139: One (1) of the six (6) tenderers (Langutani Procurement Services) had NO calculation errors.
B141: One (1) of the tenderers (Citechnologies (Pty) Ltd t/a CiTek (Pty) Ltd) changed one (1) items quantities and needs to be clarified and confirmed.
B143: Three (3) of the tenderers did NOT price all items and needs to be clarified and confirmed:
B145: Citechnologies (Pty) Ltd t/a CiTek (Pty) Ltd did NOT price one (1) of the 155 items and needs to be clarified and confirmed.
B147: Bopelo M Projects did NOT price Three (3) of the 155 items and needs to be clarified and confirmed.
B149: MANZO Engineering Services did NOT price Four (4) of the 155 items and needs to be clarified and confirmed.
B152: Conclusion:
B154: At this stage Bopelo M Projects are the lowest tenderer by 29.60% lower, than the QS Estimate. However this Tenderer had Calculation Errors, Total Cost Adding Errors and did not price 3 x item with zero quantities. We can ONLY proceed with this Tenderer after they Clarified and Confirmed that they AGREE to the Error Changes.
A158: =A123+1 -> 5 | B158: ANNEXURES
B160: Annexure A | C160: : | D160: A1 - Tender Analysis
B161: Annexure B | C161: : | D161: B1 - Submissions Summary
D162: B2 - BOQ Summary
D163: B3 - BILLS OF QUANTITIES (including corrections)
B164: Annexure C | C164: : | D164: C1 - Price List All Tenders
B165: Annexure D | C165: : | D165: D1 - ASPIRATION
A168: =A158+1 -> 6 | B168: EVALUATION REPORT
B175: PREPARED BY :
B176: =Data!D14 -> Joey Delport
B177: DelporJS@eskom.co.za
B178: =Data!$D$9 -> 25/10/2025

Sheet Annexure A (hidden)
AB16: =Q16*S16 -> 0
B28: ANNEXURE A
B32: TENDER ANALYSIS

Sheet A1-Tender Analysis (hidden)
A1: MEDUPI POWER STATION
A3: Contract | D3: : | E3: =Data!D3 -> The Supply and Delivery of Various Assets Purchaces 2024-2025 for ERA at Medupi Power Station
A4: Contract Location | D4: : | E4: =Data!D5 -> Medupi Power Station - Lephalale, Limpopo Province
A6: Document | D6: : | E6: =Data!D7 -> Negotiationed Tender Evaluation:
A7: Revision | D7: : | E7: =Data!D8 -> 0
A8: Date | D8: : | E8: =Data!D9 -> 25/10/2025
B11: ANNEXURE A: TENDER ANALYSIS
B13: Description | F13: Estimate Value (Corrected) | G13: Arithmetical Corrections | H13: Ammendments for common base | I13: Cost Escalations (if applicable) | J13: Total Budget Value | K13: Description | N13: Tender Value (Submitted Tenders) | O13: Arithmetical Corrections & Total Tendered Actual Adding Cost Error | P13: Additions/Omissions - Agreed | Q13: Cost Escalations (if applicable) | R13: Totals (Corrected) | S13: Comparison Corrected Tender with/ Estimate Extra / (Saving) | V13: Combined Totals incl Corrections | W13: Check
B15: Estimate - Revision 0 | F15: ='B3 - BOQ Corrected'!$J$165 -> R33,181,367.03 | G15: 0 | H15: 0 | I15: 0 | J15: =SUM(F15:I15) -> R33,181,367.03 | K15: ='B2-BOQ-Summary'!$G$12 -> Langutani Procurement Services | N15: ='B1-Submissions-Summary'!$G$21 -> R25,572,758.42 | O15: ='B3 - BOQ Corrected'!$S$165+'B3 - BOQ Corrected'!S166 -> -R0.01 | P15: 0 | Q15: 0 | R15: =SUBTOTAL(9,N15:Q15) -> R25,572,758.41 | S15: =R15-$J$25 -> -R7,608,608.62 | T15: =S15/$J$25 -> -22.930% | V15: ='B2-BOQ-Summary'!#REF! ->  | W15: =V15-R15 -> 
K16: ='B2-BOQ-Summary'!$H$12 -> Maison Investments 120 (Pty) Ltd | N16: ='B1-Submissions-Summary'!$H$21 -> R25,683,815.83 | O16: ='B3 - BOQ Corrected'!$AF$165+'B3 - BOQ Corrected'!AF166 -> -R127,561.31 | P16: 0 | Q16: 0 | R16: R25,556,254.52 | S16: -R7,625,112.51 | T16: -22.980%
K17: ='B2-BOQ-Summary'!$I$12 -> KGAUGELO KAE-KAE | N17: ='B1-Submissions-Summary'!$I$21 -> R27,110,994.00 | O17: ='B3 - BOQ Corrected'!$AS$165+'B3 - BOQ Corrected'!AS166 -> -R3,500,000.00 | P17: 0 | Q17: 0 | R17: R23,610,994.00 | S17: -R9,570,373.03 | T17: -28.843%
K18: ='B2-BOQ-Summary'!$J$12 -> Citechnologies (Pty) Ltd t/a CiTek (Pty) Ltd | N18: ='B1-Submissions-Summary'!$J$21 -> R114,059,901.00 | O18: ='B3 - BOQ Corrected'!$BF$165+'B3 - BOQ Corrected'!BF166 -> R231,092.00 | P18: 0 | Q18: 0 | R18: R114,290,993.00 | S18: R81,109,625.97 | T18: 244.443%
K19: ='B2-BOQ-Summary'!$K$12 -> Bopelo M Projects | N19: ='B1-Submissions-Summary'!$K$21 -> R22,895,363.00 | O19: ='B3 - BOQ Corrected'!$BV$165+'B3 - BOQ Corrected'!BV166 -> R463,621.00 | P19: 0 | Q19: 0 | R19: R23,358,984.00 | S19: -R9,822,383.03 | T19: -29.602%
K20: ='B2-BOQ-Summary'!$L$12 -> MANZO Engineering Services | N20: ='B1-Submissions-Summary'!$L$21 -> R24,524,341.03 | O20: ='B3 - BOQ Corrected'!$CI$165+'B3 - BOQ Corrected'!CI166 -> R0.24 | P20: 0 | Q20: 0 | R20: R24,524,341.27 | S20: -R8,657,025.76 | T20: -26.090%
AB22: =Q22*S22 -> 0
V24: =AVERAGE(R15:R16) -> 25,564,506.46
B25: TOTALS (excl Contingency) | F25: =SUBTOTAL(9,F14:F24) -> R33,181,367.03 | G25: =SUBTOTAL(9,G14:G24) -> 0 | H25: =SUBTOTAL(9,H14:H24) -> 0 | I25: =SUBTOTAL(9,I14:I24) -> 0 | J25: =SUBTOTAL(9,J14:J24) -> R33,181,367.03
C27: Contingency | E27: 10% | F27: =ROUND(F25*$E$27,2) -> 3,318,137 | G27: =ROUND(G25*$E$27,2) -> 0 | H27: =ROUND(H25*$E$27,2) -> 0 | I27: =ROUND(I25*$E$27,2) -> 0 | J27: =ROUND(J25*$E$27,2) -> 3,318,137
B29: TOTALS (incl Contingency) | F29: =SUBTOTAL(9,F14:F28) -> 36,499,504 | G29: =SUBTOTAL(9,G14:G28) -> 0 | H29: =SUBTOTAL(9,H14:H28) -> 0 | I29: =SUBTOTAL(9,I14:I28) -> 0 | J29: =SUBTOTAL(9,J14:J28) -> 36,499,504
K31: Arithmetical corrections and other amendments
K33: 1. | L33: =K15 -> Langutani Procurement Services
L34: 1.1 | M34: Arithmetical corrections | O34: ='B3 - BOQ Corrected'!$S$165 -> 0
L35: 1.2 | M35: Total Tendered Actual Adding Cost Error | O35: ='B3 - BOQ Corrected'!$S$166 -> -R0.01
L36: 1.3 | M36: Additions/Omissions | O36: =$P$15 -> 0
L37: 1.4 | M37: Rounding variance | O37: 0
K39: 2. | L39: =$K$16 -> Maison Investments 120 (Pty) Ltd
L40: 2.1 | M40: Arithmetical corrections | O40: ='B3 - BOQ Corrected'!$AF$165 -> -R17,310.21
L41: 2.2 | M41: Total Tendered Actual Adding Cost Error | O41: ='B3 - BOQ Corrected'!$AF$166 -> -R110,251.10
L42: 2.3 | M42: Additions/Omissions | O42: =$P$15 -> 0
L43: 2.4 | M43: Rounding variance | O43: 0
K45: 3. | L45: =$K$17 -> KGAUGELO KAE-KAE
L46: 3.1 | M46: Arithmetical corrections | O46: ='B3 - BOQ Corrected'!$AS$165 -> 0
L47: 3.2 | M47: Total Tendered Actual Adding Cost Error | O47: ='B3 - BOQ Corrected'!$AS$166 -> -R3,500,000.00
L48: 3.3 | M48: Additions/Omissions | O48: =$P$15 -> 0
L49: 3.4 | M49: Rounding variance | O49: 0
K51: 4. | L51: =$K$18 -> Citechnologies (Pty) Ltd t/a CiTek (Pty) Ltd
L52: 4.1 | M52: Arithmetical corrections | O52: ='B3 - BOQ Corrected'!$BF$165 -> R345,709.00
L53: 4.2 | M53: Total Tendered Actual Adding Cost Error | O53: ='B3 - BOQ Corrected'!$BF$166 -> -R114,617.00
L54: 4.3 | M54: Additions/Omissions | O54: =$P$15 -> 0
L55: 4.4 | M55: Rounding variance | O55: 0
K57: 5. | L57: =$K$19 -> Bopelo M Projects
L58: 5.1 | M58: Arithmetical corrections | O58: ='B3 - BOQ Corrected'!$BV$165 -> -R994,167.00
L59: 5.2 | M59: Total Tendered Actual Adding Cost Error | O59: ='B3 - BOQ Corrected'!$BV$166 -> R1,457,788.00
L60: 5.3 | M60: Additions/Omissions | O60: =$P$15 -> 0
L61: 5.4 | M61: Rounding variance | O61: 0
K63: 6. | L63: =$K$20 -> MANZO Engineering Services
L64: 6.1 | M64: Arithmetical corrections | O64: ='B3 - BOQ Corrected'!$CI$165 -> 0
L65: 6.2 | M65: Total Tendered Actual Adding Cost Error | O65: ='B3 - BOQ Corrected'!$CI$166 -> R0.24
L66: 6.3 | M66: Additions/Omissions | O66: =$P$15 -> 0
L67: 6.4 | M67: Rounding variance | O67: 0
I73: excl cont
I75: check
I77: incl cont
I79: check

Sheet Annexure B (hidden)
AB16: =Q16*S16 -> 0
B28: ANNEXURE B
B32: SUBMISSIONS AND COMPARISONS

Sheet Preambles (hidden)
B1: Contract: | D1: =#REF! -> 
B2: Contract Number: | D2: =#REF! -> 
B3: Contract Location: | D3: =#REF! -> 
B4: Document: | D4: =#REF! -> 
B5: Revision: | D5: =#REF! -> 
B6: Date: | D6: =#REF! -> 
C8: Preambles and Notes
C9: i | D9: The operation is a 24 hour activity and requires the continuous movement of coal to the stockpiles, and includes working days, weekends and public holidays
C10: ii | D10: Standing time due to no fault of the Employer shall not be paid

Sheet B1-Submissions-Summary (hidden)
A1: MEDUPI POWER STATION
A3: =Data!D3 -> The Supply and Delivery of Various Assets Purchaces 2024-2025 for ERA at Medupi Power Station
A5: =Data!D7 -> Negotiationed Tender Evaluation:
A6: ="Revision "&Data!D8 -> Revision 0
A7: =Data!D9 -> 25/10/2025
B10: ANNEXURE B1: SUMMARY - SUBMISSIONS (Excluding Corrections)
D12: DESCRIPTION | F12: ='B3 - BOQ Corrected'!$F$2 -> QS ESTIMATE | G12: ='B3 - BOQ Corrected'!$M$2 -> Langutani Procurement Services | H12: ='B3 - BOQ Corrected'!$Z$2 -> Maison Investments 120 (Pty) Ltd | I12: ='B3 - BOQ Corrected'!$AM$2 -> KGAUGELO KAE-KAE | J12: ='B3 - BOQ Corrected'!$AZ$2 -> Citechnologies (Pty) Ltd t/a CiTek (Pty) Ltd | K12: ='B3 - BOQ Corrected'!$BM$2 -> Bopelo M Projects | L12: ='B3 - BOQ Corrected'!$CC$2 -> MANZO Engineering Services
B14: 1. | C14: ='B2-BOQ-Summary'!C14 -> The Supply and Delivery of Various Assets Purchaces 2024-2025 for ERA at Medupi Power Station | F14: =SUBTOTAL(9,F15:F18) -> R33,181,367.03 | G14: R25,572,758.42 | H14: R25,683,815.83 | I14: R27,110,994.00 | J14: R114,059,901.00 | K14: R22,895,363.00 | L14: R24,524,341.03
C16: ='B2-BOQ-Summary'!C16 -> 1.1 | D16: ='B2-BOQ-Summary'!D16 -> The Supply and Delivery of Various Assets Purchaces 2024-2025 for ERA at Medupi Power Station | F16: ='B3 - BOQ Corrected'!$H$165 -> R33,181,367.03 | G16: ='B3 - BOQ Corrected'!$P$165 -> R25,572,758.42 | H16: ='B3 - BOQ Corrected'!$AC$165 -> R25,683,815.83 | I16: ='B3 - BOQ Corrected'!$AP$165 -> R27,110,994.00 | J16: ='B3 - BOQ Corrected'!$BC$165 -> R114,059,901.00 | K16: ='B3 - BOQ Corrected'!$BP$165 -> R22,895,363.00 | L16: ='B3 - BOQ Corrected'!$CF$165 -> R24,524,341.03 | X16: =M16*O16 -> 0
C21: TOTAL (Excl Contingency and Corrections) | F21: =SUBTOTAL(9,F13:F20) -> R33,181,367.03 | G21: R25,572,758.42 | H21: R25,683,815.83 | I21: R27,110,994.00 | J21: R114,059,901.00 | K21: R22,895,363.00 | L21: R24,524,341.03
B23: =#REF!+1 ->  | C23: CORRECTIONS/AMENDMENTS/OMMISSIONS | F23: =SUBTOTAL(9,F24:F27) -> 
C25: =B23+0.1 ->  | D25: Correction of arithmetical errors | F25: ='B3 - BOQ Corrected'!#REF! ->  | G25: ='B3 - BOQ Corrected'!#REF! ->  | H25: ='B3 - BOQ Corrected'!#REF! ->  | I25: ='B3 - BOQ Corrected'!#REF! ->  | J25: ='B3 - BOQ Corrected'!#REF! ->  | K25: ='B3 - BOQ Corrected'!#REF! ->  | L25: ='B3 - BOQ Corrected'!#REF! -> 
C26: =C25+0.1 ->  | D26: Additions / Omissions
C28: TOTAL (excl Contingency, incl Corrections) | F28: =SUBTOTAL(9,F13:F27) -> 
D30: Contingency | E30: 10% | F30: =ROUND(F28*$E$30,0) -> 
C32: TOTAL (incl Contingency) | F32: =SUBTOTAL(9,F13:F31) -> 
B34: =B23+1 ->  | C34: COMPARISON WITH ESTIMATE (excl Contingency, incl Corrections)
C36: =B34+0.1 ->  | D36: Extra / (Saving) | G36: =G28-$F$28 -> 
B38: =B34+1 ->  | C38: COMPARISON WITH STANDARD ESKOM RATES
C40: =B38+0.1 ->  | D40: Extra / (Saving) | G40: =G28-$K$28 -> 
C43: totals after corrections | F43: ='B2-BOQ-Summary'!$F$20 -> R33,181,367.03 | G43: ='B2-BOQ-Summary'!$G$20 -> R25,572,758.41 | H43: ='B2-BOQ-Summary'!$H$20 -> R25,556,254.52 | I43: ='B2-BOQ-Summary'!$I$20 -> R23,610,994.00 | J43: ='B2-BOQ-Summary'!$J$20 -> R114,290,993.00 | K43: ='B2-BOQ-Summary'!$K$20 -> R23,358,984.00 | L43: ='B2-BOQ-Summary'!$L$20 -> R24,524,341.27
F44: =F43-F21 -> 0 | G44: -R0.01 | H44: -R127,561.31 | I44: -R3,500,000.00 | J44: R231,092.00 | K44: R463,621.00 | L44: R0.24
C46: totals before corrections | F46: =$F$16 -> R33,181,367.03 | G46: =$G$16 -> R25,572,758.42 | H46: =$H$16 -> R25,683,815.83 | I46: =$I$16 -> R27,110,994.00 | J46: =$J$16 -> R114,059,901.00 | K46: =$K$16 -> R22,895,363.00 | L46: =$L$16 -> R24,524,341.03

Sheet B2-BOQ-Summary (hidden)
A1: MEDUPI POWER STATION
A3: =Data!D3 -> The Supply and Delivery of Various Assets Purchaces 2024-2025 for ERA at Medupi Power Station
A5: =Data!D7 -> Negotiationed Tender Evaluation:
A6: ="Revision "&Data!D8 -> Revision 0
A7: =Data!D9 -> 25/10/2025
B10: ANNEXURE B2: SUMMARY - BILLS OF QUANTITIES (including corrections)
D12: DESCRIPTION | F12: ='B3 - BOQ Corrected'!$F$2 -> QS ESTIMATE | G12: ='B3 - BOQ Corrected'!$M$2 -> Langutani Procurement Services | H12: ='B3 - BOQ Corrected'!$Z$2 -> Maison Investments 120 (Pty) Ltd | I12: ='B3 - BOQ Corrected'!$AM$2 -> KGAUGELO KAE-KAE | J12: ='B3 - BOQ Corrected'!$AZ$2 -> Citechnologies (Pty) Ltd t/a CiTek (Pty) Ltd | K12: ='B3 - BOQ Corrected'!$BM$2 -> Bopelo M Projects | L12: ='B3 - BOQ Corrected'!$CC$2 -> MANZO Engineering Services
B14: 1. | C14: ='B3 - BOQ Corrected'!C6 -> The Supply and Delivery of Various Assets Purchaces 2024-2025 for ERA at Medupi Power Station | F14: =SUBTOTAL(9,F15:F17) -> R33,181,367.03 | G14: R25,572,758.41 | H14: R25,556,254.52 | I14: R23,610,994.00 | J14: R114,290,993.00 | K14: R23,358,984.00 | L14: R24,524,341.27
F15: (Corrected Total Amounts) | G15: (Corrected Total Amounts) | H15: (Corrected Total Amounts) | I15: (Corrected Total Amounts) | J15: (Corrected Total Amounts) | K15: (Corrected Total Amounts) | L15: (Corrected Total Amounts)
C16: 1.1 | D16: =A3 -> The Supply and Delivery of Various Assets Purchaces 2024-2025 for ERA at Medupi Power Station | F16: ='B3 - BOQ Corrected'!$J$165 -> R33,181,367.03 | G16: ='B3 - BOQ Corrected'!$R$165 -> R25,572,758.41 | H16: ='B3 - BOQ Corrected'!$AE$165 -> R25,556,254.52 | I16: ='B3 - BOQ Corrected'!$AR$165 -> R23,610,994.00 | J16: ='B3 - BOQ Corrected'!$BE$165 -> R114,290,993.00 | K16: ='B3 - BOQ Corrected'!$BR$165 -> R23,358,984.00 | L16: ='B3 - BOQ Corrected'!$CH$165 -> R24,524,341.27 | X16: =M16*O16 -> 0
C20: TOTAL (excl Contingency, incl Corrections) | F20: =SUBTOTAL(9,F13:F19) -> R33,181,367.03 | G20: R25,572,758.41 | H20: R25,556,254.52 | I20: R23,610,994.00 | J20: R114,290,993.00 | K20: R23,358,984.00 | L20: R24,524,341.27
D22: Contingency | E22: 10% | F22: =ROUND(F20*$E$22,0) -> 3,318,137.00 | G22: 2,557,276.00 | H22: 2,555,625.00 | I22: 2,361,099.00 | J22: 11,429,099.00 | K22: 2,335,898.00 | L22: 2,452,434.00
C24: TOTAL (incl Contingency) | F24: =SUBTOTAL(9,F13:F23) -> 36,499,504.03 | G24: 28,130,034.41 | H24: 28,111,879.52 | I24: 25,972,093.00 | J24: 125,720,092.00 | K24: 25,694,882.00 | L24: 26,976,775.27
B26: 2. | C26: COMPARISON WITH ESTIMATE
C28: 2.1 | D28: Extra / (Saving) | G28: =G20-$F$20 -> -R7,608,608.62 | H28: -R7,625,112.51 | I28: -R9,570,373.03 | J28: R81,109,625.97 | K28: -R9,822,383.03 | L28: -R8,657,025.76
B30: =B26+1 -> 3.00 | C30: COMPARISON WITH STANDARD ESKOM RATES
C32: =B30+0.1 -> 3.1 | D32: Extra / (Saving) | G32: =G20-#REF! ->  | H32: =H20-#REF! ->  | I32: =I20-#REF! ->  | J32: =J20-#REF! ->  | K32: =K20-#REF! ->  | L32: =L20-#REF! -> 
B35: totals before corrections (i.e. sheet totals) | F35: ='B3 - BOQ Corrected'!$H$165 -> R33,181,367.03 | G35: ='B3 - BOQ Corrected'!$P$165 -> R25,572,758.42 | H35: ='B3 - BOQ Corrected'!$AC$165 -> R25,683,815.83 | I35: ='B3 - BOQ Corrected'!$AP$165 -> R27,110,994.00 | J35: ='B3 - BOQ Corrected'!$BC$165 -> R114,059,901.00 | K35: ='B3 - BOQ Corrected'!$BP$165 -> R22,895,363.00 | L35: ='B3 - BOQ Corrected'!$CF$165 -> R24,524,341.03
F36: =F20-F35 -> 0 | G36: -R0.01 | H36: -R127,561.31 | I36: -R3,500,000.00 | J36: R231,092.00 | K36: =K20-K35 -> R463,621.00 | L36: R0.24

Sheet B3 - BOQ Corrected (hidden)
B1: ANNEXURE B3: BILLS OF QUANTITIES (including corrections)
F2: QS ESTIMATE | M2: ='C1- Price List All tenders'!$I$1 -> Langutani Procurement Services | T2: COMPARISON BETWEEN QS ESTIMATE AND TENDERER | Z2: ='C1- Price List All tenders'!$M$1 -> Maison Investments 120 (Pty) Ltd | AG2: COMPARISON BETWEEN QS ESTIMATE AND TENDERER | AM2: ='C1- Price List All tenders'!$Q$1 -> KGAUGELO KAE-KAE | AT2: COMPARISON BETWEEN QS ESTIMATE AND TENDERER | AZ2: ='C1- Price List All tenders'!$U$1 -> Citechnologies (Pty) Ltd t/a CiTek (Pty) Ltd | BG2: COMPARISON BETWEEN QS ESTIMATE AND TENDERER | BM2: ='C1- Price List All tenders'!$Y$1 -> Bopelo M Projects | BW2: COMPARISON BETWEEN QS ESTIMATE AND TENDERER | CC2: ='C1- Price List All tenders'!$AC$1 -> MANZO Engineering Services | CJ2: COMPARISON BETWEEN QS ESTIMATE AND TENDERER
F3: ORIGINAL QS ESTIMATE | I3: CORRECTED QS ESTIMATE | N3: PRICE AS TENDERED | Q3: PRICE CORRECTED | U3: RATE | W3: PRICE | AA3: PRICE AS TENDERED | AD3: PRICE CORRECTED | AH3: RATE | AJ3: PRICE | AN3: PRICE AS TENDERED | AQ3: PRICE CORRECTED | AU3: RATE | AW3: PRICE | BA3: PRICE AS TENDERED | BD3: PRICE CORRECTED | BH3: RATE | BJ3: PRICE | BN3: PRICE AS TENDERED | BQ3: PRICE CORRECTED | BX3: RATE | BZ3: PRICE | CD3: PRICE AS TENDERED | CG3: PRICE CORRECTED | CK3: RATE | CM3: PRICE
B4: ='C1- Price List All tenders'!$B$2 -> Item No | C4: ='C1- Price List All tenders'!$C$2 -> Asset or Material Decriprition | D4: ='C1- Price List All tenders'!$D$2 -> Motivation for Need of Asset | E4: ='C1- Price List All tenders'!$E$2 -> Unit | F4: ='C1- Price List All tenders'!F2 -> Quantity | G4: ='C1- Price List All tenders'!G2 -> Estimated Rate | H4: ='C1- Price List All tenders'!H2 -> Total Cost Amount | I4: ='C1- Price List All tenders'!$G$2 -> Estimated Rate | J4: ='C1- Price List All tenders'!$H$2 -> Total Cost Amount | K4: Arithmetic check [Amount1 -Amount2] | M4: ='C1- Price List All tenders'!I2 -> Unit1 | N4: ='C1- Price List All tenders'!J2 -> Quantity1 | O4: ='C1- Price List All tenders'!K2 -> Tendered Rate1 | P4: ='C1- Price List All tenders'!L2 -> Total Tendered Cost Amount 1 | Q4: Tendered Rate1 | R4: Corrected Total Tendered Cost Amount1 | S4: Arithmetic Check | T4: Quantity check | U4: Tender Rate | V4: % Tender Rate Variance | W4: Tendered Cost | X4: % Tender Cost Variance | Z4: ='C1- Price List All tenders'!U2 -> Unit4 | AA4: ='C1- Price List All tenders'!V2 -> Quantity4 | AB4: ='C1- Price List All tenders'!W2 -> Tendered Rate4 | AC4: ='C1- Price List All tenders'!X2 -> Total Tendered Cost Amount 4 | AD4: Tendered Rate1 | AE4: Corrected Total Tendered Cost Amount1 | AF4: Arithmetic Check | AG4: Quantity check | AH4: Tender Rate | AI4: % Tender Rate Variance | AJ4: Tendered Cost | AK4: % Tender Cost Variance | AM4: ='C1- Price List All tenders'!AG2 -> Unit7 | AN4: ='C1- Price List All tenders'!AH2 -> Quantity7 | AO4: ='C1- Price List All tenders'!AI2 -> Estimated Rate7 | AP4: ='C1- Price List All tenders'!AJ2 -> Total Cost Amount 7 | AQ4: Tendered Rate1 | AR4: Corrected Total Tendered Cost Amount1 | AS4: Arithmetic Check | AT4: Quantity check | AU4: Tender Rate | AV4: % Tender Rate Variance | AW4: Tendered Cost | AX4: % Tender Cost Variance | AZ4: ='C1- Price List All tenders'!AT2 -> 0 | BA4: ='C1- Price List All tenders'!AU2 -> 0.00 | BB4: ='C1- Price List All tenders'!AV2 -> R 0.00 | BC4: ='C1- Price List All tenders'!AW2 -> R 0.00 | BD4: Tendered Rate1 | BE4: Corrected Total Tendered Cost Amount1 | BF4: Arithmetic Check | BG4: Quantity check | BH4: Tender Rate | BI4: % Tender Rate Variance | BJ4: Tendered Cost | BK4: % Tender Cost Variance | BO4: Tendered Rate1 | BP4: Total Tendered Cost Amount1 | BQ4: Tendered Rate1 | BR4: Corrected Total Tendered Cost Amount1 | BS4: Discount % | BT4: Discounted Total Amount | BV4: Arithmetic Check | BW4: Quantity check | BX4: Tender Rate | BY4: % Tender Rate Variance | BZ4: Tendered Cost | CA4: % Tender Cost Variance | CC4: ='C1- Price List All tenders'!BT2 -> 0 | CD4: ='C1- Price List All tenders'!BU2 -> 0.00 | CE4: ='C1- Price List All tenders'!BV2 -> R 0.00 | CF4: ='C1- Price List All tenders'!BW2 -> R 0.00 | CG4: Tendered Rate1 | CH4: Corrected Total Tendered Cost Amount1 | CI4: Arithmetic Check | CJ4: Quantity check | CK4: Tender Rate | CL4: % Tender Rate Variance | CM4: Tendered Cost | CN4: % Tender Cost Variance
B6: A | C6: ='C1- Price List All tenders'!C4 -> The Supply and Delivery of Various Assets Purchaces 2024-2025 for ERA at Medupi Power Station
C7: ='C1- Price List All tenders'!C5 -> Maintenance Department: - Supply & Delivery of Ash & Coal Equipment
B8: ='C1- Price List All tenders'!B6 -> 1. | C8: ='C1- Price List All tenders'!C6 -> Electrician Toolboxes: AMPRO 48PC ELECTRICAL CASE TOOL SET ELECTRICAL TOOL SET WITH ALUMINUM CASE - Contents : 6 Insulated Screwdrivers, 3 Phillips: #0 x 75, #1 x 100, #2 x 100mm, 3 Slotted: 3 x 75, 4 x 100, 5.5mm x 125mm, 1 7 (175mm) Insulated Diagonal Cutting Pliers, 1 8 (200mm) Insulated Combination Pliers, 1 8 (200mm) Insulated Long Nose Pliers, 1 Electrician Knife, 1 Digital Voltage Tester, 1 Digital Multi-Meter, 1 Electrical Tape, 1 5-LED Flashlight w/ Magnetic Pickup, 1 Modular Telephone Plug Crimper, 1 200mm Wire Crimper, 1 Cordless Soldering Iron, 1 40W Electric Soldering Iron, 1 Solder Sucker, 1 Solder Wire, 4 Fuse, 24 Fuse Terminals | D8: ='C1- Price List All tenders'!D6 -> Maintenance Operations Support | E8: ='C1- Price List All tenders'!E6 -> Each | F8: ='C1- Price List All tenders'!F6 -> 11 | G8: ='C1- Price List All tenders'!G6 -> R6,930.00 | H8: ='C1- Price List All tenders'!H6 -> R 76,230.00 | I8: =G8 -> R6,930.00 | J8: =I8*F8 -> R76,230.00 | K8: =J8-H8 -> 0 | M8: ='C1- Price List All tenders'!I6 -> Each | N8: ='C1- Price List All tenders'!J6 -> 11 | O8: ='C1- Price List All tenders'!K6 -> R10,260.00 | P8: ='C1- Price List All tenders'!L6 -> R112,860.00 | Q8: =O8 -> R10,260.00 | R8: =Q8*N8 -> R112,860.00 | S8: =R8-P8 -> 0 | T8: =$F8-N8 -> 0 | U8: =$I8-Q8 -> -R3,330.00 | V8: =(((Q8/$I8)*100)-100)/100 -> 48.05% | W8: =$J8-R8 -> -R36,630.00 | X8: =(((R8/$J8)*100)-100)/100 -> 48% | Z8: ='C1- Price List All tenders'!M6 -> Each | AA8: ='C1- Price List All tenders'!N6 -> 11 | AB8: ='C1- Price List All tenders'!O6 -> R7,873.78 | AC8: ='C1- Price List All tenders'!P6 -> R86,611.58 | AD8: =AB8 -> R7,873.78 | AE8: =AD8*AA8 -> R86,611.58 | AF8: =AE8-AC8 -> 0 | AG8: =$F8-AA8 -> 0 | AH8: =$I8-AD8 -> -R943.78 | AI8: =(((AD8/$I8)*100)-100)/100 -> 13.62% | AJ8: =$J8-AE8 -> -R10,381.58 | AK8: =(((AE8/$J8)*100)-100)/100 -> 14% | AM8: ='C1- Price List All tenders'!Q6 -> Each | AN8: ='C1- Price List All tenders'!R6 -> 11 | AO8: ='C1- Price List All tenders'!S6 -> R20,000.00 | AP8: ='C1- Price List All tenders'!T6 -> R220,000.00 | AQ8: =AO8 -> R20,000.00 | AR8: =AQ8*AN8 -> R220,000.00 | AS8: =AR8-AP8 -> 0 | AT8: =$F8-AN8 -> 0 | AU8: =$I8-AQ8 -> -R13,070.00 | AV8: =(((AQ8/$I8)*100)-100)/100 -> 188.60% | AW8: =$J8-AR8 -> -R143,770.00 | AX8: =(((AR8/$J8)*100)-100)/100 -> 189% | AZ8: ='C1- Price List All tenders'!U6 -> Each | BA8: ='C1- Price List All tenders'!V6 -> 11 | BB8: ='C1- Price List All tenders'!W6 -> R7,483.00 | BC8: ='C1- Price List All tenders'!X6 -> R82,313.00 | BD8: =BB8 -> R7,483.00 | BE8: =BD8*BA8 -> R82,313.00 | BF8: =BE8-BC8 -> 0 | BG8: =$F8-BA8 -> 0 | BH8: =$I8-BD8 -> -R553.00 | BI8: =(((BD8/$I8)*100)-100)/100 -> 7.98% | BJ8: =$J8-BE8 -> -R6,083.00 | BK8: =(((BE8/$J8)*100)-100)/100 -> 8% | BM8: ='C1- Price List All tenders'!Y6 -> Each | BN8: ='C1- Price List All tenders'!Z6 -> 11 | BO8: ='C1- Price List All tenders'!AA6 -> R46,980.00 | BP8: ='C1- Price List All tenders'!AB6 -> R516,780.00 | BQ8: =BO8 -> R46,980.00 | BR8: =BQ8*BN8 -> R516,780.00 | BS8: 3.00% | BT8: =BR8-(BR8*BS8) -> R501,276.60 | BU8: =BR8-BT8 -> R15,503.40 | BV8: =BR8-BP8 -> 0 | BW8: =$F8-BN8 -> 0 | BX8: =$I8-BQ8 -> -R40,050.00 | BY8: =(((BQ8/$I8)*100)-100)/100 -> 577.92% | BZ8: =$J8-BR8 -> -R440,550.00 | CA8: =(((BR8/$J8)*100)-100)/100 -> 578% | CC8: ='C1- Price List All tenders'!AC6 -> Each | CD8: ='C1- Price List All tenders'!AD6 -> 11 | CE8: ='C1- Price List All tenders'!AE6 -> R7,660.35 | CF8: ='C1- Price List All tenders'!AF6 -> R84,263.85 | CG8: =CE8 -> R7,660.35 | CH8: =CG8*CD8 -> R84,263.85 | CI8: =CH8-CF8 -> 0 | CJ8: =$F8-CD8 -> 0 | CK8: =$I8-CG8 -> -R730.35 | CL8: =(((CG8/$I8)*100)-100)/100 -> 10.54% | CM8: =$J8-CH8 -> -R8,033.85 | CN8: =(((CH8/$J8)*100)-100)/100 -> 11%
B9: ='C1- Price List All tenders'!B7 -> 2. | C9: ='C1- Price List All tenders'!C7 -> Professional underground cable and pipe detector: Amprobe AT-3500 Underground Cable Locator, Sku: AMP-AT-3500 | D9: ='C1- Price List All tenders'!D7 -> Maintenance Operations Support | E9: ='C1- Price List All tenders'!E7 -> Each | F9: ='C1- Price List All tenders'!F7 -> 1 | G9: ='C1- Price List All tenders'!G7 -> R87,234.00 | H9: ='C1- Price List All tenders'!H7 -> R 87,234.00 | I9: =G9 -> R87,234.00 | J9: =I9*F9 -> R87,234.00 | K9: =J9-H9 -> 0 | M9: ='C1- Price List All tenders'!I7 -> Each | N9: ='C1- Price List All tenders'!J7 -> 1 | O9: ='C1- Price List All tenders'!K7 -> R50,000.00 | P9: ='C1- Price List All tenders'!L7 -> R50,000.00 | Q9: =O9 -> R50,000.00 | R9: =Q9*N9 -> R50,000.00 | S9: =R9-P9 -> 0 | T9: =$F9-N9 -> 0 | U9: =$I9-Q9 -> R37,234.00 | V9: =(((Q9/$I9)*100)-100)/100 -> -42.68% | W9: =$J9-R9 -> R37,234.00 | X9: =(((R9/$J9)*100)-100)/100 -> -43% | Z9: ='C1- Price List All tenders'!M7 -> Each | AA9: ='C1- Price List All tenders'!N7 -> 1 | AB9: ='C1- Price List All tenders'!O7 -> R140,181.48 | AC9: ='C1- Price List All tenders'!P7 -> R140,181.48 | AD9: =AB9 -> R140,181.48 | AE9: =AD9*AA9 -> R140,181.48 | AF9: =AE9-AC9 -> 0 | AG9: =$F9-AA9 -> 0 | AH9: =$I9-AD9 -> -R52,947.48 | AI9: =(((AD9/$I9)*100)-100)/100 -> 60.70% | AJ9: =$J9-AE9 -> -R52,947.48 | AK9: =(((AE9/$J9)*100)-100)/100 -> 61% | AM9: ='C1- Price List All tenders'!Q7 -> Each | AN9: ='C1- Price List All tenders'!R7 -> 1 | AO9: ='C1- Price List All tenders'!S7 -> R250,000.00 | AP9: ='C1- Price List All tenders'!T7 -> R250,000.00 | AQ9: =AO9 -> R250,000.00 | AR9: =AQ9*AN9 -> R250,000.00 | AS9: =AR9-AP9 -> 0 | AT9: =$F9-AN9 -> 0 | AU9: =$I9-AQ9 -> -R162,766.00 | AV9: =(((AQ9/$I9)*100)-100)/100 -> 186.59% | AW9: =$J9-AR9 -> -R162,766.00 | AX9: =(((AR9/$J9)*100)-100)/100 -> 187% | AZ9: ='C1- Price List All tenders'!U7 -> Each | BA9: ='C1- Price List All tenders'!V7 -> 1 | BB9: ='C1- Price List All tenders'!W7 -> R173,041.00 | BC9: ='C1- Price List All tenders'!X7 -> R173,041.00 | BD9: =BB9 -> R173,041.00 | BE9: =BD9*BA9 -> R173,041.00 | BF9: =BE9-BC9 -> 0 | BG9: =$F9-BA9 -> 0 | BH9: =$I9-BD9 -> -R85,807.00 | BI9: =(((BD9/$I9)*100)-100)/100 -> 98.36% | BJ9: =$J9-BE9 -> -R85,807.00 | BK9: =(((BE9/$J9)*100)-100)/100 -> 98% | BM9: ='C1- Price List All tenders'!Y7 -> Each | BN9: ='C1- Price List All tenders'!Z7 -> 1 | BO9: ='C1- Price List All tenders'!AA7 -> R99,720.00 | BP9: ='C1- Price List All tenders'!AB7 -> R99,720.00 | BQ9: =BO9 -> R99,720.00 | BR9: =BQ9*BN9 -> R99,720.00 | BS9: 3.00% | BT9: =BR9-(BR9*BS9) -> R96,728.40 | BU9: =BR9-BT9 -> R2,991.60 | BV9: =BR9-BP9 -> 0 | BW9: =$F9-BN9 -> 0 | BX9: =$I9-BQ9 -> -R12,486.00 | BY9: =(((BQ9/$I9)*100)-100)/100 -> 14.31% | BZ9: =$J9-BR9 -> -R12,486.00 | CA9: =(((BR9/$J9)*100)-100)/100 -> 14% | CC9: ='C1- Price List All tenders'!AC7 -> Each | CD9: ='C1- Price List All tenders'!AD7 -> 1 | CE9: ='C1- Price List All tenders'!AE7 -> R137,075.71 | CF9: ='C1- Price List All tenders'!AF7 -> R137,075.71 | CG9: =CE9 -> R137,075.71 | CH9: =CG9*CD9 -> R137,075.71 | CI9: =CH9-CF9 -> 0 | CJ9: =$F9-CD9 -> 0 | CK9: =$I9-CG9 -> -R49,841.71 | CL9: =(((CG9/$I9)*100)-100)/100 -> 57.14% | CM9: =$J9-CH9 -> -R49,841.71 | CN9: =(((CH9/$J9)*100)-100)/100 -> 57%
B10: ='C1- Price List All tenders'!B8 -> 3. | C10: ='C1- Price List All tenders'!C8 -> Mobile jack: MAC AFRIC 11 Ton Long Reach Trolley Jack, SKU: GJACKT020, Long reach trolley jacks provide a longer reach and lift capacity. | D10: ='C1- Price List All tenders'!D8 -> Maintenance Operations Support | E10: ='C1- Price List All tenders'!E8 -> Each | F10: ='C1- Price List All tenders'!F8 -> 2 | G10: ='C1- Price List All tenders'!G8 -> R26,184.90 | H10: ='C1- Price List All tenders'!H8 -> R52,369.80 | I10: R26,184.90 | J10: R52,369.80 | K10: 0 | M10: ='C1- Price List All tenders'!I8 -> Each | N10: ='C1- Price List All tenders'!J8 -> 2 | O10: ='C1- Price List All tenders'!K8 -> R39,600.00 | P10: ='C1- Price List All tenders'!L8 -> R79,200.00 | Q10: R39,600.00 | R10: =Q10*N10 -> R79,200.00 | S10: 0 | T10: 0 | U10: =$I10-Q10 -> -R13,415.10 | V10: 51.23% | W10: -R26,830.20 | X10: 51% | Z10: ='C1- Price List All tenders'!M8 -> Each | AA10: ='C1- Price List All tenders'!N8 -> 2 | AB10: ='C1- Price List All tenders'!O8 -> R36,635.00 | AC10: ='C1- Price List All tenders'!P8 -> R73,270.00 | AD10: R36,635.00 | AE10: =AD10*AA10 -> R73,270.00 | AF10: =AE10-AC10 -> 0 | AG10: 0 | AH10: =$I10-AD10 -> -R10,450.10 | AI10: 39.91% | AJ10: -R20,900.20 | AK10: 40% | AM10: ='C1- Price List All tenders'!Q8 -> Each | AN10: ='C1- Price List All tenders'!R8 -> 2 | AO10: ='C1- Price List All tenders'!S8 -> R250,000.00 | AP10: ='C1- Price List All tenders'!T8 -> R500,000.00 | AQ10: R250,000.00 | AR10: =AQ10*AN10 -> R500,000.00 | AS10: 0 | AT10: 0 | AU10: =$I10-AQ10 -> -R223,815.10 | AV10: 854.75% | AW10: -R447,630.20 | AX10: 855% | AZ10: ='C1- Price List All tenders'!U8 -> Each | BA10: ='C1- Price List All tenders'!V8 -> 2 | BB10: ='C1- Price List All tenders'!W8 -> R28,535.00 | BC10: ='C1- Price List All tenders'!X8 -> R57,070.00 | BD10: R28,535.00 | BE10: =BD10*BA10 -> R57,070.00 | BF10: 0 | BG10: 0 | BH10: =$I10-BD10 -> -R2,350.10 | BI10: 8.98% | BJ10: -R4,700.20 | BK10: 9% | BM10: ='C1- Price List All tenders'!Y8 -> Each | BN10: ='C1- Price List All tenders'!Z8 -> 2 | BO10: ='C1- Price List All tenders'!AA8 -> R32,260.00 | BP10: ='C1- Price List All tenders'!AB8 -> R64,520.00 | BQ10: R32,260.00 | BR10: =BQ10*BN10 -> R64,520.00 | BS10: 3.00% | BT10: R62,584.40 | BU10: R1,935.60 | BV10: 0 | BW10: 0 | BX10: =$I10-BQ10 -> -R6,075.10 | BY10: 23.20% | BZ10: -R12,150.20 | CA10: 23% | CC10: ='C1- Price List All tenders'!AC8 -> Each | CD10: ='C1- Price List All tenders'!AD8 -> 2 | CE10: ='C1- Price List All tenders'!AE8 -> R31,827.50 | CF10: ='C1- Price List All tenders'!AF8 -> R63,655.00 | CG10: R31,827.50 | CH10: =CG10*CD10 -> R63,655.00 | CI10: 0 | CJ10: 0 | CK10: =$I10-CG10 -> -R5,642.60 | CL10: 21.55% | CM10: -R11,285.20 | CN10: 22%
B11: ='C1- Price List All tenders'!B9 -> 4. | C11: ='C1- Price List All tenders'!C9 -> Professional electric fence crimping tool: SKU: ENC-SB/WIZ-1 This professional non-insulated terminal crimping tool is a heavy duty and durable tool. It is used to crimp all Nemteks range of ferrules, including the aluminium, stainless steel and tinned copper range. Specifications 22-16AWG(1.25mm²), 16-14AWG(2.0mm²), 12-10AWG(5.5mm²) | D11: ='C1- Price List All tenders'!D9 -> Maintenance Operations Support | E11: ='C1- Price List All tenders'!E9 -> Each | F11: ='C1- Price List All tenders'!F9 -> 4 | G11: ='C1- Price List All tenders'!G9 -> R603.75 | H11: ='C1- Price List All tenders'!H9 -> R2,415.00 | I11: R603.75 | J11: R2,415.00 | K11: 0 | M11: ='C1- Price List All tenders'!I9 -> Each | N11: ='C1- Price List All tenders'!J9 -> 4 | O11: ='C1- Price List All tenders'!K9 -> R1,080.00 | P11: ='C1- Price List All tenders'!L9 -> R4,320.00 | Q11: R1,080.00 | R11: R4,320.00 | S11: 0 | T11: 0 | U11: -R476.25 | V11: 78.88% | W11: -R1,905.00 | X11: 79% | Z11: ='C1- Price List All tenders'!M9 -> Each | AA11: ='C1- Price List All tenders'!N9 -> 4 | AB11: ='C1- Price List All tenders'!O9 -> R3,103.07 | AC11: ='C1- Price List All tenders'!P9 -> R12,412.28 | AD11: R3,103.07 | AE11: R12,412.28 | AF11: 0 | AG11: 0 | AH11: -R2,499.32 | AI11: 413.97% | AJ11: -R9,997.28 | AK11: 414% | AM11: ='C1- Price List All tenders'!Q9 -> Each | AN11: ='C1- Price List All tenders'!R9 -> 4 | AO11: ='C1- Price List All tenders'!S9 -> R15,000.00 | AP11: ='C1- Price List All tenders'!T9 -> R60,000.00 | AQ11: R15,000.00 | AR11: R60,000.00 | AS11: 0 | AT11: 0 | AU11: -R14,396.25 | AV11: 2384.47% | AW11: -R57,585.00 | AX11: 2384% | AZ11: ='C1- Price List All tenders'!U9 -> Each | BA11: ='C1- Price List All tenders'!V9 -> 4 | BB11: ='C1- Price List All tenders'!W9 -> R682.00 | BC11: ='C1- Price List All tenders'!X9 -> R2,728.00 | BD11: R682.00 | BE11: R2,728.00 | BF11: 0 | BG11: 0 | BH11: -R78.25 | BI11: 12.96% | BJ11: -R313.00 | BK11: 13% | BM11: ='C1- Price List All tenders'!Y9 -> Each | BN11: ='C1- Price List All tenders'!Z9 -> 4 | BO11: ='C1- Price List All tenders'!AA9 -> R6,992.00 | BP11: ='C1- Price List All tenders'!AB9 -> R27,968.00 | BQ11: R6,992.00 | BR11: R27,968.00 | BS11: 3.00% | BT11: R27,128.96 | BU11: R839.04 | BV11: 0 | BW11: 0 | BX11: -R6,388.25 | BY11: 1058.10% | BZ11: -R25,553.00 | CA11: 1058% | CC11: ='C1- Price List All tenders'!AC9 -> Each | CD11: ='C1- Price List All tenders'!AD9 -> 4 | CE11: ='C1- Price List All tenders'!AE9 -> R759.80 | CF11: ='C1- Price List All tenders'!AF9 -> R3,039.20 | CG11: R759.80 | CH11: R3,039.20 | CI11: 0 | CJ11: 0 | CK11: -R156.05 | CL11: 25.85% | CM11: -R624.20 | CN11: 26%
B12: ='C1- Price List All tenders'!B10 -> 5. | C12: ='C1- Price List All tenders'!C10 -> Micro ohm meter: HellermannTyton : Milliohm Meter Digital Battery Powered – T4137, SKU: T4137 | D12: ='C1- Price List All tenders'!D10 -> Maintenance Operations Support | E12: ='C1- Price List All tenders'!E10 -> Each | F12: ='C1- Price List All tenders'!F10 -> 2 | G12: ='C1- Price List All tenders'!G10 -> R20,005.65 | H12: ='C1- Price List All tenders'!H10 -> R40,011.30 | I12: R20,005.65 | J12: R40,011.30 | K12: 0 | M12: ='C1- Price List All tenders'!I10 -> Each | N12: ='C1- Price List All tenders'!J10 -> 2 | O12: ='C1- Price List All tenders'!K10 -> R36,000.00 | P12: ='C1- Price List All tenders'!L10 -> R72,000.00 | Q12: R36,000.00 | R12: R72,000.00 | S12: 0 | T12: 0 | U12: -R15,994.35 | V12: 79.95% | W12: -R31,988.70 | X12: 80% | Z12: ='C1- Price List All tenders'!M10 -> Each | AA12: ='C1- Price List All tenders'!N10 -> 2 | AB12: ='C1- Price List All tenders'!O10 -> R23,713.76 | AC12: ='C1- Price List All tenders'!P10 -> R47,427.52 | AD12: R23,713.76 | AE12: R47,427.52 | AF12: 0 | AG12: 0 | AH12: -R3,708.11 | AI12: 18.54% | AJ12: -R7,416.22 | AK12: 19% | AM12: ='C1- Price List All tenders'!Q10 -> Each | AN12: ='C1- Price List All tenders'!R10 -> 2 | AO12: ='C1- Price List All tenders'!S10 -> R150,000.00 | AP12: ='C1- Price List All tenders'!T10 -> R300,000.00 | AQ12: R150,000.00 | AR12: R300,000.00 | AS12: 0 | AT12: 0 | AU12: -R129,994.35 | AV12: 649.79% | AW12: -R259,988.70 | AX12: 650% | AZ12: ='C1- Price List All tenders'!U10 -> Each | BA12: ='C1- Price List All tenders'!V10 -> 2 | BB12: ='C1- Price List All tenders'!W10 -> R24,254.00 | BC12: ='C1- Price List All tenders'!X10 -> R48,508.00 | BD12: R24,254.00 | BE12: R48,508.00 | BF12: 0 | BG12: 0 | BH12: -R4,248.35 | BI12: 21.24% | BJ12: -R8,496.70 | BK12: 21% | BM12: ='C1- Price List All tenders'!Y10 -> Each | BN12: ='C1- Price List All tenders'!Z10 -> 2 | BO12: ='C1- Price List All tenders'!AA10 -> R4,022.00 | BP12: ='C1- Price List All tenders'!AB10 -> R8,044.00 | BQ12: R4,022.00 | BR12: R8,044.00 | BS12: 3.00% | BT12: R7,802.68 | BU12: R241.32 | BV12: 0 | BW12: 0 | BX12: R15,983.65 | BY12: -79.90% | BZ12: R31,967.30 | CA12: -80% | CC12: ='C1- Price List All tenders'!AC10 -> Each | CD12: ='C1- Price List All tenders'!AD10 -> 2 | CE12: ='C1- Price List All tenders'!AE10 -> R27,052.13 | CF12: ='C1- Price List All tenders'!AF10 -> R54,104.26 | CG12: R27,052.13 | CH12: R54,104.26 | CI12: 0 | CJ12: 0 | CK12: -R7,046.48 | CL12: 35.22% | CM12: -R14,092.96 | CN12: 35%
B13: ='C1- Price List All tenders'!B11 -> 6. | C13: ='C1- Price List All tenders'!C11 -> Munters (Dehumidifier): Munters Comdry M210X Ultra Robust Desiccant Dehumidifier 240V~50Hz, | D13: ='C1- Price List All tenders'!D11 -> Maintenance Operations Support | E13: ='C1- Price List All tenders'!E11 -> Each | F13: ='C1- Price List All tenders'!F11 -> 2 | G13: ='C1- Price List All tenders'!G11 -> R124,425.00 | H13: ='C1- Price List All tenders'!H11 -> R248,850.00 | I13: R124,425.00 | J13: R248,850.00 | K13: 0 | M13: ='C1- Price List All tenders'!I11 -> Each | N13: ='C1- Price List All tenders'!J11 -> 2 | O13: ='C1- Price List All tenders'!K11 -> R41,400.00 | P13: ='C1- Price List All tenders'!L11 -> R82,800.00 | Q13: R41,400.00 | R13: R82,800.00 | S13: 0 | T13: 0 | U13: R83,025.00 | V13: -66.73% | W13: R166,050.00 | X13: -67% | Z13: ='C1- Price List All tenders'!M11 -> Each | AA13: ='C1- Price List All tenders'!N11 -> 2 | AB13: ='C1- Price List All tenders'!O11 -> R117,831.72 | AC13: ='C1- Price List All tenders'!P11 -> R235,663.44 | AD13: R117,831.72 | AE13: R235,663.44 | AF13: 0 | AG13: 0 | AH13: R6,593.28 | AI13: -5.30% | AJ13: R13,186.56 | AK13: -5% | AM13: ='C1- Price List All tenders'!Q11 -> Each | AN13: ='C1- Price List All tenders'!R11 -> 2 | AO13: ='C1- Price List All tenders'!S11 -> R500,000.00 | AP13: ='C1- Price List All tenders'!T11 -> R1,000,000.00 | AQ13: R500,000.00 | AR13: R1,000,000.00 | AS13: 0 | AT13: 0 | AU13: -R375,575.00 | AV13: 301.85% | AW13: -R751,150.00 | AX13: 302% | AZ13: ='C1- Price List All tenders'!U11 -> Each | BA13: ='C1- Price List All tenders'!V11 -> 2 | BB13: ='C1- Price List All tenders'!W11 -> R72,325.00 | BC13: ='C1- Price List All tenders'!X11 -> R144,650.00 | BD13: R72,325.00 | BE13: R144,650.00 | BF13: 0 | BG13: 0 | BH13: R52,100.00 | BI13: -41.87% | BJ13: R104,200.00 | BK13: -42% | BM13: ='C1- Price List All tenders'!Y11 -> Each | BN13: ='C1- Price List All tenders'!Z11 -> 2 | BO13: ='C1- Price List All tenders'!AA11 -> R4,022.00 | BP13: ='C1- Price List All tenders'!AB11 -> R8,044.00 | BQ13: R4,022.00 | BR13: R8,044.00 | BS13: 3.00% | BT13: R7,802.68 | BU13: R241.32 | BV13: 0 | BW13: 0 | BX13: R120,403.00 | BY13: -96.77% | BZ13: R240,806.00 | CA13: -97% | CC13: ='C1- Price List All tenders'!AC11 -> Each | CD13: ='C1- Price List All tenders'!AD11 -> 2 | CE13: ='C1- Price List All tenders'!AE11 -> R82,623.94 | CF13: ='C1- Price List All tenders'!AF11 -> R165,247.88 | CG13: R82,623.94 | CH13: R165,247.88 | CI13: 0 | CJ13: 0 | CK13: R41,801.06 | CL13: -33.60% | CM13: R83,602.12 | CN13: -34%
B14: ='C1- Price List All tenders'!B12 -> 7. | C14: ='C1- Price List All tenders'!C12 -> Multimeter: Fluke 1577 Insulation Multimeters, Sku: FLK-1577 | D14: ='C1- Price List All tenders'!D12 -> Maintenance Operations Support | E14: ='C1- Price List All tenders'!E12 -> Each | F14: ='C1- Price List All tenders'!F12 -> 12 | G14: ='C1- Price List All tenders'!G12 -> R28,862.40 | H14: ='C1- Price List All tenders'!H12 -> R346,348.80 | I14: R28,862.40 | J14: R346,348.80 | K14: 0 | M14: ='C1- Price List All tenders'!I12 -> Each | N14: ='C1- Price List All tenders'!J12 -> 12 | O14: ='C1- Price List All tenders'!K12 -> R45,000.00 | P14: ='C1- Price List All tenders'!L12 -> R540,000.00 | Q14: R45,000.00 | R14: R540,000.00 | S14: 0 | T14: 0 | U14: -R16,137.60 | V14: 55.91% | W14: -R193,651.20 | X14: 56% | Z14: ='C1- Price List All tenders'!M12 -> Each | AA14: ='C1- Price List All tenders'!N12 -> 12 | AB14: ='C1- Price List All tenders'!O12 -> R31,228.31 | AC14: ='C1- Price List All tenders'!P12 -> R374,739.72 | AD14: R31,228.31 | AE14: R374,739.72 | AF14: 0 | AG14: 0 | AH14: -R2,365.91 | AI14: 8.20% | AJ14: -R28,390.92 | AK14: 8% | AM14: ='C1- Price List All tenders'!Q12 -> Each | AN14: ='C1- Price List All tenders'!R12 -> 12 | AO14: ='C1- Price List All tenders'!S12 -> R25,800.00 | AP14: ='C1- Price List All tenders'!T12 -> R309,600.00 | AQ14: R25,800.00 | AR14: R309,600.00 | AS14: 0 | AT14: 0 | AU14: R3,062.40 | AV14: -10.61% | AW14: R36,748.80 | AX14: -11% | AZ14: ='C1- Price List All tenders'!U12 -> Each | BA14: ='C1- Price List All tenders'!V12 -> 12 | BB14: ='C1- Price List All tenders'!W12 -> R27,287.00 | BC14: ='C1- Price List All tenders'!X12 -> R327,444.00 | BD14: R27,287.00 | BE14: R327,444.00 | BF14: 0 | BG14: 0 | BH14: R1,575.40 | BI14: -5.46% | BJ14: R18,904.80 | BK14: -5% | BM14: ='C1- Price List All tenders'!Y12 -> Each | BN14: ='C1- Price List All tenders'!Z12 -> 12 | BO14: ='C1- Price List All tenders'!AA12 -> R4,460.00 | BP14: ='C1- Price List All tenders'!AB12 -> R53,520.00 | BQ14: R4,460.00 | BR14: R53,520.00 | BS14: 3.00% | BT14: R51,914.40 | BU14: R1,605.60 | BV14: 0 | BW14: 0 | BX14: R24,402.40 | BY14: -84.55% | BZ14: R292,828.80 | CA14: -85% | CC14: ='C1- Price List All tenders'!AC12 -> Each | CD14: ='C1- Price List All tenders'!AD12 -> 12 | CE14: ='C1- Price List All tenders'!AE12 -> R35,000.83 | CF14: ='C1- Price List All tenders'!AF12 -> R420,009.90 | CG14: R35,000.83 | CH14: R420,009.90 | CI14: 0 | CJ14: 0 | CK14: -R6,138.43 | CL14: 21.27% | CM14: -R73,661.10 | CN14: 21%
B15: ='C1- Price List All tenders'!B13 -> 8. | C15: ='C1- Price List All tenders'!C13 -> Earth leakage tester 220V: HellermannTyton Toptronic Tester Earth Leakage / Polarity TEL2TLB, SKU: O0018799 | D15: ='C1- Price List All tenders'!D13 -> Maintenance Operations Support | E15: ='C1- Price List All tenders'!E13 -> Each | F15: ='C1- Price List All tenders'!F13 -> 4 | G15: ='C1- Price List All tenders'!G13 -> R827.40 | H15: ='C1- Price List All tenders'!H13 -> R3,309.60 | I15: R827.40 | J15: R3,309.60 | K15: 0 | M15: ='C1- Price List All tenders'!I13 -> Each | N15: ='C1- Price List All tenders'!J13 -> 4 | O15: ='C1- Price List All tenders'!K13 -> R1,260.00 | P15: ='C1- Price List All tenders'!L13 -> R5,040.00 | Q15: R1,260.00 | R15: R5,040.00 | S15: 0 | T15: 0 | U15: -R432.60 | V15: 52.28% | W15: -R1,730.40 | X15: 52% | Z15: ='C1- Price List All tenders'!M13 -> Each | AA15: ='C1- Price List All tenders'!N13 -> 4 | AB15: ='C1- Price List All tenders'!O13 -> R1,974.13 | AC15: ='C1- Price List All tenders'!P13 -> R7,896.52 | AD15: R1,974.13 | AE15: R7,896.52 | AF15: 0 | AG15: 0 | AH15: -R1,146.73 | AI15: 138.59% | AJ15: -R4,586.92 | AK15: 139% | AM15: ='C1- Price List All tenders'!Q13 -> Each | AN15: ='C1- Price List All tenders'!R13 -> 4 | AO15: ='C1- Price List All tenders'!S13 -> R2,500.00 | AP15: ='C1- Price List All tenders'!T13 -> R10,000.00 | AQ15: R2,500.00 | AR15: R10,000.00 | AS15: 0 | AT15: 0 | AU15: -R1,672.60 | AV15: 202.15% | AW15: -R6,690.40 | AX15: 202% | AZ15: ='C1- Price List All tenders'!U13 -> Each | BA15: ='C1- Price List All tenders'!V13 -> 4 | BB15: ='C1- Price List All tenders'!W13 -> R842.00 | BC15: ='C1- Price List All tenders'!X13 -> R3,368.00 | BD15: R842.00 | BE15: R3,368.00 | BF15: 0 | BG15: 0 | BH15: -R14.60 | BI15: 1.76% | BJ15: -R58.40 | BK15: 2% | BM15: ='C1- Price List All tenders'!Y13 -> Each | BN15: ='C1- Price List All tenders'!Z13 -> 4 | BO15: ='C1- Price List All tenders'!AA13 -> R2,798.00 | BP15: ='C1- Price List All tenders'!AB13 -> R11,192.00 | BQ15: R2,798.00 | BR15: R11,192.00 | BS15: 3.00% | BT15: R10,856.24 | BU15: R335.76 | BV15: 0 | BW15: 0 | BX15: -R1,970.60 | BY15: 238.17% | BZ15: -R7,882.40 | CA15: 238% | CC15: ='C1- Price List All tenders'!AC13 -> Each | CD15: ='C1- Price List All tenders'!AD13 -> 4 | CE15: ='C1- Price List All tenders'!AE13 -> R912.99 | CF15: ='C1- Price List All tenders'!AF13 -> R3,651.97 | CG15: R912.99 | CH15: R3,651.97 | CI15: 0 | CJ15: 0 | CK15: -R85.59 | CL15: 10.34% | CM15: -R342.37 | CN15: 10%
B16: ='C1- Price List All tenders'!B14 -> 9. | C16: ='C1- Price List All tenders'!C14 -> Clamp-on ammeter: Fluke 325 True-rms Clamp Meter, Sku: FLK-325 | D16: ='C1- Price List All tenders'!D14 -> Maintenance Operations Support | E16: ='C1- Price List All tenders'!E14 -> Each | F16: ='C1- Price List All tenders'!F14 -> 4 | G16: ='C1- Price List All tenders'!G14 -> R12,324.90 | H16: ='C1- Price List All tenders'!H14 -> R49,299.60 | I16: R12,324.90 | J16: R49,299.60 | K16: 0 | M16: ='C1- Price List All tenders'!I14 -> Each | N16: ='C1- Price List All tenders'!J14 -> 4 | O16: ='C1- Price List All tenders'!K14 -> R145,000.00 | P16: ='C1- Price List All tenders'!L14 -> R580,000.00 | Q16: R145,000.00 | R16: R580,000.00 | S16: 0 | T16: 0 | U16: -R132,675.10 | V16: 1076.48% | W16: -R530,700.40 | X16: 1076% | Z16: ='C1- Price List All tenders'!M14 -> Each | AA16: ='C1- Price List All tenders'!N14 -> 4 | AB16: ='C1- Price List All tenders'!O14 -> R13,417.68 | AC16: ='C1- Price List All tenders'!P14 -> R53,670.72 | AD16: R13,417.68 | AE16: R53,670.72 | AF16: 0 | AG16: 0 | AH16: -R1,092.78 | AI16: 8.87% | AJ16: -R4,371.12 | AK16: 9% | AM16: ='C1- Price List All tenders'!Q14 -> Each | AN16: ='C1- Price List All tenders'!R14 -> 4 | AO16: ='C1- Price List All tenders'!S14 -> R10,000.00 | AP16: ='C1- Price List All tenders'!T14 -> R40,000.00 | AQ16: R10,000.00 | AR16: R40,000.00 | AS16: 0 | AT16: 0 | AU16: R2,324.90 | AV16: -18.86% | AW16: R9,299.60 | AX16: -19% | AZ16: ='C1- Price List All tenders'!U14 -> Each | BA16: ='C1- Price List All tenders'!V14 -> 4 | BB16: ='C1- Price List All tenders'!W14 -> R11,557.00 | BC16: ='C1- Price List All tenders'!X14 -> R46,228.00 | BD16: R11,557.00 | BE16: R46,228.00 | BF16: 0 | BG16: 0 | BH16: R767.90 | BI16: -6.23% | BJ16: R3,071.60 | BK16: -6% | BM16: ='C1- Price List All tenders'!Y14 -> Each | BN16: ='C1- Price List All tenders'!Z14 -> 4 | BO16: ='C1- Price List All tenders'!AA14 -> R3,100.00 | BP16: ='C1- Price List All tenders'!AB14 -> R12,400.00 | BQ16: R3,100.00 | BR16: R12,400.00 | BS16: 3.00% | BT16: R12,028.00 | BU16: R372.00 | BV16: 0 | BW16: 0 | BX16: R9,224.90 | BY16: -74.85% | BZ16: R36,899.60 | CA16: -75% | CC16: ='C1- Price List All tenders'!AC14 -> Each | CD16: ='C1- Price List All tenders'!AD14 -> 4 | CE16: ='C1- Price List All tenders'!AE14 -> R14,824.08 | CF16: ='C1- Price List All tenders'!AF14 -> R59,296.30 | CG16: R14,824.08 | CH16: R59,296.30 | CI16: 0 | CJ16: 0 | CK16: -R2,499.18 | CL16: 20.28% | CM16: -R9,996.70 | CN16: 20%
B17: ='C1- Price List All tenders'!B15 -> 10. | C17: ='C1- Price List All tenders'!C15 -> Dual Cordless vacuum and blower Driver 21V | D17: ='C1- Price List All tenders'!D15 -> Maintenance Operations Support | E17: ='C1- Price List All tenders'!E15 -> Each | F17: ='C1- Price List All tenders'!F15 -> 4 | G17: ='C1- Price List All tenders'!G15 -> R3,581.55 | H17: ='C1- Price List All tenders'!H15 -> R14,326.20 | I17: R3,581.55 | J17: R14,326.20 | K17: 0 | M17: ='C1- Price List All tenders'!I15 -> Each | N17: ='C1- Price List All tenders'!J15 -> 4 | O17: ='C1- Price List All tenders'!K15 -> R4,860.00 | P17: ='C1- Price List All tenders'!L15 -> R19,440.00 | Q17: R4,860.00 | R17: R19,440.00 | S17: 0 | T17: 0 | U17: -R1,278.45 | V17: 35.70% | W17: -R5,113.80 | X17: 36% | Z17: ='C1- Price List All tenders'!M15 -> Each | AA17: ='C1- Price List All tenders'!N15 -> 4 | AB17: ='C1- Price List All tenders'!O15 -> R63,783.71 | AC17: ='C1- Price List All tenders'!P15 -> R255,134.84 | AD17: R63,783.71 | AE17: R255,134.84 | AF17: 0 | AG17: 0 | AH17: -R60,202.16 | AI17: 1680.90% | AJ17: -R240,808.64 | AK17: 1681% | AM17: ='C1- Price List All tenders'!Q15 -> Each | AN17: ='C1- Price List All tenders'!R15 -> 4 | AO17: ='C1- Price List All tenders'!S15 -> R5,600.00 | AP17: ='C1- Price List All tenders'!T15 -> R22,400.00 | AQ17: R5,600.00 | AR17: R22,400.00 | AS17: 0 | AT17: 0 | AU17: -R2,018.45 | AV17: 56.36% | AW17: -R8,073.80 | AX17: 56% | AZ17: ='C1- Price List All tenders'!U15 -> Each | BA17: ='C1- Price List All tenders'!V15 -> 4 | BB17: ='C1- Price List All tenders'!W15 -> R1,560.00 | BC17: ='C1- Price List All tenders'!X15 -> R6,240.00 | BD17: R1,560.00 | BE17: R6,240.00 | BF17: 0 | BG17: 0 | BH17: R2,021.55 | BI17: -56.44% | BJ17: R8,086.20 | BK17: -56% | BM17: ='C1- Price List All tenders'!Y15 -> Each | BN17: ='C1- Price List All tenders'!Z15 -> 4 | BO17: ='C1- Price List All tenders'!AA15 -> R12,022.00 | BP17: ='C1- Price List All tenders'!AB15 -> R48,088.00 | BQ17: R12,022.00 | BR17: R48,088.00 | BS17: 3.00% | BT17: R46,645.36 | BU17: R1,442.64 | BV17: 0 | BW17: 0 | BX17: -R8,440.45 | BY17: 235.66% | BZ17: -R33,761.80 | CA17: 236% | CC17: ='C1- Price List All tenders'!AC15 -> Each | CD17: ='C1- Price List All tenders'!AD15 -> 4 | CE17: ='C1- Price List All tenders'!AE15 -> R1,695.05 | CF17: ='C1- Price List All tenders'!AF15 -> R6,780.20 | CG17: R1,695.05 | CH17: R6,780.20 | CI17: 0 | CJ17: 0 | CK17: R1,886.50 | CL17: -52.67% | CM17: R7,546.00 | CN17: -53%
B18: ='C1- Price List All tenders'!B16 -> 11. | C18: ='C1- Price List All tenders'!C16 -> 2 door Change Room Lockers: Product Details - Height: 1800 mm, - Width: 300 mm, - Depth: 450 mm, - Hasp and staple for padlock facility | D18: ='C1- Price List All tenders'!D16 -> Maintenance Operations Support | E18: ='C1- Price List All tenders'!E16 -> Each | F18: ='C1- Price List All tenders'!F16 -> 70 | G18: ='C1- Price List All tenders'!G16 -> R1,705.20 | H18: ='C1- Price List All tenders'!H16 -> R119,364.00 | I18: R1,705.20 | J18: R119,364.00 | K18: 0 | M18: ='C1- Price List All tenders'!I16 -> Each | N18: ='C1- Price List All tenders'!J16 -> 70 | O18: ='C1- Price List All tenders'!K16 -> R2,520.00 | P18: ='C1- Price List All tenders'!L16 -> R176,400.00 | Q18: R2,520.00 | R18: R176,400.00 | S18: 0 | T18: 0 | U18: -R814.80 | V18: 47.78% | W18: -R57,036.00 | X18: 48% | Z18: ='C1- Price List All tenders'!M16 -> Each | AA18: ='C1- Price List All tenders'!N16 -> 70 | AB18: ='C1- Price List All tenders'!O16 -> R5,731.52 | AC18: ='C1- Price List All tenders'!P16 -> R401,206.40 | AD18: R5,731.52 | AE18: R401,206.40 | AF18: 0 | AG18: 0 | AH18: -R4,026.32 | AI18: 236.12% | AJ18: -R281,842.40 | AK18: 236% | AM18: ='C1- Price List All tenders'!Q16 -> Each | AN18: ='C1- Price List All tenders'!R16 -> 70 | AO18: ='C1- Price List All tenders'!S16 -> R3,600.00 | AP18: ='C1- Price List All tenders'!T16 -> R252,000.00 | AQ18: R3,600.00 | AR18: R252,000.00 | AS18: 0 | AT18: 0 | AU18: -R1,894.80 | AV18: 111.12% | AW18: -R132,636.00 | AX18: 111% | AZ18: ='C1- Price List All tenders'!U16 -> Each | BA18: ='C1- Price List All tenders'!V16 -> 70 | BB18: ='C1- Price List All tenders'!W16 -> R12,242.00 | BC18: ='C1- Price List All tenders'!X16 -> R856,940.00 | BD18: R12,242.00 | BE18: R856,940.00 | BF18: 0 | BG18: 0 | BH18: -R10,536.80 | BI18: 617.92% | BJ18: -R737,576.00 | BK18: 618% | BM18: ='C1- Price List All tenders'!Y16 -> Each | BN18: ='C1- Price List All tenders'!Z16 -> 70 | BO18: ='C1- Price List All tenders'!AA16 -> R46,999.00 | BP18: ='C1- Price List All tenders'!AB16 -> R3,289,930.00 | BQ18: R46,999.00 | BR18: R3,289,930.00 | BS18: 3.00% | BT18: R3,191,232.10 | BU18: R98,697.90 | BV18: 0 | BW18: 0 | BX18: -R45,293.80 | BY18: 2656.22% | BZ18: -R3,170,566.00 | CA18: 2656% | CC18: ='C1- Price List All tenders'!AC16 -> Each | CD18: ='C1- Price List All tenders'!AD16 -> 70 | CE18: ='C1- Price List All tenders'!AE16 -> R3,278.31 | CF18: ='C1- Price List All tenders'!AF16 -> R229,481.85 | CG18: R3,278.31 | CH18: R229,481.85 | CI18: 0 | CJ18: 0 | CK18: -R1,573.11 | CL18: 92.25% | CM18: -R110,117.85 | CN18: 92%
B19: ='C1- Price List All tenders'!B17 -> 12. | C19: ='C1- Price List All tenders'!C17 -> Industrial Work Benches for Workshops with lockable cabinets: King Tony | Workbench 3 Drawer Chest & Wall Cabinets, by King Tony, SKU 87512 | D19: ='C1- Price List All tenders'!D17 -> Maintenance Operations Support | E19: ='C1- Price List All tenders'!E17 -> Each | F19: ='C1- Price List All tenders'!F17 -> 60 | G19: ='C1- Price List All tenders'!G17 -> R60,517.80 | H19: ='C1- Price List All tenders'!H17 -> R3,631,068.00 | I19: R60,517.80 | J19: R3,631,068.00 | K19: 0 | M19: ='C1- Price List All tenders'!I17 -> Each | N19: ='C1- Price List All tenders'!J17 -> 60 | O19: ='C1- Price List All tenders'!K17 -> R90,000.00 | P19: ='C1- Price List All tenders'!L17 -> R5,400,000.00 | Q19: R90,000.00 | R19: R5,400,000.00 | S19: 0 | T19: 0 | U19: -R29,482.20 | V19: 48.72% | W19: -R1,768,932.00 | X19: 49% | Z19: ='C1- Price List All tenders'!M17 -> Each | AA19: ='C1- Price List All tenders'!N17 -> 60 | AB19: ='C1- Price List All tenders'!O17 -> R58,358.46 | AC19: ='C1- Price List All tenders'!P17 -> R3,501,507.60 | AD19: R58,358.46 | AE19: R3,501,507.60 | AF19: 0 | AG19: 0 | AH19: R2,159.34 | AI19: -3.57% | AJ19: R129,560.40 | AK19: -4% | AM19: ='C1- Price List All tenders'!Q17 -> Each | AN19: ='C1- Price List All tenders'!R17 -> 60 | AO19: ='C1- Price List All tenders'!S17 -> R46,000.00 | AP19: ='C1- Price List All tenders'!T17 -> R2,760,000.00 | AQ19: R46,000.00 | AR19: R2,760,000.00 | AS19: 0 | AT19: 0 | AU19: R14,517.80 | AV19: -23.99% | AW19: R871,068.00 | AX19: -24% | AZ19: ='C1- Price List All tenders'!U17 -> Each | BA19: ='C1- Price List All tenders'!V17 -> 60 | BB19: ='C1- Price List All tenders'!W17 -> R43,442.00 | BC19: ='C1- Price List All tenders'!X17 -> R2,606,520.00 | BD19: R43,442.00 | BE19: R2,606,520.00 | BF19: 0 | BG19: 0 | BH19: R17,075.80 | BI19: -28.22% | BJ19: R1,024,548.00 | BK19: -28% | BM19: ='C1- Price List All tenders'!Y17 -> Each | BN19: ='C1- Price List All tenders'!Z17 -> 60 | BO19: ='C1- Price List All tenders'!AA17 -> R6,998.00 | BP19: ='C1- Price List All tenders'!AB17 -> R419,880.00 | BQ19: R6,998.00 | BR19: R419,880.00 | BS19: 3.00% | BT19: R407,283.60 | BU19: R12,596.40 | BV19: 0 | BW19: 0 | BX19: R53,519.80 | BY19: -88.44% | BZ19: R3,211,188.00 | CA19: -88% | CC19: ='C1- Price List All tenders'!AC17 -> Each | CD19: ='C1- Price List All tenders'!AD17 -> 60 | CE19: ='C1- Price List All tenders'!AE17 -> R76,892.05 | CF19: ='C1- Price List All tenders'!AF17 -> R4,613,523.00 | CG19: R76,892.05 | CH19: R4,613,523.00 | CI19: 0 | CJ19: 0 | CK19: -R16,374.25 | CL19: 27.06% | CM19: -R982,455.00 | CN19: 27%
B20: ='C1- Price List All tenders'!B18 -> 13. | C20: ='C1- Price List All tenders'!C18 -> TORQUE WRENCHES 12-68 Nm: | D20: ='C1- Price List All tenders'!D18 -> Maintenance Operations Support | E20: ='C1- Price List All tenders'!E18 -> Each | F20: ='C1- Price List All tenders'!F18 -> 4 | G20: ='C1- Price List All tenders'!G18 -> R5,446.35 | H20: ='C1- Price List All tenders'!H18 -> R21,785.40 | I20: R5,446.35 | J20: R21,785.40 | K20: 0 | M20: ='C1- Price List All tenders'!I18 -> Each | N20: ='C1- Price List All tenders'!J18 -> 4 | O20: ='C1- Price List All tenders'!K18 -> R4,860.00 | P20: ='C1- Price List All tenders'!L18 -> R19,440.00 | Q20: R4,860.00 | R20: R19,440.00 | S20: 0 | T20: 0 | U20: R586.35 | V20: -10.77% | W20: R2,345.40 | X20: -11% | Z20: ='C1- Price List All tenders'!M18 -> Each | AA20: ='C1- Price List All tenders'!N18 -> 4 | AB20: ='C1- Price List All tenders'!O18 -> R6,710.11 | AC20: ='C1- Price List All tenders'!P18 -> R26,840.44 | AD20: R6,710.11 | AE20: R26,840.44 | AF20: 0 | AG20: 0 | AH20: -R1,263.76 | AI20: 23.20% | AJ20: -R5,055.04 | AK20: 23% | AM20: ='C1- Price List All tenders'!Q18 -> Each | AN20: ='C1- Price List All tenders'!R18 -> 4 | AO20: ='C1- Price List All tenders'!S18 -> R3,000.00 | AP20: ='C1- Price List All tenders'!T18 -> R12,000.00 | AQ20: R3,000.00 | AR20: R12,000.00 | AS20: 0 | AT20: 0 | AU20: R2,446.35 | AV20: -44.92% | AW20: R9,785.40 | AX20: -45% | AZ20: ='C1- Price List All tenders'!U18 -> Each | BA20: ='C1- Price List All tenders'!V18 -> 4 | BB20: ='C1- Price List All tenders'!W18 -> R2,906.00 | BC20: ='C1- Price List All tenders'!X18 -> R11,624.00 | BD20: R2,906.00 | BE20: R11,624.00 | BF20: 0 | BG20: 0 | BH20: R2,540.35 | BI20: -46.64% | BJ20: R10,161.40 | BK20: -47% | BM20: ='C1- Price List All tenders'!Y18 -> Each | BN20: ='C1- Price List All tenders'!Z18 -> 4 | BO20: ='C1- Price List All tenders'!AA18 -> R1,600.00 | BP20: ='C1- Price List All tenders'!AB18 -> R6,400.00 | BQ20: R1,600.00 | BR20: R6,400.00 | BS20: 3.00% | BT20: R6,208.00 | BU20: R192.00 | BV20: 0 | BW20: 0 | BX20: R3,846.35 | BY20: -70.62% | BZ20: R15,385.40 | CA20: -71% | CC20: ='C1- Price List All tenders'!AC18 -> Each | CD20: ='C1- Price List All tenders'!AD18 -> 4 | CE20: ='C1- Price List All tenders'!AE18 -> R9,270.62 | CF20: ='C1- Price List All tenders'!AF18 -> R37,082.48 | CG20: R9,270.62 | CH20: R37,082.48 | CI20: 0 | CJ20: 0 | CK20: -R3,824.27 | CL20: 70.22% | CM20: -R15,297.08 | CN20: 70%
B21: ='C1- Price List All tenders'!B19 -> 14. | C21: ='C1- Price List All tenders'!C19 -> TORQUE WRENCHES 20-200Nm: GEDORE 1/2" TORQUE WRENCH 20-200Nm GEDORE 7601610 Torque Wrench, Torcofix K 1/2" 20-200 Nm Use: Controlled screw tightening in the most widely used range of 1 - 850 NM / 0. 75 - 630 lbf·ft (guide for screws M3-6. 9 to M24-8. 8, M30-5. 6) Adjustable, releasing and sturdy... | D21: ='C1- Price List All tenders'!D19 -> Maintenance Operations Support | E21: ='C1- Price List All tenders'!E19 -> Each | F21: ='C1- Price List All tenders'!F19 -> 4 | G21: ='C1- Price List All tenders'!G19 -> R7,780.50 | H21: ='C1- Price List All tenders'!H19 -> R31,122.00 | I21: R7,780.50 | J21: R31,122.00 | K21: 0 | M21: ='C1- Price List All tenders'!I19 -> Each | N21: ='C1- Price List All tenders'!J19 -> 4 | O21: ='C1- Price List All tenders'!K19 -> R12,600.00 | P21: ='C1- Price List All tenders'!L19 -> R50,400.00 | Q21: R12,600.00 | R21: R50,400.00 | S21: 0 | T21: 0 | U21: -R4,819.50 | V21: 61.94% | W21: -R19,278.00 | X21: 62% | Z21: ='C1- Price List All tenders'!M19 -> Each | AA21: ='C1- Price List All tenders'!N19 -> 4 | AB21: ='C1- Price List All tenders'!O19 -> R5,813.72 | AC21: ='C1- Price List All tenders'!P19 -> R23,254.88 | AD21: R5,813.72 | AE21: R23,254.88 | AF21: 0 | AG21: 0 | AH21: R1,966.78 | AI21: -25.28% | AJ21: R7,867.12 | AK21: -25% | AM21: ='C1- Price List All tenders'!Q19 -> Each | AN21: ='C1- Price List All tenders'!R19 -> 4 | AO21: ='C1- Price List All tenders'!S19 -> R3,200.00 | AP21: ='C1- Price List All tenders'!T19 -> R12,800.00 | AQ21: R3,200.00 | AR21: R12,800.00 | AS21: 0 | AT21: 0 | AU21: R4,580.50 | AV21: -58.87% | AW21: R18,322.00 | AX21: -59% | AZ21: ='C1- Price List All tenders'!U19 -> Each | BA21: ='C1- Price List All tenders'!V19 -> 4 | BB21: ='C1- Price List All tenders'!W19 -> R4,875.00 | BC21: ='C1- Price List All tenders'!X19 -> R19,500.00 | BD21: R4,875.00 | BE21: R19,500.00 | BF21: 0 | BG21: 0 | BH21: R2,905.50 | BI21: -37.34% | BJ21: R11,622.00 | BK21: -37% | BM21: ='C1- Price List All tenders'!Y19 -> Each | BN21: ='C1- Price List All tenders'!Z19 -> 4 | BO21: ='C1- Price List All tenders'!AA19 -> R14,464.00 | BP21: ='C1- Price List All tenders'!AB19 -> R57,856.00 | BQ21: R14,464.00 | BR21: R57,856.00 | BS21: 3.00% | BT21: R56,120.32 | BU21: R1,735.68 | BV21: 0 | BW21: 0 | BX21: -R6,683.50 | BY21: 85.90% | BZ21: -R26,734.00 | CA21: 86% | CC21: ='C1- Price List All tenders'!AC19 -> Each | CD21: ='C1- Price List All tenders'!AD19 -> 4 | CE21: ='C1- Price List All tenders'!AE19 -> R9,885.78 | CF21: ='C1- Price List All tenders'!AF19 -> R39,543.12 | CG21: R9,885.78 | CH21: R39,543.12 | CI21: 0 | CJ21: 0 | CK21: -R2,105.28 | CL21: 27.06% | CM21: -R8,421.12 | CN21: 27%
B22: ='C1- Price List All tenders'!B20 -> 15. | C22: ='C1- Price List All tenders'!C20 -> PRV (Pressure Relief Valve) test bench machine: "Terek" Model NO. TVT-15-DN200-MC, Load Way Nitrogen Pressure Test, Display Digital, Weight 1000-2000Kg, Oil Cylinder Position Under, Testing Medium Air/Nitrogen /Water/ Hydraulic Oil, Usage Auto Testing Machine, Specification 1500KG, Production Capacity 5000pieces/Year, Accuracy Grade 0.5, Loading Method Pneumatic Gas Booster Pump, Power Source AC220V, Driven Power Compressed Air, Trademark Terek, HS Code 9031809090. | D22: ='C1- Price List All tenders'!D20 -> Maintenance Operations Support | E22: ='C1- Price List All tenders'!E20 -> Each | F22: ='C1- Price List All tenders'!F20 -> 3 | G22: ='C1- Price List All tenders'!G20 -> R277,927.65 | H22: ='C1- Price List All tenders'!H20 -> R833,782.95 | I22: R277,927.65 | J22: R833,782.95 | K22: 0 | M22: ='C1- Price List All tenders'!I20 -> Each | N22: ='C1- Price List All tenders'!J20 -> 3 | O22: ='C1- Price List All tenders'!K20 -> R45,000.00 | P22: ='C1- Price List All tenders'!L20 -> R135,000.00 | Q22: R45,000.00 | R22: R135,000.00 | S22: 0 | T22: 0 | U22: R232,927.65 | V22: -83.81% | W22: R698,782.95 | X22: -84% | Z22: ='C1- Price List All tenders'!M20 -> Each | AA22: ='C1- Price List All tenders'!N20 -> 3 | AB22: ='C1- Price List All tenders'!O20 -> R217,318.72 | AC22: ='C1- Price List All tenders'!P20 -> R651,956.16 | AD22: R217,318.72 | AE22: R651,956.16 | AF22: 0 | AG22: 0 | AH22: R60,608.93 | AI22: -21.81% | AJ22: R181,826.79 | AK22: -22% | AM22: ='C1- Price List All tenders'!Q20 -> Each | AN22: ='C1- Price List All tenders'!R20 -> 3 | AO22: ='C1- Price List All tenders'!S20 -> R43,000.00 | AP22: ='C1- Price List All tenders'!T20 -> R129,000.00 | AQ22: R43,000.00 | AR22: R129,000.00 | AS22: 0 | AT22: 0 | AU22: R234,927.65 | AV22: -84.53% | AW22: R704,782.95 | AX22: -85% | AZ22: ='C1- Price List All tenders'!U20 -> Each | BA22: ='C1- Price List All tenders'!V20 -> 3 | BB22: ='C1- Price List All tenders'!W20 -> R215,237.00 | BC22: ='C1- Price List All tenders'!X20 -> R645,711.00 | BD22: R215,237.00 | BE22: R645,711.00 | BF22: 0 | BG22: 0 | BH22: R62,690.65 | BI22: -22.56% | BJ22: R188,071.95 | BK22: -23% | BM22: ='C1- Price List All tenders'!Y20 -> Each | BN22: ='C1- Price List All tenders'!Z20 -> 3 | BO22: ='C1- Price List All tenders'!AA20 -> R28,928.00 | BP22: ='C1- Price List All tenders'!AB20 -> R86,784.00 | BQ22: R28,928.00 | BR22: R86,784.00 | BS22: 3.00% | BT22: R84,180.48 | BU22: R2,603.52 | BV22: 0 | BW22: 0 | BX22: R248,999.65 | BY22: -89.59% | BZ22: R746,998.95 | CA22: -90% | CC22: ='C1- Price List All tenders'!AC20 -> Each | CD22: ='C1- Price List All tenders'!AD20 -> 3 | CE22: ='C1- Price List All tenders'!AE20 -> R290,985.43 | CF22: ='C1- Price List All tenders'!AF20 -> R872,956.30 | CG22: R290,985.43 | CH22: R872,956.30 | CI22: 0 | CJ22: 0 | CK22: -R13,057.78 | CL22: 4.70% | CM22: -R39,173.35 | CN22: 5%
B23: ='C1- Price List All tenders'!B21 -> 16. | C23: ='C1- Price List All tenders'!C21 -> Q100 (Element analysis for in-service lubricates) SN: 11293: WEICON AL-W offers effective protection against aggressive liquids such as sea or wastewater, both in the maritime sector and in wet plants. The lubricant is suitable for rolling and sliding bearings even in mixed friction operation, for joints, levers, sliding guides, spindles, spline shafts, open gears, worm gears, chains and wire cables, and at all sliding speeds permitted for grease lubrication. (Price/1kg) | D23: ='C1- Price List All tenders'!D21 -> Maintenance Operations Support | E23: ='C1- Price List All tenders'!E21 -> Each | F23: ='C1- Price List All tenders'!F21 -> 7 | G23: ='C1- Price List All tenders'!G21 -> R1,326.62 | H23: ='C1- Price List All tenders'!H21 -> R9,286.31 | I23: R1,326.62 | J23: R9,286.31 | K23: 0 | M23: ='C1- Price List All tenders'!I21 -> Each | N23: ='C1- Price List All tenders'!J21 -> 7 | O23: ='C1- Price List All tenders'!K21 -> R28,000.00 | P23: ='C1- Price List All tenders'!L21 -> R196,000.00 | Q23: R28,000.00 | R23: R196,000.00 | S23: 0 | T23: 0 | U23: -R26,673.38 | V23: 2010.63% | W23: -R186,713.69 | X23: 2011% | Z23: ='C1- Price List All tenders'!M21 -> Each | AA23: ='C1- Price List All tenders'!N21 -> 7 | AB23: ='C1- Price List All tenders'!O21 -> R3,172.18 | AC23: ='C1- Price List All tenders'!P21 -> R22,205.26 | AD23: R3,172.18 | AE23: R22,205.26 | AF23: 0 | AG23: 0 | AH23: -R1,845.56 | AI23: 139.12% | AJ23: -R12,918.95 | AK23: 139% | AM23: ='C1- Price List All tenders'!Q21 -> Each | AN23: ='C1- Price List All tenders'!R21 -> 7 | AO23: ='C1- Price List All tenders'!S21 -> R260.00 | AP23: ='C1- Price List All tenders'!T21 -> R1,820.00 | AQ23: R260.00 | AR23: R1,820.00 | AS23: 0 | AT23: 0 | AU23: R1,066.62 | AV23: -80.40% | AW23: R7,466.31 | AX23: -80% | AZ23: ='C1- Price List All tenders'!U21 -> Each | BA23: ='C1- Price List All tenders'!V21 -> 7 | BB23: ='C1- Price List All tenders'!W21 -> R2,861,999.00 | BC23: ='C1- Price List All tenders'!X21 -> R20,033,993.00 | BD23: R2,861,999.00 | BE23: R20,033,993.00 | BF23: 0 | BG23: 0 | BH23: -R2,860,672.38 | BI23: 215636.77% | BJ23: -R20,024,706.69 | BK23: 215637% | BM23: ='C1- Price List All tenders'!Y21 -> Each | BN23: ='C1- Price List All tenders'!Z21 -> 7 | BO23: ='C1- Price List All tenders'!AA21 -> R10,464.00 | BP23: ='C1- Price List All tenders'!AB21 -> R73,248.00 | BQ23: R10,464.00 | BR23: R73,248.00 | BS23: 3.00% | BT23: R71,050.56 | BU23: R2,197.44 | BV23: 0 | BW23: 0 | BX23: -R9,137.38 | BY23: 688.77% | BZ23: -R63,961.69 | CA23: 689% | CC23: ='C1- Price List All tenders'!AC21 -> Each | CD23: ='C1- Price List All tenders'!AD21 -> 7 | CE23: ='C1- Price List All tenders'!AE21 -> R6,161.64 | CF23: ='C1- Price List All tenders'!AF21 -> R43,131.51 | CG23: R6,161.64 | CH23: R43,131.51 | CI23: 0 | CJ23: 0 | CK23: -R4,835.03 | CL23: 364.46% | CM23: -R33,845.20 | CN23: 364%
B24: ='C1- Price List All tenders'!B22 -> 17. | C24: ='C1- Price List All tenders'!C22 -> Q200 (Particle count or oil cleanliness analyzer in-service lubricates) SN: 1101: "Spanjaard" ELECTRICAL CONTACT LUBRICANT 1010 A lubricant for heavy duty switchgear. Does not increase electrical resistance during use. Prolongs contact life. Has good lubricating properties, even with heavy wiping contacts. Lowers resistance across contacts. Prevents tracking and shorting out. Eliminates arcing. Does not carbonise or form harmful deposits. Helps remove existing carbon deposits. Is not harmful to plastics and rubbers. (Price/5kg) | D24: ='C1- Price List All tenders'!D22 -> Maintenance Operations Support | E24: ='C1- Price List All tenders'!E22 -> Each | F24: ='C1- Price List All tenders'!F22 -> 8 | G24: ='C1- Price List All tenders'!G22 -> R2,092.33 | H24: ='C1- Price List All tenders'!H22 -> R16,738.61 | I24: R2,092.33 | J24: R16,738.61 | K24: 0 | M24: ='C1- Price List All tenders'!I22 -> Each | N24: ='C1- Price List All tenders'!J22 -> 8 | O24: ='C1- Price List All tenders'!K22 -> R3,500.00 | P24: ='C1- Price List All tenders'!L22 -> R28,000.00 | Q24: R3,500.00 | R24: R28,000.00 | S24: 0 | T24: 0 | U24: -R1,407.67 | V24: 67.28% | W24: -R11,261.39 | X24: 67% | Z24: ='C1- Price List All tenders'!M22 -> Each | AA24: ='C1- Price List All tenders'!N22 -> 8 | AB24: ='C1- Price List All tenders'!O22 -> R3,701.70 | AC24: ='C1- Price List All tenders'!P22 -> R29,613.60 | AD24: R3,701.70 | AE24: R29,613.60 | AF24: 0 | AG24: 0 | AH24: -R1,609.37 | AI24: 76.92% | AJ24: -R12,874.99 | AK24: 77% | AM24: ='C1- Price List All tenders'!Q22 -> Each | AN24: ='C1- Price List All tenders'!R22 -> 8 | AO24: ='C1- Price List All tenders'!S22 -> R1,700.00 | AP24: ='C1- Price List All tenders'!T22 -> R13,600.00 | AQ24: R1,700.00 | AR24: R13,600.00 | AS24: 0 | AT24: 0 | AU24: R392.33 | AV24: -18.75% | AW24: R3,138.61 | AX24: -19% | AZ24: ='C1- Price List All tenders'!U22 -> Each | BA24: ='C1- Price List All tenders'!V22 -> 8 | BB24: ='C1- Price List All tenders'!W22 -> R2,500,530.00 | BC24: ='C1- Price List All tenders'!X22 -> R20,004,240.00 | BD24: R2,500,530.00 | BE24: R20,004,240.00 | BF24: 0 | BG24: 0 | BH24: -R2,498,437.67 | BI24: 119409.55% | BJ24: -R19,987,501.39 | BK24: 119410% | BM24: ='C1- Price List All tenders'!Y22 -> Each | BN24: ='C1- Price List All tenders'!Z22 -> 8 | BO24: ='C1- Price List All tenders'!AA22 -> R10,128.00 | BP24: ='C1- Price List All tenders'!AB22 -> R86,960.00 | BQ24: R10,128.00 | BR24: R81,024.00 | BS24: 3.00% | BT24: R78,593.28 | BU24: R2,430.72 | BV24: -R5,936.00 | BW24: 0 | BX24: -R8,035.67 | BY24: 384.05% | BZ24: -R64,285.39 | CA24: 384% | CC24: ='C1- Price List All tenders'!AC22 -> Each | CD24: ='C1- Price List All tenders'!AD22 -> 8 | CE24: ='C1- Price List All tenders'!AE22 -> R2,600.46 | CF24: ='C1- Price List All tenders'!AF22 -> R20,803.68 | CG24: R2,600.46 | CH24: R20,803.68 | CI24: 0 | CJ24: 0 | CK24: -R508.13 | CL24: 24.29% | CM24: -R4,065.07 | CN24: 24%
B25: ='C1- Price List All tenders'!B23 -> 18. | C25: ='C1- Price List All tenders'!C23 -> Q3000 (Viscosity in-service lubricates) | D25: ='C1- Price List All tenders'!D23 -> Maintenance Operations Support | E25: ='C1- Price List All tenders'!E23 -> Each | F25: ='C1- Price List All tenders'!F23 -> 9 | G25: ='C1- Price List All tenders'!G23 -> R5,250.00 | H25: ='C1- Price List All tenders'!H23 -> R47,250.00 | I25: R5,250.00 | J25: R47,250.00 | K25: 0 | M25: ='C1- Price List All tenders'!I23 -> Each | N25: ='C1- Price List All tenders'!J23 -> 9 | O25: ='C1- Price List All tenders'!K23 -> R28,000.00 | P25: ='C1- Price List All tenders'!L23 -> R252,000.00 | Q25: R28,000.00 | R25: R252,000.00 | S25: 0 | T25: 0 | U25: -R22,750.00 | V25: 433.33% | W25: -R204,750.00 | X25: 433% | Z25: ='C1- Price List All tenders'!M23 -> Each | AA25: ='C1- Price List All tenders'!N23 -> 9 | AB25: ='C1- Price List All tenders'!O23 -> R3,371.68 | AC25: ='C1- Price List All tenders'!P23 -> R30,345.12 | AD25: R3,371.68 | AE25: R30,345.12 | AF25: 0 | AG25: 0 | AH25: R1,878.32 | AI25: -35.78% | AJ25: R16,904.88 | AK25: -36% | AM25: ='C1- Price List All tenders'!Q23 -> Each | AN25: ='C1- Price List All tenders'!R23 -> 9 | AO25: ='C1- Price List All tenders'!S23 -> R1,320.00 | AP25: ='C1- Price List All tenders'!T23 -> R11,880.00 | AQ25: R1,320.00 | AR25: R11,880.00 | AS25: 0 | AT25: 0 | AU25: R3,930.00 | AV25: -74.86% | AW25: R35,370.00 | AX25: -75% | AZ25: ='C1- Price List All tenders'!U23 -> Each | BA25: ='C1- Price List All tenders'!V23 -> 9 | BB25: ='C1- Price List All tenders'!W23 -> R482,968.00 | BC25: ='C1- Price List All tenders'!X23 -> R4,346,712.00 | BD25: R482,968.00 | BE25: R4,346,712.00 | BF25: 0 | BG25: 0 | BH25: -R477,718.00 | BI25: 9099.39% | BJ25: -R4,299,462.00 | BK25: 9099% | BM25: ='C1- Price List All tenders'!Y23 -> Each | BN25: ='C1- Price List All tenders'!Z23 -> 9 | BO25: ='C1- Price List All tenders'!AA23 -> R4,120.00 | BP25: ='C1- Price List All tenders'!AB23 -> R37,080.00 | BQ25: R4,120.00 | BR25: R37,080.00 | BS25: 3.00% | BT25: R35,967.60 | BU25: R1,112.40 | BV25: 0 | BW25: 0 | BX25: R1,130.00 | BY25: -21.52% | BZ25: R10,170.00 | CA25: -22% | CC25: ='C1- Price List All tenders'!AC23 -> Each | CD25: ='C1- Price List All tenders'!AD23 -> 9 | CE25: ='C1- Price List All tenders'!AE23 -> R2,089.71 | CF25: ='C1- Price List All tenders'!AF23 -> R18,807.39 | CG25: R2,089.71 | CH25: R18,807.39 | CI25: 0 | CJ25: 0 | CK25: R3,160.29 | CL25: -60.20% | CM25: R28,442.61 | CN25: -60%
B26: ='C1- Price List All tenders'!B24 -> 19. | C26: ='C1- Price List All tenders'!C24 -> Q1100 (Water content analyzer in-service lubricates) SN: 31476 | D26: ='C1- Price List All tenders'!D24 -> Maintenance Operations Support | E26: ='C1- Price List All tenders'!E24 -> Each | F26: ='C1- Price List All tenders'!F24 -> 10 | G26: ='C1- Price List All tenders'!G24 -> R3,675.00 | H26: ='C1- Price List All tenders'!H24 -> R36,750.00 | I26: R3,675.00 | J26: R36,750.00 | K26: 0 | M26: ='C1- Price List All tenders'!I24 -> Each | N26: ='C1- Price List All tenders'!J24 -> 10 | O26: ='C1- Price List All tenders'!K24 -> R59,398.20 | P26: ='C1- Price List All tenders'!L24 -> R593,982.00 | Q26: R59,398.20 | R26: R593,982.00 | S26: 0 | T26: 0 | U26: -R55,723.20 | V26: 1516.28% | W26: -R557,232.00 | X26: 1516% | Z26: ='C1- Price List All tenders'!M24 -> Each | AA26: ='C1- Price List All tenders'!N24 -> 10 | AB26: ='C1- Price List All tenders'!O24 -> R3,831.72 | AC26: ='C1- Price List All tenders'!P24 -> R38,317.20 | AD26: R3,831.72 | AE26: R38,317.20 | AF26: 0 | AG26: 0 | AH26: -R156.72 | AI26: 4.26% | AJ26: -R1,567.20 | AK26: 4% | AM26: ='C1- Price List All tenders'!Q24 -> Each | AN26: ='C1- Price List All tenders'!R24 -> 10 | AO26: ='C1- Price List All tenders'!S24 -> R32,400.00 | AP26: ='C1- Price List All tenders'!T24 -> R324,000.00 | AQ26: R32,400.00 | AR26: R324,000.00 | AS26: 0 | AT26: 0 | AU26: -R28,725.00 | AV26: 781.63% | AW26: -R287,250.00 | AX26: 782% | AZ26: ='C1- Price List All tenders'!U24 -> Each | BA26: ='C1- Price List All tenders'!V24 -> 10 | BB26: ='C1- Price List All tenders'!W24 -> R1,161,719.00 | BC26: ='C1- Price List All tenders'!X24 -> R11,617,190.00 | BD26: R1,161,719.00 | BE26: R11,617,190.00 | BF26: 0 | BG26: 0 | BH26: -R1,158,044.00 | BI26: 31511.40% | BJ26: -R11,580,440.00 | BK26: 31511% | BM26: ='C1- Price List All tenders'!Y24 -> Each | BN26: ='C1- Price List All tenders'!Z24 -> 10 | BO26: ='C1- Price List All tenders'!AA24 -> R12,120.00 | BP26: ='C1- Price List All tenders'!AB24 -> R121,200.00 | BQ26: R12,120.00 | BR26: R121,200.00 | BS26: 3.00% | BT26: R117,564.00 | BU26: R3,636.00 | BV26: 0 | BW26: 0 | BX26: -R8,445.00 | BY26: 229.80% | BZ26: -R84,450.00 | CA26: 230% | CC26: ='C1- Price List All tenders'!AC24 -> Each | CD26: ='C1- Price List All tenders'!AD24 -> 10 | CE26: ='C1- Price List All tenders'!AE24 -> R18,061.20 | CF26: ='C1- Price List All tenders'!AF24 -> R180,612.00 | CG26: R18,061.20 | CH26: R180,612.00 | CI26: 0 | CJ26: 0 | CK26: -R14,386.20 | CL26: 391.46% | CM26: -R143,862.00 | CN26: 391%
B27: ='C1- Price List All tenders'!B25 -> 20. | C27: ='C1- Price List All tenders'!C25 -> Flash point SN: NPM 450: PENSKY MARTENS AUTOMATED FLASH POINT TESTER NPM 450 Normes : ASTM D 93, IP 34, ISO 2719 DESCRIPTION : Efficient and compact, the NPM 450 is a fully automated Pensky Martens Closed Cup Flash Point Tester with a combination of latest technologies. Due to the unique design, the NPM 450 offers you the best performance thanks to its predictive heating regulation and the air turbine enabling fast sample cooling after the test. Thought for the user, the NPM 450 includes a revolutionary stirring and dipping arm, with an electric and gas ignition. A single combined system is delivered in standard. The user can automatically switch from gas to electric igniter (regulated automatically). | D27: ='C1- Price List All tenders'!D25 -> Maintenance Operations Support | E27: ='C1- Price List All tenders'!E25 -> Each | F27: ='C1- Price List All tenders'!F25 -> 11 | G27: ='C1- Price List All tenders'!G25 -> R99,750.00 | H27: ='C1- Price List All tenders'!H25 -> R1,097,250.00 | I27: R99,750.00 | J27: R1,097,250.00 | K27: 0 | M27: ='C1- Price List All tenders'!I25 -> Each | N27: ='C1- Price List All tenders'!J25 -> 11 | O27: ='C1- Price List All tenders'!K25 -> R39,600.00 | P27: ='C1- Price List All tenders'!L25 -> R435,600.00 | Q27: R39,600.00 | R27: R435,600.00 | S27: 0 | T27: 0 | U27: R60,150.00 | V27: -60.30% | W27: R661,650.00 | X27: -60% | Z27: ='C1- Price List All tenders'!M25 -> Each | AA27: ='C1- Price List All tenders'!N25 -> 11 | AB27: ='C1- Price List All tenders'!O25 -> R69,371.83 | AC27: ='C1- Price List All tenders'!P25 -> R763,090.13 | AD27: R69,371.83 | AE27: R763,090.13 | AF27: 0 | AG27: 0 | AH27: R30,378.17 | AI27: -30.45% | AJ27: R334,159.87 | AK27: -30% | AM27: ='C1- Price List All tenders'!Q25 -> Each | AN27: ='C1- Price List All tenders'!R25 -> 11 | AO27: ='C1- Price List All tenders'!S25 -> R124,000.00 | AP27: ='C1- Price List All tenders'!T25 -> R1,364,000.00 | AQ27: R124,000.00 | AR27: R1,364,000.00 | AS27: 0 | AT27: 0 | AU27: -R24,250.00 | AV27: 24.31% | AW27: -R266,750.00 | AX27: 24% | AZ27: ='C1- Price List All tenders'!U25 -> Each | BA27: ='C1- Price List All tenders'!V25 -> 11 | BB27: ='C1- Price List All tenders'!W25 -> R388,050.00 | BC27: ='C1- Price List All tenders'!X25 -> R4,268,550.00 | BD27: R388,050.00 | BE27: R4,268,550.00 | BF27: 0 | BG27: 0 | BH27: -R288,300.00 | BI27: 289.02% | BJ27: -R3,171,300.00 | BK27: 289% | BM27: ='C1- Price List All tenders'!Y25 -> Each | BN27: ='C1- Price List All tenders'!Z25 -> 11 | BO27: ='C1- Price List All tenders'!AA25 -> R28,998.00 | BP27: ='C1- Price List All tenders'!AB25 -> R318,978.00 | BQ27: R28,998.00 | BR27: R318,978.00 | BS27: 3.00% | BT27: R309,408.66 | BU27: R9,569.34 | BV27: 0 | BW27: 0 | BX27: R70,752.00 | BY27: -70.93% | BZ27: R778,272.00 | CA27: -71% | CC27: ='C1- Price List All tenders'!AC25 -> Each | CD27: ='C1- Price List All tenders'!AD25 -> 11 | CE27: ='C1- Price List All tenders'!AE25 -> R22,805.86 | CF27: ='C1- Price List All tenders'!AF25 -> R250,864.46 | CG27: R22,805.86 | CH27: R250,864.46 | CI27: 0 | CJ27: 0 | CK27: R76,944.14 | CL27: -77.14% | CM27: R846,385.54 | CN27: -77%
B28: ='C1- Price List All tenders'!B26 -> 21. | C28: ='C1- Price List All tenders'!C26 -> Ash and carbon analyzer SN:103021004 | D28: ='C1- Price List All tenders'!D26 -> Maintenance Operations Support | E28: ='C1- Price List All tenders'!E26 -> Each | F28: ='C1- Price List All tenders'!F26 -> 12 | G28: ='C1- Price List All tenders'!G26 -> R52,500.00 | H28: ='C1- Price List All tenders'!H26 -> R630,000.00 | I28: R52,500.00 | J28: R630,000.00 | K28: 0 | M28: ='C1- Price List All tenders'!I26 -> Each | N28: ='C1- Price List All tenders'!J26 -> 12 | O28: ='C1- Price List All tenders'!K26 -> R51,000.00 | P28: ='C1- Price List All tenders'!L26 -> R612,000.00 | Q28: R51,000.00 | R28: R612,000.00 | S28: 0 | T28: 0 | U28: R1,500.00 | V28: -2.86% | W28: R18,000.00 | X28: -3% | Z28: ='C1- Price List All tenders'!M26 -> Each | AA28: ='C1- Price List All tenders'!N26 -> 12 | AB28: ='C1- Price List All tenders'!O26 -> R48,381.27 | AC28: ='C1- Price List All tenders'!P26 -> R580,575.24 | AD28: R48,381.27 | AE28: R580,575.24 | AF28: 0 | AG28: 0 | AH28: R4,118.73 | AI28: -7.85% | AJ28: R49,424.76 | AK28: -8% | AM28: ='C1- Price List All tenders'!Q26 -> Each | AN28: ='C1- Price List All tenders'!R26 -> 12 | AO28: ='C1- Price List All tenders'!S26 -> R268,000.00 | AP28: ='C1- Price List All tenders'!T26 -> R3,216,000.00 | AQ28: R268,000.00 | AR28: R3,216,000.00 | AS28: 0 | AT28: 0 | AU28: -R215,500.00 | AV28: 410.48% | AW28: -R2,586,000.00 | AX28: 410% | AZ28: ='C1- Price List All tenders'!U26 -> Each | BA28: ='C1- Price List All tenders'!V26 -> 12 | BB28: ='C1- Price List All tenders'!W26 -> R1,300,000.00 | BC28: ='C1- Price List All tenders'!X26 -> R15,600,000.00 | BD28: R1,300,000.00 | BE28: R15,600,000.00 | BF28: 0 | BG28: 0 | BH28: -R1,247,500.00 | BI28: 2376.19% | BJ28: -R14,970,000.00 | BK28: 2376% | BM28: ='C1- Price List All tenders'!Y26 -> Each | BN28: ='C1- Price List All tenders'!Z26 -> 12 | BO28: ='C1- Price List All tenders'!AA26 -> R51,916.00 | BP28: ='C1- Price List All tenders'!AB26 -> R623,718.00 | BQ28: R51,916.00 | BR28: R622,992.00 | BS28: 3.00% | BT28: R604,302.24 | BU28: R18,689.76 | BV28: -R726.00 | BW28: 0 | BX28: R584.00 | BY28: -1.11% | BZ28: R7,008.00 | CA28: -1% | CC28: ='C1- Price List All tenders'!AC26 -> Each | CD28: ='C1- Price List All tenders'!AD26 -> 12 | CE28: ='C1- Price List All tenders'!AE26 -> R36,954.70 | CF28: ='C1- Price List All tenders'!AF26 -> R443,456.40 | CG28: R36,954.70 | CH28: R443,456.40 | CI28: 0 | CJ28: 0 | CK28: R15,545.30 | CL28: -29.61% | CM28: R186,543.60 | CN28: -30%
B29: ='C1- Price List All tenders'!B27 -> 22. | C29: ='C1- Price List All tenders'!C27 -> Weighing balance: Solis Precision Balances by Adam Equipment, SKU SPB 363e, With a high-resolution graphic display and intuitive features, Solis precision balances provide an outstanding solution for labs everywhere. The Solis is ideal for research and quality assurance labs; science education; precision counting; and production and manufacturing applications needing precision results. Users can readily view the comprehensive data on the amply sized graphic display. A multilingual display capability permits use of the balance in various regions, while recognisable icons help the weighing process flow smoothly. Formulation is simplified, as the Solis stores up to 99 ingredients. | D29: ='C1- Price List All tenders'!D27 -> Maintenance Operations Support | E29: ='C1- Price List All tenders'!E27 -> Each | F29: ='C1- Price List All tenders'!F27 -> 13 | G29: ='C1- Price List All tenders'!G27 -> R26,276.25 | H29: ='C1- Price List All tenders'!H27 -> R341,591.25 | I29: R26,276.25 | J29: R341,591.25 | K29: 0 | M29: ='C1- Price List All tenders'!I27 -> Each | N29: ='C1- Price List All tenders'!J27 -> 13 | O29: ='C1- Price List All tenders'!K27 -> R28,000.00 | P29: ='C1- Price List All tenders'!L27 -> R364,000.00 | Q29: R28,000.00 | R29: R364,000.00 | S29: 0 | T29: 0 | U29: -R1,723.75 | V29: 6.56% | W29: -R22,408.75 | X29: 7% | Z29: ='C1- Price List All tenders'!M27 -> Each | AA29: ='C1- Price List All tenders'!N27 -> 13 | AB29: ='C1- Price List All tenders'!O27 -> R18,381.78 | AC29: ='C1- Price List All tenders'!P27 -> R238,963.14 | AD29: R18,381.78 | AE29: R238,963.14 | AF29: 0 | AG29: 0 | AH29: R7,894.47 | AI29: -30.04% | AJ29: R102,628.11 | AK29: -30% | AM29: ='C1- Price List All tenders'!Q27 -> Each | AN29: ='C1- Price List All tenders'!R27 -> 13 | AO29: ='C1- Price List All tenders'!S27 -> R103,000.00 | AP29: ='C1- Price List All tenders'!T27 -> R1,339,000.00 | AQ29: R103,000.00 | AR29: R1,339,000.00 | AS29: 0 | AT29: 0 | AU29: -R76,723.75 | AV29: 291.99% | AW29: -R997,408.75 | AX29: 292% | AZ29: ='C1- Price List All tenders'!U27 -> Each | BA29: ='C1- Price List All tenders'!V27 -> 13 | BB29: ='C1- Price List All tenders'!W27 -> R22,295.00 | BC29: ='C1- Price List All tenders'!X27 -> R289,835.00 | BD29: R22,295.00 | BE29: R289,835.00 | BF29: 0 | BG29: 0 | BH29: R3,981.25 | BI29: -15.15% | BJ29: R51,756.25 | BK29: -15% | BM29: ='C1- Price List All tenders'!Y27 -> Each | BN29: ='C1- Price List All tenders'!Z27 -> 13 | BO29: ='C1- Price List All tenders'!AA27 -> R47,556.00 | BP29: ='C1- Price List All tenders'!AB27 -> R618,228.00 | BQ29: R47,556.00 | BR29: R618,228.00 | BS29: 3.00% | BT29: R599,681.16 | BU29: R18,546.84 | BV29: 0 | BW29: 0 | BX29: -R21,279.75 | BY29: 80.98% | BZ29: -R276,636.75 | CA29: 81% | CC29: ='C1- Price List All tenders'!AC27 -> Each | CD29: ='C1- Price List All tenders'!AD27 -> 13 | CE29: ='C1- Price List All tenders'!AE27 -> R25,106.75 | CF29: ='C1- Price List All tenders'!AF27 -> R326,387.75 | CG29: R25,106.75 | CH29: R326,387.75 | CI29: 0 | CJ29: 0 | CK29: R1,169.50 | CL29: -4.45% | CM29: R15,203.50 | CN29: -4%
B30: ='C1- Price List All tenders'!B28 -> 23. | C30: ='C1- Price List All tenders'!C28 -> Degasser: Vacuum Degassing Machine, Remove the air (oxygen) in the liquid, inhibit the oxidation of Browning, pigments, vitamins, aroma components and other substances, and prevent the quality degradation; Remove suspended particulates gas attached to the feed liquid, inhibit the floating of the particles and maintain a good appearance; To prevent bubbling during canning and high-temperature sterilization; Reduce corrosion on the inner wall of the container | D30: ='C1- Price List All tenders'!D28 -> Maintenance Operations Support | E30: ='C1- Price List All tenders'!E28 -> Each | F30: ='C1- Price List All tenders'!F28 -> 14 | G30: ='C1- Price List All tenders'!G28 -> R93,161.25 | H30: ='C1- Price List All tenders'!H28 -> R1,304,257.50 | I30: R93,161.25 | J30: R1,304,257.50 | K30: 0 | M30: ='C1- Price List All tenders'!I28 -> Each | N30: ='C1- Price List All tenders'!J28 -> 14 | O30: ='C1- Price List All tenders'!K28 -> R9,360.00 | P30: ='C1- Price List All tenders'!L28 -> R131,040.00 | Q30: R9,360.00 | R30: R131,040.00 | S30: 0 | T30: 0 | U30: R83,801.25 | V30: -89.95% | W30: R1,173,217.50 | X30: -90% | Z30: ='C1- Price List All tenders'!M28 -> Each | AA30: ='C1- Price List All tenders'!N28 -> 14 | AB30: ='C1- Price List All tenders'!O28 -> R87,381.72 | AC30: ='C1- Price List All tenders'!P28 -> R1,223,344.08 | AD30: R87,381.72 | AE30: R1,223,344.08 | AF30: 0 | AG30: 0 | AH30: R5,779.53 | AI30: -6.20% | AJ30: R80,913.42 | AK30: -6% | AM30: ='C1- Price List All tenders'!Q28 -> Each | AN30: ='C1- Price List All tenders'!R28 -> 14 | AO30: ='C1- Price List All tenders'!S28 -> R20,350.00 | AP30: ='C1- Price List All tenders'!T28 -> R284,900.00 | AQ30: R20,350.00 | AR30: R284,900.00 | AS30: 0 | AT30: 0 | AU30: R72,811.25 | AV30: -78.16% | AW30: R1,019,357.50 | AX30: -78% | AZ30: ='C1- Price List All tenders'!U28 -> Each | BA30: ='C1- Price List All tenders'!V28 -> 14 | BB30: ='C1- Price List All tenders'!W28 -> R593,097.00 | BC30: ='C1- Price List All tenders'!X28 -> R8,303,358.00 | BD30: R593,097.00 | BE30: R8,303,358.00 | BF30: 0 | BG30: 0 | BH30: -R499,935.75 | BI30: 536.63% | BJ30: -R6,999,100.50 | BK30: 537% | BM30: ='C1- Price List All tenders'!Y28 -> Each | BN30: ='C1- Price List All tenders'!Z28 -> 14 | BO30: ='C1- Price List All tenders'!AA28 -> R55,196.00 | BP30: ='C1- Price List All tenders'!AB28 -> R772,744.00 | BQ30: R55,196.00 | BR30: R772,744.00 | BS30: 3.00% | BT30: R749,561.68 | BU30: R23,182.32 | BV30: 0 | BW30: 0 | BX30: R37,965.25 | BY30: -40.75% | BZ30: R531,513.50 | CA30: -41% | CC30: ='C1- Price List All tenders'!AC28 -> Each | CD30: ='C1- Price List All tenders'!AD28 -> 14 | CE30: ='C1- Price List All tenders'!AE28 -> R11,352.93 | CF30: ='C1- Price List All tenders'!AF28 -> R158,941.02 | CG30: R11,352.93 | CH30: R158,941.02 | CI30: 0 | CJ30: 0 | CK30: R81,808.32 | CL30: -87.81% | CM30: R1,145,316.48 | CN30: -88%
B31: ='C1- Price List All tenders'!B29 -> 24. | C31: ='C1- Price List All tenders'!C29 -> Vacuum pump: CRI I-Prez 07N 0.75kw 220V, I-Prez series pumps are domestic pressure boosting systems with built-in variable speed drive for constant pressure in the pipeline. The pressure transmitter In this system monitors the demand and regulates the pump speed to maintain constant pressure at any time. – It protects the system from a dry run, overloading, unbalanced voltages short circuits, etc. – The system comprises of a horizontal multistage pump, VDF, 5-way connector with NRV, pressure tank. Pressure gauge & pressure transmitter. Made of high quality materials such as stainless steel impellers, SS 304 food grade diffusers, SS-410 shaft, stainless steel rotating parts and aluminum motor body. The pump also comes with a heavy duty motor for durability and reliability. All our pressure booster pumps are thermal overload protected and energy efficient. | D31: ='C1- Price List All tenders'!D29 -> Maintenance Operations Support | E31: ='C1- Price List All tenders'!E29 -> Each | F31: ='C1- Price List All tenders'!F29 -> 9 | G31: ='C1- Price List All tenders'!G29 -> R17,770.94 | H31: ='C1- Price List All tenders'!H29 -> R159,938.42 | I31: R17,770.94 | J31: R159,938.42 | K31: 0 | M31: ='C1- Price List All tenders'!I29 -> Each | N31: ='C1- Price List All tenders'!J29 -> 9 | O31: ='C1- Price List All tenders'!K29 -> R23,220.00 | P31: ='C1- Price List All tenders'!L29 -> R208,980.00 | Q31: R23,220.00 | R31: R208,980.00 | S31: 0 | T31: 0 | U31: -R5,449.07 | V31: 30.66% | W31: -R49,041.59 | X31: 31% | Z31: ='C1- Price List All tenders'!M29 -> Each | AA31: ='C1- Price List All tenders'!N29 -> 9 | AB31: ='C1- Price List All tenders'!O29 -> R127,117.13 | AC31: ='C1- Price List All tenders'!P29 -> R1,144,054.17 | AD31: R127,117.13 | AE31: R1,144,054.17 | AF31: 0 | AG31: 0 | AH31: -R109,346.20 | AI31: 615.31% | AJ31: -R984,115.76 | AK31: 615% | AM31: ='C1- Price List All tenders'!Q29 -> Each | AN31: ='C1- Price List All tenders'!R29 -> 9 | AO31: ='C1- Price List All tenders'!S29 -> R17,158.00 | AP31: ='C1- Price List All tenders'!T29 -> R154,422.00 | AQ31: R17,158.00 | AR31: R154,422.00 | AS31: 0 | AT31: 0 | AU31: R612.94 | AV31: -3.45% | AW31: R5,516.42 | AX31: -3% | AZ31: ='C1- Price List All tenders'!U29 -> Each | BA31: ='C1- Price List All tenders'!V29 -> 9 | BB31: ='C1- Price List All tenders'!W29 -> R18,200.00 | BC31: ='C1- Price List All tenders'!X29 -> R163,800.00 | BD31: R18,200.00 | BE31: R163,800.00 | BF31: 0 | BG31: 0 | BH31: -R429.06 | BI31: 2.41% | BJ31: -R3,861.58 | BK31: 2% | BM31: ='C1- Price List All tenders'!Y29 -> Each | BN31: ='C1- Price List All tenders'!Z29 -> 9 | BO31: ='C1- Price List All tenders'!AA29 -> R29,196.00 | BP31: ='C1- Price List All tenders'!AB29 -> R1,162,764.00 | BQ31: R29,196.00 | BR31: R262,764.00 | BS31: 3.00% | BT31: R254,881.08 | BU31: R7,882.92 | BV31: -R900,000.00 | BW31: 0 | BX31: -R11,425.07 | BY31: 64.29% | BZ31: -R102,825.59 | CA31: 64% | CC31: ='C1- Price List All tenders'!AC29 -> Each | CD31: ='C1- Price List All tenders'!AD29 -> 9 | CE31: ='C1- Price List All tenders'!AE29 -> R17,932.15 | CF31: ='C1- Price List All tenders'!AF29 -> R161,389.35 | CG31: R17,932.15 | CH31: R161,389.35 | CI31: 0 | CJ31: 0 | CK31: -R161.22 | CL31: 0.91% | CM31: -R1,450.94 | CN31: 1%
B32: ='C1- Price List All tenders'!B30 -> 25. | C32: ='C1- Price List All tenders'!C30 -> D-ZS 150 INTERFACE CONVERTER | D32: ='C1- Price List All tenders'!D30 -> Maintenance Operations Support | E32: ='C1- Price List All tenders'!E30 -> Each | F32: ='C1- Price List All tenders'!F30 -> 2 | G32: ='C1- Price List All tenders'!G30 -> R52,500.00 | H32: ='C1- Price List All tenders'!H30 -> R105,000.00 | I32: R52,500.00 | J32: R105,000.00 | K32: 0 | M32: ='C1- Price List All tenders'!I30 -> Each | N32: ='C1- Price List All tenders'!J30 -> 2 | O32: ='C1- Price List All tenders'!K30 -> R28,000.00 | P32: ='C1- Price List All tenders'!L30 -> R56,000.00 | Q32: R28,000.00 | R32: R56,000.00 | S32: 0 | T32: 0 | U32: R24,500.00 | V32: -46.67% | W32: R49,000.00 | X32: -47% | Z32: ='C1- Price List All tenders'!M30 -> Each | AA32: ='C1- Price List All tenders'!N30 -> 2 | AB32: ='C1- Price List All tenders'!O30 -> R3,831.31 | AC32: ='C1- Price List All tenders'!P30 -> R7,662.62 | AD32: R3,831.31 | AE32: R7,662.62 | AF32: 0 | AG32: 0 | AH32: R48,668.69 | AI32: -92.70% | AJ32: R97,337.38 | AK32: -93% | AM32: ='C1- Price List All tenders'!Q30 -> Each | AN32: ='C1- Price List All tenders'!R30 -> 2 | AO32: ='C1- Price List All tenders'!S30 -> R6,500.00 | AP32: ='C1- Price List All tenders'!T30 -> R13,000.00 | AQ32: R6,500.00 | AR32: R13,000.00 | AS32: 0 | AT32: 0 | AU32: R46,000.00 | AV32: -87.62% | AW32: R92,000.00 | AX32: -88% | AZ32: ='C1- Price List All tenders'!U30 -> Each | BA32: ='C1- Price List All tenders'!V30 -> 2 | BB32: ='C1- Price List All tenders'!W30 -> R11,817.00 | BC32: ='C1- Price List All tenders'!X30 -> R23,634.00 | BD32: R11,817.00 | BE32: R23,634.00 | BF32: 0 | BG32: 0 | BH32: R40,683.00 | BI32: -77.49% | BJ32: R81,366.00 | BK32: -77% | BM32: ='C1- Price List All tenders'!Y30 -> Each | BN32: ='C1- Price List All tenders'!Z30 -> 2 | BO32: ='C1- Price List All tenders'!AA30 -> R2,618.00 | BP32: ='C1- Price List All tenders'!AB30 -> R5,236.00 | BQ32: R2,618.00 | BR32: R5,236.00 | BS32: 3.00% | BT32: R5,078.92 | BU32: R157.08 | BV32: 0 | BW32: 0 | BX32: R49,882.00 | BY32: -95.01% | BZ32: R99,764.00 | CA32: -95% | CC32: ='C1- Price List All tenders'!AC30 -> Each | CD32: ='C1- Price List All tenders'!AD30 -> 2 | CE32: ='C1- Price List All tenders'!AE30 -> R5,075.00 | CF32: ='C1- Price List All tenders'!AF30 -> R10,150.00 | CG32: R5,075.00 | CH32: R10,150.00 | CI32: 0 | CJ32: 0 | CK32: R47,425.00 | CL32: -90.33% | CM32: R94,850.00 | CN32: -90%
B33: ='C1- Price List All tenders'!B31 -> 26. | C33: ='C1- Price List All tenders'!C31 -> Wall cabinet 900x250x820mm: KING TONY - WALL CABINET 900 X 250 X 820MM. Wall Mounted Type Tool Cabinet. With 20 PC. Hooks – 5 PC. 87502-050 U shape hook, – 10PC. 87502-051 1″single hook, – 5PC. 87502-061 1″ double hook. Heavy duty design for storage heavy duty tool. Powder coating finishing. Full opened door with 2 aluminum alloy handles 4 holes on the back of cabinet to be fixed on the wall. Double wall door panel design, peg hole at inside wall of door 180° door opening – possible to block the left door shut (leaving 1 door open), Central locking system | D33: ='C1- Price List All tenders'!D31 -> Maintenance Operations Support | E33: ='C1- Price List All tenders'!E31 -> Each | F33: ='C1- Price List All tenders'!F31 -> 3 | G33: ='C1- Price List All tenders'!G31 -> R13,771.94 | H33: ='C1- Price List All tenders'!H31 -> R41,315.81 | I33: R13,771.94 | J33: R41,315.81 | K33: 0 | M33: ='C1- Price List All tenders'!I31 -> Each | N33: ='C1- Price List All tenders'!J31 -> 3 | O33: ='C1- Price List All tenders'!K31 -> R15,000.00 | P33: ='C1- Price List All tenders'!L31 -> R45,000.00 | Q33: R15,000.00 | R33: R45,000.00 | S33: 0 | T33: 0 | U33: -R1,228.06 | V33: 8.92% | W33: -R3,684.19 | X33: 9% | Z33: ='C1- Price List All tenders'!M31 -> Each | AA33: ='C1- Price List All tenders'!N31 -> 3 | AB33: ='C1- Price List All tenders'!O31 -> R9,318.27 | AC33: ='C1- Price List All tenders'!P31 -> R27,954.81 | AD33: R9,318.27 | AE33: R27,954.81 | AF33: 0 | AG33: 0 | AH33: R4,453.67 | AI33: -32.34% | AJ33: R13,361.00 | AK33: -32% | AM33: ='C1- Price List All tenders'!Q31 -> Each | AN33: ='C1- Price List All tenders'!R31 -> 3 | AO33: ='C1- Price List All tenders'!S31 -> R13,000.00 | AP33: ='C1- Price List All tenders'!T31 -> R39,000.00 | AQ33: R13,000.00 | AR33: R39,000.00 | AS33: 0 | AT33: 0 | AU33: R771.94 | AV33: -5.61% | AW33: R2,315.81 | AX33: -6% | AZ33: ='C1- Price List All tenders'!U31 -> Each | BA33: ='C1- Price List All tenders'!V31 -> 3 | BB33: ='C1- Price List All tenders'!W31 -> R12,197.00 | BC33: ='C1- Price List All tenders'!X31 -> R36,591.00 | BD33: R12,197.00 | BE33: R36,591.00 | BF33: 0 | BG33: 0 | BH33: R1,574.94 | BI33: -11.44% | BJ33: R4,724.81 | BK33: -11% | BM33: ='C1- Price List All tenders'!Y31 -> Each | BN33: ='C1- Price List All tenders'!Z31 -> 3 | BO33: ='C1- Price List All tenders'!AA31 -> R49,560.00 | BP33: ='C1- Price List All tenders'!AB31 -> R148,680.00 | BQ33: R49,560.00 | BR33: R148,680.00 | BS33: 3.00% | BT33: R144,219.60 | BU33: R4,460.40 | BV33: 0 | BW33: 0 | BX33: -R35,788.06 | BY33: 259.86% | BZ33: -R107,364.19 | CA33: 260% | CC33: ='C1- Price List All tenders'!AC31 -> Each | CD33: ='C1- Price List All tenders'!AD31 -> 3 | CE33: ='C1- Price List All tenders'!AE31 -> R21,574.55 | CF33: ='C1- Price List All tenders'!AF31 -> R64,723.65 | CG33: R21,574.55 | CH33: R64,723.65 | CI33: 0 | CJ33: 0 | CK33: -R7,802.61 | CL33: 56.66% | CM33: -R23,407.84 | CN33: 57%
B34: ='C1- Price List All tenders'!B32 -> 27. | C34: ='C1- Price List All tenders'!C32 -> Auma actuator Maintenance Kit | D34: ='C1- Price List All tenders'!D32 -> Maintenance Operations Support | E34: ='C1- Price List All tenders'!E32 -> No.of Kits | F34: ='C1- Price List All tenders'!F32 -> 6 | G34: ='C1- Price List All tenders'!G32 -> R26,250.00 | H34: ='C1- Price List All tenders'!H32 -> R157,500.00 | I34: R26,250.00 | J34: R157,500.00 | K34: 0 | M34: ='C1- Price List All tenders'!I32 -> No.of Kits | N34: ='C1- Price List All tenders'!J32 -> 6 | O34: ='C1- Price List All tenders'!K32 -> R28,000.00 | P34: ='C1- Price List All tenders'!L32 -> R168,000.00 | Q34: R28,000.00 | R34: R168,000.00 | S34: 0 | T34: 0 | U34: -R1,750.00 | V34: 6.67% | W34: -R10,500.00 | X34: 7% | Z34: ='C1- Price List All tenders'!M32 -> No.of Kits | AA34: ='C1- Price List All tenders'!N32 -> 6 | AB34: ='C1- Price List All tenders'!O32 -> R93,783.14 | AC34: ='C1- Price List All tenders'!P32 -> R562,698.84 | AD34: R93,783.14 | AE34: R562,698.84 | AF34: 0 | AG34: 0 | AH34: -R67,533.14 | AI34: 257.27% | AJ34: -R405,198.84 | AK34: 257% | AM34: ='C1- Price List All tenders'!Q32 -> No.of Kits | AN34: ='C1- Price List All tenders'!R32 -> 6 | AO34: ='C1- Price List All tenders'!S32 -> R60,000.00 | AP34: ='C1- Price List All tenders'!T32 -> R360,000.00 | AQ34: R60,000.00 | AR34: R360,000.00 | AS34: 0 | AT34: 0 | AU34: -R33,750.00 | AV34: 128.57% | AW34: -R202,500.00 | AX34: 129% | AZ34: ='C1- Price List All tenders'!U32 -> No.of Kits | BA34: ='C1- Price List All tenders'!V32 -> 6 | BB34: ='C1- Price List All tenders'!W32 -> R119,576.00 | BC34: ='C1- Price List All tenders'!X32 -> R717,456.00 | BD34: R119,576.00 | BE34: R717,456.00 | BF34: 0 | BG34: 0 | BH34: -R93,326.00 | BI34: 355.53% | BJ34: -R559,956.00 | BK34: 356% | BM34: ='C1- Price List All tenders'!Y32 -> No.of Kits | BN34: ='C1- Price List All tenders'!Z32 -> 6 | BO34: ='C1- Price List All tenders'!AA32 -> R109,100.00 | BP34: ='C1- Price List All tenders'!AB32 -> R654,600.00 | BQ34: R109,100.00 | BR34: R654,600.00 | BS34: 3.00% | BT34: R634,962.00 | BU34: R19,638.00 | BV34: 0 | BW34: 0 | BX34: -R82,850.00 | BY34: 315.62% | BZ34: -R497,100.00 | CA34: 316% | CC34: ='C1- Price List All tenders'!AC32 -> No.of Kits | CD34: ='C1- Price List All tenders'!AD32 -> 6 | CE34: ='C1- Price List All tenders'!AE32 -> R3,365.64 | CF34: ='C1- Price List All tenders'!AF32 -> R20,193.84 | CG34: R3,365.64 | CH34: R20,193.84 | CI34: 0 | CJ34: 0 | CK34: R22,884.36 | CL34: -87.18% | CM34: R137,306.16 | CN34: -87%
B35: ='C1- Price List All tenders'!B33 -> 28. | C35: ='C1- Price List All tenders'!C33 -> Druck pump PV211 include all accessories: Druck Hand Pressure Pump 40bar Druck, RS stock no.: 529-3544, Mfr. Part No.: PV211-P-4019, Manufacturer: Druck | D35: ='C1- Price List All tenders'!D33 -> Maintenance Operations Support | E35: ='C1- Price List All tenders'!E33 -> Each | F35: ='C1- Price List All tenders'!F33 -> 2 | G35: ='C1- Price List All tenders'!G33 -> R27,241.25 | H35: ='C1- Price List All tenders'!H33 -> R54,482.50 | I35: R27,241.25 | J35: R54,482.50 | K35: 0 | M35: ='C1- Price List All tenders'!I33 -> Each | N35: ='C1- Price List All tenders'!J33 -> 2 | O35: ='C1- Price List All tenders'!K33 -> R36,833.31 | P35: ='C1- Price List All tenders'!L33 -> R73,666.62 | Q35: R36,833.31 | R35: R73,666.62 | S35: 0 | T35: 0 | U35: -R9,592.06 | V35: 35.21% | W35: -R19,184.12 | X35: 35% | Z35: ='C1- Price List All tenders'!M33 -> Each | AA35: ='C1- Price List All tenders'!N33 -> 2 | AB35: ='C1- Price List All tenders'!O33 -> R81,311.31 | AC35: ='C1- Price List All tenders'!P33 -> R162,622.62 | AD35: R81,311.31 | AE35: R162,622.62 | AF35: 0 | AG35: 0 | AH35: -R54,070.06 | AI35: 198.49% | AJ35: -R108,140.12 | AK35: 198% | AM35: ='C1- Price List All tenders'!Q33 -> Each | AN35: ='C1- Price List All tenders'!R33 -> 2 | AO35: ='C1- Price List All tenders'!S33 -> R23,600.00 | AP35: ='C1- Price List All tenders'!T33 -> R47,200.00 | AQ35: R23,600.00 | AR35: R47,200.00 | AS35: 0 | AT35: 0 | AU35: R3,641.25 | AV35: -13.37% | AW35: R7,282.50 | AX35: -13% | AZ35: ='C1- Price List All tenders'!U33 -> Each | BA35: ='C1- Price List All tenders'!V33 -> 2 | BB35: ='C1- Price List All tenders'!W33 -> R26,602.00 | BC35: ='C1- Price List All tenders'!X33 -> R53,204.00 | BD35: R26,602.00 | BE35: R53,204.00 | BF35: 0 | BG35: 0 | BH35: R639.25 | BI35: -2.35% | BJ35: R1,278.50 | BK35: -2% | BM35: ='C1- Price List All tenders'!Y33 -> Each | BN35: ='C1- Price List All tenders'!Z33 -> 2 | BO35: ='C1- Price List All tenders'!AA33 -> R24,160.00 | BP35: ='C1- Price List All tenders'!AB33 -> R48,320.00 | BQ35: R24,160.00 | BR35: R48,320.00 | BS35: 3.00% | BT35: R46,870.40 | BU35: R1,449.60 | BV35: 0 | BW35: 0 | BX35: R3,081.25 | BY35: -11.31% | BZ35: R6,162.50 | CA35: -11% | CC35: ='C1- Price List All tenders'!AC33 -> Each | CD35: ='C1- Price List All tenders'!AD33 -> 2 | CE35: ='C1- Price List All tenders'!AE33 -> R34,121.97 | CF35: ='C1- Price List All tenders'!AF33 -> R68,243.94 | CG35: R34,121.97 | CH35: R68,243.94 | CI35: 0 | CJ35: 0 | CK35: -R6,880.72 | CL35: 25.26% | CM35: -R13,761.44 | CN35: 25%
B36: ='C1- Price List All tenders'!B34 -> 29. | C36: ='C1- Price List All tenders'!C34 -> Druck PV411A include all accessories: GE Druck PV411A 4 in 1 Multi Use Calibration Pump, Key Features: Pressure Range from Vacuum to 10,000 PSIG, Unique Vacuum Priming Removes Trapped Air During Hydraulic Operation, Removable Hydraulic Reservoir can be Disconnect without Draining the Fluid, Reservoir has Built in Safety Relief Valve, Pressure and Vacuum Selection, Fine Volume Adjustment, Built in Stroke Adjustment, Swivel Head Allows View of Pressure Standard, Adjustable Pressure Relief Valve (300 to 10,000 PSI), Ergonomic Lightweight Design,Teflon Anodized Parts Reduces Friction | D36: ='C1- Price List All tenders'!D34 -> Maintenance Operations Support | E36: ='C1- Price List All tenders'!E34 -> Each | F36: ='C1- Price List All tenders'!F34 -> 2 | G36: ='C1- Price List All tenders'!G34 -> R33,794.82 | H36: ='C1- Price List All tenders'!H34 -> R67,589.64 | I36: R33,794.82 | J36: R67,589.64 | K36: 0 | M36: ='C1- Price List All tenders'!I34 -> Each | N36: ='C1- Price List All tenders'!J34 -> 2 | O36: ='C1- Price List All tenders'!K34 -> R95,000.00 | P36: ='C1- Price List All tenders'!L34 -> R190,000.00 | Q36: R95,000.00 | R36: R190,000.00 | S36: 0 | T36: 0 | U36: -R61,205.18 | V36: 181.11% | W36: -R122,410.36 | X36: 181% | Z36: ='C1- Price List All tenders'!M34 -> Each | AA36: ='C1- Price List All tenders'!N34 -> 2 | AB36: ='C1- Price List All tenders'!O34 -> R57,118.95 | AC36: ='C1- Price List All tenders'!P34 -> R114,237.90 | AD36: R57,118.95 | AE36: R114,237.90 | AF36: 0 | AG36: 0 | AH36: -R23,324.13 | AI36: 69.02% | AJ36: -R46,648.26 | AK36: 69% | AM36: ='C1- Price List All tenders'!Q34 -> Each | AN36: ='C1- Price List All tenders'!R34 -> 2 | AO36: ='C1- Price List All tenders'!S34 -> R40,000.00 | AP36: ='C1- Price List All tenders'!T34 -> R80,000.00 | AQ36: R40,000.00 | AR36: R80,000.00 | AS36: 0 | AT36: 0 | AU36: -R6,205.18 | AV36: 18.36% | AW36: -R12,410.36 | AX36: 18% | AZ36: ='C1- Price List All tenders'!U34 -> Each | BA36: ='C1- Price List All tenders'!V34 -> 2 | BB36: ='C1- Price List All tenders'!W34 -> R83,414.00 | BC36: ='C1- Price List All tenders'!X34 -> R166,828.00 | BD36: R83,414.00 | BE36: R166,828.00 | BF36: 0 | BG36: 0 | BH36: -R49,619.18 | BI36: 146.82% | BJ36: -R99,238.36 | BK36: 147% | BM36: ='C1- Price List All tenders'!Y34 -> Each | BN36: ='C1- Price List All tenders'!Z34 -> 2 | BO36: ='C1- Price List All tenders'!AA34 -> R112,200.00 | BP36: ='C1- Price List All tenders'!AB34 -> R224,400.00 | BQ36: R112,200.00 | BR36: R224,400.00 | BS36: 3.00% | BT36: R217,668.00 | BU36: R6,732.00 | BV36: 0 | BW36: 0 | BX36: -R78,405.18 | BY36: 232.00% | BZ36: -R156,810.36 | CA36: 232% | CC36: ='C1- Price List All tenders'!AC34 -> Each | CD36: ='C1- Price List All tenders'!AD34 -> 2 | CE36: ='C1- Price List All tenders'!AE34 -> R49,548.92 | CF36: ='C1- Price List All tenders'!AF34 -> R99,097.84 | CG36: R49,548.92 | CH36: R99,097.84 | CI36: 0 | CJ36: 0 | CK36: -R15,754.10 | CL36: 46.62% | CM36: -R31,508.20 | CN36: 47%
B37: ='C1- Price List All tenders'!B35 -> 30. | C37: ='C1- Price List All tenders'!C35 -> Druck PV212 hydraulic hand pump include all accessories: Druck Hand, Hydraulic Pressure Pump 700bar Druck, RS stock no.: 529-3550, Mfr. Part No.: PV212-HP-700-4018, Manufacturer: Druck | D37: ='C1- Price List All tenders'!D35 -> Maintenance Operations Support | E37: ='C1- Price List All tenders'!E35 -> Each | F37: ='C1- Price List All tenders'!F35 -> 2 | G37: ='C1- Price List All tenders'!G35 -> R51,187.34 | H37: ='C1- Price List All tenders'!H35 -> R102,374.67 | I37: R51,187.34 | J37: R102,374.67 | K37: 0 | M37: ='C1- Price List All tenders'!I35 -> Each | N37: ='C1- Price List All tenders'!J35 -> 2 | O37: ='C1- Price List All tenders'!K35 -> R69,168.33 | P37: ='C1- Price List All tenders'!L35 -> R138,336.66 | Q37: R69,168.33 | R37: R138,336.66 | S37: 0 | T37: 0 | U37: -R17,980.99 | V37: 35.13% | W37: -R35,961.99 | X37: 35% | Z37: ='C1- Price List All tenders'!M35 -> Each | AA37: ='C1- Price List All tenders'!N35 -> 2 | AB37: ='C1- Price List All tenders'!O35 -> R53,182.37 | AC37: ='C1- Price List All tenders'!P35 -> R106,364.74 | AD37: R53,182.37 | AE37: R106,364.74 | AF37: 0 | AG37: 0 | AH37: -R1,995.03 | AI37: 3.90% | AJ37: -R3,990.07 | AK37: 4% | AM37: ='C1- Price List All tenders'!Q35 -> Each | AN37: ='C1- Price List All tenders'!R35 -> 2 | AO37: ='C1- Price List All tenders'!S35 -> R80,100.00 | AP37: ='C1- Price List All tenders'!T35 -> R160,200.00 | AQ37: R80,100.00 | AR37: R160,200.00 | AS37: 0 | AT37: 0 | AU37: -R28,912.66 | AV37: 56.48% | AW37: -R57,825.33 | AX37: 56% | AZ37: ='C1- Price List All tenders'!U35 -> Each | BA37: ='C1- Price List All tenders'!V35 -> 2 | BB37: ='C1- Price List All tenders'!W35 -> R49,955.00 | BC37: ='C1- Price List All tenders'!X35 -> R99,910.00 | BD37: R49,955.00 | BE37: R99,910.00 | BF37: 0 | BG37: 0 | BH37: R1,232.34 | BI37: -2.41% | BJ37: R2,464.67 | BK37: -2% | BM37: ='C1- Price List All tenders'!Y35 -> Each | BN37: ='C1- Price List All tenders'!Z35 -> 2 | BO37: ='C1- Price List All tenders'!AA35 -> R87,992.00 | BP37: ='C1- Price List All tenders'!AB35 -> R175,984.00 | BQ37: R87,992.00 | BR37: R175,984.00 | BS37: 3.00% | BT37: R170,704.48 | BU37: R5,279.52 | BV37: 0 | BW37: 0 | BX37: -R36,804.66 | BY37: 71.90% | BZ37: -R73,609.33 | CA37: 72% | CC37: ='C1- Price List All tenders'!AC35 -> Each | CD37: ='C1- Price List All tenders'!AD35 -> 2 | CE37: ='C1- Price List All tenders'!AE35 -> R64,076.78 | CF37: ='C1- Price List All tenders'!AF35 -> R128,153.56 | CG37: R64,076.78 | CH37: R128,153.56 | CI37: 0 | CJ37: 0 | CK37: -R12,889.44 | CL37: 25.18% | CM37: -R25,778.89 | CN37: 25%
B38: ='C1- Price List All tenders'!B36 -> 31. | C38: ='C1- Price List All tenders'!C36 -> Druck PV210 druck low pressure and vacuum hand pump include all accessories: GE Druck PV210 Low Pressure and Vacuum Hand Pump, Key Features: Dual source of pneumatic pressure and vacuum, Generate vacuum to 90%, Generate pressure to 3000 mbar, Adjustable pressure relief valve for setting maximum output pressure, Integral fine control and pressure release valve, Lightweight, handheld, easy to use | D38: ='C1- Price List All tenders'!D36 -> Maintenance Operations Support | E38: ='C1- Price List All tenders'!E36 -> Each | F38: ='C1- Price List All tenders'!F36 -> 2 | G38: ='C1- Price List All tenders'!G36 -> R22,462.58 | H38: ='C1- Price List All tenders'!H36 -> R44,925.15 | I38: R22,462.58 | J38: R44,925.15 | K38: 0 | M38: ='C1- Price List All tenders'!I36 -> Each | N38: ='C1- Price List All tenders'!J36 -> 2 | O38: ='C1- Price List All tenders'!K36 -> R50,510.61 | P38: ='C1- Price List All tenders'!L36 -> R101,021.22 | Q38: R50,510.61 | R38: R101,021.22 | S38: 0 | T38: 0 | U38: -R28,048.03 | V38: 124.87% | W38: -R56,096.07 | X38: 125% | Z38: ='C1- Price List All tenders'!M36 -> Each | AA38: ='C1- Price List All tenders'!N36 -> 2 | AB38: ='C1- Price List All tenders'!O36 -> R33,711.82 | AC38: ='C1- Price List All tenders'!P36 -> R67,423.64 | AD38: R33,711.82 | AE38: R67,423.64 | AF38: 0 | AG38: 0 | AH38: -R11,249.24 | AI38: 50.08% | AJ38: -R22,498.49 | AK38: 50% | AM38: ='C1- Price List All tenders'!Q36 -> Each | AN38: ='C1- Price List All tenders'!R36 -> 2 | AO38: ='C1- Price List All tenders'!S36 -> R14,100.00 | AP38: ='C1- Price List All tenders'!T36 -> R28,200.00 | AQ38: R14,100.00 | AR38: R28,200.00 | AS38: 0 | AT38: 0 | AU38: R8,362.58 | AV38: -37.23% | AW38: R16,725.15 | AX38: -37% | AZ38: ='C1- Price List All tenders'!U36 -> Each | BA38: ='C1- Price List All tenders'!V36 -> 2 | BB38: ='C1- Price List All tenders'!W36 -> R36,480.00 | BC38: ='C1- Price List All tenders'!X36 -> R72,960.00 | BD38: R36,480.00 | BE38: R72,960.00 | BF38: 0 | BG38: 0 | BH38: -R14,017.42 | BI38: 62.40% | BJ38: -R28,034.85 | BK38: 62% | BM38: ='C1- Price List All tenders'!Y36 -> Each | BN38: ='C1- Price List All tenders'!Z36 -> 2 | BO38: ='C1- Price List All tenders'!AA36 -> R44,440.00 | BP38: ='C1- Price List All tenders'!AB36 -> R88,880.00 | BQ38: R44,440.00 | BR38: R88,880.00 | BS38: 3.00% | BT38: R86,213.60 | BU38: R2,666.40 | BV38: 0 | BW38: 0 | BX38: -R21,977.42 | BY38: 97.84% | BZ38: -R43,954.85 | CA38: 98% | CC38: ='C1- Price List All tenders'!AC36 -> Each | CD38: ='C1- Price List All tenders'!AD36 -> 2 | CE38: ='C1- Price List All tenders'!AE36 -> R23,773.72 | CF38: ='C1- Price List All tenders'!AF36 -> R47,547.44 | CG38: R23,773.72 | CH38: R47,547.44 | CI38: 0 | CJ38: 0 | CK38: -R1,311.14 | CL38: 5.84% | CM38: -R2,622.29 | CN38: 6%
B39: ='C1- Price List All tenders'!B37 -> 32. | C39: ='C1- Price List All tenders'!C37 -> Druck loop calibrator UPS -3: THIS PRODUCT IS DISCONTINUED | D39: ='C1- Price List All tenders'!D37 -> Maintenance Operations Support | E39: ='C1- Price List All tenders'!E37 -> Each | F39: ='C1- Price List All tenders'!F37 -> 0 | G39: ='C1- Price List All tenders'!G37 -> R25,198.87 | H39: ='C1- Price List All tenders'!H37 -> 0 | I39: R25,198.87 | J39: 0 | K39: 0 | M39: ='C1- Price List All tenders'!I37 -> Each | N39: ='C1- Price List All tenders'!J37 -> 0 | O39: ='C1- Price List All tenders'!K37 -> R13,000.00 | P39: ='C1- Price List All tenders'!L37 -> 0 | Q39: R13,000.00 | R39: 0 | S39: 0 | T39: 0 | U39: R12,198.87 | V39: -48.41% | W39: 0 | Z39: ='C1- Price List All tenders'!M37 -> Each | AA39: ='C1- Price List All tenders'!N37 -> 0 | AB39: ='C1- Price List All tenders'!O37 -> R83,812.28 | AC39: ='C1- Price List All tenders'!P37 -> 0 | AD39: R83,812.28 | AE39: 0 | AF39: 0 | AG39: 0 | AH39: -R58,613.41 | AI39: 232.60% | AJ39: 0 | AM39: ='C1- Price List All tenders'!Q37 -> Each | AN39: ='C1- Price List All tenders'!R37 -> 0 | AO39: ='C1- Price List All tenders'!S37 -> R8,400.00 | AP39: ='C1- Price List All tenders'!T37 -> 0 | AQ39: R8,400.00 | AR39: 0 | AS39: 0 | AT39: 0 | AU39: R16,798.87 | AV39: -66.67% | AW39: 0 | AZ39: ='C1- Price List All tenders'!U37 -> Each | BA39: ='C1- Price List All tenders'!V37 -> 0 | BB39: ='C1- Price List All tenders'!W37 -> 0 | BC39: ='C1- Price List All tenders'!X37 -> 0 | BD39: 0 | BE39: 0 | BF39: 0 | BG39: 0 | BH39: R25,198.87 | BI39: -100.00% | BJ39: 0 | BM39: ='C1- Price List All tenders'!Y37 -> Each | BN39: ='C1- Price List All tenders'!Z37 -> 0 | BO39: ='C1- Price List All tenders'!AA37 -> 0 | BP39: ='C1- Price List All tenders'!AB37 -> 0 | BQ39: 0 | BR39: 0 | BS39: 3.00% | BT39: 0 | BU39: 0 | BV39: 0 | BW39: 0 | BX39: R25,198.87 | BY39: -100.00% | BZ39: 0 | CC39: ='C1- Price List All tenders'!AC37 -> Each | CD39: ='C1- Price List All tenders'!AD37 -> 0 | CE39: ='C1- Price List All tenders'!AE37 -> 0 | CF39: ='C1- Price List All tenders'!AF37 -> 0 | CG39: 0 | CH39: 0 | CI39: 0 | CJ39: 0 | CK39: R25,198.87 | CL39: -100.00% | CM39: 0
B40: ='C1- Price List All tenders'!B38 -> 33. | C40: ='C1- Price List All tenders'!C38 -> Procon Acoustic calibrator-used on tube leak detectors | D40: ='C1- Price List All tenders'!D38 -> Maintenance Operations Support | E40: ='C1- Price List All tenders'!E38 -> Each | F40: ='C1- Price List All tenders'!F38 -> 3 | G40: ='C1- Price List All tenders'!G38 -> R5,250.00 | H40: ='C1- Price List All tenders'!H38 -> R15,750.00 | I40: R5,250.00 | J40: R15,750.00 | K40: 0 | M40: ='C1- Price List All tenders'!I38 -> Each | N40: ='C1- Price List All tenders'!J38 -> 3 | O40: ='C1- Price List All tenders'!K38 -> R13,000.00 | P40: ='C1- Price List All tenders'!L38 -> R39,000.00 | Q40: =O40 -> R13,000.00 | R40: R39,000.00 | S40: 0 | T40: 0 | U40: -R7,750.00 | V40: 147.62% | W40: -R23,250.00 | X40: 148% | Z40: ='C1- Price List All tenders'!M38 -> Each | AA40: ='C1- Price List All tenders'!N38 -> 3 | AB40: ='C1- Price List All tenders'!O38 -> R18,317.21 | AC40: ='C1- Price List All tenders'!P38 -> R54,951.63 | AD40: R18,317.21 | AE40: R54,951.63 | AF40: 0 | AG40: 0 | AH40: -R13,067.21 | AI40: 248.90% | AJ40: -R39,201.63 | AK40: 249% | AM40: ='C1- Price List All tenders'!Q38 -> Each | AN40: ='C1- Price List All tenders'!R38 -> 3 | AO40: ='C1- Price List All tenders'!S38 -> R85,000.00 | AP40: ='C1- Price List All tenders'!T38 -> R255,000.00 | AQ40: R85,000.00 | AR40: R255,000.00 | AS40: 0 | AT40: 0 | AU40: -R79,750.00 | AV40: 1519.05% | AW40: -R239,250.00 | AX40: 1519% | AZ40: ='C1- Price List All tenders'!U38 -> Each | BA40: ='C1- Price List All tenders'!V38 -> 3 | BB40: ='C1- Price List All tenders'!W38 -> R55,120.00 | BC40: ='C1- Price List All tenders'!X38 -> R165,360.00 | BD40: R55,120.00 | BE40: R165,360.00 | BF40: 0 | BG40: 0 | BH40: -R49,870.00 | BI40: 949.90% | BJ40: -R149,610.00 | BK40: 950% | BM40: ='C1- Price List All tenders'!Y38 -> Each | BN40: ='C1- Price List All tenders'!Z38 -> 3 | BO40: ='C1- Price List All tenders'!AA38 -> R44,000.00 | BP40: ='C1- Price List All tenders'!AB38 -> R132,000.00 | BQ40: R44,000.00 | BR40: R132,000.00 | BS40: 3.00% | BT40: R128,040.00 | BU40: R3,960.00 | BV40: 0 | BW40: 0 | BX40: -R38,750.00 | BY40: 738.10% | BZ40: -R116,250.00 | CA40: 738% | CC40: ='C1- Price List All tenders'!AC38 -> Each | CD40: ='C1- Price List All tenders'!AD38 -> 3 | CE40: ='C1- Price List All tenders'!AE38 -> R62,799.50 | CF40: ='C1- Price List All tenders'!AF38 -> R188,398.50 | CG40: R62,799.50 | CH40: R188,398.50 | CI40: 0 | CJ40: 0 | CK40: -R57,549.50 | CL40: 1096.18% | CM40: -R172,648.50 | CN40: 1096%
B41: ='C1- Price List All tenders'!B39 -> 34. | C41: ='C1- Price List All tenders'!C39 -> WIKA CPG1500 25 bar | D41: ='C1- Price List All tenders'!D39 -> Maintenance Operations Support | E41: ='C1- Price List All tenders'!E39 -> Each | F41: ='C1- Price List All tenders'!F39 -> 1 | G41: ='C1- Price List All tenders'!G39 -> R30,541.70 | H41: ='C1- Price List All tenders'!H39 -> R30,541.70 | I41: R30,541.70 | J41: R30,541.70 | K41: 0 | M41: ='C1- Price List All tenders'!I39 -> Each | N41: ='C1- Price List All tenders'!J39 -> 1 | O41: ='C1- Price List All tenders'!K39 -> R40,274.77 | P41: ='C1- Price List All tenders'!L39 -> R40,274.77 | Q41: R40,274.77 | R41: R40,274.77 | S41: 0 | T41: 0 | U41: -R9,733.07 | V41: 31.87% | W41: -R9,733.07 | X41: 32% | Z41: ='C1- Price List All tenders'!M39 -> Each | AA41: ='C1- Price List All tenders'!N39 -> 1 | AB41: ='C1- Price List All tenders'!O39 -> R25,228.31 | AC41: ='C1- Price List All tenders'!P39 -> R25,228.31 | AD41: R25,228.31 | AE41: R25,228.31 | AF41: 0 | AG41: 0 | AH41: R5,313.39 | AI41: -17.40% | AJ41: R5,313.39 | AK41: -17% | AM41: ='C1- Price List All tenders'!Q39 -> Each | AN41: ='C1- Price List All tenders'!R39 -> 1 | AO41: ='C1- Price List All tenders'!S39 -> R15,000.00 | AP41: ='C1- Price List All tenders'!T39 -> R15,000.00 | AQ41: R15,000.00 | AR41: R15,000.00 | AS41: 0 | AT41: 0 | AU41: R15,541.70 | AV41: -50.89% | AW41: R15,541.70 | AX41: -51% | AZ41: ='C1- Price List All tenders'!U39 -> Each | BA41: ='C1- Price List All tenders'!V39 -> 1 | BB41: ='C1- Price List All tenders'!W39 -> R75,493.00 | BC41: ='C1- Price List All tenders'!X39 -> R75,493.00 | BD41: R75,493.00 | BE41: R75,493.00 | BF41: 0 | BG41: 0 | BH41: -R44,951.30 | BI41: 147.18% | BJ41: -R44,951.30 | BK41: 147% | BM41: ='C1- Price List All tenders'!Y39 -> Each | BN41: ='C1- Price List All tenders'!Z39 -> 1 | BO41: ='C1- Price List All tenders'!AA39 -> R22,844.00 | BP41: ='C1- Price List All tenders'!AB39 -> R22,844.00 | BQ41: R22,844.00 | BR41: R22,844.00 | BS41: 3.00% | BT41: R22,158.68 | BU41: R685.32 | BV41: 0 | BW41: 0 | BX41: R7,697.70 | BY41: -25.20% | BZ41: R7,697.70 | CA41: -25% | CC41: ='C1- Price List All tenders'!AC39 -> Each | CD41: ='C1- Price List All tenders'!AD39 -> 1 | CE41: ='C1- Price List All tenders'!AE39 -> R37,310.10 | CF41: ='C1- Price List All tenders'!AF39 -> R37,310.10 | CG41: R37,310.10 | CH41: R37,310.10 | CI41: 0 | CJ41: 0 | CK41: -R6,768.40 | CL41: 22.16% | CM41: -R6,768.40 | CN41: 22%
B42: ='C1- Price List All tenders'!B40 -> 35. | C42: ='C1- Price List All tenders'!C40 -> WIKA CPG1500 700 bar | D42: ='C1- Price List All tenders'!D40 -> Maintenance Operations Support | E42: ='C1- Price List All tenders'!E40 -> Each | F42: ='C1- Price List All tenders'!F40 -> 1 | G42: ='C1- Price List All tenders'!G40 -> R30,541.70 | H42: ='C1- Price List All tenders'!H40 -> R30,541.70 | I42: R30,541.70 | J42: R30,541.70 | K42: 0 | M42: ='C1- Price List All tenders'!I40 -> Each | N42: ='C1- Price List All tenders'!J40 -> 1 | O42: ='C1- Price List All tenders'!K40 -> R30,550.00 | P42: ='C1- Price List All tenders'!L40 -> R30,550.00 | Q42: R30,550.00 | R42: R30,550.00 | S42: 0 | T42: 0 | U42: -R8.30 | V42: 0.03% | W42: -R8.30 | X42: 0% | Z42: ='C1- Price List All tenders'!M40 -> Each | AA42: ='C1- Price List All tenders'!N40 -> 1 | AB42: ='C1- Price List All tenders'!O40 -> R32,831.07 | AC42: ='C1- Price List All tenders'!P40 -> R32,831.07 | AD42: R32,831.07 | AE42: R32,831.07 | AF42: 0 | AG42: 0 | AH42: -R2,289.37 | AI42: 7.50% | AJ42: -R2,289.37 | AK42: 7% | AM42: ='C1- Price List All tenders'!Q40 -> Each | AN42: ='C1- Price List All tenders'!R40 -> 1 | AO42: ='C1- Price List All tenders'!S40 -> R65,000.00 | AP42: ='C1- Price List All tenders'!T40 -> R65,000.00 | AQ42: R65,000.00 | AR42: R65,000.00 | AS42: 0 | AT42: 0 | AU42: -R34,458.30 | AV42: 112.82% | AW42: -R34,458.30 | AX42: 113% | AZ42: ='C1- Price List All tenders'!U40 -> Each | BA42: ='C1- Price List All tenders'!V40 -> 1 | BB42: ='C1- Price List All tenders'!W40 -> R75,493.00 | BC42: ='C1- Price List All tenders'!X40 -> R75,493.00 | BD42: R75,493.00 | BE42: R75,493.00 | BF42: 0 | BG42: 0 | BH42: -R44,951.30 | BI42: 147.18% | BJ42: -R44,951.30 | BK42: 147% | BM42: ='C1- Price List All tenders'!Y40 -> Each | BN42: ='C1- Price List All tenders'!Z40 -> 1 | BO42: ='C1- Price List All tenders'!AA40 -> R33,454.00 | BP42: ='C1- Price List All tenders'!AB40 -> R33,454.00 | BQ42: R33,454.00 | BR42: R33,454.00 | BS42: 3.00% | BT42: R32,450.38 | BU42: R1,003.62 | BV42: 0 | BW42: 0 | BX42: -R2,912.30 | BY42: 9.54% | BZ42: -R2,912.30 | CA42: 10% | CC42: ='C1- Price List All tenders'!AC40 -> Each | CD42: ='C1- Price List All tenders'!AD40 -> 1 | CE42: ='C1- Price List All tenders'!AE40 -> R54,875.25 | CF42: ='C1- Price List All tenders'!AF40 -> R54,875.25 | CG42: R54,875.25 | CH42: R54,875.25 | CI42: 0 | CJ42: 0 | CK42: -R24,333.55 | CL42: 79.67% | CM42: -R24,333.55 | CN42: 80%
B43: ='C1- Price List All tenders'!B41 -> 36. | C43: ='C1- Price List All tenders'!C41 -> WIKA CPG1500 150 bar | D43: ='C1- Price List All tenders'!D41 -> Maintenance Operations Support | E43: ='C1- Price List All tenders'!E41 -> Each | F43: ='C1- Price List All tenders'!F41 -> 1 | G43: ='C1- Price List All tenders'!G41 -> R30,541.70 | H43: ='C1- Price List All tenders'!H41 -> R30,541.70 | I43: R30,541.70 | J43: R30,541.70 | K43: 0 | M43: ='C1- Price List All tenders'!I41 -> Each | N43: ='C1- Price List All tenders'!J41 -> 1 | O43: ='C1- Price List All tenders'!K41 -> R28,900.00 | P43: ='C1- Price List All tenders'!L41 -> R28,900.00 | Q43: R28,900.00 | R43: R28,900.00 | S43: 0 | T43: 0 | U43: R1,641.70 | V43: -5.38% | W43: R1,641.70 | X43: -5% | Z43: ='C1- Price List All tenders'!M41 -> Each | AA43: ='C1- Price List All tenders'!N41 -> 1 | AB43: ='C1- Price List All tenders'!O41 -> R28,782.11 | AC43: ='C1- Price List All tenders'!P41 -> R28,782.11 | AD43: R28,782.11 | AE43: R28,782.11 | AF43: 0 | AG43: 0 | AH43: R1,759.59 | AI43: -5.76% | AJ43: R1,759.59 | AK43: -6% | AM43: ='C1- Price List All tenders'!Q41 -> Each | AN43: ='C1- Price List All tenders'!R41 -> 1 | AO43: ='C1- Price List All tenders'!S41 -> R28,000.00 | AP43: ='C1- Price List All tenders'!T41 -> R28,000.00 | AQ43: R28,000.00 | AR43: R28,000.00 | AS43: 0 | AT43: 0 | AU43: R2,541.70 | AV43: -8.32% | AW43: R2,541.70 | AX43: -8% | AZ43: ='C1- Price List All tenders'!U41 -> Each | BA43: ='C1- Price List All tenders'!V41 -> 1 | BB43: ='C1- Price List All tenders'!W41 -> R75,493.00 | BC43: ='C1- Price List All tenders'!X41 -> R75,493.00 | BD43: R75,493.00 | BE43: R75,493.00 | BF43: 0 | BG43: 0 | BH43: -R44,951.30 | BI43: 147.18% | BJ43: -R44,951.30 | BK43: 147% | BM43: ='C1- Price List All tenders'!Y41 -> Each | BN43: ='C1- Price List All tenders'!Z41 -> 1 | BO43: ='C1- Price List All tenders'!AA41 -> R22,252.00 | BP43: ='C1- Price List All tenders'!AB41 -> R22,252.00 | BQ43: R22,252.00 | BR43: R22,252.00 | BS43: 3.00% | BT43: R21,584.44 | BU43: R667.56 | BV43: 0 | BW43: 0 | BX43: R8,289.70 | BY43: -27.14% | BZ43: R8,289.70 | CA43: -27% | CC43: ='C1- Price List All tenders'!AC41 -> Each | CD43: ='C1- Price List All tenders'!AD41 -> 1 | CE43: ='C1- Price List All tenders'!AE41 -> R51,359.33 | CF43: ='C1- Price List All tenders'!AF41 -> R51,359.33 | CG43: R51,359.33 | CH43: R51,359.33 | CI43: 0 | CJ43: 0 | CK43: -R20,817.63 | CL43: 68.16% | CM43: -R20,817.63 | CN43: 68%
B44: ='C1- Price List All tenders'!B42 -> 37. | C44: ='C1- Price List All tenders'!C42 -> WIKA CPG1500 10 bar | D44: ='C1- Price List All tenders'!D42 -> Maintenance Operations Support | E44: ='C1- Price List All tenders'!E42 -> Each | F44: ='C1- Price List All tenders'!F42 -> 1 | G44: ='C1- Price List All tenders'!G42 -> R30,541.70 | H44: ='C1- Price List All tenders'!H42 -> R30,541.70 | I44: R30,541.70 | J44: R30,541.70 | K44: 0 | M44: ='C1- Price List All tenders'!I42 -> Each | N44: ='C1- Price List All tenders'!J42 -> 1 | O44: ='C1- Price List All tenders'!K42 -> R28,900.00 | P44: ='C1- Price List All tenders'!L42 -> R28,900.00 | Q44: R28,900.00 | R44: R28,900.00 | S44: 0 | T44: 0 | U44: R1,641.70 | V44: -5.38% | W44: R1,641.70 | X44: -5% | Z44: ='C1- Price List All tenders'!M42 -> Each | AA44: ='C1- Price List All tenders'!N42 -> 1 | AB44: ='C1- Price List All tenders'!O42 -> R24,989.33 | AC44: ='C1- Price List All tenders'!P42 -> R24,989.33 | AD44: R24,989.33 | AE44: R24,989.33 | AF44: 0 | AG44: 0 | AH44: R5,552.37 | AI44: -18.18% | AJ44: R5,552.37 | AK44: -18% | AM44: ='C1- Price List All tenders'!Q42 -> Each | AN44: ='C1- Price List All tenders'!R42 -> 1 | AO44: ='C1- Price List All tenders'!S42 -> R19,000.00 | AP44: ='C1- Price List All tenders'!T42 -> R19,000.00 | AQ44: R19,000.00 | AR44: R19,000.00 | AS44: 0 | AT44: 0 | AU44: R11,541.70 | AV44: -37.79% | AW44: R11,541.70 | AX44: -38% | AZ44: ='C1- Price List All tenders'!U42 -> Each | BA44: ='C1- Price List All tenders'!V42 -> 1 | BB44: ='C1- Price List All tenders'!W42 -> R75,493.00 | BC44: ='C1- Price List All tenders'!X42 -> R75,493.00 | BD44: R75,493.00 | BE44: R75,493.00 | BF44: 0 | BG44: 0 | BH44: -R44,951.30 | BI44: 147.18% | BJ44: -R44,951.30 | BK44: 147% | BM44: ='C1- Price List All tenders'!Y42 -> Each | BN44: ='C1- Price List All tenders'!Z42 -> 1 | BO44: ='C1- Price List All tenders'!AA42 -> R18,121.00 | BP44: ='C1- Price List All tenders'!AB42 -> R18,121.00 | BQ44: R18,121.00 | BR44: R18,121.00 | BS44: 3.00% | BT44: R17,577.37 | BU44: R543.63 | BV44: 0 | BW44: 0 | BX44: R12,420.70 | BY44: -40.67% | BZ44: R12,420.70 | CA44: -41% | CC44: ='C1- Price List All tenders'!AC42 -> Each | CD44: ='C1- Price List All tenders'!AD42 -> 1 | CE44: ='C1- Price List All tenders'!AE42 -> R31,330.16 | CF44: ='C1- Price List All tenders'!AF42 -> R31,330.16 | CG44: R31,330.16 | CH44: R31,330.16 | CI44: 0 | CJ44: 0 | CK44: -R788.46 | CL44: 2.58% | CM44: -R788.46 | CN44: 3%
B45: ='C1- Price List All tenders'!B43 -> 38. | C45: ='C1- Price List All tenders'!C43 -> WIKA CPG1500 160 bar | D45: ='C1- Price List All tenders'!D43 -> Maintenance Operations Support | E45: ='C1- Price List All tenders'!E43 -> Each | F45: ='C1- Price List All tenders'!F43 -> 1 | G45: ='C1- Price List All tenders'!G43 -> R30,541.70 | H45: ='C1- Price List All tenders'!H43 -> R30,541.70 | I45: R30,541.70 | J45: R30,541.70 | K45: 0 | M45: ='C1- Price List All tenders'!I43 -> Each | N45: ='C1- Price List All tenders'!J43 -> 1 | O45: ='C1- Price List All tenders'!K43 -> R30,500.00 | P45: ='C1- Price List All tenders'!L43 -> R30,500.00 | Q45: R30,500.00 | R45: R30,500.00 | S45: 0 | T45: 0 | U45: R41.70 | V45: -0.14% | W45: R41.70 | X45: -0% | Z45: ='C1- Price List All tenders'!M43 -> Each | AA45: ='C1- Price List All tenders'!N43 -> 1 | AB45: ='C1- Price List All tenders'!O43 -> R29,572.31 | AC45: ='C1- Price List All tenders'!P43 -> R29,572.31 | AD45: R29,572.31 | AE45: R29,572.31 | AF45: 0 | AG45: 0 | AH45: R969.39 | AI45: -3.17% | AJ45: R969.39 | AK45: -3% | AM45: ='C1- Price List All tenders'!Q43 -> Each | AN45: ='C1- Price List All tenders'!R43 -> 1 | AO45: ='C1- Price List All tenders'!S43 -> R25,000.00 | AP45: ='C1- Price List All tenders'!T43 -> R25,000.00 | AQ45: R25,000.00 | AR45: R25,000.00 | AS45: 0 | AT45: 0 | AU45: R5,541.70 | AV45: -18.14% | AW45: R5,541.70 | AX45: -18% | AZ45: ='C1- Price List All tenders'!U43 -> Each | BA45: ='C1- Price List All tenders'!V43 -> 1 | BB45: ='C1- Price List All tenders'!W43 -> R75,493.00 | BC45: ='C1- Price List All tenders'!X43 -> R75,493.00 | BD45: R75,493.00 | BE45: R75,493.00 | BF45: 0 | BG45: 0 | BH45: -R44,951.30 | BI45: 147.18% | BJ45: -R44,951.30 | BK45: 147% | BM45: ='C1- Price List All tenders'!Y43 -> Each | BN45: ='C1- Price List All tenders'!Z43 -> 1 | BO45: ='C1- Price List All tenders'!AA43 -> R26,200.00 | BP45: ='C1- Price List All tenders'!AB43 -> R26,200.00 | BQ45: R26,200.00 | BR45: R26,200.00 | BS45: 3.00% | BT45: R25,414.00 | BU45: R786.00 | BV45: 0 | BW45: 0 | BX45: R4,341.70 | BY45: -14.22% | BZ45: R4,341.70 | CA45: -14% | CC45: ='C1- Price List All tenders'!AC43 -> Each | CD45: ='C1- Price List All tenders'!AD43 -> 1 | CE45: ='C1- Price List All tenders'!AE43 -> R51,359.38 | CF45: ='C1- Price List All tenders'!AF43 -> R51,359.38 | CG45: R51,359.38 | CH45: R51,359.38 | CI45: 0 | CJ45: 0 | CK45: -R20,817.68 | CL45: 68.16% | CM45: -R20,817.68 | CN45: 68%
B46: ='C1- Price List All tenders'!B44 -> 39. | C46: ='C1- Price List All tenders'!C44 -> WIKA CPG1500 250 bar | D46: ='C1- Price List All tenders'!D44 -> Maintenance Operations Support | E46: ='C1- Price List All tenders'!E44 -> Each | F46: ='C1- Price List All tenders'!F44 -> 1 | G46: ='C1- Price List All tenders'!G44 -> R30,541.70 | H46: ='C1- Price List All tenders'!H44 -> R30,541.70 | I46: R30,541.70 | J46: R30,541.70 | K46: 0 | M46: ='C1- Price List All tenders'!I44 -> Each | N46: ='C1- Price List All tenders'!J44 -> 1 | O46: ='C1- Price List All tenders'!K44 -> R32,300.00 | P46: ='C1- Price List All tenders'!L44 -> R32,300.00 | Q46: R32,300.00 | R46: R32,300.00 | S46: 0 | T46: 0 | U46: -R1,758.30 | V46: 5.76% | W46: -R1,758.30 | X46: 6% | Z46: ='C1- Price List All tenders'!M44 -> Each | AA46: ='C1- Price List All tenders'!N44 -> 1 | AB46: ='C1- Price List All tenders'!O44 -> R30,199.92 | AC46: ='C1- Price List All tenders'!P44 -> R30,199.92 | AD46: R30,199.92 | AE46: R30,199.92 | AF46: 0 | AG46: 0 | AH46: R341.78 | AI46: -1.12% | AJ46: R341.78 | AK46: -1% | AM46: ='C1- Price List All tenders'!Q44 -> Each | AN46: ='C1- Price List All tenders'!R44 -> 1 | AO46: ='C1- Price List All tenders'!S44 -> R34,850.00 | AP46: ='C1- Price List All tenders'!T44 -> R34,850.00 | AQ46: R34,850.00 | AR46: R34,850.00 | AS46: 0 | AT46: 0 | AU46: -R4,308.30 | AV46: 14.11% | AW46: -R4,308.30 | AX46: 14% | AZ46: ='C1- Price List All tenders'!U44 -> Each | BA46: ='C1- Price List All tenders'!V44 -> 1 | BB46: ='C1- Price List All tenders'!W44 -> R75,493.00 | BC46: ='C1- Price List All tenders'!X44 -> R75,493.00 | BD46: R75,493.00 | BE46: R75,493.00 | BF46: 0 | BG46: 0 | BH46: -R44,951.30 | BI46: 147.18% | BJ46: -R44,951.30 | BK46: 147% | BM46: ='C1- Price List All tenders'!Y44 -> Each | BN46: ='C1- Price List All tenders'!Z44 -> 1 | BO46: ='C1- Price List All tenders'!AA44 -> R24,211.00 | BP46: ='C1- Price List All tenders'!AB44 -> R24,211.00 | BQ46: R24,211.00 | BR46: R24,211.00 | BS46: 3.00% | BT46: R23,484.67 | BU46: R726.33 | BV46: 0 | BW46: 0 | BX46: R6,330.70 | BY46: -20.73% | BZ46: R6,330.70 | CA46: -21% | CC46: ='C1- Price List All tenders'!AC44 -> Each | CD46: ='C1- Price List All tenders'!AD44 -> 1 | CE46: ='C1- Price List All tenders'!AE44 -> R36,271.75 | CF46: ='C1- Price List All tenders'!AF44 -> R36,271.75 | CG46: R36,271.75 | CH46: R36,271.75 | CI46: 0 | CJ46: 0 | CK46: -R5,730.05 | CL46: 18.76% | CM46: -R5,730.05 | CN46: 19%
B47: ='C1- Price List All tenders'!B45 -> 40. | C47: ='C1- Price List All tenders'!C45 -> Digitron 2020P: Digitron 2000P Differential Digital Pressure Meter With 2 Pressure Port/s, Max Pressure Measurement 25mbar | D47: ='C1- Price List All tenders'!D45 -> Maintenance Operations Support | E47: ='C1- Price List All tenders'!E45 -> Each | F47: ='C1- Price List All tenders'!F45 -> 2 | G47: ='C1- Price List All tenders'!G45 -> R9,415.35 | H47: ='C1- Price List All tenders'!H45 -> R18,830.71 | I47: R9,415.35 | J47: R18,830.71 | K47: 0 | M47: ='C1- Price List All tenders'!I45 -> Each | N47: ='C1- Price List All tenders'!J45 -> 2 | O47: ='C1- Price List All tenders'!K45 -> R13,000.00 | P47: ='C1- Price List All tenders'!L45 -> R26,000.00 | Q47: R13,000.00 | R47: R26,000.00 | S47: 0 | T47: 0 | U47: -R3,584.65 | V47: 38.07% | W47: -R7,169.29 | X47: 38% | Z47: ='C1- Price List All tenders'!M45 -> Each | AA47: ='C1- Price List All tenders'!N45 -> 2 | AB47: ='C1- Price List All tenders'!O45 -> R14,827.13 | AC47: ='C1- Price List All tenders'!P45 -> R29,654.26 | AD47: R14,827.13 | AE47: R29,654.26 | AF47: 0 | AG47: 0 | AH47: -R5,411.78 | AI47: 57.48% | AJ47: -R10,823.55 | AK47: 57% | AM47: ='C1- Price List All tenders'!Q45 -> Each | AN47: ='C1- Price List All tenders'!R45 -> 2 | AO47: ='C1- Price List All tenders'!S45 -> R100,000.00 | AP47: ='C1- Price List All tenders'!T45 -> R200,000.00 | AQ47: R100,000.00 | AR47: R200,000.00 | AS47: 0 | AT47: 0 | AU47: -R90,584.65 | AV47: 962.10% | AW47: -R181,169.29 | AX47: 962% | AZ47: ='C1- Price List All tenders'!U45 -> Each | BA47: ='C1- Price List All tenders'!V45 -> 2 | BB47: ='C1- Price List All tenders'!W45 -> R9,490.00 | BC47: ='C1- Price List All tenders'!X45 -> R18,980.00 | BD47: R9,490.00 | BE47: R18,980.00 | BF47: 0 | BG47: 0 | BH47: -R74.65 | BI47: 0.79% | BJ47: -R149.29 | BK47: 1% | BM47: ='C1- Price List All tenders'!Y45 -> Each | BN47: ='C1- Price List All tenders'!Z45 -> 2 | BO47: ='C1- Price List All tenders'!AA45 -> R48,000.00 | BP47: ='C1- Price List All tenders'!AB45 -> R96,000.00 | BQ47: R48,000.00 | BR47: R96,000.00 | BS47: 3.00% | BT47: R93,120.00 | BU47: R2,880.00 | BV47: 0 | BW47: 0 | BX47: -R38,584.65 | BY47: 409.81% | BZ47: -R77,169.29 | CA47: 410% | CC47: ='C1- Price List All tenders'!AC45 -> Each | CD47: ='C1- Price List All tenders'!AD45 -> 2 | CE47: ='C1- Price List All tenders'!AE45 -> R12,171.65 | CF47: ='C1- Price List All tenders'!AF45 -> R24,343.30 | CG47: R12,171.65 | CH47: R24,343.30 | CI47: 0 | CJ47: 0 | CK47: -R2,756.30 | CL47: 29.27% | CM47: -R5,512.59 | CN47: 29%
B48: ='C1- Price List All tenders'!B46 -> 41. | C48: ='C1- Price List All tenders'!C46 -> Emerson 475 FIELD COMMUNICATOR: HART 475 Field Communicator Emerson 475 Rosemount w/ opt: 475HP1EKLGM with and include all accessories | D48: ='C1- Price List All tenders'!D46 -> Maintenance Operations Support | E48: ='C1- Price List All tenders'!E46 -> Each | F48: ='C1- Price List All tenders'!F46 -> 4 | G48: ='C1- Price List All tenders'!G46 -> R113,549.59 | H48: ='C1- Price List All tenders'!H46 -> R454,198.34 | I48: R113,549.59 | J48: R454,198.34 | K48: 0 | M48: ='C1- Price List All tenders'!I46 -> Each | N48: ='C1- Price List All tenders'!J46 -> 4 | O48: ='C1- Price List All tenders'!K46 -> R13,000.00 | P48: ='C1- Price List All tenders'!L46 -> R52,000.00 | Q48: R13,000.00 | R48: R52,000.00 | S48: 0 | T48: 0 | U48: R100,549.59 | V48: -88.55% | W48: R402,198.34 | X48: -89% | Z48: ='C1- Price List All tenders'!M46 -> Each | AA48: ='C1- Price List All tenders'!N46 -> 4 | AB48: ='C1- Price List All tenders'!O46 -> R128,738.31 | AC48: ='C1- Price List All tenders'!P46 -> R514,953.24 | AD48: R128,738.31 | AE48: R514,953.24 | AF48: 0 | AG48: 0 | AH48: -R15,188.72 | AI48: 13.38% | AJ48: -R60,754.90 | AK48: 13% | AM48: ='C1- Price List All tenders'!Q46 -> Each | AN48: ='C1- Price List All tenders'!R46 -> 4 | AO48: ='C1- Price List All tenders'!S46 -> R113,553.00 | AP48: ='C1- Price List All tenders'!T46 -> R454,212.00 | AQ48: R113,553.00 | AR48: R454,212.00 | AS48: 0 | AT48: 0 | AU48: -R3.41 | AV48: 0.00% | AW48: -R13.66 | AX48: 0% | AZ48: ='C1- Price List All tenders'!U46 -> Each | BA48: ='C1- Price List All tenders'!V46 -> 4 | BB48: ='C1- Price List All tenders'!W46 -> R361,341.00 | BC48: ='C1- Price List All tenders'!X46 -> R1,445,364.00 | BD48: R361,341.00 | BE48: R1,445,364.00 | BF48: 0 | BG48: 0 | BH48: -R247,791.41 | BI48: 218.22% | BJ48: -R991,165.66 | BK48: 218% | BM48: ='C1- Price List All tenders'!Y46 -> Each | BN48: ='C1- Price List All tenders'!Z46 -> 4 | BO48: ='C1- Price List All tenders'!AA46 -> R28,200.00 | BP48: ='C1- Price List All tenders'!AB46 -> R112,800.00 | BQ48: R28,200.00 | BR48: R112,800.00 | BS48: 3.00% | BT48: R109,416.00 | BU48: R3,384.00 | BV48: 0 | BW48: 0 | BX48: R85,349.59 | BY48: -75.17% | BZ48: R341,398.34 | CA48: -75% | CC48: ='C1- Price List All tenders'!AC46 -> Each | CD48: ='C1- Price List All tenders'!AD46 -> 4 | CE48: ='C1- Price List All tenders'!AE46 -> R314.14 | CF48: ='C1- Price List All tenders'!AF46 -> R1,256.56 | CG48: R314.14 | CH48: R1,256.56 | CI48: 0 | CJ48: 0 | CK48: R113,235.45 | CL48: -99.72% | CM48: R452,941.78 | CN48: -100%
B49: ='C1- Price List All tenders'!B47 -> 42. | C49: ='C1- Price List All tenders'!C47 -> Portable data recorder model HMG 4000 with accessories: HYDAC HMG 4000 and Accessories | D49: ='C1- Price List All tenders'!D47 -> Maintenance Operations Support | E49: ='C1- Price List All tenders'!E47 -> Each | F49: ='C1- Price List All tenders'!F47 -> 2 | G49: ='C1- Price List All tenders'!G47 -> R4,207.32 | H49: ='C1- Price List All tenders'!H47 -> R8,414.63 | I49: R4,207.32 | J49: R8,414.63 | K49: 0 | M49: ='C1- Price List All tenders'!I47 -> Each | N49: ='C1- Price List All tenders'!J47 -> 2 | O49: ='C1- Price List All tenders'!K47 -> R45,000.00 | P49: ='C1- Price List All tenders'!L47 -> R90,000.00 | Q49: R45,000.00 | R49: R90,000.00 | S49: 0 | T49: 0 | U49: -R40,792.68 | V49: 969.57% | W49: -R81,585.37 | X49: 970% | Z49: ='C1- Price List All tenders'!M47 -> Each | AA49: ='C1- Price List All tenders'!N47 -> 2 | AB49: ='C1- Price List All tenders'!O47 -> R48,932.93 | AC49: ='C1- Price List All tenders'!P47 -> R97,865.86 | AD49: R48,932.93 | AE49: R97,865.86 | AF49: 0 | AG49: 0 | AH49: -R44,725.61 | AI49: 1063.04% | AJ49: -R89,451.23 | AK49: 1063% | AM49: ='C1- Price List All tenders'!Q47 -> Each | AN49: ='C1- Price List All tenders'!R47 -> 2 | AO49: ='C1- Price List All tenders'!S47 -> R56,100.00 | AP49: ='C1- Price List All tenders'!T47 -> R112,200.00 | AQ49: R56,100.00 | AR49: R112,200.00 | AS49: 0 | AT49: 0 | AU49: -R51,892.68 | AV49: 1233.39% | AW49: -R103,785.37 | AX49: 1233% | AZ49: ='C1- Price List All tenders'!U47 -> Each | BA49: ='C1- Price List All tenders'!V47 -> 2 | BB49: ='C1- Price List All tenders'!W47 -> R260,000.00 | BC49: ='C1- Price List All tenders'!X47 -> R520,000.00 | BD49: R260,000.00 | BE49: R520,000.00 | BF49: 0 | BG49: 0 | BH49: -R255,792.68 | BI49: 6079.71% | BJ49: -R511,585.37 | BK49: 6080% | BM49: ='C1- Price List All tenders'!Y47 -> Each | BN49: ='C1- Price List All tenders'!Z47 -> 2 | BO49: ='C1- Price List All tenders'!AA47 -> R3,800.00 | BP49: ='C1- Price List All tenders'!AB47 -> R7,600.00 | BQ49: R3,800.00 | BR49: R7,600.00 | BS49: 3.00% | BT49: R7,372.00 | BU49: R228.00 | BV49: 0 | BW49: 0 | BX49: R407.32 | BY49: -9.68% | BZ49: R814.63 | CA49: -10% | CC49: ='C1- Price List All tenders'!AC47 -> Each | CD49: ='C1- Price List All tenders'!AD47 -> 2 | CE49: ='C1- Price List All tenders'!AE47 -> R152,203.88 | CF49: ='C1- Price List All tenders'!AF47 -> R304,407.76 | CG49: R152,203.88 | CH49: R304,407.76 | CI49: 0 | CJ49: 0 | CK49: -R147,996.56 | CL49: 3517.60% | CM49: -R295,993.13 | CN49: 3518%
B50: ='C1- Price List All tenders'!B48 -> 43. | C50: ='C1- Price List All tenders'!C48 -> PRESYS Dry Block Calibrator Model TE-650P-2-IN1P | D50: ='C1- Price List All tenders'!D48 -> Maintenance Operations Support | E50: ='C1- Price List All tenders'!E48 -> Each | F50: ='C1- Price List All tenders'!F48 -> 1 | G50: ='C1- Price List All tenders'!G48 -> R75,716.55 | H50: ='C1- Price List All tenders'!H48 -> R75,716.55 | I50: R75,716.55 | J50: R75,716.55 | K50: 0 | M50: ='C1- Price List All tenders'!I48 -> Each | N50: ='C1- Price List All tenders'!J48 -> 1 | O50: ='C1- Price List All tenders'!K48 -> R9,000.00 | P50: ='C1- Price List All tenders'!L48 -> R9,000.00 | Q50: R9,000.00 | R50: R9,000.00 | S50: 0 | T50: 0 | U50: R66,716.55 | V50: -88.11% | W50: R66,716.55 | X50: -88% | Z50: ='C1- Price List All tenders'!M48 -> Each | AA50: ='C1- Price List All tenders'!N48 -> 1 | AB50: ='C1- Price List All tenders'!O48 -> R193,381.38 | AC50: ='C1- Price List All tenders'!P48 -> R193,381.38 | AD50: R193,381.38 | AE50: R193,381.38 | AF50: 0 | AG50: 0 | AH50: -R117,664.83 | AI50: 155.40% | AJ50: -R117,664.83 | AK50: 155% | AM50: ='C1- Price List All tenders'!Q48 -> Each | AN50: ='C1- Price List All tenders'!R48 -> 1 | AO50: ='C1- Price List All tenders'!S48 -> R20,700.00 | AP50: ='C1- Price List All tenders'!T48 -> R20,700.00 | AQ50: R20,700.00 | AR50: R20,700.00 | AS50: 0 | AT50: 0 | AU50: R55,016.55 | AV50: -72.66% | AW50: R55,016.55 | AX50: -73% | AZ50: ='C1- Price List All tenders'!U48 -> Each | BA50: ='C1- Price List All tenders'!V48 -> 1 | BB50: ='C1- Price List All tenders'!W48 -> R132,600.00 | BC50: ='C1- Price List All tenders'!X48 -> R132,600.00 | BD50: R132,600.00 | BE50: R132,600.00 | BF50: 0 | BG50: 0 | BH50: -R56,883.45 | BI50: 75.13% | BJ50: -R56,883.45 | BK50: 75% | BM50: ='C1- Price List All tenders'!Y48 -> Each | BN50: ='C1- Price List All tenders'!Z48 -> 1 | BO50: ='C1- Price List All tenders'!AA48 -> R4,600.00 | BP50: ='C1- Price List All tenders'!AB48 -> R4,600.00 | BQ50: R4,600.00 | BR50: R4,600.00 | BS50: 3.00% | BT50: R4,462.00 | BU50: R138.00 | BV50: 0 | BW50: 0 | BX50: R71,116.55 | BY50: -93.92% | BZ50: R71,116.55 | CA50: -94% | CC50: ='C1- Price List All tenders'!AC48 -> Each | CD50: ='C1- Price List All tenders'!AD48 -> 1 | CE50: ='C1- Price List All tenders'!AE48 -> R36,347.35 | CF50: ='C1- Price List All tenders'!AF48 -> R36,347.35 | CG50: R36,347.35 | CH50: R36,347.35 | CI50: 0 | CJ50: 0 | CK50: R39,369.20 | CL50: -52.00% | CM50: R39,369.20 | CN50: -52%
B51: ='C1- Price List All tenders'!B49 -> 44. | C51: ='C1- Price List All tenders'!C49 -> ELC GENTRAD DR07 Resistance box | D51: ='C1- Price List All tenders'!D49 -> Maintenance Operations Support | E51: ='C1- Price List All tenders'!E49 -> Each | F51: ='C1- Price List All tenders'!F49 -> 2 | G51: ='C1- Price List All tenders'!G49 -> R4,926.04 | H51: ='C1- Price List All tenders'!H49 -> R9,852.09 | I51: R4,926.04 | J51: R9,852.09 | K51: 0 | M51: ='C1- Price List All tenders'!I49 -> Each | N51: ='C1- Price List All tenders'!J49 -> 2 | O51: ='C1- Price List All tenders'!K49 -> R75,000.00 | P51: ='C1- Price List All tenders'!L49 -> R150,000.00 | Q51: R75,000.00 | R51: R150,000.00 | S51: 0 | T51: 0 | U51: -R70,073.96 | V51: 1422.52% | W51: -R140,147.91 | X51: 1423% | Z51: ='C1- Price List All tenders'!M49 -> Each | AA51: ='C1- Price List All tenders'!N49 -> 2 | AB51: ='C1- Price List All tenders'!O49 -> R9,113.42 | AC51: ='C1- Price List All tenders'!P49 -> R18,226.84 | AD51: R9,113.42 | AE51: R18,226.84 | AF51: 0 | AG51: 0 | AH51: -R4,187.38 | AI51: 85.00% | AJ51: -R8,374.75 | AK51: 85% | AM51: ='C1- Price List All tenders'!Q49 -> Each | AN51: ='C1- Price List All tenders'!R49 -> 2 | AO51: ='C1- Price List All tenders'!S49 -> R6,000.00 | AP51: ='C1- Price List All tenders'!T49 -> R12,000.00 | AQ51: R6,000.00 | AR51: R12,000.00 | AS51: 0 | AT51: 0 | AU51: -R1,073.96 | AV51: 21.80% | AW51: -R2,147.91 | AX51: 22% | AZ51: ='C1- Price List All tenders'!U49 -> Each | BA51: ='C1- Price List All tenders'!V49 -> 2 | BB51: ='C1- Price List All tenders'!W49 -> R4,970.00 | BC51: ='C1- Price List All tenders'!X49 -> R9,940.00 | BD51: R4,970.00 | BE51: R9,940.00 | BF51: 0 | BG51: 0 | BH51: -R43.96 | BI51: 0.89% | BJ51: -R87.91 | BK51: 1% | BM51: ='C1- Price List All tenders'!Y49 -> Each | BN51: ='C1- Price List All tenders'!Z49 -> 2 | BO51: ='C1- Price List All tenders'!AA49 -> R22,200.00 | BP51: ='C1- Price List All tenders'!AB49 -> R44,400.00 | BQ51: R22,200.00 | BR51: R44,400.00 | BS51: 3.00% | BT51: R43,068.00 | BU51: R1,332.00 | BV51: 0 | BW51: 0 | BX51: -R17,273.96 | BY51: 350.67% | BZ51: -R34,547.91 | CA51: 351% | CC51: ='C1- Price List All tenders'!AC49 -> Each | CD51: ='C1- Price List All tenders'!AD49 -> 2 | CE51: ='C1- Price List All tenders'!AE49 -> R6,374.42 | CF51: ='C1- Price List All tenders'!AF49 -> R12,748.84 | CG51: R6,374.42 | CH51: R12,748.84 | CI51: 0 | CJ51: 0 | CK51: -R1,448.38 | CL51: 29.40% | CM51: -R2,896.75 | CN51: 29%
B52: ='C1- Price List All tenders'!B50 -> 45. | C52: ='C1- Price List All tenders'!C50 -> Temperature SD card realtime data recorder BTM-4208SD: TECPEL 12 Channel Thermocouple Thermometer Data Logger Recorder Lutron BTM-4208SD including all accessories | D52: ='C1- Price List All tenders'!D50 -> Maintenance Operations Support | E52: ='C1- Price List All tenders'!E50 -> Each | F52: ='C1- Price List All tenders'!F50 -> 2 | G52: ='C1- Price List All tenders'!G50 -> R21,322.80 | H52: ='C1- Price List All tenders'!H50 -> R42,645.60 | I52: R21,322.80 | J52: R42,645.60 | K52: 0 | M52: ='C1- Price List All tenders'!I50 -> Each | N52: ='C1- Price List All tenders'!J50 -> 2 | O52: ='C1- Price List All tenders'!K50 -> R8,000.00 | P52: ='C1- Price List All tenders'!L50 -> R16,000.00 | Q52: R8,000.00 | R52: R16,000.00 | S52: 0 | T52: 0 | U52: R13,322.80 | V52: -62.48% | W52: R26,645.60 | X52: -62% | Z52: ='C1- Price List All tenders'!M50 -> Each | AA52: ='C1- Price List All tenders'!N50 -> 2 | AB52: ='C1- Price List All tenders'!O50 -> R61,321.78 | AC52: ='C1- Price List All tenders'!P50 -> R122,643.56 | AD52: R61,321.78 | AE52: R122,643.56 | AF52: 0 | AG52: 0 | AH52: -R39,998.98 | AI52: 187.59% | AJ52: -R79,997.96 | AK52: 188% | AM52: ='C1- Price List All tenders'!Q50 -> Each | AN52: ='C1- Price List All tenders'!R50 -> 2 | AO52: ='C1- Price List All tenders'!S50 -> R15,600.00 | AP52: ='C1- Price List All tenders'!T50 -> R31,200.00 | AQ52: R15,600.00 | AR52: R31,200.00 | AS52: 0 | AT52: 0 | AU52: R5,722.80 | AV52: -26.84% | AW52: R11,445.60 | AX52: -27% | AZ52: ='C1- Price List All tenders'!U50 -> Each | BA52: ='C1- Price List All tenders'!V50 -> 2 | BB52: ='C1- Price List All tenders'!W50 -> R26,390.00 | BC52: ='C1- Price List All tenders'!X50 -> R52,780.00 | BD52: R26,390.00 | BE52: R52,780.00 | BF52: 0 | BG52: 0 | BH52: -R5,067.20 | BI52: 23.76% | BJ52: -R10,134.40 | BK52: 24% | BM52: ='C1- Price List All tenders'!Y50 -> Each | BN52: ='C1- Price List All tenders'!Z50 -> 2 | BO52: ='C1- Price List All tenders'!AA50 -> R2,998.00 | BP52: ='C1- Price List All tenders'!AB50 -> R5,996.00 | BQ52: R2,998.00 | BR52: R5,996.00 | BS52: 3.00% | BT52: R5,816.12 | BU52: R179.88 | BV52: 0 | BW52: 0 | BX52: R18,324.80 | BY52: -85.94% | BZ52: R36,649.60 | CA52: -86% | CC52: ='C1- Price List All tenders'!AC50 -> Each | CD52: ='C1- Price List All tenders'!AD50 -> 2 | CE52: ='C1- Price List All tenders'!AE50 -> R13,088.76 | CF52: ='C1- Price List All tenders'!AF50 -> R26,177.52 | CG52: R13,088.76 | CH52: R26,177.52 | CI52: 0 | CJ52: 0 | CK52: R8,234.04 | CL52: -38.62% | CM52: R16,468.08 | CN52: -39%
B53: ='C1- Price List All tenders'!B51 -> 46. | C53: ='C1- Price List All tenders'!C51 -> Toolbag with Tools Technician | D53: ='C1- Price List All tenders'!D51 -> Maintenance Operations Support | E53: ='C1- Price List All tenders'!E51 -> Each | F53: ='C1- Price List All tenders'!F51 -> 20 | G53: ='C1- Price List All tenders'!G51 -> R4,368.00 | H53: ='C1- Price List All tenders'!H51 -> R87,360.00 | I53: R4,368.00 | J53: R87,360.00 | K53: 0 | M53: ='C1- Price List All tenders'!I51 -> Each | N53: ='C1- Price List All tenders'!J51 -> 20 | O53: ='C1- Price List All tenders'!K51 -> R48,000.00 | P53: ='C1- Price List All tenders'!L51 -> R960,000.00 | Q53: R48,000.00 | R53: R960,000.00 | S53: 0 | T53: 0 | U53: -R43,632.00 | V53: 998.90% | W53: -R872,640.00 | X53: 999% | Z53: ='C1- Price List All tenders'!M51 -> Each | AA53: ='C1- Price List All tenders'!N51 -> 20 | AB53: ='C1- Price List All tenders'!O51 -> R19,312.79 | AC53: ='C1- Price List All tenders'!P51 -> R386,255.80 | AD53: R19,312.79 | AE53: R386,255.80 | AF53: 0 | AG53: 0 | AH53: -R14,944.79 | AI53: 342.14% | AJ53: -R298,895.80 | AK53: 342% | AM53: ='C1- Price List All tenders'!Q51 -> Each | AN53: ='C1- Price List All tenders'!R51 -> 20 | AO53: ='C1- Price List All tenders'!S51 -> R5,000.00 | AP53: ='C1- Price List All tenders'!T51 -> R100,000.00 | AQ53: R5,000.00 | AR53: R100,000.00 | AS53: 0 | AT53: 0 | AU53: -R632.00 | AV53: 14.47% | AW53: -R12,640.00 | AX53: 14% | AZ53: ='C1- Price List All tenders'!U51 -> Each | BA53: ='C1- Price List All tenders'!V51 -> 20 | BB53: ='C1- Price List All tenders'!W51 -> R13,913.00 | BC53: ='C1- Price List All tenders'!X51 -> R278,260.00 | BD53: R13,913.00 | BE53: R278,260.00 | BF53: 0 | BG53: 0 | BH53: -R9,545.00 | BI53: 218.52% | BJ53: -R190,900.00 | BK53: 219% | BM53: ='C1- Price List All tenders'!Y51 -> Each | BN53: ='C1- Price List All tenders'!Z51 -> 20 | BO53: ='C1- Price List All tenders'!AA51 -> R19,999.00 | BP53: ='C1- Price List All tenders'!AB51 -> R399,980.00 | BQ53: R19,999.00 | BR53: R399,980.00 | BS53: 3.00% | BT53: R387,980.60 | BU53: R11,999.40 | BV53: 0 | BW53: 0 | BX53: -R15,631.00 | BY53: 357.85% | BZ53: -R312,620.00 | CA53: 358% | CC53: ='C1- Price List All tenders'!AC51 -> Each | CD53: ='C1- Price List All tenders'!AD51 -> 20 | CE53: ='C1- Price List All tenders'!AE51 -> R8,033.81 | CF53: ='C1- Price List All tenders'!AF51 -> R160,676.20 | CG53: R8,033.81 | CH53: R160,676.20 | CI53: 0 | CJ53: 0 | CK53: -R3,665.81 | CL53: 83.92% | CM53: -R73,316.20 | CN53: 84%
B54: ='C1- Price List All tenders'!B52 -> 47. | C54: ='C1- Price List All tenders'!C52 -> Beamax MC6 Advanced field calibrator and communicator | D54: ='C1- Price List All tenders'!D52 -> Maintenance Operations Support | E54: ='C1- Price List All tenders'!E52 -> Each | F54: ='C1- Price List All tenders'!F52 -> 2 | G54: ='C1- Price List All tenders'!G52 -> R652,627.45 | H54: ='C1- Price List All tenders'!H52 -> R1,305,254.89 | I54: R652,627.45 | J54: R1,305,254.89 | K54: 0 | M54: ='C1- Price List All tenders'!I52 -> Each | N54: ='C1- Price List All tenders'!J52 -> 2 | O54: ='C1- Price List All tenders'!K52 -> R775,200.00 | P54: ='C1- Price List All tenders'!L52 -> R1,550,400.00 | Q54: R775,200.00 | R54: R1,550,400.00 | S54: 0 | T54: 0 | U54: -R122,572.55 | V54: 18.78% | W54: -R245,145.11 | X54: 19% | Z54: ='C1- Price List All tenders'!M52 -> Each | AA54: ='C1- Price List All tenders'!N52 -> 2 | AB54: ='C1- Price List All tenders'!O52 -> R7,831.27 | AC54: ='C1- Price List All tenders'!P52 -> R15,662.54 | AD54: R7,831.27 | AE54: R15,662.54 | AF54: 0 | AG54: 0 | AH54: R644,796.18 | AI54: -98.80% | AJ54: R1,289,592.35 | AK54: -99% | AM54: ='C1- Price List All tenders'!Q52 -> Each | AN54: ='C1- Price List All tenders'!R52 -> 2 | AO54: ='C1- Price List All tenders'!S52 -> R18,500.00 | AP54: ='C1- Price List All tenders'!T52 -> R37,000.00 | AQ54: R18,500.00 | AR54: R37,000.00 | AS54: 0 | AT54: 0 | AU54: R634,127.45 | AV54: -97.17% | AW54: R1,268,254.89 | AX54: -97% | AZ54: ='C1- Price List All tenders'!U52 -> Each | BA54: ='C1- Price List All tenders'!V52 -> 2 | BB54: ='C1- Price List All tenders'!W52 -> R592,514.00 | BC54: ='C1- Price List All tenders'!X52 -> R1,185,028.00 | BD54: R592,514.00 | BE54: R1,185,028.00 | BF54: 0 | BG54: 0 | BH54: R60,113.45 | BI54: -9.21% | BJ54: R120,226.89 | BK54: -9% | BM54: ='C1- Price List All tenders'!Y52 -> Each | BN54: ='C1- Price List All tenders'!Z52 -> 2 | BO54: ='C1- Price List All tenders'!AA52 -> R8,400.00 | BP54: ='C1- Price List All tenders'!AB52 -> R16,800.00 | BQ54: R8,400.00 | BR54: R16,800.00 | BS54: 3.00% | BT54: R16,296.00 | BU54: R504.00 | BV54: 0 | BW54: 0 | BX54: R644,227.45 | BY54: -98.71% | BZ54: R1,288,454.89 | CA54: -99% | CC54: ='C1- Price List All tenders'!AC52 -> Each | CD54: ='C1- Price List All tenders'!AD52 -> 2 | CE54: ='C1- Price List All tenders'!AE52 -> R76,377.30 | CF54: ='C1- Price List All tenders'!AF52 -> R152,754.60 | CG54: R76,377.30 | CH54: R152,754.60 | CI54: 0 | CJ54: 0 | CK54: R576,250.15 | CL54: -88.30% | CM54: R1,152,500.29 | CN54: -88%
B55: ='C1- Price List All tenders'!B53 -> 48. | C55: ='C1- Price List All tenders'!C53 -> Beamax PGM calibrator pumps | D55: ='C1- Price List All tenders'!D53 -> Maintenance Operations Support | E55: ='C1- Price List All tenders'!E53 -> Each | F55: ='C1- Price List All tenders'!F53 -> 2 | G55: ='C1- Price List All tenders'!G53 -> R30,261.38 | H55: ='C1- Price List All tenders'!H53 -> R60,522.76 | I55: R30,261.38 | J55: R60,522.76 | K55: 0 | M55: ='C1- Price List All tenders'!I53 -> Each | N55: ='C1- Price List All tenders'!J53 -> 2 | O55: ='C1- Price List All tenders'!K53 -> R64,584.00 | P55: ='C1- Price List All tenders'!L53 -> R129,168.00 | Q55: R64,584.00 | R55: R129,168.00 | S55: 0 | T55: 0 | U55: -R34,322.62 | V55: 113.42% | W55: -R68,645.24 | X55: 113% | Z55: ='C1- Price List All tenders'!M53 -> Each | AA55: ='C1- Price List All tenders'!N53 -> 2 | AB55: ='C1- Price List All tenders'!O53 -> R58,997.35 | AC55: ='C1- Price List All tenders'!P53 -> R117,994.70 | AD55: R58,997.35 | AE55: R117,994.70 | AF55: 0 | AG55: 0 | AH55: -R28,735.97 | AI55: 94.96% | AJ55: -R57,471.94 | AK55: 95% | AM55: ='C1- Price List All tenders'!Q53 -> Each | AN55: ='C1- Price List All tenders'!R53 -> 2 | AO55: ='C1- Price List All tenders'!S53 -> R2,500.00 | AP55: ='C1- Price List All tenders'!T53 -> R5,000.00 | AQ55: R2,500.00 | AR55: R5,000.00 | AS55: 0 | AT55: 0 | AU55: R27,761.38 | AV55: -91.74% | AW55: R55,522.76 | AX55: -92% | AZ55: ='C1- Price List All tenders'!U53 -> Each | BA55: ='C1- Price List All tenders'!V53 -> 2 | BB55: ='C1- Price List All tenders'!W53 -> R40,560.00 | BC55: ='C1- Price List All tenders'!X53 -> R81,120.00 | BD55: R40,560.00 | BE55: R81,120.00 | BF55: 0 | BG55: 0 | BH55: -R10,298.62 | BI55: 34.03% | BJ55: -R20,597.24 | BK55: 34% | BM55: ='C1- Price List All tenders'!Y53 -> Each | BN55: ='C1- Price List All tenders'!Z53 -> 2 | BO55: ='C1- Price List All tenders'!AA53 -> R4,800.00 | BP55: ='C1- Price List All tenders'!AB53 -> R9,600.00 | BQ55: R4,800.00 | BR55: R9,600.00 | BS55: 3.00% | BT55: R9,312.00 | BU55: R288.00 | BV55: 0 | BW55: 0 | BX55: R25,461.38 | BY55: -84.14% | BZ55: R50,922.76 | CA55: -84% | CC55: ='C1- Price List All tenders'!AC53 -> Each | CD55: ='C1- Price List All tenders'!AD53 -> 2 | CE55: ='C1- Price List All tenders'!AE53 -> R35,072.30 | CF55: ='C1- Price List All tenders'!AF53 -> R70,144.60 | CG55: R35,072.30 | CH55: R70,144.60 | CI55: 0 | CJ55: 0 | CK55: -R4,810.92 | CL55: 15.90% | CM55: -R9,621.84 | CN55: 16%
B56: ='C1- Price List All tenders'!B54 -> 49. | C56: ='C1- Price List All tenders'!C54 -> Beamax PGC Advanced field calibrator and communicator | D56: ='C1- Price List All tenders'!D54 -> Maintenance Operations Support | E56: ='C1- Price List All tenders'!E54 -> Each | F56: ='C1- Price List All tenders'!F54 -> 2 | G56: ='C1- Price List All tenders'!G54 -> R652,627.45 | H56: ='C1- Price List All tenders'!H54 -> R1,305,254.89 | I56: R652,627.45 | J56: R1,305,254.89 | K56: 0 | M56: ='C1- Price List All tenders'!I54 -> Each | N56: ='C1- Price List All tenders'!J54 -> 2 | O56: ='C1- Price List All tenders'!K54 -> R73,733.40 | P56: ='C1- Price List All tenders'!L54 -> R147,466.80 | Q56: R73,733.40 | R56: R147,466.80 | S56: 0 | T56: 0 | U56: R578,894.05 | V56: -88.70% | W56: R1,157,788.09 | X56: -89% | Z56: ='C1- Price List All tenders'!M54 -> Each | AA56: ='C1- Price List All tenders'!N54 -> 2 | AB56: ='C1- Price List All tenders'!O54 -> R73,142.71 | AC56: ='C1- Price List All tenders'!P54 -> R146,285.42 | AD56: R73,142.71 | AE56: R146,285.42 | AF56: 0 | AG56: 0 | AH56: R579,484.74 | AI56: -88.79% | AJ56: R1,158,969.47 | AK56: -89% | AM56: ='C1- Price List All tenders'!Q54 -> Each | AN56: ='C1- Price List All tenders'!R54 -> 2 | AO56: ='C1- Price List All tenders'!S54 -> R22,400.00 | AP56: ='C1- Price List All tenders'!T54 -> R44,800.00 | AQ56: R22,400.00 | AR56: R44,800.00 | AS56: 0 | AT56: 0 | AU56: R630,227.45 | AV56: -96.57% | AW56: R1,260,454.89 | AX56: -97% | AZ56: ='C1- Price List All tenders'!U54 -> Each | BA56: ='C1- Price List All tenders'!V54 -> 2 | BB56: ='C1- Price List All tenders'!W54 -> R46,306.00 | BC56: ='C1- Price List All tenders'!X54 -> R92,612.00 | BD56: R46,306.00 | BE56: R92,612.00 | BF56: 0 | BG56: 0 | BH56: R606,321.45 | BI56: -92.90% | BJ56: R1,212,642.89 | BK56: -93% | BM56: ='C1- Price List All tenders'!Y54 -> Each | BN56: ='C1- Price List All tenders'!Z54 -> 2 | BO56: ='C1- Price List All tenders'!AA54 -> R4,600.00 | BP56: ='C1- Price List All tenders'!AB54 -> R9,200.00 | BQ56: R4,600.00 | BR56: R9,200.00 | BS56: 3.00% | BT56: R8,924.00 | BU56: R276.00 | BV56: 0 | BW56: 0 | BX56: R648,027.45 | BY56: -99.30% | BZ56: R1,296,054.89 | CA56: -99% | CC56: ='C1- Price List All tenders'!AC54 -> Each | CD56: ='C1- Price List All tenders'!AD54 -> 2 | CE56: ='C1- Price List All tenders'!AE54 -> R48,046.10 | CF56: ='C1- Price List All tenders'!AF54 -> R96,092.20 | CG56: R48,046.10 | CH56: R96,092.20 | CI56: 0 | CJ56: 0 | CK56: R604,581.35 | CL56: -92.64% | CM56: R1,209,162.69 | CN56: -93%
B57: ='C1- Price List All tenders'!B55 -> 50. | C57: ='C1- Price List All tenders'!C55 -> Beamax PGHH Advanced field calibrator and communicator | D57: ='C1- Price List All tenders'!D55 -> Maintenance Operations Support | E57: ='C1- Price List All tenders'!E55 -> Each | F57: ='C1- Price List All tenders'!F55 -> 2 | G57: ='C1- Price List All tenders'!G55 -> R652,627.45 | H57: ='C1- Price List All tenders'!H55 -> R1,305,254.89 | I57: R652,627.45 | J57: R1,305,254.89 | K57: 0 | M57: ='C1- Price List All tenders'!I55 -> Each | N57: ='C1- Price List All tenders'!J55 -> 2 | O57: ='C1- Price List All tenders'!K55 -> R850,000.00 | P57: ='C1- Price List All tenders'!L55 -> R1,700,000.00 | Q57: R850,000.00 | R57: R1,700,000.00 | S57: 0 | T57: 0 | U57: -R197,372.55 | V57: 30.24% | W57: -R394,745.11 | X57: 30% | Z57: ='C1- Price List All tenders'!M55 -> Each | AA57: ='C1- Price List All tenders'!N55 -> 2 | AB57: ='C1- Price List All tenders'!O55 -> R84,412.31 | AC57: ='C1- Price List All tenders'!P55 -> R168,824.62 | AD57: R84,412.31 | AE57: R168,824.62 | AF57: 0 | AG57: 0 | AH57: R568,215.14 | AI57: -87.07% | AJ57: R1,136,430.27 | AK57: -87% | AM57: ='C1- Price List All tenders'!Q55 -> Each | AN57: ='C1- Price List All tenders'!R55 -> 2 | AO57: ='C1- Price List All tenders'!S55 -> R26,800.00 | AP57: ='C1- Price List All tenders'!T55 -> R53,600.00 | AQ57: R26,800.00 | AR57: R53,600.00 | AS57: 0 | AT57: 0 | AU57: R625,827.45 | AV57: -95.89% | AW57: R1,251,654.89 | AX57: -96% | AZ57: ='C1- Price List All tenders'!U55 -> Each | BA57: ='C1- Price List All tenders'!V55 -> 2 | BB57: ='C1- Price List All tenders'!W55 -> R77,740.00 | BC57: ='C1- Price List All tenders'!X55 -> R155,480.00 | BD57: R77,740.00 | BE57: R155,480.00 | BF57: 0 | BG57: 0 | BH57: R574,887.45 | BI57: -88.09% | BJ57: R1,149,774.89 | BK57: -88% | BM57: ='C1- Price List All tenders'!Y55 -> Each | BN57: ='C1- Price List All tenders'!Z55 -> 2 | BO57: ='C1- Price List All tenders'!AA55 -> R4,800.00 | BP57: ='C1- Price List All tenders'!AB55 -> R9,600.00 | BQ57: R4,800.00 | BR57: R9,600.00 | BS57: 3.00% | BT57: R9,312.00 | BU57: R288.00 | BV57: 0 | BW57: 0 | BX57: R647,827.45 | BY57: -99.26% | BZ57: R1,295,654.89 | CA57: -99% | CC57: ='C1- Price List All tenders'!AC55 -> Each | CD57: ='C1- Price List All tenders'!AD55 -> 2 | CE57: ='C1- Price List All tenders'!AE55 -> R80,658.16 | CF57: ='C1- Price List All tenders'!AF55 -> R161,316.32 | CG57: R80,658.16 | CH57: R161,316.32 | CI57: 0 | CJ57: 0 | CK57: R571,969.29 | CL57: -87.64% | CM57: R1,143,938.57 | CN57: -88%
B58: ='C1- Price List All tenders'!B56 -> 51. | C58: ='C1- Price List All tenders'!C56 -> Beamax PGL Advanced field calibrator and communicator | D58: ='C1- Price List All tenders'!D56 -> Maintenance Operations Support | E58: ='C1- Price List All tenders'!E56 -> Each | F58: ='C1- Price List All tenders'!F56 -> 2 | G58: ='C1- Price List All tenders'!G56 -> R652,627.45 | H58: ='C1- Price List All tenders'!H56 -> R1,305,254.89 | I58: R652,627.45 | J58: R1,305,254.89 | K58: 0 | M58: ='C1- Price List All tenders'!I56 -> Each | N58: ='C1- Price List All tenders'!J56 -> 2 | O58: ='C1- Price List All tenders'!K56 -> R97,952.40 | P58: ='C1- Price List All tenders'!L56 -> R195,904.80 | Q58: R97,952.40 | R58: R195,904.80 | S58: 0 | T58: 0 | U58: R554,675.05 | V58: -84.99% | W58: R1,109,350.09 | X58: -85% | Z58: ='C1- Price List All tenders'!M56 -> Each | AA58: ='C1- Price List All tenders'!N56 -> 2 | AB58: ='C1- Price List All tenders'!O56 -> R96,732.41 | AC58: ='C1- Price List All tenders'!P56 -> R193,464.82 | AD58: R96,732.41 | AE58: R193,464.82 | AF58: 0 | AG58: 0 | AH58: R555,895.04 | AI58: -85.18% | AJ58: R1,111,790.07 | AK58: -85% | AM58: ='C1- Price List All tenders'!Q56 -> Each | AN58: ='C1- Price List All tenders'!R56 -> 2 | AO58: ='C1- Price List All tenders'!S56 -> R28,100.00 | AP58: ='C1- Price List All tenders'!T56 -> R56,200.00 | AQ58: R28,100.00 | AR58: R56,200.00 | AS58: 0 | AT58: 0 | AU58: R624,527.45 | AV58: -95.69% | AW58: R1,249,054.89 | AX58: -96% | AZ58: ='C1- Price List All tenders'!U56 -> Each | BA58: ='C1- Price List All tenders'!V56 -> 2 | BB58: ='C1- Price List All tenders'!W56 -> R61,516.00 | BC58: ='C1- Price List All tenders'!X56 -> R123,032.00 | BD58: R61,516.00 | BE58: R123,032.00 | BF58: 0 | BG58: 0 | BH58: R591,111.45 | BI58: -90.57% | BJ58: R1,182,222.89 | BK58: -91% | BM58: ='C1- Price List All tenders'!Y56 -> Each | BN58: ='C1- Price List All tenders'!Z56 -> 2 | BO58: ='C1- Price List All tenders'!AA56 -> R4,500.00 | BP58: ='C1- Price List All tenders'!AB56 -> R9,000.00 | BQ58: R4,500.00 | BR58: R9,000.00 | BS58: 3.00% | BT58: R8,730.00 | BU58: R270.00 | BV58: 0 | BW58: 0 | BX58: R648,127.45 | BY58: -99.31% | BZ58: R1,296,254.89 | CA58: -99% | CC58: ='C1- Price List All tenders'!AC56 -> Each | CD58: ='C1- Price List All tenders'!AD56 -> 2 | CE58: ='C1- Price List All tenders'!AE56 -> R63,837.61 | CF58: ='C1- Price List All tenders'!AF56 -> R127,675.22 | CG58: R63,837.61 | CH58: R127,675.22 | CI58: 0 | CJ58: 0 | CK58: R588,789.84 | CL58: -90.22% | CM58: R1,177,579.67 | CN58: -90%
B59: ='C1- Price List All tenders'!B57 -> 52. | C59: ='C1- Price List All tenders'!C57 -> Beamex MC6 calibrator | D59: ='C1- Price List All tenders'!D57 -> Maintenance Operations Support | E59: ='C1- Price List All tenders'!E57 -> Each | F59: ='C1- Price List All tenders'!F57 -> 2 | G59: ='C1- Price List All tenders'!G57 -> R585,925.20 | H59: ='C1- Price List All tenders'!H57 -> R1,171,850.40 | I59: R585,925.20 | J59: R1,171,850.40 | K59: 0 | M59: ='C1- Price List All tenders'!I57 -> Each | N59: ='C1- Price List All tenders'!J57 -> 2 | O59: ='C1- Price List All tenders'!K57 -> R875,000.00 | P59: ='C1- Price List All tenders'!L57 -> R1,750,000.00 | Q59: R875,000.00 | R59: R1,750,000.00 | S59: 0 | T59: 0 | U59: -R289,074.80 | V59: 49.34% | W59: -R578,149.60 | X59: 49% | Z59: ='C1- Price List All tenders'!M57 -> Each | AA59: ='C1- Price List All tenders'!N57 -> 2 | AB59: ='C1- Price List All tenders'!O57 -> R289,731.29 | AC59: ='C1- Price List All tenders'!P57 -> R579,462.58 | AD59: R289,731.29 | AE59: R579,462.58 | AF59: 0 | AG59: 0 | AH59: R296,193.91 | AI59: -50.55% | AJ59: R592,387.82 | AK59: -51% | AM59: ='C1- Price List All tenders'!Q57 -> Each | AN59: ='C1- Price List All tenders'!R57 -> 2 | AO59: ='C1- Price List All tenders'!S57 -> R22,000.00 | AP59: ='C1- Price List All tenders'!T57 -> R44,000.00 | AQ59: R22,000.00 | AR59: R44,000.00 | AS59: 0 | AT59: 0 | AU59: R563,925.20 | AV59: -96.25% | AW59: R1,127,850.40 | AX59: -96% | AZ59: ='C1- Price List All tenders'!U57 -> Each | BA59: ='C1- Price List All tenders'!V57 -> 2 | BB59: ='C1- Price List All tenders'!W57 -> R592,514.00 | BC59: ='C1- Price List All tenders'!X57 -> R1,185,028.00 | BD59: R592,514.00 | BE59: R1,185,028.00 | BF59: 0 | BG59: 0 | BH59: -R6,588.80 | BI59: 1.12% | BJ59: -R13,177.60 | BK59: 1% | BM59: ='C1- Price List All tenders'!Y57 -> Each | BN59: ='C1- Price List All tenders'!Z57 -> 2 | BO59: ='C1- Price List All tenders'!AA57 -> R8,000.00 | BP59: ='C1- Price List All tenders'!AB57 -> R16,000.00 | BQ59: R8,000.00 | BR59: R16,000.00 | BS59: 3.00% | BT59: R15,520.00 | BU59: R480.00 | BV59: 0 | BW59: 0 | BX59: R577,925.20 | BY59: -98.63% | BZ59: R1,155,850.40 | CA59: -99% | CC59: ='C1- Price List All tenders'!AC57 -> Each | CD59: ='C1- Price List All tenders'!AD57 -> 2 | CE59: ='C1- Price List All tenders'!AE57 -> R76,377.30 | CF59: ='C1- Price List All tenders'!AF57 -> R152,754.60 | CG59: R76,377.30 | CH59: R152,754.60 | CI59: 0 | CJ59: 0 | CK59: R509,547.90 | CL59: -86.96% | CM59: R1,019,095.80 | CN59: -87%
B60: ='C1- Price List All tenders'!B58 -> 53. | C60: ='C1- Price List All tenders'!C58 -> Beamex Logical software | D60: ='C1- Price List All tenders'!D58 -> Maintenance Operations Support | E60: ='C1- Price List All tenders'!E58 -> Each | F60: ='C1- Price List All tenders'!F58 -> 2 | G60: ='C1- Price List All tenders'!G58 -> R315,000.00 | H60: ='C1- Price List All tenders'!H58 -> R630,000.00 | I60: R315,000.00 | J60: R630,000.00 | K60: 0 | M60: ='C1- Price List All tenders'!I58 -> Each | N60: ='C1- Price List All tenders'!J58 -> 2 | O60: ='C1- Price List All tenders'!K58 -> R180.00 | P60: ='C1- Price List All tenders'!L58 -> R360.00 | Q60: R180.00 | R60: R360.00 | S60: 0 | T60: 0 | U60: R314,820.00 | V60: -99.94% | W60: R629,640.00 | X60: -100% | Z60: ='C1- Price List All tenders'!M58 -> Each | AA60: ='C1- Price List All tenders'!N58 -> 2 | AB60: ='C1- Price List All tenders'!O58 -> R347,182.31 | AC60: ='C1- Price List All tenders'!P58 -> R694,364.62 | AD60: R347,182.31 | AE60: R694,364.62 | AF60: 0 | AG60: 0 | AH60: -R32,182.31 | AI60: 10.22% | AJ60: -R64,364.62 | AK60: 10% | AM60: ='C1- Price List All tenders'!Q58 -> Each | AN60: ='C1- Price List All tenders'!R58 -> 2 | AO60: ='C1- Price List All tenders'!S58 -> R56,000.00 | AP60: ='C1- Price List All tenders'!T58 -> R112,000.00 | AQ60: R56,000.00 | AR60: R112,000.00 | AS60: 0 | AT60: 0 | AU60: R259,000.00 | AV60: -82.22% | AW60: R518,000.00 | AX60: -82% | AZ60: ='C1- Price List All tenders'!U58 -> Each | BA60: ='C1- Price List All tenders'!V58 -> 2 | BB60: ='C1- Price List All tenders'!W58 -> R47,827.00 | BC60: ='C1- Price List All tenders'!X58 -> R95,654.00 | BD60: R47,827.00 | BE60: R95,654.00 | BF60: 0 | BG60: 0 | BH60: R267,173.00 | BI60: -84.82% | BJ60: R534,346.00 | BK60: -85% | BM60: ='C1- Price List All tenders'!Y58 -> Each | BN60: ='C1- Price List All tenders'!Z58 -> 2 | BO60: ='C1- Price List All tenders'!AA58 -> R3,900.00 | BP60: ='C1- Price List All tenders'!AB58 -> R7,800.00 | BQ60: R3,900.00 | BR60: R7,800.00 | BS60: 3.00% | BT60: R7,566.00 | BU60: R234.00 | BV60: 0 | BW60: 0 | BX60: R311,100.00 | BY60: -98.76% | BZ60: R622,200.00 | CA60: -99% | CC60: ='C1- Price List All tenders'!AC58 -> Each | CD60: ='C1- Price List All tenders'!AD58 -> 2 | CE60: ='C1- Price List All tenders'!AE58 -> R79,750.00 | CF60: ='C1- Price List All tenders'!AF58 -> R159,500.00 | CG60: R79,750.00 | CH60: R159,500.00 | CI60: 0 | CJ60: 0 | CK60: R235,250.00 | CL60: -74.68% | CM60: R470,500.00 | CN60: -75%
B61: ='C1- Price List All tenders'!B59 -> 54. | C61: ='C1- Price List All tenders'!C59 -> Fluke 725 x3 Multifunction Loop calibrator | D61: ='C1- Price List All tenders'!D59 -> Maintenance Operations Support | E61: ='C1- Price List All tenders'!E59 -> Each | F61: ='C1- Price List All tenders'!F59 -> 4 | G61: ='C1- Price List All tenders'!G59 -> R154,231.35 | H61: ='C1- Price List All tenders'!H59 -> R616,925.40 | I61: R154,231.35 | J61: R616,925.40 | K61: 0 | M61: ='C1- Price List All tenders'!I59 -> Each | N61: ='C1- Price List All tenders'!J59 -> 4 | O61: ='C1- Price List All tenders'!K59 -> R195,000.00 | P61: ='C1- Price List All tenders'!L59 -> R780,000.00 | Q61: R195,000.00 | R61: R780,000.00 | S61: 0 | T61: 0 | U61: -R40,768.65 | V61: 26.43% | W61: -R163,074.60 | X61: 26% | Z61: ='C1- Price List All tenders'!M59 -> Each | AA61: ='C1- Price List All tenders'!N59 -> 4 | AB61: ='C1- Price List All tenders'!O59 -> R187,314.17 | AC61: ='C1- Price List All tenders'!P59 -> R749,256.68 | AD61: R187,314.17 | AE61: R749,256.68 | AF61: 0 | AG61: 0 | AH61: -R33,082.82 | AI61: 21.45% | AJ61: -R132,331.28 | AK61: 21% | AM61: ='C1- Price List All tenders'!Q59 -> Each | AN61: ='C1- Price List All tenders'!R59 -> 4 | AO61: ='C1- Price List All tenders'!S59 -> R30,000.00 | AP61: ='C1- Price List All tenders'!T59 -> R120,000.00 | AQ61: R30,000.00 | AR61: R120,000.00 | AS61: 0 | AT61: 0 | AU61: R124,231.35 | AV61: -80.55% | AW61: R496,925.40 | AX61: -81% | AZ61: ='C1- Price List All tenders'!U59 -> Each | BA61: ='C1- Price List All tenders'!V59 -> 4 | BB61: ='C1- Price List All tenders'!W59 -> R140,387.00 | BC61: ='C1- Price List All tenders'!X59 -> R561,548.00 | BD61: R140,387.00 | BE61: R561,548.00 | BF61: 0 | BG61: 0 | BH61: R13,844.35 | BI61: -8.98% | BJ61: R55,377.40 | BK61: -9% | BM61: ='C1- Price List All tenders'!Y59 -> Each | BN61: ='C1- Price List All tenders'!Z59 -> 4 | BO61: ='C1- Price List All tenders'!AA59 -> R6,000.00 | BP61: ='C1- Price List All tenders'!AB59 -> R24,000.00 | BQ61: R6,000.00 | BR61: R24,000.00 | BS61: 3.00% | BT61: R23,280.00 | BU61: R720.00 | BV61: 0 | BW61: 0 | BX61: R148,231.35 | BY61: -96.11% | BZ61: R592,925.40 | CA61: -96% | CC61: ='C1- Price List All tenders'!AC59 -> Each | CD61: ='C1- Price List All tenders'!AD59 -> 4 | CE61: ='C1- Price List All tenders'!AE59 -> R180,073.33 | CF61: ='C1- Price List All tenders'!AF59 -> R720,293.32 | CG61: R180,073.33 | CH61: R720,293.32 | CI61: 0 | CJ61: 0 | CK61: -R25,841.98 | CL61: 16.76% | CM61: -R103,367.92 | CN61: 17%
B62: ='C1- Price List All tenders'!B60 -> 55. | C62: ='C1- Price List All tenders'!C60 -> Budenberg Dead weight tester up to 700 bar | D62: ='C1- Price List All tenders'!D60 -> Maintenance Operations Support | E62: ='C1- Price List All tenders'!E60 -> Each | F62: ='C1- Price List All tenders'!F60 -> 2 | G62: ='C1- Price List All tenders'!G60 -> R301,055.51 | H62: ='C1- Price List All tenders'!H60 -> R602,111.03 | I62: R301,055.51 | J62: R602,111.03 | K62: 0 | M62: ='C1- Price List All tenders'!I60 -> Each | N62: ='C1- Price List All tenders'!J60 -> 2 | O62: ='C1- Price List All tenders'!K60 -> R195,000.00 | P62: ='C1- Price List All tenders'!L60 -> R390,000.00 | Q62: R195,000.00 | R62: R390,000.00 | S62: 0 | T62: 0 | U62: R106,055.51 | V62: -35.23% | W62: R212,111.03 | X62: -35% | Z62: ='C1- Price List All tenders'!M60 -> Each | AA62: ='C1- Price List All tenders'!N60 -> 2 | AB62: ='C1- Price List All tenders'!O60 -> R281,412.72 | AC62: ='C1- Price List All tenders'!P60 -> R562,825.44 | AD62: R281,412.72 | AE62: R562,825.44 | AF62: 0 | AG62: 0 | AH62: R19,642.79 | AI62: -6.52% | AJ62: R39,285.59 | AK62: -7% | AM62: ='C1- Price List All tenders'!Q60 -> Each | AN62: ='C1- Price List All tenders'!R60 -> 2 | AO62: ='C1- Price List All tenders'!S60 -> R21,680.00 | AP62: ='C1- Price List All tenders'!T60 -> R43,360.00 | AQ62: R21,680.00 | AR62: R43,360.00 | AS62: 0 | AT62: 0 | AU62: R279,375.51 | AV62: -92.80% | AW62: R558,751.03 | AX62: -93% | AZ62: ='C1- Price List All tenders'!U60 -> Each | BA62: ='C1- Price List All tenders'!V60 -> 10 | BB62: ='C1- Price List All tenders'!W60 -> R298,175.00 | BC62: ='C1- Price List All tenders'!X60 -> R2,981,750.00 | BD62: R298,175.00 | BE62: R2,981,750.00 | BF62: 0 | BG62: -8 | BH62: R2,880.51 | BI62: -0.96% | BJ62: -R2,379,638.97 | BK62: 395% | BM62: ='C1- Price List All tenders'!Y60 -> Each | BN62: ='C1- Price List All tenders'!Z60 -> 2 | BO62: ='C1- Price List All tenders'!AA60 -> R8,000.00 | BP62: ='C1- Price List All tenders'!AB60 -> R16,000.00 | BQ62: R8,000.00 | BR62: R16,000.00 | BS62: 3.00% | BT62: R15,520.00 | BU62: R480.00 | BV62: 0 | BW62: 0 | BX62: R293,055.51 | BY62: -97.34% | BZ62: R586,111.03 | CA62: -97% | CC62: ='C1- Price List All tenders'!AC60 -> Each | CD62: ='C1- Price List All tenders'!AD60 -> 2 | CE62: ='C1- Price List All tenders'!AE60 -> R409,294.40 | CF62: ='C1- Price List All tenders'!AF60 -> R818,588.80 | CG62: R409,294.40 | CH62: R818,588.80 | CI62: 0 | CJ62: 0 | CK62: -R108,238.89 | CL62: 35.95% | CM62: -R216,477.77 | CN62: 36%
B63: ='C1- Price List All tenders'!B61 -> 56. | C63: ='C1- Price List All tenders'!C61 -> Fluke 700TTH5K Transmitter Test hose kit | D63: ='C1- Price List All tenders'!D61 -> Maintenance Operations Support | E63: ='C1- Price List All tenders'!E61 -> No.of Kits | F63: ='C1- Price List All tenders'!F61 -> 10 | G63: ='C1- Price List All tenders'!G61 -> R18,752.21 | H63: ='C1- Price List All tenders'!H61 -> R187,522.13 | I63: R18,752.21 | J63: R187,522.13 | K63: 0 | M63: ='C1- Price List All tenders'!I61 -> No.of Kits | N63: ='C1- Price List All tenders'!J61 -> 10 | O63: ='C1- Price List All tenders'!K61 -> R32,076.00 | P63: ='C1- Price List All tenders'!L61 -> R320,760.00 | Q63: R32,076.00 | R63: R320,760.00 | S63: 0 | T63: 0 | U63: -R13,323.79 | V63: 71.05% | W63: -R133,237.87 | X63: 71% | Z63: ='C1- Price List All tenders'!M61 -> No.of Kits | AA63: ='C1- Price List All tenders'!N61 -> 10 | AB63: ='C1- Price List All tenders'!O61 -> R23,214.13 | AC63: ='C1- Price List All tenders'!P61 -> R232,141.30 | AD63: R23,214.13 | AE63: R232,141.30 | AF63: 0 | AG63: 0 | AH63: -R4,461.92 | AI63: 23.79% | AJ63: -R44,619.17 | AK63: 24% | AM63: ='C1- Price List All tenders'!Q61 -> No.of Kits | AN63: ='C1- Price List All tenders'!R61 -> 10 | AO63: ='C1- Price List All tenders'!S61 -> R15,780.00 | AP63: ='C1- Price List All tenders'!T61 -> R157,800.00 | AQ63: R15,780.00 | AR63: R157,800.00 | AS63: 0 | AT63: 0 | AU63: R2,972.21 | AV63: -15.85% | AW63: R29,722.13 | AX63: -16% | AZ63: ='C1- Price List All tenders'!U61 -> No.of Kits | BA63: ='C1- Price List All tenders'!V61 -> 10 | BB63: ='C1- Price List All tenders'!W61 -> R21,544.00 | BC63: ='C1- Price List All tenders'!X61 -> R215,440.00 | BD63: R21,544.00 | BE63: R215,440.00 | BF63: 0 | BG63: 0 | BH63: -R2,791.79 | BI63: 14.89% | BJ63: -R27,917.87 | BK63: 15% | BM63: ='C1- Price List All tenders'!Y61 -> No.of Kits | BN63: ='C1- Price List All tenders'!Z61 -> 10 | BO63: ='C1- Price List All tenders'!AA61 -> R8,200.00 | BP63: ='C1- Price List All tenders'!AB61 -> R82,000.00 | BQ63: R8,200.00 | BR63: R82,000.00 | BS63: 3.00% | BT63: R79,540.00 | BU63: R2,460.00 | BV63: 0 | BW63: 0 | BX63: R10,552.21 | BY63: -56.27% | BZ63: R105,522.13 | CA63: -56% | CC63: ='C1- Price List All tenders'!AC61 -> No.of Kits | CD63: ='C1- Price List All tenders'!AD61 -> 10 | CE63: ='C1- Price List All tenders'!AE61 -> R27,633.36 | CF63: ='C1- Price List All tenders'!AF61 -> R276,333.60 | CG63: R27,633.36 | CH63: R276,333.60 | CI63: 0 | CJ63: 0 | CK63: -R8,881.15 | CL63: 47.36% | CM63: -R88,811.47 | CN63: 47%
B64: ='C1- Price List All tenders'!B62 -> 57. | C64: ='C1- Price List All tenders'!C62 -> Fluke 71X liquid and dirt trap | D64: ='C1- Price List All tenders'!D62 -> Maintenance Operations Support | E64: ='C1- Price List All tenders'!E62 -> No.of Kits | F64: ='C1- Price List All tenders'!F62 -> 10 | G64: ='C1- Price List All tenders'!G62 -> R16,733.11 | H64: ='C1- Price List All tenders'!H62 -> R167,331.05 | I64: R16,733.11 | J64: R167,331.05 | K64: 0 | M64: ='C1- Price List All tenders'!I62 -> No.of Kits | N64: ='C1- Price List All tenders'!J62 -> 10 | O64: ='C1- Price List All tenders'!K62 -> R7,450.20 | P64: ='C1- Price List All tenders'!L62 -> R74,502.00 | Q64: R7,450.20 | R64: R74,502.00 | S64: 0 | T64: 0 | U64: R9,282.91 | V64: -55.48% | W64: R92,829.05 | X64: -55% | Z64: ='C1- Price List All tenders'!M62 -> No.of Kits | AA64: ='C1- Price List All tenders'!N62 -> 10 | AB64: ='C1- Price List All tenders'!O62 -> R27,814.02 | AC64: ='C1- Price List All tenders'!P62 -> R278,140.20 | AD64: R27,814.02 | AE64: R278,140.20 | AF64: 0 | AG64: 0 | AH64: -R11,080.91 | AI64: 66.22% | AJ64: -R110,809.15 | AK64: 66% | AM64: ='C1- Price List All tenders'!Q62 -> No.of Kits | AN64: ='C1- Price List All tenders'!R62 -> 10 | AO64: ='C1- Price List All tenders'!S62 -> R8,720.00 | AP64: ='C1- Price List All tenders'!T62 -> R87,200.00 | AQ64: R8,720.00 | AR64: R87,200.00 | AS64: 0 | AT64: 0 | AU64: R8,013.11 | AV64: -47.89% | AW64: R80,131.05 | AX64: -48% | AZ64: ='C1- Price List All tenders'!U62 -> No.of Kits | BA64: ='C1- Price List All tenders'!V62 -> 10 | BB64: ='C1- Price List All tenders'!W62 -> R11,421.00 | BC64: ='C1- Price List All tenders'!X62 -> R114,210.00 | BD64: R11,421.00 | BE64: R114,210.00 | BF64: 0 | BG64: 0 | BH64: R5,312.11 | BI64: -31.75% | BJ64: R53,121.05 | BK64: -32% | BM64: ='C1- Price List All tenders'!Y62 -> No.of Kits | BN64: ='C1- Price List All tenders'!Z62 -> 10 | BO64: ='C1- Price List All tenders'!AA62 -> R12,000.00 | BP64: ='C1- Price List All tenders'!AB62 -> R120,000.00 | BQ64: R12,000.00 | BR64: R120,000.00 | BS64: 3.00% | BT64: R116,400.00 | BU64: R3,600.00 | BV64: 0 | BW64: 0 | BX64: R4,733.11 | BY64: -28.29% | BZ64: R47,331.05 | CA64: -28% | CC64: ='C1- Price List All tenders'!AC62 -> No.of Kits | CD64: ='C1- Price List All tenders'!AD62 -> 10 | CE64: ='C1- Price List All tenders'!AE62 -> R14,649.39 | CF64: ='C1- Price List All tenders'!AF62 -> R146,493.90 | CG64: R14,649.39 | CH64: R146,493.90 | CI64: 0 | CJ64: 0 | CK64: R2,083.72 | CL64: -12.45% | CM64: R20,837.15 | CN64: -12%
B65: ='C1- Price List All tenders'!B63 -> 58. | C65: ='C1- Price List All tenders'!C63 -> Fluke 71X hose kit accessory | D65: ='C1- Price List All tenders'!D63 -> Maintenance Operations Support | E65: ='C1- Price List All tenders'!E63 -> No.of Kits | F65: ='C1- Price List All tenders'!F63 -> 10 | G65: ='C1- Price List All tenders'!G63 -> R4,467.02 | H65: ='C1- Price List All tenders'!H63 -> R44,670.24 | I65: R4,467.02 | J65: R44,670.24 | K65: 0 | M65: ='C1- Price List All tenders'!I63 -> No.of Kits | N65: ='C1- Price List All tenders'!J63 -> 10 | O65: ='C1- Price List All tenders'!K63 -> R17,348.40 | P65: ='C1- Price List All tenders'!L63 -> R173,484.00 | Q65: R17,348.40 | R65: R173,484.00 | S65: 0 | T65: 0 | U65: -R12,881.38 | V65: 288.37% | W65: -R128,813.76 | X65: 288% | Z65: ='C1- Price List All tenders'!M63 -> No.of Kits | AA65: ='C1- Price List All tenders'!N63 -> 10 | AB65: ='C1- Price List All tenders'!O63 -> R8,314.17 | AC65: ='C1- Price List All tenders'!P63 -> R83,141.70 | AD65: R8,314.17 | AE65: R83,141.70 | AF65: 0 | AG65: 0 | AH65: -R3,847.15 | AI65: 86.12% | AJ65: -R38,471.46 | AK65: 86% | AM65: ='C1- Price List All tenders'!Q63 -> No.of Kits | AN65: ='C1- Price List All tenders'!R63 -> 10 | AO65: ='C1- Price List All tenders'!S63 -> R6,850.00 | AP65: ='C1- Price List All tenders'!T63 -> R68,500.00 | AQ65: R6,850.00 | AR65: R68,500.00 | AS65: 0 | AT65: 0 | AU65: -R2,382.98 | AV65: 53.35% | AW65: -R23,829.76 | AX65: 53% | AZ65: ='C1- Price List All tenders'!U63 -> No.of Kits | BA65: ='C1- Price List All tenders'!V63 -> 10 | BB65: ='C1- Price List All tenders'!W63 -> R5,098.00 | BC65: ='C1- Price List All tenders'!X63 -> R50,980.00 | BD65: R5,098.00 | BE65: R50,980.00 | BF65: 0 | BG65: 0 | BH65: -R630.98 | BI65: 14.13% | BJ65: -R6,309.76 | BK65: 14% | BM65: ='C1- Price List All tenders'!Y63 -> No.of Kits | BN65: ='C1- Price List All tenders'!Z63 -> 10 | BO65: ='C1- Price List All tenders'!AA63 -> R4,800.00 | BP65: ='C1- Price List All tenders'!AB63 -> R48,000.00 | BQ65: R4,800.00 | BR65: R48,000.00 | BS65: 3.00% | BT65: R46,560.00 | BU65: R1,440.00 | BV65: 0 | BW65: 0 | BX65: -R332.98 | BY65: 7.45% | BZ65: -R3,329.76 | CA65: 7% | CC65: ='C1- Price List All tenders'!AC63 -> No.of Kits | CD65: ='C1- Price List All tenders'!AD63 -> 10 | CE65: ='C1- Price List All tenders'!AE63 -> R6,538.27 | CF65: ='C1- Price List All tenders'!AF63 -> R65,382.70 | CG65: R6,538.27 | CH65: R65,382.70 | CI65: 0 | CJ65: 0 | CK65: -R2,071.25 | CL65: 46.37% | CM65: -R20,712.46 | CN65: 46%
B66: ='C1- Price List All tenders'!B64 -> 59. | C66: ='C1- Price List All tenders'!C64 -> Dip tape 30m carbon steel Model Nr DC30 Freemans | D66: ='C1- Price List All tenders'!D64 -> Maintenance Operations Support | E66: ='C1- Price List All tenders'!E64 -> Each | F66: ='C1- Price List All tenders'!F64 -> 2 | G66: ='C1- Price List All tenders'!G64 -> R1,909.64 | H66: ='C1- Price List All tenders'!H64 -> R3,819.27 | I66: R1,909.64 | J66: R3,819.27 | K66: 0 | M66: ='C1- Price List All tenders'!I64 -> Each | N66: ='C1- Price List All tenders'!J64 -> 2 | O66: ='C1- Price List All tenders'!K64 -> R99,900.00 | P66: ='C1- Price List All tenders'!L64 -> R199,800.00 | Q66: R99,900.00 | R66: R199,800.00 | S66: 0 | T66: =$F66-N66 -> 0 | U66: -R97,990.37 | V66: 5131.37% | W66: -R195,980.73 | X66: 5131% | Z66: ='C1- Price List All tenders'!M64 -> Each | AA66: ='C1- Price List All tenders'!N64 -> 2 | AB66: ='C1- Price List All tenders'!O64 -> R4,831.67 | AC66: ='C1- Price List All tenders'!P64 -> R9,663.34 | AD66: R4,831.67 | AE66: R9,663.34 | AF66: 0 | AG66: 0 | AH66: -R2,922.04 | AI66: 153.02% | AJ66: -R5,844.07 | AK66: 153% | AM66: ='C1- Price List All tenders'!Q64 -> Each | AN66: ='C1- Price List All tenders'!R64 -> 2 | AO66: ='C1- Price List All tenders'!S64 -> R7,500.00 | AP66: ='C1- Price List All tenders'!T64 -> R15,000.00 | AQ66: R7,500.00 | AR66: R15,000.00 | AS66: 0 | AT66: 0 | AU66: -R5,590.37 | AV66: 292.75% | AW66: -R11,180.73 | AX66: 293% | AZ66: ='C1- Price List All tenders'!U64 -> Each | BA66: ='C1- Price List All tenders'!V64 -> 2 | BB66: ='C1- Price List All tenders'!W64 -> R6,506.00 | BC66: ='C1- Price List All tenders'!X64 -> R13,012.00 | BD66: R6,506.00 | BE66: R13,012.00 | BF66: 0 | BG66: 0 | BH66: -R4,596.37 | BI66: 240.69% | BJ66: -R9,192.73 | BK66: 241% | BM66: ='C1- Price List All tenders'!Y64 -> Each | BN66: ='C1- Price List All tenders'!Z64 -> 2 | BO66: ='C1- Price List All tenders'!AA64 -> R4,800.00 | BP66: ='C1- Price List All tenders'!AB64 -> R8,960.00 | BQ66: R4,800.00 | BR66: R9,600.00 | BS66: 3.00% | BT66: R9,312.00 | BU66: R288.00 | BV66: R640.00 | BW66: 0 | BX66: -R2,890.37 | BY66: 151.36% | BZ66: -R5,780.73 | CA66: 151% | CC66: ='C1- Price List All tenders'!AC64 -> Each | CD66: ='C1- Price List All tenders'!AD64 -> 2 | CE66: ='C1- Price List All tenders'!AE64 -> R7,255.80 | CF66: ='C1- Price List All tenders'!AF64 -> R14,511.60 | CG66: R7,255.80 | CH66: R14,511.60 | CI66: 0 | CJ66: 0 | CK66: -R5,346.17 | CL66: 279.96% | CM66: -R10,692.33 | CN66: 280%
B67: ='C1- Price List All tenders'!B65 -> 60. | C67: ='C1- Price List All tenders'!C65 -> Fluke 719Pro: Fluke 719PRO -0.8bar to 20bar Pressure Calibrator | D67: ='C1- Price List All tenders'!D65 -> Maintenance Operations Support | E67: ='C1- Price List All tenders'!E65 -> Each | F67: ='C1- Price List All tenders'!F65 -> 2 | G67: ='C1- Price List All tenders'!G65 -> R174,706.35 | H67: ='C1- Price List All tenders'!H65 -> R349,412.70 | I67: R174,706.35 | J67: R349,412.70 | K67: 0 | M67: ='C1- Price List All tenders'!I65 -> Each | N67: ='C1- Price List All tenders'!J65 -> 2 | O67: ='C1- Price List All tenders'!K65 -> R195,000.00 | P67: ='C1- Price List All tenders'!L65 -> R390,000.00 | Q67: R195,000.00 | R67: R390,000.00 | S67: 0 | T67: 0 | U67: -R20,293.65 | V67: 11.62% | W67: -R40,587.30 | X67: 12% | Z67: ='C1- Price List All tenders'!M65 -> Each | AA67: ='C1- Price List All tenders'!N65 -> 2 | AB67: ='C1- Price List All tenders'!O65 -> R147,213.07 | AC67: ='C1- Price List All tenders'!P65 -> R294,426.14 | AD67: R147,213.07 | AE67: R294,426.14 | AF67: 0 | AG67: 0 | AH67: R27,493.28 | AI67: -15.74% | AJ67: R54,986.56 | AK67: -16% | AM67: ='C1- Price List All tenders'!Q65 -> Each | AN67: ='C1- Price List All tenders'!R65 -> 2 | AO67: ='C1- Price List All tenders'!S65 -> R10,000.00 | AP67: ='C1- Price List All tenders'!T65 -> R20,000.00 | AQ67: R10,000.00 | AR67: R20,000.00 | AS67: 0 | AT67: 0 | AU67: R164,706.35 | AV67: -94.28% | AW67: R329,412.70 | AX67: -94% | AZ67: ='C1- Price List All tenders'!U65 -> Each | BA67: ='C1- Price List All tenders'!V65 -> 2 | BB67: ='C1- Price List All tenders'!W65 -> R158,197.00 | BC67: ='C1- Price List All tenders'!X65 -> R316,394.00 | BD67: R158,197.00 | BE67: R316,394.00 | BF67: 0 | BG67: 0 | BH67: R16,509.35 | BI67: -9.45% | BJ67: R33,018.70 | BK67: -9% | BM67: ='C1- Price List All tenders'!Y65 -> Each | BN67: ='C1- Price List All tenders'!Z65 -> 2 | BO67: ='C1- Price List All tenders'!AA65 -> R22,376.00 | BP67: ='C1- Price List All tenders'!AB65 -> R44,752.00 | BQ67: R22,376.00 | BR67: R44,752.00 | BS67: 3.00% | BT67: R43,409.44 | BU67: R1,342.56 | BV67: 0 | BW67: 0 | BX67: R152,330.35 | BY67: -87.19% | BZ67: R304,660.70 | CA67: -87% | CC67: ='C1- Price List All tenders'!AC65 -> Each | CD67: ='C1- Price List All tenders'!AD65 -> 2 | CE67: ='C1- Price List All tenders'!AE65 -> R202,918.08 | CF67: ='C1- Price List All tenders'!AF65 -> R405,836.16 | CG67: R202,918.08 | CH67: R405,836.16 | CI67: 0 | CJ67: 0 | CK67: -R28,211.73 | CL67: 16.15% | CM67: -R56,423.46 | CN67: 16%
B68: ='C1- Price List All tenders'!B66 -> 61. | C68: ='C1- Price List All tenders'!C66 -> Hand held 3 way communication Radio: Inrico T199 Non Display “GSM-PTT” Radio Limitless Communications! Talk anywhere you want, enjoy pure freedom in communications. Using Radio to communicate has never been more fun. With GSM-PTT you can talk to another Party on the other side of the country or even the side of the *world (Provided an Internation sim is used). Allows you to communicate via the GSM Network anywhere in the Country*. This device works with our “WALKIFLEET GSM-PTT” option added or Can be used to Communicate via Zello as a dedicated Device. Once Off Purchase (Requires SIM & WF Service), Non Display, Built-in GPS Receiver & 3G GSM Radio. Package Includes: Radio, Battery, Charger, Antenna, Carry Strap, Belt Clip, Charger Base & Transformer | D68: ='C1- Price List All tenders'!D66 -> Maintenance Operations Support | E68: ='C1- Price List All tenders'!E66 -> Each | F68: ='C1- Price List All tenders'!F66 -> 40 | G68: ='C1- Price List All tenders'!G66 -> R3,131.65 | H68: ='C1- Price List All tenders'!H66 -> R125,266.05 | I68: R3,131.65 | J68: R125,266.05 | K68: 0 | M68: ='C1- Price List All tenders'!I66 -> Each | N68: ='C1- Price List All tenders'!J66 -> 40 | O68: ='C1- Price List All tenders'!K66 -> R8,100.00 | P68: ='C1- Price List All tenders'!L66 -> R324,000.00 | Q68: R8,100.00 | R68: R324,000.00 | S68: 0 | T68: 0 | U68: -R4,968.35 | V68: 158.65% | W68: -R198,733.95 | X68: 159% | Z68: ='C1- Price List All tenders'!M66 -> Each | AA68: ='C1- Price List All tenders'!N66 -> 40 | AB68: ='C1- Price List All tenders'!O66 -> R12,732.14 | AC68: ='C1- Price List All tenders'!P66 -> R509,285.60 | AD68: R12,732.14 | AE68: R509,285.60 | AF68: 0 | AG68: 0 | AH68: -R9,600.49 | AI68: 306.56% | AJ68: -R384,019.55 | AK68: 307% | AM68: ='C1- Price List All tenders'!Q66 -> Each | AN68: ='C1- Price List All tenders'!R66 -> 40 | AO68: ='C1- Price List All tenders'!S66 -> R4,500.00 | AP68: ='C1- Price List All tenders'!T66 -> R180,000.00 | AQ68: R4,500.00 | AR68: R180,000.00 | AS68: 0 | AT68: 0 | AU68: -R1,368.35 | AV68: 43.69% | AW68: -R54,733.95 | AX68: 44% | AZ68: ='C1- Price List All tenders'!U66 -> Each | BA68: ='C1- Price List All tenders'!V66 -> 40 | BB68: ='C1- Price List All tenders'!W66 -> R5,200.00 | BC68: ='C1- Price List All tenders'!X66 -> R208,000.00 | BD68: R5,200.00 | BE68: R208,000.00 | BF68: 0 | BG68: 0 | BH68: -R2,068.35 | BI68: 66.05% | BJ68: -R82,733.95 | BK68: 66% | BM68: ='C1- Price List All tenders'!Y66 -> Each | BN68: ='C1- Price List All tenders'!Z66 -> 40 | BO68: ='C1- Price List All tenders'!AA66 -> R2,598.00 | BP68: ='C1- Price List All tenders'!AB66 -> R103,920.00 | BQ68: R2,598.00 | BR68: R103,920.00 | BS68: 3.00% | BT68: R100,802.40 | BU68: R3,117.60 | BV68: 0 | BW68: 0 | BX68: R533.65 | BY68: -17.04% | BZ68: R21,346.05 | CA68: -17% | CC68: ='C1- Price List All tenders'!AC66 -> Each | CD68: ='C1- Price List All tenders'!AD66 -> 40 | CE68: ='C1- Price List All tenders'!AE66 -> R3,625.00 | CF68: ='C1- Price List All tenders'!AF66 -> R145,000.00 | CG68: R3,625.00 | CH68: R145,000.00 | CI68: 0 | CJ68: 0 | CK68: -R493.35 | CL68: 15.75% | CM68: -R19,733.95 | CN68: 16%
B69: ='C1- Price List All tenders'!B67 -> 62. | C69: ='C1- Price List All tenders'!C67 -> Big dirty workshop wall tables (work bench): Facom Galvanised Steel Workbench, 500kg Max Load, 850mm x 1500mm. Facom RS stock no.: 235-6275, Mfr. Part No.: WB.1500GSA, Manufacturer: Facom | D69: ='C1- Price List All tenders'!D67 -> Maintenance Operations Support | E69: ='C1- Price List All tenders'!E67 -> Each | F69: ='C1- Price List All tenders'!F67 -> 4 | G69: ='C1- Price List All tenders'!G67 -> R25,286.13 | H69: ='C1- Price List All tenders'!H67 -> R101,144.53 | I69: R25,286.13 | J69: R101,144.53 | K69: 0 | M69: ='C1- Price List All tenders'!I67 -> Each | N69: ='C1- Price List All tenders'!J67 -> 4 | O69: ='C1- Price List All tenders'!K67 -> R38,880.00 | P69: ='C1- Price List All tenders'!L67 -> R155,520.00 | Q69: R38,880.00 | R69: R155,520.00 | S69: 0 | T69: 0 | U69: -R13,593.87 | V69: 53.76% | W69: -R54,375.47 | X69: 54% | Z69: ='C1- Price List All tenders'!M67 -> Each | AA69: ='C1- Price List All tenders'!N67 -> 4 | AB69: ='C1- Price List All tenders'!O67 -> R28,750.36 | AC69: ='C1- Price List All tenders'!P67 -> R115,001.44 | AD69: R28,750.36 | AE69: R115,001.44 | AF69: 0 | AG69: 0 | AH69: -R3,464.23 | AI69: 13.70% | AJ69: -R13,856.91 | AK69: 14% | AM69: ='C1- Price List All tenders'!Q67 -> Each | AN69: ='C1- Price List All tenders'!R67 -> 4 | AO69: ='C1- Price List All tenders'!S67 -> R6,800.00 | AP69: ='C1- Price List All tenders'!T67 -> R27,200.00 | AQ69: R6,800.00 | AR69: R27,200.00 | AS69: 0 | AT69: 0 | AU69: R18,486.13 | AV69: -73.11% | AW69: R73,944.53 | AX69: -73% | AZ69: ='C1- Price List All tenders'!U67 -> Each | BA69: ='C1- Price List All tenders'!V67 -> 4 | BB69: ='C1- Price List All tenders'!W67 -> R4,481.00 | BC69: ='C1- Price List All tenders'!X67 -> R17,924.00 | BD69: R4,481.00 | BE69: R17,924.00 | BF69: 0 | BG69: 0 | BH69: R20,805.13 | BI69: -82.28% | BJ69: R83,220.53 | BK69: -82% | BM69: ='C1- Price List All tenders'!Y67 -> Each | BN69: ='C1- Price List All tenders'!Z67 -> 4 | BO69: ='C1- Price List All tenders'!AA67 -> R29,799.00 | BP69: ='C1- Price List All tenders'!AB67 -> R119,196.00 | BQ69: R29,799.00 | BR69: R119,196.00 | BS69: 3.00% | BT69: R115,620.12 | BU69: R3,575.88 | BV69: 0 | BW69: 0 | BX69: -R4,512.87 | BY69: 17.85% | BZ69: -R18,051.47 | CA69: 18% | CC69: ='C1- Price List All tenders'!AC67 -> Each | CD69: ='C1- Price List All tenders'!AD67 -> 4 | CE69: ='C1- Price List All tenders'!AE67 -> R11,115.82 | CF69: ='C1- Price List All tenders'!AF67 -> R44,463.28 | CG69: R11,115.82 | CH69: R44,463.28 | CI69: 0 | CJ69: 0 | CK69: R14,170.31 | CL69: -56.04% | CM69: R56,681.25 | CN69: -56%
B70: ='C1- Price List All tenders'!B68 -> 63. | C70: ='C1- Price List All tenders'!C68 -> Heavy duty vice grip: Harden heavy duty bench vice 26.5kg | D70: ='C1- Price List All tenders'!D68 -> Maintenance Operations Support | E70: ='C1- Price List All tenders'!E68 -> Each | F70: ='C1- Price List All tenders'!F68 -> 4 | G70: ='C1- Price List All tenders'!G68 -> R5,253.89 | H70: ='C1- Price List All tenders'!H68 -> R21,015.54 | I70: R5,253.89 | J70: R21,015.54 | K70: 0 | M70: ='C1- Price List All tenders'!I68 -> Each | N70: ='C1- Price List All tenders'!J68 -> 4 | O70: ='C1- Price List All tenders'!K68 -> R13,083.12 | P70: ='C1- Price List All tenders'!L68 -> R52,332.48 | Q70: R13,083.12 | R70: R52,332.48 | S70: 0 | T70: 0 | U70: -R7,829.24 | V70: 149.02% | W70: -R31,316.94 | X70: 149% | Z70: ='C1- Price List All tenders'!M68 -> Each | AA70: ='C1- Price List All tenders'!N68 -> 4 | AB70: ='C1- Price List All tenders'!O68 -> R8,757.80 | AC70: ='C1- Price List All tenders'!P68 -> R35,031.20 | AD70: R8,757.80 | AE70: R35,031.20 | AF70: 0 | AG70: 0 | AH70: -R3,503.92 | AI70: 66.69% | AJ70: -R14,015.66 | AK70: 67% | AM70: ='C1- Price List All tenders'!Q68 -> Each | AN70: ='C1- Price List All tenders'!R68 -> 4 | AO70: ='C1- Price List All tenders'!S68 -> R5,700.00 | AP70: ='C1- Price List All tenders'!T68 -> R22,800.00 | AQ70: R5,700.00 | AR70: R22,800.00 | AS70: 0 | AT70: 0 | AU70: -R446.12 | AV70: 8.49% | AW70: -R1,784.46 | AX70: 8% | AZ70: ='C1- Price List All tenders'!U68 -> Each | BA70: ='C1- Price List All tenders'!V68 -> 4 | BB70: ='C1- Price List All tenders'!W68 -> R5,200.00 | BC70: ='C1- Price List All tenders'!X68 -> R20,800.00 | BD70: R5,200.00 | BE70: R20,800.00 | BF70: 0 | BG70: 0 | BH70: R53.89 | BI70: -1.03% | BJ70: R215.54 | BK70: -1% | BM70: ='C1- Price List All tenders'!Y68 -> Each | BN70: ='C1- Price List All tenders'!Z68 -> 4 | BO70: ='C1- Price List All tenders'!AA68 -> R24,899.00 | BP70: ='C1- Price List All tenders'!AB68 -> R99,596.00 | BQ70: R24,899.00 | BR70: R99,596.00 | BS70: 3.00% | BT70: R96,608.12 | BU70: R2,987.88 | BV70: 0 | BW70: 0 | BX70: -R19,645.12 | BY70: 373.92% | BZ70: -R78,580.46 | CA70: 374% | CC70: ='C1- Price List All tenders'!AC68 -> Each | CD70: ='C1- Price List All tenders'!AD68 -> 4 | CE70: ='C1- Price List All tenders'!AE68 -> R5,798.55 | CF70: ='C1- Price List All tenders'!AF68 -> R23,194.20 | CG70: R5,798.55 | CH70: R23,194.20 | CI70: 0 | CJ70: 0 | CK70: -R544.67 | CL70: 10.37% | CM70: -R2,178.66 | CN70: 10%
B71: ='C1- Price List All tenders'!B69 -> 64. | C71: ='C1- Price List All tenders'!C69 -> 24 V Power supply: ALITOVE 24V Power Supply 2.7A 65W ACDC Adapter with Safety Features and Broad Compatibility | D71: ='C1- Price List All tenders'!D69 -> Maintenance Operations Support | E71: ='C1- Price List All tenders'!E69 -> Each | F71: ='C1- Price List All tenders'!F69 -> 4 | G71: ='C1- Price List All tenders'!G69 -> R760.37 | H71: ='C1- Price List All tenders'!H69 -> R3,041.49 | I71: R760.37 | J71: R3,041.49 | K71: 0 | M71: ='C1- Price List All tenders'!I69 -> Each | N71: ='C1- Price List All tenders'!J69 -> 4 | O71: ='C1- Price List All tenders'!K69 -> R4,536.00 | P71: ='C1- Price List All tenders'!L69 -> R18,144.00 | Q71: R4,536.00 | R71: R18,144.00 | S71: 0 | T71: 0 | U71: -R3,775.63 | V71: 496.55% | W71: -R15,102.51 | X71: 497% | Z71: ='C1- Price List All tenders'!M69 -> Each | AA71: ='C1- Price List All tenders'!N69 -> 4 | AB71: ='C1- Price List All tenders'!O69 -> R7,251.75 | AC71: ='C1- Price List All tenders'!P69 -> R29,007.00 | AD71: R7,251.75 | AE71: R29,007.00 | AF71: 0 | AG71: 0 | AH71: -R6,491.38 | AI71: 853.71% | AJ71: -R25,965.51 | AK71: 854% | AM71: ='C1- Price List All tenders'!Q69 -> Each | AN71: ='C1- Price List All tenders'!R69 -> 4 | AO71: ='C1- Price List All tenders'!S69 -> R8,500.00 | AP71: ='C1- Price List All tenders'!T69 -> R34,000.00 | AQ71: R8,500.00 | AR71: R34,000.00 | AS71: 0 | AT71: 0 | AU71: -R7,739.63 | AV71: 1017.87% | AW71: -R30,958.51 | AX71: 1018% | AZ71: ='C1- Price List All tenders'!U69 -> Each | BA71: ='C1- Price List All tenders'!V69 -> 4 | BB71: ='C1- Price List All tenders'!W69 -> R593.00 | BC71: ='C1- Price List All tenders'!X69 -> R2,372.00 | BD71: R593.00 | BE71: R2,372.00 | BF71: 0 | BG71: 0 | BH71: R167.37 | BI71: -22.01% | BJ71: R669.49 | BK71: -22% | BM71: ='C1- Price List All tenders'!Y69 -> Each | BN71: ='C1- Price List All tenders'!Z69 -> 4 | BO71: ='C1- Price List All tenders'!AA69 -> R4,600.00 | BP71: ='C1- Price List All tenders'!AB69 -> R18,400.00 | BQ71: R4,600.00 | BR71: R18,400.00 | BS71: 3.00% | BT71: R17,848.00 | BU71: R552.00 | BV71: 0 | BW71: 0 | BX71: -R3,839.63 | BY71: 504.97% | BZ71: -R15,358.51 | CA71: 505% | CC71: ='C1- Price List All tenders'!AC69 -> Each | CD71: ='C1- Price List All tenders'!AD69 -> 4 | CE71: ='C1- Price List All tenders'!AE69 -> R467.89 | CF71: ='C1- Price List All tenders'!AF69 -> R1,871.56 | CG71: R467.89 | CH71: R1,871.56 | CI71: 0 | CJ71: 0 | CK71: R292.48 | CL71: -38.47% | CM71: R1,169.93 | CN71: -38%
B72: ='C1- Price List All tenders'!B70 -> 65. | C72: ='C1- Price List All tenders'!C70 -> Pneumatic air tapping points with isolating valves | D72: ='C1- Price List All tenders'!D70 -> Maintenance Operations Support | E72: ='C1- Price List All tenders'!E70 -> Each | F72: ='C1- Price List All tenders'!F70 -> 4 | G72: ='C1- Price List All tenders'!G70 -> R2,100.00 | H72: ='C1- Price List All tenders'!H70 -> R8,400.00 | I72: R2,100.00 | J72: R8,400.00 | K72: 0 | M72: ='C1- Price List All tenders'!I70 -> Each | N72: ='C1- Price List All tenders'!J70 -> 4 | O72: ='C1- Price List All tenders'!K70 -> R19,112.76 | P72: ='C1- Price List All tenders'!L70 -> R76,451.04 | Q72: =O72 -> R19,112.76 | R72: R76,451.04 | S72: 0 | T72: 0 | U72: -R17,012.76 | V72: 810.13% | W72: -R68,051.04 | X72: 810% | Z72: ='C1- Price List All tenders'!M70 -> Each | AA72: ='C1- Price List All tenders'!N70 -> 4 | AB72: ='C1- Price List All tenders'!O70 -> R9,327.80 | AC72: ='C1- Price List All tenders'!P70 -> R37,311.20 | AD72: R9,327.80 | AE72: R37,311.20 | AF72: 0 | AG72: 0 | AH72: -R7,227.80 | AI72: 344.18% | AJ72: -R28,911.20 | AK72: 344% | AM72: ='C1- Price List All tenders'!Q70 -> Each | AN72: ='C1- Price List All tenders'!R70 -> 4 | AO72: ='C1- Price List All tenders'!S70 -> R25,000.00 | AP72: ='C1- Price List All tenders'!T70 -> R100,000.00 | AQ72: R25,000.00 | AR72: R100,000.00 | AS72: 0 | AT72: 0 | AU72: -R22,900.00 | AV72: 1090.48% | AW72: -R91,600.00 | AX72: 1090% | AZ72: ='C1- Price List All tenders'!U70 -> Each | BA72: ='C1- Price List All tenders'!V70 -> 4 | BB72: ='C1- Price List All tenders'!W70 -> R34,170.00 | BC72: ='C1- Price List All tenders'!X70 -> R136,680.00 | BD72: R34,170.00 | BE72: R136,680.00 | BF72: 0 | BG72: 0 | BH72: -R32,070.00 | BI72: 1527.14% | BJ72: -R128,280.00 | BK72: 1527% | BM72: ='C1- Price List All tenders'!Y70 -> Each | BN72: ='C1- Price List All tenders'!Z70 -> 4 | BO72: ='C1- Price List All tenders'!AA70 -> R14,578.00 | BP72: ='C1- Price List All tenders'!AB70 -> R58,312.00 | BQ72: R14,578.00 | BR72: R58,312.00 | BS72: 3.00% | BT72: R56,562.64 | BU72: R1,749.36 | BV72: 0 | BW72: 0 | BX72: -R12,478.00 | BY72: 594.19% | BZ72: -R49,912.00 | CA72: 594% | CC72: ='C1- Price List All tenders'!AC70 -> Each | CD72: ='C1- Price List All tenders'!AD70 -> 4 | CE72: ='C1- Price List All tenders'!AE70 -> R1,296.30 | CF72: ='C1- Price List All tenders'!AF70 -> R5,185.20 | CG72: R1,296.30 | CH72: R5,185.20 | CI72: 0 | CJ72: 0 | CK72: R803.70 | CL72: -38.27% | CM72: R3,214.80 | CN72: -38%
B73: ='C1- Price List All tenders'!B71 -> 66. | C73: ='C1- Price List All tenders'!C71 -> Wall Storage Cupboards: MAC AFRIC Complete Garage Cabinet / Storage System, SKU: TCABIN010. A comprehensive solution catering to all your storage requirements. This inclusive package features two 5-Drawer Cabinets, ideal for organizing tools within easy reach. For items requiring more space, the Double Door Tall Cabinet provides ample room for larger equipment and supplies. Enhancing storage versatility, the system incorporates two types of wall cabinets positioned above the work area: 2x Lift Up Wall Cabinets and 1x Sliding Door Wall Cabinet. These overhead storage options offer adaptability for various items. A sophisticated Back Panel adds a touch of elegance to the arrangement, while the durable Pressed Wood Top extends across the cabinets, providing a sturdy work surface. Transform your garage€™s functionality and aesthetics with this premium-grade storage system. | D73: ='C1- Price List All tenders'!D71 -> Maintenance Operations Support | E73: ='C1- Price List All tenders'!E71 -> Each | F73: ='C1- Price List All tenders'!F71 -> 3 | G73: ='C1- Price List All tenders'!G71 -> R40,881.75 | H73: ='C1- Price List All tenders'!H71 -> R122,645.25 | I73: =G73 -> R40,881.75 | J73: =I73*F73 -> R122,645.25 | K73: =J73-H73 -> 0 | M73: ='C1- Price List All tenders'!I71 -> Each | N73: ='C1- Price List All tenders'!J71 -> 3 | O73: ='C1- Price List All tenders'!K71 -> R90,000.00 | P73: ='C1- Price List All tenders'!L71 -> R270,000.00 | Q73: R90,000.00 | R73: =Q73*N73 -> R270,000.00 | S73: =R73-P73 -> 0 | T73: =$F73-N73 -> 0 | U73: =$I73-Q73 -> -R49,118.25 | V73: =(((Q73/$I73)*100)-100)/100 -> 120.15% | W73: =$J73-R73 -> -R147,354.75 | X73: =(((R73/$J73)*100)-100)/100 -> 120% | Z73: ='C1- Price List All tenders'!M71 -> Each | AA73: ='C1- Price List All tenders'!N71 -> 3 | AB73: ='C1- Price List All tenders'!O71 -> R98,327.70 | AC73: ='C1- Price List All tenders'!P71 -> R294,983.10 | AD73: =AB73 -> R98,327.70 | AE73: R294,983.10 | AF73: =AE73-AC73 -> 0 | AG73: =$F73-AA73 -> 0 | AH73: -R57,445.95 | AI73: =(((AD73/$I73)*100)-100)/100 -> 140.52% | AJ73: =$J73-AE73 -> -R172,337.85 | AK73: =(((AE73/$J73)*100)-100)/100 -> 141% | AM73: ='C1- Price List All tenders'!Q71 -> Each | AN73: ='C1- Price List All tenders'!R71 -> 3 | AO73: ='C1- Price List All tenders'!S71 -> R25,000.00 | AP73: ='C1- Price List All tenders'!T71 -> R75,000.00 | AQ73: =AO73 -> R25,000.00 | AR73: R75,000.00 | AS73: =AR73-AP73 -> 0 | AT73: =$F73-AN73 -> 0 | AU73: R15,881.75 | AV73: =(((AQ73/$I73)*100)-100)/100 -> -38.85% | AW73: =$J73-AR73 -> R47,645.25 | AX73: =(((AR73/$J73)*100)-100)/100 -> -39% | AZ73: ='C1- Price List All tenders'!U71 -> Each | BA73: ='C1- Price List All tenders'!V71 -> 3 | BB73: ='C1- Price List All tenders'!W71 -> R11,694.00 | BC73: ='C1- Price List All tenders'!X71 -> R35,082.00 | BD73: =BB73 -> R11,694.00 | BE73: R35,082.00 | BF73: =BE73-BC73 -> 0 | BG73: =$F73-BA73 -> 0 | BH73: R29,187.75 | BI73: =(((BD73/$I73)*100)-100)/100 -> -71.40% | BJ73: =$J73-BE73 -> R87,563.25 | BK73: =(((BE73/$J73)*100)-100)/100 -> -71% | BM73: ='C1- Price List All tenders'!Y71 -> Each | BN73: ='C1- Price List All tenders'!Z71 -> 3 | BO73: ='C1- Price List All tenders'!AA71 -> R66,850.00 | BP73: ='C1- Price List All tenders'!AB71 -> R200,530.00 | BQ73: =BO73 -> R66,850.00 | BR73: R200,550.00 | BS73: 3.00% | BT73: =BR73-(BR73*BS73) -> R194,533.50 | BU73: =BR73-BT73 -> R6,016.50 | BV73: =BR73-BP73 -> R20.00 | BW73: =$F73-BN73 -> 0 | BX73: -R25,968.25 | BY73: =(((BQ73/$I73)*100)-100)/100 -> 63.52% | BZ73: =$J73-BR73 -> -R77,904.75 | CA73: =(((BR73/$J73)*100)-100)/100 -> 64% | CC73: ='C1- Price List All tenders'!AC71 -> Each | CD73: ='C1- Price List All tenders'!AD71 -> 3 | CE73: ='C1- Price List All tenders'!AE71 -> R46,327.50 | CF73: ='C1- Price List All tenders'!AF71 -> R138,982.50 | CG73: =CE73 -> R46,327.50 | CH73: R138,982.50 | CI73: =CH73-CF73 -> 0 | CJ73: =$F73-CD73 -> 0 | CK73: -R5,445.75 | CL73: =(((CG73/$I73)*100)-100)/100 -> 13.32% | CM73: =$J73-CH73 -> -R16,337.25 | CN73: =(((CH73/$J73)*100)-100)/100 -> 13%
B74: ='C1- Price List All tenders'!B72 -> 67. | C74: ='C1- Price List All tenders'!C72 -> Spanner holder racks: EMPTY WALL RACK FOR TENG TOOLS SPANNERS, SKU WRSP12-R | D74: ='C1- Price List All tenders'!D72 -> Maintenance Operations Support | E74: ='C1- Price List All tenders'!E72 -> Each | F74: ='C1- Price List All tenders'!F72 -> 2 | G74: ='C1- Price List All tenders'!G72 -> R559.23 | H74: ='C1- Price List All tenders'!H72 -> R1,118.45 | I74: R559.23 | J74: R1,118.45 | K74: 0 | M74: ='C1- Price List All tenders'!I72 -> Each | N74: ='C1- Price List All tenders'!J72 -> 2 | O74: ='C1- Price List All tenders'!K72 -> R7,743.60 | P74: ='C1- Price List All tenders'!L72 -> R15,487.20 | Q74: R7,743.60 | R74: R15,487.20 | S74: 0 | T74: 0 | U74: -R7,184.37 | V74: 1284.70% | W74: -R14,368.75 | X74: 1285% | Z74: ='C1- Price List All tenders'!M72 -> Each | AA74: ='C1- Price List All tenders'!N72 -> 2 | AB74: ='C1- Price List All tenders'!O72 -> R28,327.70 | AC74: ='C1- Price List All tenders'!P72 -> R56,655.40 | AD74: R28,327.70 | AE74: =AD74*AA74 -> R56,655.40 | AF74: 0 | AG74: 0 | AH74: =$I74-AD74 -> -R27,768.47 | AI74: 4965.51% | AJ74: -R55,536.95 | AK74: 4966% | AM74: ='C1- Price List All tenders'!Q72 -> Each | AN74: ='C1- Price List All tenders'!R72 -> 2 | AO74: ='C1- Price List All tenders'!S72 -> R45,000.00 | AP74: ='C1- Price List All tenders'!T72 -> R90,000.00 | AQ74: R45,000.00 | AR74: =AQ74*AN74 -> R90,000.00 | AS74: 0 | AT74: 0 | AU74: =$I74-AQ74 -> -R44,440.77 | AV74: 7946.82% | AW74: -R88,881.55 | AX74: 7947% | AZ74: ='C1- Price List All tenders'!U72 -> Each | BA74: ='C1- Price List All tenders'!V72 -> 2 | BB74: ='C1- Price List All tenders'!W72 -> R533.00 | BC74: ='C1- Price List All tenders'!X72 -> R1,066.00 | BD74: R533.00 | BE74: =BD74*BA74 -> R1,066.00 | BF74: 0 | BG74: 0 | BH74: =$I74-BD74 -> R26.23 | BI74: -4.69% | BJ74: R52.45 | BK74: -5% | BM74: ='C1- Price List All tenders'!Y72 -> Each | BN74: ='C1- Price List All tenders'!Z72 -> 2 | BO74: ='C1- Price List All tenders'!AA72 -> R2,698.00 | BP74: ='C1- Price List All tenders'!AB72 -> R5,396.00 | BQ74: R2,698.00 | BR74: =BQ74*BN74 -> R5,396.00 | BS74: 3.00% | BT74: R5,234.12 | BU74: R161.88 | BV74: 0 | BW74: 0 | BX74: =$I74-BQ74 -> -R2,138.77 | BY74: 382.45% | BZ74: -R4,277.55 | CA74: 382% | CC74: ='C1- Price List All tenders'!AC72 -> Each | CD74: ='C1- Price List All tenders'!AD72 -> 2 | CE74: ='C1- Price List All tenders'!AE72 -> R2,912.92 | CF74: ='C1- Price List All tenders'!AF72 -> R5,825.84 | CG74: R2,912.92 | CH74: =CG74*CD74 -> R5,825.84 | CI74: 0 | CJ74: 0 | CK74: =$I74-CG74 -> -R2,353.69 | CL74: 420.88% | CM74: -R4,707.39 | CN74: 421%
B75: ='C1- Price List All tenders'!B73 -> 68. | C75: ='C1- Price List All tenders'!C73 -> Wrench holder: Heavy Duty Tool Organizer Wall Holder Set. Material: Iron + PVC, Product dimensions: Double-layer hooks: 25 x 17 x 9.5 cm, Rack: 40 x 10 x 1.8cm, Maximum load capacity of a single hook: 35kg, Product weight: 3.8 kg | D75: ='C1- Price List All tenders'!D73 -> Maintenance Operations Support | E75: ='C1- Price List All tenders'!E73 -> Each | F75: ='C1- Price List All tenders'!F73 -> 2 | G75: ='C1- Price List All tenders'!G73 -> R1,090.64 | H75: ='C1- Price List All tenders'!H73 -> R2,181.27 | I75: R1,090.64 | J75: R2,181.27 | K75: 0 | M75: ='C1- Price List All tenders'!I73 -> Each | N75: ='C1- Price List All tenders'!J73 -> 2 | O75: ='C1- Price List All tenders'!K73 -> R2,977.56 | P75: ='C1- Price List All tenders'!L73 -> R5,955.12 | Q75: R2,977.56 | R75: R5,955.12 | S75: 0 | T75: 0 | U75: -R1,886.93 | V75: 173.01% | W75: -R3,773.85 | X75: 173% | Z75: ='C1- Price List All tenders'!M73 -> Each | AA75: ='C1- Price List All tenders'!N73 -> 2 | AB75: ='C1- Price List All tenders'!O73 -> R23,817.95 | AC75: ='C1- Price List All tenders'!P73 -> R47,635.90 | AD75: R23,817.95 | AE75: R47,635.90 | AF75: 0 | AG75: 0 | AH75: -R22,727.32 | AI75: 2083.86% | AJ75: -R45,454.63 | AK75: 2084% | AM75: ='C1- Price List All tenders'!Q73 -> Each | AN75: ='C1- Price List All tenders'!R73 -> 2 | AO75: ='C1- Price List All tenders'!S73 -> R68,000.00 | AP75: ='C1- Price List All tenders'!T73 -> R136,000.00 | AQ75: R68,000.00 | AR75: R136,000.00 | AS75: 0 | AT75: 0 | AU75: -R66,909.37 | AV75: 6134.90% | AW75: -R133,818.73 | AX75: 6135% | AZ75: ='C1- Price List All tenders'!U73 -> Each | BA75: ='C1- Price List All tenders'!V73 -> 2 | BB75: ='C1- Price List All tenders'!W73 -> R975.00 | BC75: ='C1- Price List All tenders'!X73 -> R1,950.00 | BD75: R975.00 | BE75: R1,950.00 | BF75: 0 | BG75: 0 | BH75: R115.64 | BI75: -10.60% | BJ75: R231.27 | BK75: -11% | BM75: ='C1- Price List All tenders'!Y73 -> Each | BN75: ='C1- Price List All tenders'!Z73 -> 2 | BO75: ='C1- Price List All tenders'!AA73 -> R2,618.00 | BP75: ='C1- Price List All tenders'!AB73 -> R5,236.00 | BQ75: R2,618.00 | BR75: R5,236.00 | BS75: 3.00% | BT75: R5,078.92 | BU75: R157.08 | BV75: 0 | BW75: 0 | BX75: -R1,527.37 | BY75: 140.04% | BZ75: -R3,054.73 | CA75: 140% | CC75: ='C1- Price List All tenders'!AC73 -> Each | CD75: ='C1- Price List All tenders'!AD73 -> 2 | CE75: ='C1- Price List All tenders'!AE73 -> R1,158.55 | CF75: ='C1- Price List All tenders'!AF73 -> R2,317.10 | CG75: R1,158.55 | CH75: R2,317.10 | CI75: 0 | CJ75: 0 | CK75: -R67.92 | CL75: 6.23% | CM75: -R135.83 | CN75: 6%
B76: ='C1- Price List All tenders'!B74 -> 69. | C76: ='C1- Price List All tenders'!C74 -> Tool organiser Set (small): Gedore 1410 Artisan Tool Kit-Elec Light Current - 668110 | D76: ='C1- Price List All tenders'!D74 -> Maintenance Operations Support | E76: ='C1- Price List All tenders'!E74 -> No.of Sets | F76: ='C1- Price List All tenders'!F74 -> 2 | G76: ='C1- Price List All tenders'!G74 -> R26,400.87 | H76: ='C1- Price List All tenders'!H74 -> R52,801.75 | I76: R26,400.87 | J76: R52,801.75 | K76: 0 | M76: ='C1- Price List All tenders'!I74 -> No.of Sets | N76: ='C1- Price List All tenders'!J74 -> 2 | O76: ='C1- Price List All tenders'!K74 -> R67,051.80 | P76: ='C1- Price List All tenders'!L74 -> R134,103.60 | Q76: R67,051.80 | R76: R134,103.60 | S76: 0 | T76: 0 | U76: -R40,650.93 | V76: 153.98% | W76: -R81,301.85 | X76: 154% | Z76: ='C1- Price List All tenders'!M74 -> No.of Sets | AA76: ='C1- Price List All tenders'!N74 -> 2 | AB76: ='C1- Price List All tenders'!O74 -> R12,317.18 | AC76: ='C1- Price List All tenders'!P74 -> R24,634.36 | AD76: R12,317.18 | AE76: R24,634.36 | AF76: 0 | AG76: 0 | AH76: R14,083.69 | AI76: -53.35% | AJ76: R28,167.39 | AK76: -53% | AM76: ='C1- Price List All tenders'!Q74 -> No.of Sets | AN76: ='C1- Price List All tenders'!R74 -> 2 | AO76: ='C1- Price List All tenders'!S74 -> R24,000.00 | AP76: ='C1- Price List All tenders'!T74 -> R48,000.00 | AQ76: R24,000.00 | AR76: R48,000.00 | AS76: 0 | AT76: 0 | AU76: R2,400.87 | AV76: -9.09% | AW76: R4,801.75 | AX76: -9% | AZ76: ='C1- Price List All tenders'!U74 -> No.of Sets | BA76: ='C1- Price List All tenders'!V74 -> 2 | BB76: ='C1- Price List All tenders'!W74 -> R15,069.00 | BC76: ='C1- Price List All tenders'!X74 -> R30,138.00 | BD76: R15,069.00 | BE76: R30,138.00 | BF76: 0 | BG76: 0 | BH76: R11,331.87 | BI76: -42.92% | BJ76: R22,663.75 | BK76: -43% | BM76: ='C1- Price List All tenders'!Y74 -> No.of Sets | BN76: ='C1- Price List All tenders'!Z74 -> 2 | BO76: ='C1- Price List All tenders'!AA74 -> R2,698.00 | BP76: ='C1- Price List All tenders'!AB74 -> R5,396.00 | BQ76: R2,698.00 | BR76: R5,396.00 | BS76: 3.00% | BT76: R5,234.12 | BU76: R161.88 | BV76: 0 | BW76: 0 | BX76: R23,702.87 | BY76: -89.78% | BZ76: R47,405.75 | CA76: -90% | CC76: ='C1- Price List All tenders'!AC74 -> No.of Sets | CD76: ='C1- Price List All tenders'!AD74 -> 2 | CE76: ='C1- Price List All tenders'!AE74 -> R30,007.75 | CF76: ='C1- Price List All tenders'!AF74 -> R60,015.50 | CG76: R30,007.75 | CH76: R60,015.50 | CI76: 0 | CJ76: 0 | CK76: -R3,606.88 | CL76: 13.66% | CM76: -R7,213.75 | CN76: 14%
B77: ='C1- Price List All tenders'!B75 -> 70. | C77: ='C1- Price List All tenders'!C75 -> Tool organiser Set (medium): Gedore 1410 Artisan Tool Kit - Medium Current - 668113 | D77: ='C1- Price List All tenders'!D75 -> Maintenance Operations Support | E77: ='C1- Price List All tenders'!E75 -> No.of Sets | F77: ='C1- Price List All tenders'!F75 -> 2 | G77: ='C1- Price List All tenders'!G75 -> R54,290.08 | H77: ='C1- Price List All tenders'!H75 -> R108,580.15 | I77: R54,290.08 | J77: R108,580.15 | K77: 0 | M77: ='C1- Price List All tenders'!I75 -> No.of Sets | N77: ='C1- Price List All tenders'!J75 -> 2 | O77: ='C1- Price List All tenders'!K75 -> R100,000.00 | P77: ='C1- Price List All tenders'!L75 -> R200,000.00 | Q77: R100,000.00 | R77: R200,000.00 | S77: 0 | T77: 0 | U77: -R45,709.92 | V77: 84.20% | W77: -R91,419.85 | X77: 84% | Z77: ='C1- Price List All tenders'!M75 -> No.of Sets | AA77: ='C1- Price List All tenders'!N75 -> 2 | AB77: ='C1- Price List All tenders'!O75 -> R12,819.19 | AC77: ='C1- Price List All tenders'!P75 -> R25,638.38 | AD77: R12,819.19 | AE77: R25,638.38 | AF77: 0 | AG77: 0 | AH77: R41,470.89 | AI77: -76.39% | AJ77: R82,941.77 | AK77: -76% | AM77: ='C1- Price List All tenders'!Q75 -> No.of Sets | AN77: ='C1- Price List All tenders'!R75 -> 2 | AO77: ='C1- Price List All tenders'!S75 -> R27,000.00 | AP77: ='C1- Price List All tenders'!T75 -> R54,000.00 | AQ77: R27,000.00 | AR77: R54,000.00 | AS77: 0 | AT77: 0 | AU77: R27,290.08 | AV77: -50.27% | AW77: R54,580.15 | AX77: -50% | AZ77: ='C1- Price List All tenders'!U75 -> No.of Sets | BA77: ='C1- Price List All tenders'!V75 -> 2 | BB77: ='C1- Price List All tenders'!W75 -> R30,988.00 | BC77: ='C1- Price List All tenders'!X75 -> R61,976.00 | BD77: R30,988.00 | BE77: R61,976.00 | BF77: 0 | BG77: 0 | BH77: R23,302.08 | BI77: -42.92% | BJ77: R46,604.15 | BK77: -43% | BM77: ='C1- Price List All tenders'!Y75 -> No.of Sets | BN77: ='C1- Price List All tenders'!Z75 -> 2 | BO77: ='C1- Price List All tenders'!AA75 -> R2,298.00 | BP77: ='C1- Price List All tenders'!AB75 -> R4,596.00 | BQ77: R2,298.00 | BR77: R4,596.00 | BS77: 3.00% | BT77: R4,458.12 | BU77: R137.88 | BV77: 0 | BW77: 0 | BX77: R51,992.08 | BY77: -95.77% | BZ77: R103,984.15 | CA77: -96% | CC77: ='C1- Price List All tenders'!AC75 -> No.of Sets | CD77: ='C1- Price List All tenders'!AD75 -> 2 | CE77: ='C1- Price List All tenders'!AE75 -> R61,707.65 | CF77: ='C1- Price List All tenders'!AF75 -> R123,415.30 | CG77: R61,707.65 | CH77: R123,415.30 | CI77: 0 | CJ77: 0 | CK77: -R7,417.57 | CL77: 13.66% | CM77: -R14,835.15 | CN77: 14%
B78: ='C1- Price List All tenders'!B76 -> 71. | C78: ='C1- Price List All tenders'!C76 -> Tool organiser Set (Large): Gedore 1410 Artisan Tool Kit - General - 668112 | D78: ='C1- Price List All tenders'!D76 -> Maintenance Operations Support | E78: ='C1- Price List All tenders'!E76 -> No.of Sets | F78: ='C1- Price List All tenders'!F76 -> 2 | G78: ='C1- Price List All tenders'!G76 -> R48,192.43 | H78: ='C1- Price List All tenders'!H76 -> R96,384.86 | I78: R48,192.43 | J78: R96,384.86 | K78: 0 | M78: ='C1- Price List All tenders'!I76 -> No.of Sets | N78: ='C1- Price List All tenders'!J76 -> 2 | O78: ='C1- Price List All tenders'!K76 -> R82,746.36 | P78: ='C1- Price List All tenders'!L76 -> R165,492.72 | Q78: R82,746.36 | R78: R165,492.72 | S78: 0 | T78: 0 | U78: -R34,553.93 | V78: 71.70% | W78: -R69,107.86 | X78: 72% | Z78: ='C1- Price List All tenders'!M76 -> No.of Sets | AA78: ='C1- Price List All tenders'!N76 -> 2 | AB78: ='C1- Price List All tenders'!O76 -> R12,817.17 | AC78: ='C1- Price List All tenders'!P76 -> R25,634.34 | AD78: R12,817.17 | AE78: R25,634.34 | AF78: 0 | AG78: 0 | AH78: R35,375.26 | AI78: -73.40% | AJ78: R70,750.52 | AK78: -73% | AM78: ='C1- Price List All tenders'!Q76 -> No.of Sets | AN78: ='C1- Price List All tenders'!R76 -> 2 | AO78: ='C1- Price List All tenders'!S76 -> R47,500.00 | AP78: ='C1- Price List All tenders'!T76 -> R95,000.00 | AQ78: R47,500.00 | AR78: R95,000.00 | AS78: 0 | AT78: 0 | AU78: R692.43 | AV78: -1.44% | AW78: R1,384.86 | AX78: -1% | AZ78: ='C1- Price List All tenders'!U76 -> No.of Sets | BA78: ='C1- Price List All tenders'!V76 -> 2 | BB78: ='C1- Price List All tenders'!W76 -> R27,507.00 | BC78: ='C1- Price List All tenders'!X76 -> R55,014.00 | BD78: R27,507.00 | BE78: R55,014.00 | BF78: 0 | BG78: 0 | BH78: R20,685.43 | BI78: -42.92% | BJ78: R41,370.86 | BK78: -43% | BM78: ='C1- Price List All tenders'!Y76 -> No.of Sets | BN78: ='C1- Price List All tenders'!Z76 -> 2 | BO78: ='C1- Price List All tenders'!AA76 -> R2,298.00 | BP78: ='C1- Price List All tenders'!AB76 -> R4,596.00 | BQ78: R2,298.00 | BR78: R4,596.00 | BS78: 3.00% | BT78: R4,458.12 | BU78: R137.88 | BV78: 0 | BW78: 0 | BX78: R45,894.43 | BY78: -95.23% | BZ78: R91,788.86 | CA78: -95% | CC78: ='C1- Price List All tenders'!AC76 -> No.of Sets | CD78: ='C1- Price List All tenders'!AD76 -> 2 | CE78: ='C1- Price List All tenders'!AE76 -> R54,776.65 | CF78: ='C1- Price List All tenders'!AF76 -> R109,553.30 | CG78: R54,776.65 | CH78: R109,553.30 | CI78: 0 | CJ78: 0 | CK78: -R6,584.22 | CL78: 13.66% | CM78: -R13,168.44 | CN78: 14%
B79: ='C1- Price List All tenders'!B77 -> 72. | C79: ='C1- Price List All tenders'!C77 -> Steel chemical cage | D79: ='C1- Price List All tenders'!D77 -> Maintenance Operations Support | E79: ='C1- Price List All tenders'!E77 -> Each | F79: ='C1- Price List All tenders'!F77 -> 1 | G79: ='C1- Price List All tenders'!G77 -> R10,500.00 | H79: ='C1- Price List All tenders'!H77 -> R10,500.00 | I79: R10,500.00 | J79: R10,500.00 | K79: 0 | M79: ='C1- Price List All tenders'!I77 -> Each | N79: ='C1- Price List All tenders'!J77 -> 1 | O79: ='C1- Price List All tenders'!K77 -> R11,016.00 | P79: ='C1- Price List All tenders'!L77 -> R11,016.00 | Q79: R11,016.00 | R79: R11,016.00 | S79: 0 | T79: 0 | U79: -R516.00 | V79: 4.91% | W79: -R516.00 | X79: 5% | Z79: ='C1- Price List All tenders'!M77 -> Each | AA79: ='C1- Price List All tenders'!N77 -> 1 | AB79: ='C1- Price List All tenders'!O77 -> R18,311.72 | AC79: ='C1- Price List All tenders'!P77 -> R18,311.72 | AD79: R18,311.72 | AE79: R18,311.72 | AF79: 0 | AG79: 0 | AH79: -R7,811.72 | AI79: 74.40% | AJ79: -R7,811.72 | AK79: 74% | AM79: ='C1- Price List All tenders'!Q77 -> Each | AN79: ='C1- Price List All tenders'!R77 -> 1 | AO79: ='C1- Price List All tenders'!S77 -> R65,000.00 | AP79: ='C1- Price List All tenders'!T77 -> R65,000.00 | AQ79: R65,000.00 | AR79: R65,000.00 | AS79: 0 | AT79: 0 | AU79: -R54,500.00 | AV79: 519.05% | AW79: -R54,500.00 | AX79: 519% | AZ79: ='C1- Price List All tenders'!U77 -> Each | BA79: ='C1- Price List All tenders'!V77 -> 1 | BB79: ='C1- Price List All tenders'!W77 -> R20,384.00 | BC79: ='C1- Price List All tenders'!X77 -> R20,384.00 | BD79: R20,384.00 | BE79: R20,384.00 | BF79: 0 | BG79: 0 | BH79: -R9,884.00 | BI79: 94.13% | BJ79: -R9,884.00 | BK79: 94% | BM79: ='C1- Price List All tenders'!Y77 -> Each | BN79: ='C1- Price List All tenders'!Z77 -> 1 | BO79: ='C1- Price List All tenders'!AA77 -> R2,400.00 | BP79: ='C1- Price List All tenders'!AB77 -> R2,400.00 | BQ79: R2,400.00 | BR79: R2,400.00 | BS79: 3.00% | BT79: R2,328.00 | BU79: R72.00 | BV79: 0 | BW79: 0 | BX79: R8,100.00 | BY79: -77.14% | BZ79: R8,100.00 | CA79: -77% | CC79: ='C1- Price List All tenders'!AC77 -> Each | CD79: ='C1- Price List All tenders'!AD77 -> 1 | CE79: ='C1- Price List All tenders'!AE77 -> R65,975.00 | CF79: ='C1- Price List All tenders'!AF77 -> R65,975.00 | CG79: R65,975.00 | CH79: R65,975.00 | CI79: 0 | CJ79: 0 | CK79: -R55,475.00 | CL79: 528.33% | CM79: -R55,475.00 | CN79: 528%
B80: ='C1- Price List All tenders'!B78 -> 73. | C80: ='C1- Price List All tenders'!C78 -> Hard head torch: RS PRO LED Head Torch 300 lm. RS PRO, RS stock no.: 176-6031, Manufacturer: RS PRO | D80: ='C1- Price List All tenders'!D78 -> Maintenance Operations Support | E80: ='C1- Price List All tenders'!E78 -> Each | F80: ='C1- Price List All tenders'!F78 -> 40 | G80: ='C1- Price List All tenders'!G78 -> R731.69 | H80: ='C1- Price List All tenders'!H78 -> R29,267.78 | I80: R731.69 | J80: R29,267.78 | K80: 0 | M80: ='C1- Price List All tenders'!I78 -> Each | N80: ='C1- Price List All tenders'!J78 -> 40 | O80: ='C1- Price List All tenders'!K78 -> R2,078.46 | P80: ='C1- Price List All tenders'!L78 -> R83,138.40 | Q80: R2,078.46 | R80: R83,138.40 | S80: 0 | T80: 0 | U80: -R1,346.77 | V80: 184.06% | W80: -R53,870.62 | X80: 184% | Z80: ='C1- Price List All tenders'!M78 -> Each | AA80: ='C1- Price List All tenders'!N78 -> 40 | AB80: ='C1- Price List All tenders'!O78 -> R6,321.71 | AC80: ='C1- Price List All tenders'!P78 -> R252,868.40 | AD80: R6,321.71 | AE80: R252,868.40 | AF80: 0 | AG80: 0 | AH80: -R5,590.02 | AI80: 763.98% | AJ80: -R223,600.62 | AK80: 764% | AM80: ='C1- Price List All tenders'!Q78 -> Each | AN80: ='C1- Price List All tenders'!R78 -> 40 | AO80: ='C1- Price List All tenders'!S78 -> R3,500.00 | AP80: ='C1- Price List All tenders'!T78 -> R140,000.00 | AQ80: R3,500.00 | AR80: R140,000.00 | AS80: 0 | AT80: 0 | AU80: -R2,768.31 | AV80: 378.34% | AW80: -R110,732.22 | AX80: 378% | AZ80: ='C1- Price List All tenders'!U78 -> Each | BA80: ='C1- Price List All tenders'!V78 -> 40 | BB80: ='C1- Price List All tenders'!W78 -> R712.00 | BC80: ='C1- Price List All tenders'!X78 -> R28,480.00 | BD80: R712.00 | BE80: R28,480.00 | BF80: 0 | BG80: 0 | BH80: R19.69 | BI80: -2.69% | BJ80: R787.78 | BK80: -3% | BM80: ='C1- Price List All tenders'!Y78 -> Each | BN80: ='C1- Price List All tenders'!Z78 -> 40 | BO80: ='C1- Price List All tenders'!AA78 -> R6,996.00 | BP80: ='C1- Price List All tenders'!AB78 -> R279,840.00 | BQ80: R6,996.00 | BR80: R279,840.00 | BS80: 3.00% | BT80: R271,444.80 | BU80: R8,395.20 | BV80: 0 | BW80: 0 | BX80: -R6,264.31 | BY80: 856.14% | BZ80: -R250,572.22 | CA80: 856% | CC80: ='C1- Price List All tenders'!AC78 -> Each | CD80: ='C1- Price List All tenders'!AD78 -> 40 | CE80: ='C1- Price List All tenders'!AE78 -> R912.44 | CF80: ='C1- Price List All tenders'!AF78 -> R36,497.60 | CG80: R912.44 | CH80: R36,497.60 | CI80: 0 | CJ80: 0 | CK80: -R180.75 | CL80: 24.70% | CM80: -R7,229.82 | CN80: 25%
B81: ='C1- Price List All tenders'!B79 -> 74. | C81: ='C1- Price List All tenders'!C79 -> Portable torch: Police 2800W Rechargeable LED Adjustable Torch | D81: ='C1- Price List All tenders'!D79 -> Maintenance Operations Support | E81: ='C1- Price List All tenders'!E79 -> Each | F81: ='C1- Price List All tenders'!F79 -> 40 | G81: ='C1- Price List All tenders'!G79 -> R341.25 | H81: ='C1- Price List All tenders'!H79 -> R13,650.00 | I81: R341.25 | J81: R13,650.00 | K81: 0 | M81: ='C1- Price List All tenders'!I79 -> Each | N81: ='C1- Price List All tenders'!J79 -> 40 | O81: ='C1- Price List All tenders'!K79 -> R4,212.00 | P81: ='C1- Price List All tenders'!L79 -> R168,480.00 | Q81: R4,212.00 | R81: R168,480.00 | S81: 0 | T81: 0 | U81: -R3,870.75 | V81: 1134.29% | W81: -R154,830.00 | X81: 1134% | Z81: ='C1- Price List All tenders'!M79 -> Each | AA81: ='C1- Price List All tenders'!N79 -> 40 | AB81: ='C1- Price List All tenders'!O79 -> R7,312.19 | AC81: ='C1- Price List All tenders'!P79 -> R292,487.60 | AD81: R7,312.19 | AE81: R292,487.60 | AF81: 0 | AG81: 0 | AH81: -R6,970.94 | AI81: 2042.77% | AJ81: -R278,837.60 | AK81: 2043% | AM81: ='C1- Price List All tenders'!Q79 -> Each | AN81: ='C1- Price List All tenders'!R79 -> 40 | AO81: ='C1- Price List All tenders'!S79 -> R10,000.00 | AP81: ='C1- Price List All tenders'!T79 -> R400,000.00 | AQ81: R10,000.00 | AR81: R400,000.00 | AS81: 0 | AT81: 0 | AU81: -R9,658.75 | AV81: 2830.40% | AW81: -R386,350.00 | AX81: 2830% | AZ81: ='C1- Price List All tenders'!U79 -> Each | BA81: ='C1- Price List All tenders'!V79 -> 40 | BB81: ='C1- Price List All tenders'!W79 -> R452.00 | BC81: ='C1- Price List All tenders'!X79 -> R18,080.00 | BD81: R452.00 | BE81: R18,080.00 | BF81: 0 | BG81: 0 | BH81: -R110.75 | BI81: 32.45% | BJ81: -R4,430.00 | BK81: 32% | BM81: ='C1- Price List All tenders'!Y79 -> Each | BN81: ='C1- Price List All tenders'!Z79 -> 40 | BO81: ='C1- Price List All tenders'!AA79 -> R4,796.00 | BP81: ='C1- Price List All tenders'!AB79 -> R191,840.00 | BQ81: R4,796.00 | BR81: R191,840.00 | BS81: 3.00% | BT81: R186,084.80 | BU81: R5,755.20 | BV81: 0 | BW81: 0 | BX81: -R4,454.75 | BY81: 1305.42% | BZ81: -R178,190.00 | CA81: 1305% | CC81: ='C1- Price List All tenders'!AC79 -> Each | CD81: ='C1- Price List All tenders'!AD79 -> 40 | CE81: ='C1- Price List All tenders'!AE79 -> R676.90 | CF81: ='C1- Price List All tenders'!AF79 -> R27,076.00 | CG81: R676.90 | CH81: R27,076.00 | CI81: 0 | CJ81: 0 | CK81: -R335.65 | CL81: 98.36% | CM81: -R13,426.00 | CN81: 98%
B82: ='C1- Price List All tenders'!B80 -> 75. | C82: ='C1- Price List All tenders'!C80 -> Portable HDPE Pipe welding machine: Hdpe Pipe Electrofusion Welding Machine. SPECIFICATIONS: Weight: 15KG, Tube Diameter: 20-200, Dimensions: 645*475*550, Usage: HDPE Pipes and Fittings, PRODUCT NAME: Electro Fusion Machine for HDPE Pipes and Pipe Fittings, WELDING RANGE: 20-200 | D82: ='C1- Price List All tenders'!D80 -> Maintenance Operations Support | E82: ='C1- Price List All tenders'!E80 -> Each | F82: ='C1- Price List All tenders'!F80 -> 2 | G82: ='C1- Price List All tenders'!G80 -> R39,844.35 | H82: ='C1- Price List All tenders'!H80 -> R79,688.70 | I82: R39,844.35 | J82: R79,688.70 | K82: 0 | M82: ='C1- Price List All tenders'!I80 -> Each | N82: ='C1- Price List All tenders'!J80 -> 2 | O82: ='C1- Price List All tenders'!K80 -> R538,900.00 | P82: ='C1- Price List All tenders'!L80 -> R1,077,800.00 | Q82: R538,900.00 | R82: R1,077,800.00 | S82: 0 | T82: 0 | U82: -R499,055.65 | V82: 1252.51% | W82: -R998,111.30 | X82: 1253% | Z82: ='C1- Price List All tenders'!M80 -> Each | AA82: ='C1- Price List All tenders'!N80 -> 2 | AB82: ='C1- Price List All tenders'!O80 -> R178,317.27 | AC82: ='C1- Price List All tenders'!P80 -> R356,634.54 | AD82: R178,317.27 | AE82: R356,634.54 | AF82: 0 | AG82: 0 | AH82: -R138,472.92 | AI82: 347.53% | AJ82: -R276,945.84 | AK82: 348% | AM82: ='C1- Price List All tenders'!Q80 -> Each | AN82: ='C1- Price List All tenders'!R80 -> 2 | AO82: ='C1- Price List All tenders'!S80 -> R65,000.00 | AP82: ='C1- Price List All tenders'!T80 -> R130,000.00 | AQ82: R65,000.00 | AR82: R130,000.00 | AS82: 0 | AT82: 0 | AU82: -R25,155.65 | AV82: 63.13% | AW82: -R50,311.30 | AX82: 63% | AZ82: ='C1- Price List All tenders'!U80 -> Each | BA82: ='C1- Price List All tenders'!V80 -> 2 | BB82: ='C1- Price List All tenders'!W80 -> R84,500.00 | BC82: ='C1- Price List All tenders'!X80 -> R169,000.00 | BD82: R84,500.00 | BE82: R169,000.00 | BF82: 0 | BG82: 0 | BH82: -R44,655.65 | BI82: 112.08% | BJ82: -R89,311.30 | BK82: 112% | BM82: ='C1- Price List All tenders'!Y80 -> Each | BN82: ='C1- Price List All tenders'!Z80 -> 2 | BO82: ='C1- Price List All tenders'!AA80 -> R84,732.00 | BP82: ='C1- Price List All tenders'!AB80 -> R169,464.00 | BQ82: R84,732.00 | BR82: R169,464.00 | BS82: 3.00% | BT82: R164,380.08 | BU82: R5,083.92 | BV82: 0 | BW82: 0 | BX82: -R44,887.65 | BY82: 112.66% | BZ82: -R89,775.30 | CA82: 113% | CC82: ='C1- Price List All tenders'!AC80 -> Each | CD82: ='C1- Price List All tenders'!AD80 -> 2 | CE82: ='C1- Price List All tenders'!AE80 -> R72,941.02 | CF82: ='C1- Price List All tenders'!AF80 -> R145,882.04 | CG82: R72,941.02 | CH82: R145,882.04 | CI82: 0 | CJ82: 0 | CK82: -R33,096.67 | CL82: 83.06% | CM82: -R66,193.34 | CN82: 83%
B83: ='C1- Price List All tenders'!B81 -> 76. | C83: ='C1- Price List All tenders'!C81 -> Portable pump: Honda 80mm Petrol Water Pump - 80mm Gp160H 5Hp. Self-priming aluminium centrifugal pumps, available in 50mm. Connected to Honda petrol engines, GP160. Complete with quick-connectors, sieve and clamps, Suitable for pumping dirty water, refilling water carts and flood irrigation, Honda 80mm Petrol Water Pump 3.1L | D83: ='C1- Price List All tenders'!D81 -> Maintenance Operations Support | E83: ='C1- Price List All tenders'!E81 -> Each | F83: ='C1- Price List All tenders'!F81 -> 2 | G83: ='C1- Price List All tenders'!G81 -> R14,874.41 | H83: ='C1- Price List All tenders'!H81 -> R29,748.81 | I83: R14,874.41 | J83: R29,748.81 | K83: 0 | M83: ='C1- Price List All tenders'!I81 -> Each | N83: ='C1- Price List All tenders'!J81 -> 2 | O83: ='C1- Price List All tenders'!K81 -> R45,647.03 | P83: ='C1- Price List All tenders'!L81 -> R91,294.06 | Q83: R45,647.03 | R83: R91,294.06 | S83: 0 | T83: 0 | U83: -R30,772.63 | V83: 206.88% | W83: -R61,545.25 | X83: 207% | Z83: ='C1- Price List All tenders'!M81 -> Each | AA83: ='C1- Price List All tenders'!N81 -> 2 | AB83: ='C1- Price List All tenders'!O81 -> R9,421.72 | AC83: ='C1- Price List All tenders'!P81 -> R18,843.44 | AD83: R9,421.72 | AE83: R18,843.44 | AF83: 0 | AG83: 0 | AH83: R5,452.69 | AI83: -36.66% | AJ83: R10,905.37 | AK83: -37% | AM83: ='C1- Price List All tenders'!Q81 -> Each | AN83: ='C1- Price List All tenders'!R81 -> 2 | AO83: ='C1- Price List All tenders'!S81 -> R16,000.00 | AP83: ='C1- Price List All tenders'!T81 -> R32,000.00 | AQ83: R16,000.00 | AR83: R32,000.00 | AS83: 0 | AT83: 0 | AU83: -R1,125.60 | AV83: 7.57% | AW83: -R2,251.19 | AX83: 8% | AZ83: ='C1- Price List All tenders'!U81 -> Each | BA83: ='C1- Price List All tenders'!V81 -> 2 | BB83: ='C1- Price List All tenders'!W81 -> R11,700.00 | BC83: ='C1- Price List All tenders'!X81 -> R23,400.00 | BD83: R11,700.00 | BE83: R23,400.00 | BF83: 0 | BG83: 0 | BH83: R3,174.41 | BI83: -21.34% | BJ83: R6,348.81 | BK83: -21% | BM83: ='C1- Price List All tenders'!Y81 -> Each | BN83: ='C1- Price List All tenders'!Z81 -> 2 | BO83: ='C1- Price List All tenders'!AA81 -> R134,444.00 | BP83: ='C1- Price List All tenders'!AB81 -> R268,888.00 | BQ83: R134,444.00 | BR83: R268,888.00 | BS83: 3.00% | BT83: R260,821.36 | BU83: R8,066.64 | BV83: 0 | BW83: 0 | BX83: -R119,569.60 | BY83: 803.86% | BZ83: -R239,139.19 | CA83: 804% | CC83: ='C1- Price List All tenders'!AC81 -> Each | CD83: ='C1- Price List All tenders'!AD81 -> 2 | CE83: ='C1- Price List All tenders'!AE81 -> R14,942.25 | CF83: ='C1- Price List All tenders'!AF81 -> R29,884.50 | CG83: R14,942.25 | CH83: R29,884.50 | CI83: 0 | CJ83: 0 | CK83: -R67.84 | CL83: 0.46% | CM83: -R135.69 | CN83: 0%
B84: ='C1- Price List All tenders'!B82 -> 77. | C84: ='C1- Price List All tenders'!C82 -> Torque wrench 42 – 210 Nm: | D84: ='C1- Price List All tenders'!D82 -> Maintenance Operations Support | E84: ='C1- Price List All tenders'!E82 -> Each | F84: ='C1- Price List All tenders'!F82 -> 2 | G84: ='C1- Price List All tenders'!G82 -> R7,490.66 | H84: ='C1- Price List All tenders'!H82 -> R14,981.31 | I84: R7,490.66 | J84: R14,981.31 | K84: 0 | M84: ='C1- Price List All tenders'!I82 -> Each | N84: ='C1- Price List All tenders'!J82 -> 2 | O84: ='C1- Price List All tenders'!K82 -> R4,536.00 | P84: ='C1- Price List All tenders'!L82 -> R9,072.00 | Q84: R4,536.00 | R84: R9,072.00 | S84: 0 | T84: 0 | U84: R2,954.66 | V84: -39.44% | W84: R5,909.31 | X84: -39% | Z84: ='C1- Price List All tenders'!M82 -> Each | AA84: ='C1- Price List All tenders'!N82 -> 2 | AB84: ='C1- Price List All tenders'!O82 -> R7,831.42 | AC84: ='C1- Price List All tenders'!P82 -> R15,662.84 | AD84: R7,831.42 | AE84: R15,662.84 | AF84: 0 | AG84: 0 | AH84: -R340.76 | AI84: 4.55% | AJ84: -R681.53 | AK84: 5% | AM84: ='C1- Price List All tenders'!Q82 -> Each | AN84: ='C1- Price List All tenders'!R82 -> 2 | AO84: ='C1- Price List All tenders'!S82 -> R6,000.00 | AP84: ='C1- Price List All tenders'!T82 -> R12,000.00 | AQ84: R6,000.00 | AR84: R12,000.00 | AS84: 0 | AT84: 0 | AU84: R1,490.66 | AV84: -19.90% | AW84: R2,981.31 | AX84: -20% | AZ84: ='C1- Price List All tenders'!U82 -> Each | BA84: ='C1- Price List All tenders'!V82 -> 2 | BB84: ='C1- Price List All tenders'!W82 -> R1,809.00 | BC84: ='C1- Price List All tenders'!X82 -> R3,618.00 | BD84: R1,809.00 | BE84: R3,618.00 | BF84: 0 | BG84: 0 | BH84: R5,681.66 | BI84: -75.85% | BJ84: R11,363.31 | BK84: -76% | BM84: ='C1- Price List All tenders'!Y82 -> Each | BN84: ='C1- Price List All tenders'!Z82 -> 2 | BO84: ='C1- Price List All tenders'!AA82 -> R4,400.00 | BP84: ='C1- Price List All tenders'!AB82 -> R8,800.00 | BQ84: R4,400.00 | BR84: R8,800.00 | BS84: 3.00% | BT84: R8,536.00 | BU84: R264.00 | BV84: 0 | BW84: 0 | BX84: R3,090.66 | BY84: -41.26% | BZ84: R6,181.31 | CA84: -41% | CC84: ='C1- Price List All tenders'!AC82 -> Each | CD84: ='C1- Price List All tenders'!AD82 -> 2 | CE84: ='C1- Price List All tenders'!AE82 -> R4,539.81 | CF84: ='C1- Price List All tenders'!AF82 -> R9,079.62 | CG84: R4,539.81 | CH84: R9,079.62 | CI84: 0 | CJ84: 0 | CK84: R2,950.85 | CL84: -39.39% | CM84: R5,901.69 | CN84: -39%
B85: ='C1- Price List All tenders'!B83 -> 78. | C85: ='C1- Price List All tenders'!C83 -> Gasket Ring Cutter: Allpax Heavy-Duty Gasket Cutter 1/4 - 13", Cutter/Accessories only,AX6000. DESCRIPTION: (6) Standard-Duty Cutting Blades, (6) Heavy-Duty Cutting Blades, (1) Cutter Block Assembly,(1) Storage Case,(1) Center Pin Handle, (1)1-3⁄16" Short Center Pin, 1-7⁄16 Medium Center Pins, 1-11⁄16" Long Center Pins, Disc Pins, (1) Post With Offset Pin,Pivot Post, (1) Cutting Knob, (2) Knurled Nut For Pivot Post, (1) Dove Tail Designer Template,Bolt Hole Locator Template | D85: ='C1- Price List All tenders'!D83 -> Maintenance Operations Support | E85: ='C1- Price List All tenders'!E83 -> Each | F85: ='C1- Price List All tenders'!F83 -> 2 | G85: ='C1- Price List All tenders'!G83 -> R20,270.25 | H85: ='C1- Price List All tenders'!H83 -> R40,540.50 | I85: R20,270.25 | J85: R40,540.50 | K85: 0 | M85: ='C1- Price List All tenders'!I83 -> Each | N85: ='C1- Price List All tenders'!J83 -> 2 | O85: ='C1- Price List All tenders'!K83 -> R60,000.00 | P85: ='C1- Price List All tenders'!L83 -> R120,000.00 | Q85: R60,000.00 | R85: R120,000.00 | S85: 0 | T85: 0 | U85: -R39,729.75 | V85: 196.00% | W85: -R79,459.50 | X85: 196% | Z85: ='C1- Price List All tenders'!M83 -> Each | AA85: ='C1- Price List All tenders'!N83 -> 2 | AB85: ='C1- Price List All tenders'!O83 -> R31,074.21 | AC85: ='C1- Price List All tenders'!P83 -> R62,148.42 | AD85: R31,074.21 | AE85: R62,148.42 | AF85: 0 | AG85: 0 | AH85: -R10,803.96 | AI85: 53.30% | AJ85: -R21,607.92 | AK85: 53% | AM85: ='C1- Price List All tenders'!Q83 -> Each | AN85: ='C1- Price List All tenders'!R83 -> 2 | AO85: ='C1- Price List All tenders'!S83 -> R14,500.00 | AP85: ='C1- Price List All tenders'!T83 -> R29,000.00 | AQ85: R14,500.00 | AR85: R29,000.00 | AS85: 0 | AT85: 0 | AU85: R5,770.25 | AV85: -28.47% | AW85: R11,540.50 | AX85: -28% | AZ85: ='C1- Price List All tenders'!U83 -> Each | BA85: ='C1- Price List All tenders'!V83 -> 2 | BB85: ='C1- Price List All tenders'!W83 -> R11,958.00 | BC85: ='C1- Price List All tenders'!X83 -> R23,916.00 | BD85: R11,958.00 | BE85: R23,916.00 | BF85: 0 | BG85: 0 | BH85: R8,312.25 | BI85: -41.01% | BJ85: R16,624.50 | BK85: -41% | BM85: ='C1- Price List All tenders'!Y83 -> Each | BN85: ='C1- Price List All tenders'!Z83 -> 2 | BO85: ='C1- Price List All tenders'!AA83 -> R96,220.00 | BP85: ='C1- Price List All tenders'!AB83 -> R192,440.00 | BQ85: R96,220.00 | BR85: R192,440.00 | BS85: 3.00% | BT85: R186,666.80 | BU85: R5,773.20 | BV85: 0 | BW85: 0 | BX85: -R75,949.75 | BY85: 374.69% | BZ85: -R151,899.50 | CA85: 375% | CC85: ='C1- Price List All tenders'!AC83 -> Each | CD85: ='C1- Price List All tenders'!AD83 -> 2 | CE85: ='C1- Price List All tenders'!AE83 -> R14,884.96 | CF85: ='C1- Price List All tenders'!AF83 -> R29,769.92 | CG85: R14,884.96 | CH85: R29,769.92 | CI85: 0 | CJ85: 0 | CK85: R5,385.29 | CL85: -26.57% | CM85: R10,770.58 | CN85: -27%
B86: ='C1- Price List All tenders'!B84 -> 79. | C86: ='C1- Price List All tenders'!C84 -> Magnetic Base Drill: MAC AFRIC 35 MM Magnetic Base Drill, SKU: EDRILM001 The MAC AFRIC portable Magnetic base drill features a high performance motor with a robust sturdy design for increased productivity. Suitable for onsite hole cutting in steel plates such as HBeams, framework, shipbuilding,bridge construction,steel reinforcements,and much other metalworking and construction jobs. Features Compact design with heavyduty magnet Drills up to 35mm diameter Sturdy feed handles Includes 13mm drill chuck & adaptor to use twist drills Includes Coolant tank kit Safety chain 13mm drill chuck and adaptor Blow mould plastic case. | D86: ='C1- Price List All tenders'!D84 -> Maintenance Operations Support | E86: ='C1- Price List All tenders'!E84 -> Each | F86: ='C1- Price List All tenders'!F84 -> 2 | G86: ='C1- Price List All tenders'!G84 -> R11,534.25 | H86: ='C1- Price List All tenders'!H84 -> R23,068.50 | I86: R11,534.25 | J86: R23,068.50 | K86: 0 | M86: ='C1- Price List All tenders'!I84 -> Each | N86: ='C1- Price List All tenders'!J84 -> 2 | O86: ='C1- Price List All tenders'!K84 -> R23,310.00 | P86: ='C1- Price List All tenders'!L84 -> R46,620.00 | Q86: R23,310.00 | R86: R46,620.00 | S86: 0 | T86: 0 | U86: -R11,775.75 | V86: 102.09% | W86: -R23,551.50 | X86: 102% | Z86: ='C1- Price List All tenders'!M84 -> Each | AA86: ='C1- Price List All tenders'!N84 -> 2 | AB86: ='C1- Price List All tenders'!O84 -> R16,450.00 | AC86: ='C1- Price List All tenders'!P84 -> R32,900.00 | AD86: R16,450.00 | AE86: R32,900.00 | AF86: 0 | AG86: 0 | AH86: -R4,915.75 | AI86: 42.62% | AJ86: -R9,831.50 | AK86: 43% | AM86: ='C1- Price List All tenders'!Q84 -> Each | AN86: ='C1- Price List All tenders'!R84 -> 2 | AO86: ='C1- Price List All tenders'!S84 -> R2,800.00 | AP86: ='C1- Price List All tenders'!T84 -> R5,600.00 | AQ86: R2,800.00 | AR86: R5,600.00 | AS86: 0 | AT86: 0 | AU86: R8,734.25 | AV86: -75.72% | AW86: R17,468.50 | AX86: -76% | AZ86: ='C1- Price List All tenders'!U84 -> Each | BA86: ='C1- Price List All tenders'!V84 -> 2 | BB86: ='C1- Price List All tenders'!W84 -> R9,553.00 | BC86: ='C1- Price List All tenders'!X84 -> R19,106.00 | BD86: R9,553.00 | BE86: R19,106.00 | BF86: 0 | BG86: 0 | BH86: R1,981.25 | BI86: -17.18% | BJ86: R3,962.50 | BK86: -17% | BM86: ='C1- Price List All tenders'!Y84 -> Each | BN86: ='C1- Price List All tenders'!Z84 -> 2 | BO86: ='C1- Price List All tenders'!AA84 -> R46,600.00 | BP86: ='C1- Price List All tenders'!AB84 -> R93,200.00 | BQ86: R46,600.00 | BR86: R93,200.00 | BS86: 3.00% | BT86: R90,404.00 | BU86: R2,796.00 | BV86: 0 | BW86: 0 | BX86: -R35,065.75 | BY86: 304.01% | BZ86: -R70,131.50 | CA86: 304% | CC86: ='C1- Price List All tenders'!AC84 -> Each | CD86: ='C1- Price List All tenders'!AD84 -> 2 | CE86: ='C1- Price List All tenders'!AE84 -> R12,252.50 | CF86: ='C1- Price List All tenders'!AF84 -> R24,505.00 | CG86: R12,252.50 | CH86: R24,505.00 | CI86: 0 | CJ86: 0 | CK86: -R718.25 | CL86: 6.23% | CM86: -R1,436.50 | CN86: 6%
B87: ='C1- Price List All tenders'!B85 -> 80. | C87: ='C1- Price List All tenders'!C85 -> Portable lights: Eurolux FS4LED Portable Tripod Worklight - Black/Yellow (20W) | D87: ='C1- Price List All tenders'!D85 -> Maintenance Operations Support | E87: ='C1- Price List All tenders'!E85 -> Each | F87: ='C1- Price List All tenders'!F85 -> 6 | G87: ='C1- Price List All tenders'!G85 -> R1,855.04 | H87: ='C1- Price List All tenders'!H85 -> R11,130.21 | I87: R1,855.04 | J87: R11,130.21 | K87: 0 | M87: ='C1- Price List All tenders'!I85 -> Each | N87: ='C1- Price List All tenders'!J85 -> 6 | O87: ='C1- Price List All tenders'!K85 -> R2,446.20 | P87: ='C1- Price List All tenders'!L85 -> R14,677.20 | Q87: R2,446.20 | R87: R14,677.20 | S87: 0 | T87: 0 | U87: -R591.17 | V87: 31.87% | W87: -R3,546.99 | X87: 32% | Z87: ='C1- Price List All tenders'!M85 -> Each | AA87: ='C1- Price List All tenders'!N85 -> 6 | AB87: ='C1- Price List All tenders'!O85 -> R4,231.22 | AC87: ='C1- Price List All tenders'!P85 -> R25,387.32 | AD87: R4,231.22 | AE87: R25,387.32 | AF87: 0 | AG87: 0 | AH87: -R2,376.19 | AI87: 128.09% | AJ87: -R14,257.11 | AK87: 128% | AM87: ='C1- Price List All tenders'!Q85 -> Each | AN87: ='C1- Price List All tenders'!R85 -> 6 | AO87: ='C1- Price List All tenders'!S85 -> R540.00 | AP87: ='C1- Price List All tenders'!T85 -> R3,240.00 | AQ87: R540.00 | AR87: R3,240.00 | AS87: 0 | AT87: 0 | AU87: R1,315.04 | AV87: -70.89% | AW87: R7,890.21 | AX87: -71% | AZ87: ='C1- Price List All tenders'!U85 -> Each | BA87: ='C1- Price List All tenders'!V85 -> 6 | BB87: ='C1- Price List All tenders'!W85 -> R1,767.00 | BC87: ='C1- Price List All tenders'!X85 -> R10,602.00 | BD87: R1,767.00 | BE87: R10,602.00 | BF87: 0 | BG87: 0 | BH87: R88.04 | BI87: -4.75% | BJ87: R528.21 | BK87: -5% | BM87: ='C1- Price List All tenders'!Y85 -> Each | BN87: ='C1- Price List All tenders'!Z85 -> 6 | BO87: ='C1- Price List All tenders'!AA85 -> R10,560.00 | BP87: ='C1- Price List All tenders'!AB85 -> R63,360.00 | BQ87: R10,560.00 | BR87: R63,360.00 | BS87: 3.00% | BT87: R61,459.20 | BU87: R1,900.80 | BV87: 0 | BW87: 0 | BX87: -R8,704.97 | BY87: 469.26% | BZ87: -R52,229.79 | CA87: 469% | CC87: ='C1- Price List All tenders'!AC85 -> Each | CD87: ='C1- Price List All tenders'!AD85 -> 6 | CE87: ='C1- Price List All tenders'!AE85 -> R1,970.55 | CF87: ='C1- Price List All tenders'!AF85 -> R11,823.30 | CG87: R1,970.55 | CH87: R11,823.30 | CI87: 0 | CJ87: 0 | CK87: -R115.52 | CL87: 6.23% | CM87: -R693.09 | CN87: 6%
B88: ='C1- Price List All tenders'!B86 -> 81. | C88: ='C1- Price List All tenders'!C86 -> Impact Range: Or Cordless Makita 18V Impact Wrench | D88: ='C1- Price List All tenders'!D86 -> Maintenance Operations Support | E88: ='C1- Price List All tenders'!E86 -> Each | F88: ='C1- Price List All tenders'!F86 -> 2 | G88: ='C1- Price List All tenders'!G86 -> R7,350.00 | H88: ='C1- Price List All tenders'!H86 -> R14,700.00 | I88: R7,350.00 | J88: R14,700.00 | K88: 0 | M88: ='C1- Price List All tenders'!I86 -> Each | N88: ='C1- Price List All tenders'!J86 -> 2 | O88: ='C1- Price List All tenders'!K86 -> R2,821.09 | P88: ='C1- Price List All tenders'!L86 -> R5,642.17 | Q88: R2,821.09 | R88: R5,642.17 | S88: 0 | T88: 0 | U88: R4,528.92 | V88: -61.62% | W88: R9,057.83 | X88: -62% | Z88: ='C1- Price List All tenders'!M86 -> Each | AA88: ='C1- Price List All tenders'!N86 -> 2 | AB88: ='C1- Price List All tenders'!O86 -> R8,899.71 | AC88: ='C1- Price List All tenders'!P86 -> R17,799.42 | AD88: R8,899.71 | AE88: R17,799.42 | AF88: 0 | AG88: 0 | AH88: -R1,549.71 | AI88: 21.08% | AJ88: -R3,099.42 | AK88: 21% | AM88: ='C1- Price List All tenders'!Q86 -> Each | AN88: ='C1- Price List All tenders'!R86 -> 2 | AO88: ='C1- Price List All tenders'!S86 -> R680.00 | AP88: ='C1- Price List All tenders'!T86 -> R1,360.00 | AQ88: R680.00 | AR88: R1,360.00 | AS88: 0 | AT88: 0 | AU88: R6,670.00 | AV88: -90.75% | AW88: R13,340.00 | AX88: -91% | AZ88: ='C1- Price List All tenders'!U86 -> Each | BA88: ='C1- Price List All tenders'!V86 -> 2 | BB88: ='C1- Price List All tenders'!W86 -> R4,643.00 | BC88: ='C1- Price List All tenders'!X86 -> R9,286.00 | BD88: R4,643.00 | BE88: R9,286.00 | BF88: 0 | BG88: 0 | BH88: R2,707.00 | BI88: -36.83% | BJ88: R5,414.00 | BK88: -37% | BM88: ='C1- Price List All tenders'!Y86 -> Each | BN88: ='C1- Price List All tenders'!Z86 -> 2 | BO88: ='C1- Price List All tenders'!AA86 -> R36,996.00 | BP88: ='C1- Price List All tenders'!AB86 -> R73,992.00 | BQ88: R36,996.00 | BR88: R73,992.00 | BS88: 3.00% | BT88: R71,772.24 | BU88: R2,219.76 | BV88: 0 | BW88: 0 | BX88: -R29,646.00 | BY88: 403.35% | BZ88: -R59,292.00 | CA88: 403% | CC88: ='C1- Price List All tenders'!AC86 -> Each | CD88: ='C1- Price List All tenders'!AD86 -> 2 | CE88: ='C1- Price List All tenders'!AE86 -> R5,357.75 | CF88: ='C1- Price List All tenders'!AF86 -> R10,715.50 | CG88: R5,357.75 | CH88: R10,715.50 | CI88: 0 | CJ88: 0 | CK88: R1,992.25 | CL88: -27.11% | CM88: R3,984.50 | CN88: -27%
B89: ='C1- Price List All tenders'!B87 -> 82. | C89: ='C1- Price List All tenders'!C87 -> Welding machines: Pinnacle welding PrimiMIG 555 DP 380V 500A double pulse MIG welder with separate wire feeder. | D89: ='C1- Price List All tenders'!D87 -> Maintenance Operations Support | E89: ='C1- Price List All tenders'!E87 -> Each | F89: ='C1- Price List All tenders'!F87 -> 4 | G89: ='C1- Price List All tenders'!G87 -> R75,075.00 | H89: ='C1- Price List All tenders'!H87 -> R300,300.00 | I89: R75,075.00 | J89: R300,300.00 | K89: 0 | M89: ='C1- Price List All tenders'!I87 -> Each | N89: ='C1- Price List All tenders'!J87 -> 4 | O89: ='C1- Price List All tenders'!K87 -> R84,240.00 | P89: ='C1- Price List All tenders'!L87 -> R336,960.00 | Q89: R84,240.00 | R89: R336,960.00 | S89: 0 | T89: 0 | U89: -R9,165.00 | V89: 12.21% | W89: -R36,660.00 | X89: 12% | Z89: ='C1- Price List All tenders'!M87 -> Each | AA89: ='C1- Price List All tenders'!N87 -> 4 | AB89: ='C1- Price List All tenders'!O87 -> R91,321.11 | AC89: ='C1- Price List All tenders'!P87 -> R365,284.44 | AD89: R91,321.11 | AE89: R365,284.44 | AF89: 0 | AG89: 0 | AH89: -R16,246.11 | AI89: 21.64% | AJ89: -R64,984.44 | AK89: 22% | AM89: ='C1- Price List All tenders'!Q87 -> Each | AN89: ='C1- Price List All tenders'!R87 -> 4 | AO89: ='C1- Price List All tenders'!S87 -> R8,000.00 | AP89: ='C1- Price List All tenders'!T87 -> R32,000.00 | AQ89: R8,000.00 | AR89: R32,000.00 | AS89: 0 | AT89: 0 | AU89: R67,075.00 | AV89: -89.34% | AW89: R268,300.00 | AX89: -89% | AZ89: ='C1- Price List All tenders'!U87 -> Each | BA89: ='C1- Price List All tenders'!V87 -> 4 | BB89: ='C1- Price List All tenders'!W87 -> R46,869.00 | BC89: ='C1- Price List All tenders'!X87 -> R187,476.00 | BD89: R46,869.00 | BE89: R187,476.00 | BF89: 0 | BG89: 0 | BH89: R28,206.00 | BI89: -37.57% | BJ89: R112,824.00 | BK89: -38% | BM89: ='C1- Price List All tenders'!Y87 -> Each | BN89: ='C1- Price List All tenders'!Z87 -> 4 | BO89: ='C1- Price List All tenders'!AA87 -> R124,440.00 | BP89: ='C1- Price List All tenders'!AB87 -> R497,760.00 | BQ89: R124,440.00 | BR89: R497,760.00 | BS89: 3.00% | BT89: R482,827.20 | BU89: R14,932.80 | BV89: 0 | BW89: 0 | BX89: -R49,365.00 | BY89: 65.75% | BZ89: -R197,460.00 | CA89: 66% | CC89: ='C1- Price List All tenders'!AC87 -> Each | CD89: ='C1- Price List All tenders'!AD87 -> 4 | CE89: ='C1- Price List All tenders'!AE87 -> R119,226.25 | CF89: ='C1- Price List All tenders'!AF87 -> R476,905.00 | CG89: R119,226.25 | CH89: R476,905.00 | CI89: 0 | CJ89: 0 | CK89: -R44,151.25 | CL89: 58.81% | CM89: -R176,605.00 | CN89: 59%
B90: ='C1- Price List All tenders'!B88 -> 83. | C90: ='C1- Price List All tenders'!C88 -> Actuator test bench: 200kn Linear Pneumatic Actuator Test Bench Motor Test Bench High Performance Motor Test Bench Customized by Chinese Manufacture | D90: ='C1- Price List All tenders'!D88 -> Maintenance Operations Support | E90: ='C1- Price List All tenders'!E88 -> Each | F90: ='C1- Price List All tenders'!F88 -> 1 | G90: ='C1- Price List All tenders'!G88 -> R349,461.00 | H90: ='C1- Price List All tenders'!H88 -> R349,461.00 | I90: R349,461.00 | J90: R349,461.00 | K90: 0 | M90: ='C1- Price List All tenders'!I88 -> Each | N90: ='C1- Price List All tenders'!J88 -> 1 | O90: ='C1- Price List All tenders'!K88 -> R50,000.00 | P90: ='C1- Price List All tenders'!L88 -> R50,000.00 | Q90: R50,000.00 | R90: R50,000.00 | S90: 0 | T90: 0 | U90: R299,461.00 | V90: -85.69% | W90: R299,461.00 | X90: -86% | Z90: ='C1- Price List All tenders'!M88 -> Each | AA90: ='C1- Price List All tenders'!N88 -> 1 | AB90: ='C1- Price List All tenders'!O88 -> R210,713.11 | AC90: ='C1- Price List All tenders'!P88 -> R210,713.11 | AD90: R210,713.11 | AE90: R210,713.11 | AF90: 0 | AG90: 0 | AH90: R138,747.89 | AI90: -39.70% | AJ90: R138,747.89 | AK90: -40% | AM90: ='C1- Price List All tenders'!Q88 -> Each | AN90: ='C1- Price List All tenders'!R88 -> 1 | AO90: ='C1- Price List All tenders'!S88 -> R14,000.00 | AP90: ='C1- Price List All tenders'!T88 -> R14,000.00 | AQ90: R14,000.00 | AR90: R14,000.00 | AS90: 0 | AT90: 0 | AU90: R335,461.00 | AV90: -95.99% | AW90: R335,461.00 | AX90: -96% | AZ90: ='C1- Price List All tenders'!U88 -> Each | BA90: ='C1- Price List All tenders'!V88 -> 1 | BB90: ='C1- Price List All tenders'!W88 -> R573,965.00 | BC90: ='C1- Price List All tenders'!X88 -> R573,965.00 | BD90: R573,965.00 | BE90: R573,965.00 | BF90: 0 | BG90: 0 | BH90: -R224,504.00 | BI90: 64.24% | BJ90: -R224,504.00 | BK90: 64% | BM90: ='C1- Price List All tenders'!Y88 -> Each | BN90: ='C1- Price List All tenders'!Z88 -> 1 | BO90: ='C1- Price List All tenders'!AA88 -> R72,448.00 | BP90: ='C1- Price List All tenders'!AB88 -> R72,448.00 | BQ90: R72,448.00 | BR90: R72,448.00 | BS90: 3.00% | BT90: R70,274.56 | BU90: R2,173.44 | BV90: 0 | BW90: 0 | BX90: R277,013.00 | BY90: -79.27% | BZ90: R277,013.00 | CA90: -79% | CC90: ='C1- Price List All tenders'!AC88 -> Each | CD90: ='C1- Price List All tenders'!AD88 -> 1 | CE90: ='C1- Price List All tenders'!AE88 -> R362,500.00 | CF90: ='C1- Price List All tenders'!AF88 -> R362,500.00 | CG90: R362,500.00 | CH90: R362,500.00 | CI90: 0 | CJ90: 0 | CK90: -R13,039.00 | CL90: 3.73% | CM90: -R13,039.00 | CN90: 4%
B91: ='C1- Price List All tenders'!B89 -> 84. | C91: ='C1- Price List All tenders'!C89 -> Slotting machine: Vertical slotting machine B5032 Slotting cutting tool. Model Number - B5032E | D91: ='C1- Price List All tenders'!D89 -> Maintenance Operations Support | E91: ='C1- Price List All tenders'!E89 -> Each | F91: ='C1- Price List All tenders'!F89 -> 2 | G91: ='C1- Price List All tenders'!G89 -> R341,250.00 | H91: ='C1- Price List All tenders'!H89 -> R682,500.00 | I91: R341,250.00 | J91: R682,500.00 | K91: 0 | M91: ='C1- Price List All tenders'!I89 -> Each | N91: ='C1- Price List All tenders'!J89 -> 2 | O91: ='C1- Price List All tenders'!K89 -> R17,640.00 | P91: ='C1- Price List All tenders'!L89 -> R35,280.00 | Q91: R17,640.00 | R91: R35,280.00 | S91: 0 | T91: 0 | U91: R323,610.00 | V91: -94.83% | W91: R647,220.00 | X91: -95% | Z91: ='C1- Price List All tenders'!M89 -> Each | AA91: ='C1- Price List All tenders'!N89 -> 2 | AB91: ='C1- Price List All tenders'!O89 -> R832,413.00 | AC91: ='C1- Price List All tenders'!P89 -> R1,664,826.00 | AD91: R832,413.00 | AE91: R1,664,826.00 | AF91: 0 | AG91: 0 | AH91: -R491,163.00 | AI91: 143.93% | AJ91: -R982,326.00 | AK91: 144% | AM91: ='C1- Price List All tenders'!Q89 -> Each | AN91: ='C1- Price List All tenders'!R89 -> 2 | AO91: ='C1- Price List All tenders'!S89 -> R12,000.00 | AP91: ='C1- Price List All tenders'!T89 -> R24,000.00 | AQ91: R12,000.00 | AR91: R24,000.00 | AS91: 0 | AT91: 0 | AU91: R329,250.00 | AV91: -96.48% | AW91: R658,500.00 | AX91: -96% | AZ91: ='C1- Price List All tenders'!U89 -> Each | BA91: ='C1- Price List All tenders'!V89 -> 2 | BB91: ='C1- Price List All tenders'!W89 -> R334,813.00 | BC91: ='C1- Price List All tenders'!X89 -> R669,626.00 | BD91: R334,813.00 | BE91: R669,626.00 | BF91: 0 | BG91: 0 | BH91: R6,437.00 | BI91: -1.89% | BJ91: R12,874.00 | BK91: -2% | BM91: ='C1- Price List All tenders'!Y89 -> Each | BN91: ='C1- Price List All tenders'!Z89 -> 2 | BO91: ='C1- Price List All tenders'!AA89 -> R64,900.00 | BP91: ='C1- Price List All tenders'!AB89 -> R129,800.00 | BQ91: R64,900.00 | BR91: R129,800.00 | BS91: 3.00% | BT91: R125,906.00 | BU91: R3,894.00 | BV91: 0 | BW91: 0 | BX91: R276,350.00 | BY91: -80.98% | BZ91: R552,700.00 | CA91: -81% | CC91: ='C1- Price List All tenders'!AC89 -> Each | CD91: ='C1- Price List All tenders'!AD89 -> 2 | CE91: ='C1- Price List All tenders'!AE89 -> R674,248.55 | CF91: ='C1- Price List All tenders'!AF89 -> R1,348,497.10 | CG91: R674,248.55 | CH91: R1,348,497.10 | CI91: 0 | CJ91: 0 | CK91: -R332,998.55 | CL91: 97.58% | CM91: -R665,997.10 | CN91: 98%
B92: ='C1- Price List All tenders'!B90 -> 85. | C92: ='C1- Price List All tenders'!C90 -> Hydraulic press: GT-TRD515 SHOP PRESS 150 TON 3PH 380V. SKU: GT-TRD515001. Type: Workshop Equipment. Description: The GT-TRD515 SHOP PRESS 150 TON 3PH 380V is a robust electric hydraulic workshop press designed to handle heavy-duty tasks with ease. Its sturdy H-frame is constructed from high-grade steel, ensuring durability and reliability for demanding applications. A lead-free paint finish, applied after a thorough chemical wash, provides long-lasting protection against rust, while also being resistant to oil, grease, and dirt for easy maintenance. Technical Information: Capacity (Ton): 150, Stroke (mm): 350, Work Range (mm): 0 ~ 950, Net Weight (Kg): 1300, Gross Weight (Kg): 1350, Package Size (mm): 1470 x 2270 x 650 | D92: ='C1- Price List All tenders'!D90 -> Maintenance Operations Support | E92: ='C1- Price List All tenders'!E90 -> Each | F92: ='C1- Price List All tenders'!F90 -> 1 | G92: ='C1- Price List All tenders'!G90 -> R353,042.24 | H92: ='C1- Price List All tenders'!H90 -> R353,042.24 | I92: R353,042.24 | J92: R353,042.24 | K92: 0 | M92: ='C1- Price List All tenders'!I90 -> Each | N92: ='C1- Price List All tenders'!J90 -> 1 | O92: ='C1- Price List All tenders'!K90 -> R350,000.00 | P92: ='C1- Price List All tenders'!L90 -> R350,000.00 | Q92: R350,000.00 | R92: R350,000.00 | S92: 0 | T92: 0 | U92: R3,042.24 | V92: -0.86% | W92: R3,042.24 | X92: -1% | Z92: ='C1- Price List All tenders'!M90 -> Each | AA92: ='C1- Price List All tenders'!N90 -> 1 | AB92: ='C1- Price List All tenders'!O90 -> R317,142.11 | AC92: ='C1- Price List All tenders'!P90 -> R317,142.11 | AD92: R317,142.11 | AE92: R317,142.11 | AF92: 0 | AG92: 0 | AH92: R35,900.13 | AI92: -10.17% | AJ92: R35,900.13 | AK92: -10% | AM92: ='C1- Price List All tenders'!Q90 -> Each | AN92: ='C1- Price List All tenders'!R90 -> 1 | AO92: ='C1- Price List All tenders'!S90 -> R680,000.00 | AP92: ='C1- Price List All tenders'!T90 -> R680,000.00 | AQ92: R680,000.00 | AR92: R680,000.00 | AS92: 0 | AT92: 0 | AU92: -R326,957.77 | AV92: 92.61% | AW92: -R326,957.77 | AX92: 93% | AZ92: ='C1- Price List All tenders'!U90 -> Each | BA92: ='C1- Price List All tenders'!V90 -> 1 | BB92: ='C1- Price List All tenders'!W90 -> R391,130.00 | BC92: ='C1- Price List All tenders'!X90 -> R391,130.00 | BD92: R391,130.00 | BE92: R391,130.00 | BF92: 0 | BG92: 0 | BH92: -R38,087.77 | BI92: 10.79% | BJ92: -R38,087.77 | BK92: 11% | BM92: ='C1- Price List All tenders'!Y90 -> Each | BN92: ='C1- Price List All tenders'!Z90 -> 1 | BO92: ='C1- Price List All tenders'!AA90 -> R140,998.00 | BP92: ='C1- Price List All tenders'!AB90 -> R140,998.00 | BQ92: R140,998.00 | BR92: R140,998.00 | BS92: 3.00% | BT92: R136,768.06 | BU92: R4,229.94 | BV92: 0 | BW92: 0 | BX92: R212,044.24 | BY92: -60.06% | BZ92: R212,044.24 | CA92: -60% | CC92: ='C1- Price List All tenders'!AC90 -> Each | CD92: ='C1- Price List All tenders'!AD90 -> 1 | CE92: ='C1- Price List All tenders'!AE90 -> R436,260.05 | CF92: ='C1- Price List All tenders'!AF90 -> R436,260.05 | CG92: R436,260.05 | CH92: R436,260.05 | CI92: 0 | CJ92: 0 | CK92: -R83,217.81 | CL92: 23.57% | CM92: -R83,217.81 | CN92: 24%
B93: ='C1- Price List All tenders'!B91 -> 86. | C93: ='C1- Price List All tenders'!C91 -> Workbenches: Work Bench, All steel (SANS) Dimensions: 1930(L) x 610 (W) x 900(H) mm, grey, 1.6mm wild steel gauge (Metmeister WKS or other Approved) | D93: ='C1- Price List All tenders'!D91 -> Maintenance Operations Support | E93: ='C1- Price List All tenders'!E91 -> Each | F93: ='C1- Price List All tenders'!F91 -> 10 | G93: ='C1- Price List All tenders'!G91 -> R21,000.00 | H93: ='C1- Price List All tenders'!H91 -> R210,000.00 | I93: R21,000.00 | J93: R210,000.00 | K93: 0 | M93: ='C1- Price List All tenders'!I91 -> Each | N93: ='C1- Price List All tenders'!J91 -> 10 | O93: ='C1- Price List All tenders'!K91 -> R8,337.60 | P93: ='C1- Price List All tenders'!L91 -> R83,376.00 | Q93: R8,337.60 | R93: R83,376.00 | S93: 0 | T93: 0 | U93: R12,662.40 | V93: -60.30% | W93: R126,624.00 | X93: -60% | Z93: ='C1- Price List All tenders'!M91 -> Each | AA93: ='C1- Price List All tenders'!N91 -> 10 | AB93: ='C1- Price List All tenders'!O91 -> R184,422.31 | AC93: ='C1- Price List All tenders'!P91 -> R1,844,223.10 | AD93: R184,422.31 | AE93: R1,844,223.10 | AF93: 0 | AG93: 0 | AH93: -R163,422.31 | AI93: 778.20% | AJ93: -R1,634,223.10 | AK93: 778% | AM93: ='C1- Price List All tenders'!Q91 -> Each | AN93: ='C1- Price List All tenders'!R91 -> 10 | AO93: ='C1- Price List All tenders'!S91 -> R9,400.00 | AP93: ='C1- Price List All tenders'!T91 -> R94,000.00 | AQ93: R9,400.00 | AR93: R94,000.00 | AS93: 0 | AT93: 0 | AU93: R11,600.00 | AV93: -55.24% | AW93: R116,000.00 | AX93: -55% | AZ93: ='C1- Price List All tenders'!U91 -> Each | BA93: ='C1- Price List All tenders'!V91 -> 10 | BB93: ='C1- Price List All tenders'!W91 -> R6,500.00 | BC93: ='C1- Price List All tenders'!X91 -> R65,000.00 | BD93: R6,500.00 | BE93: R65,000.00 | BF93: 0 | BG93: 0 | BH93: R14,500.00 | BI93: -69.05% | BJ93: R145,000.00 | BK93: -69% | BM93: ='C1- Price List All tenders'!Y91 -> Each | BN93: ='C1- Price List All tenders'!Z91 -> 10 | BO93: ='C1- Price List All tenders'!AA91 -> R429,536.00 | BP93: ='C1- Price List All tenders'!AB91 -> R4,295,363.00 | BQ93: R429,536.00 | BR93: R4,295,360.00 | BS93: 3.00% | BT93: R4,166,499.20 | BU93: R128,860.80 | BV93: -R3.00 | BW93: 0 | BX93: -R408,536.00 | BY93: 1945.41% | BZ93: -R4,085,360.00 | CA93: 1945% | CC93: ='C1- Price List All tenders'!AC91 -> Each | CD93: ='C1- Price List All tenders'!AD91 -> 10 | CE93: ='C1- Price List All tenders'!AE91 -> R6,978.24 | CF93: ='C1- Price List All tenders'!AF91 -> R69,782.40 | CG93: R6,978.24 | CH93: R69,782.40 | CI93: 0 | CJ93: 0 | CK93: R14,021.76 | CL93: -66.77% | CM93: R140,217.60 | CN93: -67%
C94: ='C1- Price List All tenders'!C92 -> Engineering Department: - Supply & Delivery of Ash & Coal Equipment | I94: 0 | J94: 0 | K94: 0 | M94: ='C1- Price List All tenders'!I92 -> 0 | N94: ='C1- Price List All tenders'!J92 -> 0 | O94: ='C1- Price List All tenders'!K92 -> 0 | P94: ='C1- Price List All tenders'!L92 -> 0 | Q94: 0 | R94: 0 | S94: 0 | T94: 0 | U94: 0 | W94: 0 | Z94: ='C1- Price List All tenders'!M92 -> 0 | AA94: ='C1- Price List All tenders'!N92 -> 0 | AB94: ='C1- Price List All tenders'!O92 -> 0 | AC94: ='C1- Price List All tenders'!P92 -> 0 | AD94: 0 | AE94: 0 | AF94: 0 | AG94: 0 | AH94: 0 | AJ94: 0 | AM94: ='C1- Price List All tenders'!Q92 -> 0 | AN94: ='C1- Price List All tenders'!R92 -> 0 | AO94: ='C1- Price List All tenders'!S92 -> 0 | AP94: ='C1- Price List All tenders'!T92 -> 0 | AQ94: 0 | AR94: 0 | AS94: 0 | AT94: 0 | AU94: 0 | AW94: 0 | AZ94: ='C1- Price List All tenders'!U92 -> 0 | BA94: ='C1- Price List All tenders'!V92 -> 0 | BB94: ='C1- Price List All tenders'!W92 -> 0 | BC94: ='C1- Price List All tenders'!X92 -> 0 | BD94: 0 | BE94: 0 | BF94: 0 | BG94: 0 | BH94: 0 | BJ94: 0 | BM94: ='C1- Price List All tenders'!Y92 -> 0 | BN94: ='C1- Price List All tenders'!Z92 -> 0 | BO94: ='C1- Price List All tenders'!AA92 -> 0 | BP94: ='C1- Price List All tenders'!AB92 -> 0 | BQ94: 0 | BR94: 0 | BS94: 3.00% | BT94: 0 | BU94: 0 | BV94: 0 | BW94: 0 | BX94: 0 | BZ94: 0 | CC94: ='C1- Price List All tenders'!AC92 -> 0 | CD94: ='C1- Price List All tenders'!AD92 -> 0 | CE94: ='C1- Price List All tenders'!AE92 -> 0 | CF94: ='C1- Price List All tenders'!AF92 -> 0 | CG94: 0 | CH94: 0 | CI94: 0 | CJ94: 0 | CK94: 0 | CM94: 0
B95: ='C1- Price List All tenders'!B93 -> 87. | C95: ='C1- Price List All tenders'!C93 -> ODTR Fiber Tester: SIGNAL FIRE Mini OTDR 1310/1550nm 32/3dB Fiber Optic Reflectometer VFL Fiber Tester Communication Equipment, including 1 x Optical Time Domain Reflectometer, 1 x Adapter, 1 x Charging Cable, 1 x USB, 1 x Strap, 1 x CD, 1 x Strap, 1 x Storage Bag, 1 x User Manual | D95: ='C1- Price List All tenders'!D93 -> Engineering Operations Support | E95: ='C1- Price List All tenders'!E93 -> Each | F95: ='C1- Price List All tenders'!F93 -> 1 | G95: ='C1- Price List All tenders'!G93 -> R12,366.63 | H95: ='C1- Price List All tenders'!H93 -> R12,366.63 | I95: R12,366.63 | J95: R12,366.63 | K95: 0 | M95: ='C1- Price List All tenders'!I93 -> Each | N95: ='C1- Price List All tenders'!J93 -> 1 | O95: ='C1- Price List All tenders'!K93 -> R30,240.00 | P95: ='C1- Price List All tenders'!L93 -> R30,240.00 | Q95: R30,240.00 | R95: R30,240.00 | S95: 0 | T95: 0 | U95: -R17,873.37 | V95: 144.53% | W95: -R17,873.37 | X95: 145% | Z95: ='C1- Price List All tenders'!M93 -> Each | AA95: ='C1- Price List All tenders'!N93 -> 1 | AB95: ='C1- Price List All tenders'!O93 -> R38,310.72 | AC95: ='C1- Price List All tenders'!P93 -> R38,310.72 | AD95: R38,310.72 | AE95: R38,310.72 | AF95: 0 | AG95: 0 | AH95: -R25,944.09 | AI95: 209.79% | AJ95: -R25,944.09 | AK95: 210% | AM95: ='C1- Price List All tenders'!Q93 -> Each | AN95: ='C1- Price List All tenders'!R93 -> 1 | AO95: ='C1- Price List All tenders'!S93 -> R17,000.00 | AP95: ='C1- Price List All tenders'!T93 -> R17,000.00 | AQ95: R17,000.00 | AR95: R17,000.00 | AS95: 0 | AT95: 0 | AU95: -R4,633.37 | AV95: 37.47% | AW95: -R4,633.37 | AX95: 37% | AZ95: ='C1- Price List All tenders'!U93 -> Each | BA95: ='C1- Price List All tenders'!V93 -> 1 | BB95: ='C1- Price List All tenders'!W93 -> R14,131.00 | BC95: ='C1- Price List All tenders'!X93 -> R14,131.00 | BD95: R14,131.00 | BE95: R14,131.00 | BF95: 0 | BG95: 0 | BH95: -R1,764.37 | BI95: 14.27% | BJ95: -R1,764.37 | BK95: 14% | BM95: ='C1- Price List All tenders'!Y93 -> Each | BN95: ='C1- Price List All tenders'!Z93 -> 1 | BO95: ='C1- Price List All tenders'!AA93 -> R24,998.00 | BP95: ='C1- Price List All tenders'!AB93 -> R24,998.00 | BQ95: R24,998.00 | BR95: R24,998.00 | BS95: 3.00% | BT95: R24,248.06 | BU95: R749.94 | BV95: 0 | BW95: 0 | BX95: -R12,631.37 | BY95: 102.14% | BZ95: -R12,631.37 | CA95: 102% | CC95: ='C1- Price List All tenders'!AC93 -> Each | CD95: ='C1- Price List All tenders'!AD93 -> 1 | CE95: ='C1- Price List All tenders'!AE93 -> R82,178.75 | CF95: ='C1- Price List All tenders'!AF93 -> R82,178.75 | CG95: R82,178.75 | CH95: R82,178.75 | CI95: 0 | CJ95: 0 | CK95: -R69,812.12 | CL95: 564.52% | CM95: -R69,812.12 | CN95: 565%
B96: ='C1- Price List All tenders'!B94 -> 88. | C96: ='C1- Price List All tenders'!C94 -> Fluke Network Cable Tester: Fluke Networks LinkIQ? Cable+Network Tester. GTIN: 0754082152163, SKU: LIQ-100. | D96: ='C1- Price List All tenders'!D94 -> Engineering Operations Support | E96: ='C1- Price List All tenders'!E94 -> Each | F96: ='C1- Price List All tenders'!F94 -> 1 | G96: ='C1- Price List All tenders'!G94 -> R103,600.18 | H96: ='C1- Price List All tenders'!H94 -> R103,600.18 | I96: R103,600.18 | J96: R103,600.18 | K96: 0 | M96: ='C1- Price List All tenders'!I94 -> Each | N96: ='C1- Price List All tenders'!J94 -> 1 | O96: ='C1- Price List All tenders'!K94 -> R103,318.20 | P96: ='C1- Price List All tenders'!L94 -> R103,318.20 | Q96: R103,318.20 | R96: R103,318.20 | S96: 0 | T96: 0 | U96: R281.98 | V96: -0.27% | W96: R281.98 | X96: -0% | Z96: ='C1- Price List All tenders'!M94 -> Each | AA96: ='C1- Price List All tenders'!N94 -> 1 | AB96: ='C1- Price List All tenders'!O94 -> R110,319.66 | AC96: ='C1- Price List All tenders'!P94 -> R110,319.66 | AD96: R110,319.66 | AE96: R110,319.66 | AF96: 0 | AG96: 0 | AH96: -R6,719.48 | AI96: 6.49% | AJ96: -R6,719.48 | AK96: 6% | AM96: ='C1- Price List All tenders'!Q94 -> Each | AN96: ='C1- Price List All tenders'!R94 -> 1 | AO96: ='C1- Price List All tenders'!S94 -> R8,000.00 | AP96: ='C1- Price List All tenders'!T94 -> R8,000.00 | AQ96: R8,000.00 | AR96: R8,000.00 | AS96: 0 | AT96: 0 | AU96: R95,600.18 | AV96: -92.28% | AW96: R95,600.18 | AX96: -92% | AZ96: ='C1- Price List All tenders'!U94 -> Each | BA96: ='C1- Price List All tenders'!V94 -> 1 | BB96: ='C1- Price List All tenders'!W94 -> R74,619.00 | BC96: ='C1- Price List All tenders'!X94 -> R74,619.00 | BD96: R74,619.00 | BE96: R74,619.00 | BF96: 0 | BG96: 0 | BH96: R28,981.18 | BI96: -27.97% | BJ96: R28,981.18 | BK96: -28% | BM96: ='C1- Price List All tenders'!Y94 -> Each | BN96: ='C1- Price List All tenders'!Z94 -> 1 | BO96: ='C1- Price List All tenders'!AA94 -> R12,926.00 | BP96: ='C1- Price List All tenders'!AB94 -> R12,926.00 | BQ96: R12,926.00 | BR96: R12,926.00 | BS96: 3.00% | BT96: R12,538.22 | BU96: R387.78 | BV96: 0 | BW96: 0 | BX96: R90,674.18 | BY96: -87.52% | BZ96: R90,674.18 | CA96: -88% | CC96: ='C1- Price List All tenders'!AC94 -> Each | CD96: ='C1- Price List All tenders'!AD94 -> 1 | CE96: ='C1- Price List All tenders'!AE94 -> R85,606.20 | CF96: ='C1- Price List All tenders'!AF94 -> R85,606.20 | CG96: R85,606.20 | CH96: R85,606.20 | CI96: 0 | CJ96: 0 | CK96: R17,993.98 | CL96: -17.37% | CM96: R17,993.98 | CN96: -17%
B97: ='C1- Price List All tenders'!B95 -> 89. | C97: ='C1- Price List All tenders'!C95 -> Dell Industrial Rugged Laptop: DELL Latitude Rugged Extreme 5430. Specifications: Windows 10 (included in Base Model) – Windows 11 (optional), 11th Generation Intel® Core™ i5-1145G7, vPro®, 8 MB cache, 4 cores, 8 Threads, 2.60 GHz to 4.40 GHz, 28 W 11th Generation – (Upgradable to Intel® Core™ i7-1185G7, vPro®, 12 MB cache, 4 cores, 8 Threads, 3.0 GHz to 4.80 GHz, 28 W), 8GB SDRAM (upgradable), 256GB SSD (upgradable), 14.0” FHD WVA Super Bright Display (1920*1080) – Outdoor viewable, MIL-STD-810H testing11: Transit drop 36”/.91m; single unit; 26 drops, operating drop (36”/0.91m), blowing dust, vibration, functional shock, humidity, altitude, thermal extremes, 3-cell, 53.5 Wh, lithium ion, ExpressCharge™ (supports up to two hot-swappable batteries), Ports: J45 Ethernet port (1), USB 3.2 Gen 1 port (1), USB 3.2 Gen 1 port with PowerShare (1), Thunderbolt 4/USB 3.2 Gen 2 Type-C port with PowerDelivery 3.0 (1), Thunderbolt 4/USB 3.2 Gen 2 Type-C port with PowerDelivery 3.0 (1 – Optional), HDMI 2.0 port (1), RS232 serial port, Slots: Slots: Micro SD card slot (1), Nano SIM card slot (1), Smart card reader slot (1 – optional), Contactless card reader (1 – optional), Kensington lock slot (1), US Sealed Keyboard, Dimensions: Height: 1.32 in (33.6 mm) Width: 13.38 in (340 mm) Depth: 8.66 in (220 mm) Starting at 4.35 lb (1.97kg) | D97: ='C1- Price List All tenders'!D95 -> Engineering Operations Support | E97: ='C1- Price List All tenders'!E95 -> Each | F97: ='C1- Price List All tenders'!F95 -> 1 | G97: ='C1- Price List All tenders'!G95 -> R70,637.67 | H97: ='C1- Price List All tenders'!H95 -> R70,637.67 | I97: R70,637.67 | J97: R70,637.67 | K97: 0 | M97: ='C1- Price List All tenders'!I95 -> Each | N97: ='C1- Price List All tenders'!J95 -> 1 | O97: ='C1- Price List All tenders'!K95 -> R73,093.95 | P97: ='C1- Price List All tenders'!L95 -> R73,093.95 | Q97: R73,093.95 | R97: R73,093.95 | S97: 0 | T97: 0 | U97: -R2,456.28 | V97: 3.48% | W97: -R2,456.28 | X97: 3% | Z97: ='C1- Price List All tenders'!M95 -> Each | AA97: ='C1- Price List All tenders'!N95 -> 1 | AB97: ='C1- Price List All tenders'!O95 -> R69,392.33 | AC97: ='C1- Price List All tenders'!P95 -> R69,392.33 | AD97: R69,392.33 | AE97: R69,392.33 | AF97: 0 | AG97: 0 | AH97: R1,245.34 | AI97: -1.76% | AJ97: R1,245.34 | AK97: -2% | AM97: ='C1- Price List All tenders'!Q95 -> Each | AN97: ='C1- Price List All tenders'!R95 -> 1 | AO97: ='C1- Price List All tenders'!S95 -> R25,000.00 | AP97: ='C1- Price List All tenders'!T95 -> R25,000.00 | AQ97: R25,000.00 | AR97: R25,000.00 | AS97: 0 | AT97: 0 | AU97: R45,637.67 | AV97: -64.61% | AW97: R45,637.67 | AX97: -65% | AZ97: ='C1- Price List All tenders'!U95 -> Each | BA97: ='C1- Price List All tenders'!V95 -> 1 | BB97: ='C1- Price List All tenders'!W95 -> R37,700.00 | BC97: ='C1- Price List All tenders'!X95 -> R37,700.00 | BD97: R37,700.00 | BE97: R37,700.00 | BF97: 0 | BG97: 0 | BH97: R32,937.67 | BI97: -46.63% | BJ97: R32,937.67 | BK97: -47% | BM97: ='C1- Price List All tenders'!Y95 -> Each | BN97: ='C1- Price List All tenders'!Z95 -> 1 | BO97: ='C1- Price List All tenders'!AA95 -> R72,150.00 | BP97: ='C1- Price List All tenders'!AB95 -> R72,150.00 | BQ97: R72,150.00 | BR97: R72,150.00 | BS97: 3.00% | BT97: R69,985.50 | BU97: R2,164.50 | BV97: 0 | BW97: 0 | BX97: -R1,512.33 | BY97: 2.14% | BZ97: -R1,512.33 | CA97: 2% | CC97: ='C1- Price List All tenders'!AC95 -> Each | CD97: ='C1- Price List All tenders'!AD95 -> 1 | CE97: ='C1- Price List All tenders'!AE95 -> R20,220.25 | CF97: ='C1- Price List All tenders'!AF95 -> R20,220.25 | CG97: R20,220.25 | CH97: R20,220.25 | CI97: 0 | CJ97: 0 | CK97: R50,417.42 | CL97: -71.37% | CM97: R50,417.42 | CN97: -71%
B98: ='C1- Price List All tenders'!B96 -> 90. | C98: ='C1- Price List All tenders'!C96 -> Pulverized Fuel shaker/Sieves | D98: ='C1- Price List All tenders'!D96 -> Engineering Operations Support | E98: ='C1- Price List All tenders'!E96 -> Each | F98: ='C1- Price List All tenders'!F96 -> 1 | G98: ='C1- Price List All tenders'!G96 -> R78,750.00 | H98: ='C1- Price List All tenders'!H96 -> R78,750.00 | I98: R78,750.00 | J98: R78,750.00 | K98: 0 | M98: ='C1- Price List All tenders'!I96 -> Each | N98: ='C1- Price List All tenders'!J96 -> 1 | O98: ='C1- Price List All tenders'!K96 -> R115,000.00 | P98: ='C1- Price List All tenders'!L96 -> R115,000.00 | Q98: R115,000.00 | R98: R115,000.00 | S98: 0 | T98: 0 | U98: -R36,250.00 | V98: 46.03% | W98: -R36,250.00 | X98: 46% | Z98: ='C1- Price List All tenders'!M96 -> Each | AA98: ='C1- Price List All tenders'!N96 -> 1 | AB98: ='C1- Price List All tenders'!O96 -> R3,380.37 | AC98: ='C1- Price List All tenders'!P96 -> R3,380.37 | AD98: R3,380.37 | AE98: R3,380.37 | AF98: 0 | AG98: 0 | AH98: R75,369.63 | AI98: -95.71% | AJ98: R75,369.63 | AK98: -96% | AM98: ='C1- Price List All tenders'!Q96 -> Each | AN98: ='C1- Price List All tenders'!R96 -> 1 | AO98: ='C1- Price List All tenders'!S96 -> R5,000.00 | AP98: ='C1- Price List All tenders'!T96 -> R5,000.00 | AQ98: R5,000.00 | AR98: R5,000.00 | AS98: 0 | AT98: 0 | AU98: R73,750.00 | AV98: -93.65% | AW98: R73,750.00 | AX98: -94% | AZ98: ='C1- Price List All tenders'!U96 -> Each | BA98: ='C1- Price List All tenders'!V96 -> 1 | BB98: ='C1- Price List All tenders'!W96 -> R37,704.00 | BC98: ='C1- Price List All tenders'!X96 -> R37,704.00 | BD98: R37,704.00 | BE98: R37,704.00 | BF98: 0 | BG98: 0 | BH98: R41,046.00 | BI98: -52.12% | BJ98: R41,046.00 | BK98: -52% | BM98: ='C1- Price List All tenders'!Y96 -> Each | BN98: ='C1- Price List All tenders'!Z96 -> 1 | BO98: ='C1- Price List All tenders'!AA96 -> R34,300.00 | BP98: ='C1- Price List All tenders'!AB96 -> R34,300.00 | BQ98: R34,300.00 | BR98: R34,300.00 | BS98: 3.00% | BT98: R33,271.00 | BU98: R1,029.00 | BV98: 0 | BW98: 0 | BX98: R44,450.00 | BY98: -56.44% | BZ98: R44,450.00 | CA98: -56% | CC98: ='C1- Price List All tenders'!AC96 -> Each | CD98: ='C1- Price List All tenders'!AD96 -> 1 | CE98: ='C1- Price List All tenders'!AE96 -> R40,900.15 | CF98: ='C1- Price List All tenders'!AF96 -> R40,900.15 | CG98: R40,900.15 | CH98: R40,900.15 | CI98: 0 | CJ98: 0 | CK98: R37,849.85 | CL98: -48.06% | CM98: R37,849.85 | CN98: -48%
B99: ='C1- Price List All tenders'!B97 -> 91. | C99: ='C1- Price List All tenders'!C97 -> Testo 340 (With all the parameters Sox, NOx etc.): | D99: ='C1- Price List All tenders'!D97 -> Engineering Operations Support | E99: ='C1- Price List All tenders'!E97 -> Each | F99: ='C1- Price List All tenders'!F97 -> 1 | G99: ='C1- Price List All tenders'!G97 -> R157,500.00 | H99: ='C1- Price List All tenders'!H97 -> R157,500.00 | I99: R157,500.00 | J99: R157,500.00 | K99: 0 | M99: ='C1- Price List All tenders'!I97 -> Each | N99: ='C1- Price List All tenders'!J97 -> 1 | O99: ='C1- Price List All tenders'!K97 -> R9,000.00 | P99: ='C1- Price List All tenders'!L97 -> R9,000.00 | Q99: R9,000.00 | R99: R9,000.00 | S99: 0 | T99: 0 | U99: R148,500.00 | V99: -94.29% | W99: R148,500.00 | X99: -94% | Z99: ='C1- Price List All tenders'!M97 -> Each | AA99: ='C1- Price List All tenders'!N97 -> 1 | AB99: ='C1- Price List All tenders'!O97 -> R78,183.50 | AC99: ='C1- Price List All tenders'!P97 -> R78,183.50 | AD99: R78,183.50 | AE99: R78,183.50 | AF99: 0 | AG99: 0 | AH99: R79,316.50 | AI99: -50.36% | AJ99: R79,316.50 | AK99: -50% | AM99: ='C1- Price List All tenders'!Q97 -> Each | AN99: ='C1- Price List All tenders'!R97 -> 1 | AO99: ='C1- Price List All tenders'!S97 -> R12,000.00 | AP99: ='C1- Price List All tenders'!T97 -> R12,000.00 | AQ99: R12,000.00 | AR99: R12,000.00 | AS99: 0 | AT99: 0 | AU99: R145,500.00 | AV99: -92.38% | AW99: R145,500.00 | AX99: -92% | AZ99: ='C1- Price List All tenders'!U97 -> Each | BA99: ='C1- Price List All tenders'!V97 -> 1 | BB99: ='C1- Price List All tenders'!W97 -> R91,000.00 | BC99: ='C1- Price List All tenders'!X97 -> R91,000.00 | BD99: R91,000.00 | BE99: R91,000.00 | BF99: 0 | BG99: 0 | BH99: R66,500.00 | BI99: -42.22% | BJ99: R66,500.00 | BK99: -42% | BM99: ='C1- Price List All tenders'!Y97 -> Each | BN99: ='C1- Price List All tenders'!Z97 -> 1 | BO99: ='C1- Price List All tenders'!AA97 -> R66,231.00 | BP99: ='C1- Price List All tenders'!AB97 -> R66,231.00 | BQ99: R66,231.00 | BR99: R66,231.00 | BS99: 3.00% | BT99: R64,244.07 | BU99: R1,986.93 | BV99: 0 | BW99: 0 | BX99: R91,269.00 | BY99: -57.95% | BZ99: R91,269.00 | CA99: -58% | CC99: ='C1- Price List All tenders'!AC97 -> Each | CD99: ='C1- Price List All tenders'!AD97 -> 1 | CE99: ='C1- Price List All tenders'!AE97 -> R49,638.01 | CF99: ='C1- Price List All tenders'!AF97 -> R49,638.01 | CG99: R49,638.01 | CH99: R49,638.01 | CI99: 0 | CJ99: 0 | CK99: R107,861.99 | CL99: -68.48% | CM99: R107,861.99 | CN99: -68%
B100: ='C1- Price List All tenders'!B98 -> 92. | C100: ='C1- Price List All tenders'!C98 -> Optima analyzers (all cells) | D100: ='C1- Price List All tenders'!D98 -> Engineering Operations Support | E100: ='C1- Price List All tenders'!E98 -> Each | F100: ='C1- Price List All tenders'!F98 -> 1 | G100: ='C1- Price List All tenders'!G98 -> R105,000.00 | H100: ='C1- Price List All tenders'!H98 -> R105,000.00 | I100: R105,000.00 | J100: R105,000.00 | K100: 0 | M100: ='C1- Price List All tenders'!I98 -> Each | N100: ='C1- Price List All tenders'!J98 -> 1 | O100: ='C1- Price List All tenders'!K98 -> R120,000.00 | P100: ='C1- Price List All tenders'!L98 -> R120,000.00 | Q100: R120,000.00 | R100: R120,000.00 | S100: 0 | T100: 0 | U100: -R15,000.00 | V100: 14.29% | W100: -R15,000.00 | X100: 14% | Z100: ='C1- Price List All tenders'!M98 -> Each | AA100: ='C1- Price List All tenders'!N98 -> 1 | AB100: ='C1- Price List All tenders'!O98 -> R89,732.41 | AC100: ='C1- Price List All tenders'!P98 -> R89,732.41 | AD100: R89,732.41 | AE100: R89,732.41 | AF100: 0 | AG100: 0 | AH100: R15,267.59 | AI100: -14.54% | AJ100: R15,267.59 | AK100: -15% | AM100: ='C1- Price List All tenders'!Q98 -> Each | AN100: ='C1- Price List All tenders'!R98 -> 1 | AO100: ='C1- Price List All tenders'!S98 -> R5,800.00 | AP100: ='C1- Price List All tenders'!T98 -> R5,800.00 | AQ100: R5,800.00 | AR100: R5,800.00 | AS100: 0 | AT100: 0 | AU100: R99,200.00 | AV100: -94.48% | AW100: R99,200.00 | AX100: -94% | AZ100: ='C1- Price List All tenders'!U98 -> Each | BA100: ='C1- Price List All tenders'!V98 -> 1 | BB100: ='C1- Price List All tenders'!W98 -> R1,177,306.00 | BC100: ='C1- Price List All tenders'!X98 -> R1,177,306.00 | BD100: R1,177,306.00 | BE100: R1,177,306.00 | BF100: 0 | BG100: 0 | BH100: -R1,072,306.00 | BI100: 1021.24% | BJ100: -R1,072,306.00 | BK100: 1021% | BM100: ='C1- Price List All tenders'!Y98 -> Each | BN100: ='C1- Price List All tenders'!Z98 -> 1 | BO100: ='C1- Price List All tenders'!AA98 -> R89,100.00 | BP100: ='C1- Price List All tenders'!AB98 -> R89,100.00 | BQ100: R89,100.00 | BR100: R89,100.00 | BS100: 3.00% | BT100: R86,427.00 | BU100: R2,673.00 | BV100: 0 | BW100: 0 | BX100: R15,900.00 | BY100: -15.14% | BZ100: R15,900.00 | CA100: -15% | CC100: ='C1- Price List All tenders'!AC98 -> Each | CD100: ='C1- Price List All tenders'!AD98 -> 1 | CE100: ='C1- Price List All tenders'!AE98 -> R54,175.09 | CF100: ='C1- Price List All tenders'!AF98 -> R54,175.09 | CG100: R54,175.09 | CH100: R54,175.09 | CI100: 0 | CJ100: 0 | CK100: R50,824.91 | CL100: -48.40% | CM100: R50,824.91 | CN100: -48%
B101: ='C1- Price List All tenders'!B99 -> 93. | C101: ='C1- Price List All tenders'!C99 -> Testo Temperature guns: Testo 835-H1 IR thermometer Display (thermometer) 50:1 -30 - +600 °C Contact measurement. Technical specifications: Measuring range Type K: -50 bis +600 °C, Accuracy Type K: ±0.5 °C/±0,5 %, Measuring range humidity: 0 - 100 %rF, Accuracy humidity: ±2 %rF | D101: ='C1- Price List All tenders'!D99 -> Engineering Operations Support | E101: ='C1- Price List All tenders'!E99 -> Each | F101: ='C1- Price List All tenders'!F99 -> 1 | G101: ='C1- Price List All tenders'!G99 -> R13,884.59 | H101: ='C1- Price List All tenders'!H99 -> R13,884.59 | I101: R13,884.59 | J101: R13,884.59 | K101: 0 | M101: ='C1- Price List All tenders'!I99 -> Each | N101: ='C1- Price List All tenders'!J99 -> 1 | O101: ='C1- Price List All tenders'!K99 -> R14,994.00 | P101: ='C1- Price List All tenders'!L99 -> R14,994.00 | Q101: R14,994.00 | R101: R14,994.00 | S101: 0 | T101: 0 | U101: -R1,109.41 | V101: 7.99% | W101: -R1,109.41 | X101: 8% | Z101: ='C1- Price List All tenders'!M99 -> Each | AA101: ='C1- Price List All tenders'!N99 -> 1 | AB101: ='C1- Price List All tenders'!O99 -> R17,590.35 | AC101: ='C1- Price List All tenders'!P99 -> R17,590.35 | AD101: R17,590.35 | AE101: R17,590.35 | AF101: 0 | AG101: 0 | AH101: -R3,705.76 | AI101: 26.69% | AJ101: -R3,705.76 | AK101: 27% | AM101: ='C1- Price List All tenders'!Q99 -> Each | AN101: ='C1- Price List All tenders'!R99 -> 1 | AO101: ='C1- Price List All tenders'!S99 -> R10,000.00 | AP101: ='C1- Price List All tenders'!T99 -> R10,000.00 | AQ101: R10,000.00 | AR101: R10,000.00 | AS101: 0 | AT101: 0 | AU101: R3,884.59 | AV101: -27.98% | AW101: R3,884.59 | AX101: -28% | AZ101: ='C1- Price List All tenders'!U99 -> Each | BA101: ='C1- Price List All tenders'!V99 -> 1 | BB101: ='C1- Price List All tenders'!W99 -> R11,499.00 | BC101: ='C1- Price List All tenders'!X99 -> R11,499.00 | BD101: R11,499.00 | BE101: R11,499.00 | BF101: 0 | BG101: 0 | BH101: R2,385.59 | BI101: -17.18% | BJ101: R2,385.59 | BK101: -17% | BM101: ='C1- Price List All tenders'!Y99 -> Each | BN101: ='C1- Price List All tenders'!Z99 -> 1 | BO101: ='C1- Price List All tenders'!AA99 -> R117,900.00 | BP101: ='C1- Price List All tenders'!AB99 -> R117,900.00 | BQ101: R117,900.00 | BR101: R117,900.00 | BS101: 3.00% | BT101: R114,363.00 | BU101: R3,537.00 | BV101: 0 | BW101: 0 | BX101: -R104,015.41 | BY101: 749.14% | BZ101: -R104,015.41 | CA101: 749% | CC101: ='C1- Price List All tenders'!AC99 -> Each | CD101: ='C1- Price List All tenders'!AD99 -> 1 | CE101: ='C1- Price List All tenders'!AE99 -> R14,749.20 | CF101: ='C1- Price List All tenders'!AF99 -> R14,749.20 | CG101: R14,749.20 | CH101: R14,749.20 | CI101: 0 | CJ101: 0 | CK101: -R864.61 | CL101: 6.23% | CM101: -R864.61 | CN101: 6%
B102: ='C1- Price List All tenders'!B100 -> 94. | C102: ='C1- Price List All tenders'!C100 -> Tachometer (Sentry) Laser and Contact: Digital Laser or Contact Tachometer Kit | WRS-522. The Tachometer measures revolutions per minute (RPM). Suitable for use in rotating machinery such as pumps and motors, automotive, paper and printing, surface speed, length counting, conveyor belts, production lines, fans and gear teeth, cutting and punching etc. Features: Non-contact speed measurement by laser, Frequency (Hz) reading, Max, Min and Average memory c/w soft case, contact adapter, surface wheel, 2 x rubber cones, reflective tape, manual and battery, Measuring distance: 50 ~ 600mm, RPM non-contact: 2 ~ 99,999, RPM contact: 2 ~ 19,999, Accuracy: 0.02% ± 2dgt, Display: 6 digit backlit LCD, Auto-power off after 15 seconds, Rate function: m/min, ft/min, yd/min, in/min, Counter/Length function: Total Revs, m, ft, yd, in | D102: ='C1- Price List All tenders'!D100 -> Engineering Operations Support | E102: ='C1- Price List All tenders'!E100 -> Each | F102: ='C1- Price List All tenders'!F100 -> 4 | G102: ='C1- Price List All tenders'!G100 -> R19,792.50 | H102: ='C1- Price List All tenders'!H100 -> R79,170.00 | I102: R19,792.50 | J102: R79,170.00 | K102: 0 | M102: ='C1- Price List All tenders'!I100 -> Each | N102: ='C1- Price List All tenders'!J100 -> 4 | O102: ='C1- Price List All tenders'!K100 -> R2,511.00 | P102: ='C1- Price List All tenders'!L100 -> R10,044.00 | Q102: R2,511.00 | R102: R10,044.00 | S102: 0 | T102: 0 | U102: R17,281.50 | V102: -87.31% | W102: R69,126.00 | X102: -87% | Z102: ='C1- Price List All tenders'!M100 -> Each | AA102: ='C1- Price List All tenders'!N100 -> 4 | AB102: ='C1- Price List All tenders'!O100 -> R7,314.51 | AC102: ='C1- Price List All tenders'!P100 -> R29,258.04 | AD102: R7,314.51 | AE102: R29,258.04 | AF102: 0 | AG102: 0 | AH102: R12,477.99 | AI102: -63.04% | AJ102: R49,911.96 | AK102: -63% | AM102: ='C1- Price List All tenders'!Q100 -> Each | AN102: ='C1- Price List All tenders'!R100 -> 4 | AO102: ='C1- Price List All tenders'!S100 -> R6,500.00 | AP102: ='C1- Price List All tenders'!T100 -> R26,000.00 | AQ102: R6,500.00 | AR102: R26,000.00 | AS102: 0 | AT102: 0 | AU102: R13,292.50 | AV102: -67.16% | AW102: R53,170.00 | AX102: -67% | AZ102: ='C1- Price List All tenders'!U100 -> Each | BA102: ='C1- Price List All tenders'!V100 -> 4 | BB102: ='C1- Price List All tenders'!W100 -> R1,814.00 | BC102: ='C1- Price List All tenders'!X100 -> R7,256.00 | BD102: R1,814.00 | BE102: R7,256.00 | BF102: 0 | BG102: 0 | BH102: R17,978.50 | BI102: -90.83% | BJ102: R71,914.00 | BK102: -91% | BM102: ='C1- Price List All tenders'!Y100 -> Each | BN102: ='C1- Price List All tenders'!Z100 -> 4 | BO102: ='C1- Price List All tenders'!AA100 -> R125,180.00 | BP102: ='C1- Price List All tenders'!AB100 -> R100,720.00 | BQ102: R125,180.00 | BR102: R500,720.00 | BS102: 3.00% | BT102: R485,698.40 | BU102: R15,021.60 | BV102: R400,000.00 | BW102: 0 | BX102: -R105,387.50 | BY102: 532.46% | BZ102: -R421,550.00 | CA102: 532% | CC102: ='C1- Price List All tenders'!AC100 -> Each | CD102: ='C1- Price List All tenders'!AD100 -> 4 | CE102: ='C1- Price List All tenders'!AE100 -> R1,442.75 | CF102: ='C1- Price List All tenders'!AF100 -> R5,771.00 | CG102: R1,442.75 | CH102: R5,771.00 | CI102: 0 | CJ102: 0 | CK102: R18,349.75 | CL102: -92.71% | CM102: R73,399.00 | CN102: -93%
B103: ='C1- Price List All tenders'!B101 -> 95. | C103: ='C1- Price List All tenders'!C101 -> Safety harnesses | D103: ='C1- Price List All tenders'!D101 -> Engineering Operations Support | E103: ='C1- Price List All tenders'!E101 -> Each | F103: ='C1- Price List All tenders'!F101 -> 7 | G103: ='C1- Price List All tenders'!G101 -> R1,680.00 | H103: ='C1- Price List All tenders'!H101 -> R11,760.00 | I103: R1,680.00 | J103: R11,760.00 | K103: 0 | M103: ='C1- Price List All tenders'!I101 -> Each | N103: ='C1- Price List All tenders'!J101 -> 7 | O103: ='C1- Price List All tenders'!K101 -> R1,342.66 | P103: ='C1- Price List All tenders'!L101 -> R9,398.59 | Q103: R1,342.66 | R103: R9,398.59 | S103: 0 | T103: 0 | U103: R337.34 | V103: -20.08% | W103: R2,361.41 | X103: -20% | Z103: ='C1- Price List All tenders'!M101 -> Each | AA103: ='C1- Price List All tenders'!N101 -> 7 | AB103: ='C1- Price List All tenders'!O101 -> R8,732.99 | AC103: ='C1- Price List All tenders'!P101 -> R61,130.93 | AD103: R8,732.99 | AE103: R61,130.93 | AF103: 0 | AG103: 0 | AH103: -R7,052.99 | AI103: 419.82% | AJ103: -R49,370.93 | AK103: 420% | AM103: ='C1- Price List All tenders'!Q101 -> Each | AN103: ='C1- Price List All tenders'!R101 -> 7 | AO103: ='C1- Price List All tenders'!S101 -> R5,000.00 | AP103: ='C1- Price List All tenders'!T101 -> R35,000.00 | AQ103: R5,000.00 | AR103: R35,000.00 | AS103: 0 | AT103: 0 | AU103: -R3,320.00 | AV103: 197.62% | AW103: -R23,240.00 | AX103: 198% | AZ103: ='C1- Price List All tenders'!U101 -> Each | BA103: ='C1- Price List All tenders'!V101 -> 7 | BB103: ='C1- Price List All tenders'!W101 -> R838.00 | BC103: ='C1- Price List All tenders'!X101 -> R5,866.00 | BD103: R838.00 | BE103: R5,866.00 | BF103: 0 | BG103: 0 | BH103: R842.00 | BI103: -50.12% | BJ103: R5,894.00 | BK103: -50% | BM103: ='C1- Price List All tenders'!Y101 -> Each | BN103: ='C1- Price List All tenders'!Z101 -> 7 | BO103: ='C1- Price List All tenders'!AA101 -> R21,400.00 | BP103: ='C1- Price List All tenders'!AB101 -> R149,800.00 | BQ103: R21,400.00 | BR103: R149,800.00 | BS103: 3.00% | BT103: R145,306.00 | BU103: R4,494.00 | BV103: 0 | BW103: 0 | BX103: -R19,720.00 | BY103: 1173.81% | BZ103: -R138,040.00 | CA103: 1174% | CC103: ='C1- Price List All tenders'!AC101 -> Each | CD103: ='C1- Price List All tenders'!AD101 -> 7 | CE103: ='C1- Price List All tenders'!AE101 -> R906.25 | CF103: ='C1- Price List All tenders'!AF101 -> R6,343.75 | CG103: R906.25 | CH103: R6,343.75 | CI103: 0 | CJ103: 0 | CK103: R773.75 | CL103: -46.06% | CM103: R5,416.25 | CN103: -46%
B104: ='C1- Price List All tenders'!B102 -> 96. | C104: ='C1- Price List All tenders'!C102 -> Helmet torches: RS PRO LED Head Torch 300 lm. RS PRO, RS stock no.: 176-6031, Manufacturer: RS PRO | D104: ='C1- Price List All tenders'!D102 -> Engineering Operations Support | E104: ='C1- Price List All tenders'!E102 -> Each | F104: ='C1- Price List All tenders'!F102 -> 7 | G104: ='C1- Price List All tenders'!G102 -> R731.69 | H104: ='C1- Price List All tenders'!H102 -> R5,121.86 | I104: R731.69 | J104: R5,121.86 | K104: 0 | M104: ='C1- Price List All tenders'!I102 -> Each | N104: ='C1- Price List All tenders'!J102 -> 7 | O104: ='C1- Price List All tenders'!K102 -> R1,154.65 | P104: ='C1- Price List All tenders'!L102 -> R8,082.52 | Q104: =O104 -> R1,154.65 | R104: R8,082.52 | S104: 0 | T104: 0 | U104: -R422.95 | V104: 57.80% | W104: -R2,960.66 | X104: 58% | Z104: ='C1- Price List All tenders'!M102 -> Each | AA104: ='C1- Price List All tenders'!N102 -> 7 | AB104: ='C1- Price List All tenders'!O102 -> R3,747.19 | AC104: ='C1- Price List All tenders'!P102 -> R26,230.33 | AD104: R3,747.19 | AE104: R26,230.33 | AF104: 0 | AG104: 0 | AH104: -R3,015.50 | AI104: 412.12% | AJ104: -R21,108.47 | AK104: 412% | AM104: ='C1- Price List All tenders'!Q102 -> Each | AN104: ='C1- Price List All tenders'!R102 -> 7 | AO104: ='C1- Price List All tenders'!S102 -> R6,000.00 | AP104: ='C1- Price List All tenders'!T102 -> R42,000.00 | AQ104: R6,000.00 | AR104: R42,000.00 | AS104: 0 | AT104: 0 | AU104: -R5,268.31 | AV104: 720.01% | AW104: -R36,878.14 | AX104: 720% | AZ104: ='C1- Price List All tenders'!U102 -> Each | BA104: ='C1- Price List All tenders'!V102 -> 7 | BB104: ='C1- Price List All tenders'!W102 -> R712.00 | BC104: ='C1- Price List All tenders'!X102 -> R4,984.00 | BD104: R712.00 | BE104: R4,984.00 | BF104: 0 | BG104: 0 | BH104: R19.69 | BI104: -2.69% | BJ104: R137.86 | BK104: -3% | BM104: ='C1- Price List All tenders'!Y102 -> Each | BN104: ='C1- Price List All tenders'!Z102 -> 7 | BO104: ='C1- Price List All tenders'!AA102 -> R2,900.00 | BP104: ='C1- Price List All tenders'!AB102 -> R20,300.00 | BQ104: R2,900.00 | BR104: R20,300.00 | BS104: 3.00% | BT104: R19,691.00 | BU104: R609.00 | BV104: 0 | BW104: 0 | BX104: -R2,168.31 | BY104: 296.34% | BZ104: -R15,178.14 | CA104: 296% | CC104: ='C1- Price List All tenders'!AC102 -> Each | CD104: ='C1- Price List All tenders'!AD102 -> 7 | CE104: ='C1- Price List All tenders'!AE102 -> R912.44 | CF104: ='C1- Price List All tenders'!AF102 -> R6,387.08 | CG104: R912.44 | CH104: R6,387.08 | CI104: 0 | CJ104: 0 | CK104: -R180.75 | CL104: 24.70% | CM104: -R1,265.22 | CN104: 25%
B105: ='C1- Price List All tenders'!B103 -> 97. | C105: ='C1- Price List All tenders'!C103 -> Long range Walkie Talkie: Hand held 3 way communication Radio: Inrico T199 Non Display “GSM-PTT” Radio Limitless Communications! Talk anywhere you want, enjoy pure freedom in communications. Using Radio to communicate has never been more fun. With GSM-PTT you can talk to another Party on the other side of the country or even the side of the *world (Provided an Internation sim is used). Allows you to communicate via the GSM Network anywhere in the Country*. This device works with our “WALKIFLEET GSM-PTT” option added or Can be used to Communicate via Zello as a dedicated Device. Once Off Purchase (Requires SIM & WF Service), Non Display, Built-in GPS Receiver & 3G GSM Radio. Package Includes: Radio, Battery, Charger, Antenna, Carry Strap, Belt Clip, Charger Base & Transformer | D105: ='C1- Price List All tenders'!D103 -> Engineering Operations Support | E105: ='C1- Price List All tenders'!E103 -> Each | F105: ='C1- Price List All tenders'!F103 -> 6 | G105: ='C1- Price List All tenders'!G103 -> R3,131.65 | H105: ='C1- Price List All tenders'!H103 -> R18,789.91 | I105: R3,131.65 | J105: R18,789.91 | K105: 0 | M105: ='C1- Price List All tenders'!I103 -> Each | N105: ='C1- Price List All tenders'!J103 -> 6 | O105: ='C1- Price List All tenders'!K103 -> R1,500.61 | P105: ='C1- Price List All tenders'!L103 -> R9,003.64 | Q105: R1,500.61 | R105: R9,003.64 | S105: 0 | T105: 0 | U105: R1,631.04 | V105: -52.08% | W105: R9,786.27 | X105: -52% | Z105: ='C1- Price List All tenders'!M103 -> Each | AA105: ='C1- Price List All tenders'!N103 -> 6 | AB105: ='C1- Price List All tenders'!O103 -> R8,980.12 | AC105: ='C1- Price List All tenders'!P103 -> R53,880.72 | AD105: R8,980.12 | AE105: R53,880.72 | AF105: 0 | AG105: 0 | AH105: -R5,848.47 | AI105: 186.75% | AJ105: -R35,090.81 | AK105: 187% | AM105: ='C1- Price List All tenders'!Q103 -> Each | AN105: ='C1- Price List All tenders'!R103 -> 6 | AO105: ='C1- Price List All tenders'!S103 -> R3,800.00 | AP105: ='C1- Price List All tenders'!T103 -> R22,800.00 | AQ105: R3,800.00 | AR105: R22,800.00 | AS105: 0 | AT105: 0 | AU105: -R668.35 | AV105: 21.34% | AW105: -R4,010.09 | AX105: 21% | AZ105: ='C1- Price List All tenders'!U103 -> Each | BA105: ='C1- Price List All tenders'!V103 -> 6 | BB105: ='C1- Price List All tenders'!W103 -> R5,200.00 | BC105: ='C1- Price List All tenders'!X103 -> R31,200.00 | BD105: R5,200.00 | BE105: R31,200.00 | BF105: 0 | BG105: 0 | BH105: -R2,068.35 | BI105: 66.05% | BJ105: -R12,410.09 | BK105: 66% | BM105: ='C1- Price List All tenders'!Y103 -> Each | BN105: ='C1- Price List All tenders'!Z103 -> 6 | BO105: ='C1- Price List All tenders'!AA103 -> R5,198.00 | BP105: ='C1- Price List All tenders'!AB103 -> R31,188.00 | BQ105: R5,198.00 | BR105: R31,188.00 | BS105: 3.00% | BT105: R30,252.36 | BU105: R935.64 | BV105: 0 | BW105: 0 | BX105: -R2,066.35 | BY105: 65.98% | BZ105: -R12,398.09 | CA105: 66% | CC105: ='C1- Price List All tenders'!AC103 -> Each | CD105: ='C1- Price List All tenders'!AD103 -> 6 | CE105: ='C1- Price List All tenders'!AE103 -> R3,601.22 | CF105: ='C1- Price List All tenders'!AF103 -> R21,607.32 | CG105: R3,601.22 | CH105: R21,607.32 | CI105: 0 | CJ105: 0 | CK105: -R469.57 | CL105: 14.99% | CM105: -R2,817.41 | CN105: 15%
B106: ='C1- Price List All tenders'!B104 -> 98. | C106: ='C1- Price List All tenders'!C104 -> Laser distance meter | D106: ='C1- Price List All tenders'!D104 -> Engineering Operations Support | E106: ='C1- Price List All tenders'!E104 -> Each | F106: ='C1- Price List All tenders'!F104 -> 1 | G106: ='C1- Price List All tenders'!G104 -> R3,150.00 | H106: ='C1- Price List All tenders'!H104 -> R3,150.00 | I106: R3,150.00 | J106: R3,150.00 | K106: 0 | M106: ='C1- Price List All tenders'!I104 -> Each | N106: ='C1- Price List All tenders'!J104 -> 1 | O106: ='C1- Price List All tenders'!K104 -> R1,080.00 | P106: ='C1- Price List All tenders'!L104 -> R1,080.00 | Q106: R1,080.00 | R106: R1,080.00 | S106: 0 | T106: 0 | U106: R2,070.00 | V106: -65.71% | W106: R2,070.00 | X106: -66% | Z106: ='C1- Price List All tenders'!M104 -> Each | AA106: ='C1- Price List All tenders'!N104 -> 1 | AB106: ='C1- Price List All tenders'!O104 -> R5,720.19 | AC106: ='C1- Price List All tenders'!P104 -> R5,720.19 | AD106: R5,720.19 | AE106: R5,720.19 | AF106: 0 | AG106: 0 | AH106: -R2,570.19 | AI106: 81.59% | AJ106: -R2,570.19 | AK106: 82% | AM106: ='C1- Price List All tenders'!Q104 -> Each | AN106: ='C1- Price List All tenders'!R104 -> 1 | AO106: ='C1- Price List All tenders'!S104 -> R6,500.00 | AP106: ='C1- Price List All tenders'!T104 -> R6,500.00 | AQ106: R6,500.00 | AR106: R6,500.00 | AS106: 0 | AT106: 0 | AU106: -R3,350.00 | AV106: 106.35% | AW106: -R3,350.00 | AX106: 106% | AZ106: ='C1- Price List All tenders'!U104 -> Each | BA106: ='C1- Price List All tenders'!V104 -> 1 | BB106: ='C1- Price List All tenders'!W104 -> R2,256.00 | BC106: ='C1- Price List All tenders'!X104 -> R2,256.00 | BD106: R2,256.00 | BE106: R2,256.00 | BF106: 0 | BG106: 0 | BH106: R894.00 | BI106: -28.38% | BJ106: R894.00 | BK106: -28% | BM106: ='C1- Price List All tenders'!Y104 -> Each | BN106: ='C1- Price List All tenders'!Z104 -> 1 | BO106: ='C1- Price List All tenders'!AA104 -> R4,900.00 | BP106: ='C1- Price List All tenders'!AB104 -> R4,900.00 | BQ106: R4,900.00 | BR106: R4,900.00 | BS106: 3.00% | BT106: R4,753.00 | BU106: R147.00 | BV106: 0 | BW106: 0 | BX106: -R1,750.00 | BY106: 55.56% | BZ106: -R1,750.00 | CA106: 56% | CC106: ='C1- Price List All tenders'!AC104 -> Each | CD106: ='C1- Price List All tenders'!AD104 -> 1 | CE106: ='C1- Price List All tenders'!AE104 -> R2,892.75 | CF106: ='C1- Price List All tenders'!AF104 -> R2,892.75 | CG106: R2,892.75 | CH106: R2,892.75 | CI106: 0 | CJ106: 0 | CK106: R257.25 | CL106: -8.17% | CM106: R257.25 | CN106: -8%
B107: ='C1- Price List All tenders'!B105 -> 99. | C107: ='C1- Price List All tenders'!C105 -> Dew point meter | D107: ='C1- Price List All tenders'!D105 -> Engineering Operations Support | E107: ='C1- Price List All tenders'!E105 -> Each | F107: ='C1- Price List All tenders'!F105 -> 1 | G107: ='C1- Price List All tenders'!G105 -> R8,572.20 | H107: ='C1- Price List All tenders'!H105 -> R8,572.20 | I107: R8,572.20 | J107: R8,572.20 | K107: 0 | M107: ='C1- Price List All tenders'!I105 -> Each | N107: ='C1- Price List All tenders'!J105 -> 1 | O107: ='C1- Price List All tenders'!K105 -> R28,776.60 | P107: ='C1- Price List All tenders'!L105 -> R28,776.60 | Q107: R28,776.60 | R107: R28,776.60 | S107: 0 | T107: 0 | U107: -R20,204.40 | V107: 235.70% | W107: -R20,204.40 | X107: 236% | Z107: ='C1- Price List All tenders'!M105 -> Each | AA107: ='C1- Price List All tenders'!N105 -> 1 | AB107: ='C1- Price List All tenders'!O105 -> R14,350.23 | AC107: ='C1- Price List All tenders'!P105 -> R14,350.23 | AD107: R14,350.23 | AE107: R14,350.23 | AF107: 0 | AG107: 0 | AH107: -R5,778.03 | AI107: 67.40% | AJ107: -R5,778.03 | AK107: 67% | AM107: ='C1- Price List All tenders'!Q105 -> Each | AN107: ='C1- Price List All tenders'!R105 -> 1 | AO107: ='C1- Price List All tenders'!S105 -> R7,600.00 | AP107: ='C1- Price List All tenders'!T105 -> R7,600.00 | AQ107: R7,600.00 | AR107: R7,600.00 | AS107: 0 | AT107: 0 | AU107: R972.20 | AV107: -11.34% | AW107: R972.20 | AX107: -11% | AZ107: ='C1- Price List All tenders'!U105 -> Each | BA107: ='C1- Price List All tenders'!V105 -> 1 | BB107: ='C1- Price List All tenders'!W105 -> R2,795.00 | BC107: ='C1- Price List All tenders'!X105 -> R2,795.00 | BD107: R2,795.00 | BE107: R2,795.00 | BF107: 0 | BG107: 0 | BH107: R5,777.20 | BI107: -67.39% | BJ107: R5,777.20 | BK107: -67% | BM107: ='C1- Price List All tenders'!Y105 -> Each | BN107: ='C1- Price List All tenders'!Z105 -> 1 | BO107: ='C1- Price List All tenders'!AA105 -> R7,100.00 | BP107: ='C1- Price List All tenders'!AB105 -> R7,100.00 | BQ107: R7,100.00 | BR107: R7,100.00 | BS107: 3.00% | BT107: R6,887.00 | BU107: R213.00 | BV107: 0 | BW107: 0 | BX107: R1,472.20 | BY107: -17.17% | BZ107: R1,472.20 | CA107: -17% | CC107: ='C1- Price List All tenders'!AC105 -> Each | CD107: ='C1- Price List All tenders'!AD105 -> 1 | CE107: ='C1- Price List All tenders'!AE105 -> R86,076.18 | CF107: ='C1- Price List All tenders'!AF105 -> R86,076.18 | CG107: R86,076.18 | CH107: R86,076.18 | CI107: 0 | CJ107: 0 | CK107: -R77,503.98 | CL107: 904.13% | CM107: -R77,503.98 | CN107: 904%
